Workbook

Sheet Calculator
B1: Mnthly Int Rate
B2: =0.08/12 -> 0.006666666667
B3: Payments | CF3: IFERROR(XLOOKUP(YEAR(CC12)&MONTH(CC12),Penalties!$H$3:$H$122&Penalties!$I$3:$I$122,Penalties!$L$3:$L$122)*$W$10,"")
B4: Start Date | C4: Amount
A5: Initial | B5: 2025-04-15 | C5: 1500
A6: 1st Adj
A7: 2nd Adj | U7: 12 | V7: Year 1: | W7: =INDIRECT("B"&U7) -> 2021 | AE7: =U7+1 -> 13 | AF7: Year 2: | AG7: =INDIRECT("B"&AE7) -> 2022 | AO7: =AE7+1 -> 14 | AP7: Year 3: | AQ7: =INDIRECT("B"&AO7) -> 2023 | AY7: =AO7+1 -> 15 | AZ7: Year 4: | BA7: =INDIRECT("B"&AY7) -> 0 | BI7: =AY7+1 -> 16 | BJ7: Year 5: | BK7: =INDIRECT("B"&BI7) -> 0 | BS7: =BI7+1 -> 17 | BT7: Year 6: | BU7: =INDIRECT("B"&BS7) -> 0 | CC7: =BS7+1 -> 18 | CD7: Year 7: | CE7: =INDIRECT("B"&CC7) -> 0 | CM7: =CC7+1 -> 19 | CN7: Year 8: | CO7: =INDIRECT("B"&CM7) -> 0 | CW7: =CM7+1 -> 20 | CX7: Year 9: | CY7: =INDIRECT("B"&CW7) -> 0 | DG7: =CW7+1 -> 21 | DH7: Year 10: | DI7: =INDIRECT("B"&DG7) -> 0
V8: CSED | W8: =IF(INDIRECT("D"&U7)="","",INDIRECT("D"&U7)) -> 2034-01-01 | AB8: Pays by CSED | AF8: CSED | AG8: =IF(INDIRECT("C"&AE7)="","",INDIRECT("D"&AE7)) -> 2035-02-24 | AL8: Pays by CSED | AP8: CSED | AQ8: =IF(INDIRECT("C"&AO7)="","",INDIRECT("D"&AO7)) -> 2035-02-24 | AV8: Pays by CSED | AZ8: CSED | BA8: =IF(INDIRECT("C"&AY7)="","",INDIRECT("C"&AY7)) -> 00:00:00 | BF8: Pays by CSED | BJ8: CSED | BK8: =IF(INDIRECT("C"&BI7)="","",INDIRECT("C"&BI7)) -> 00:00:00 | BP8: Pays by CSED | BT8: CSED | BU8: =IF(INDIRECT("C"&BS7)="","",INDIRECT("C"&BS7)) -> 00:00:00 | BZ8: Pays by CSED | CD8: CSED | CE8: =IF(INDIRECT("C"&CC7)="","",INDIRECT("C"&CC7)) -> 00:00:00 | CJ8: Pays by CSED | CN8: CSED | CO8: =IF(INDIRECT("C"&CM7)="","",INDIRECT("C"&CM7)) -> 00:00:00 | CT8: Pays by CSED | CX8: CSED | CY8: =IF(INDIRECT("C"&CW7)="","",INDIRECT("C"&CW7)) -> 00:00:00 | DD8: Pays by CSED | DH8: CSED | DI8: =IF(INDIRECT("C"&DG7)="","",INDIRECT("C"&DG7)) -> 00:00:00 | DN8: Pays by CSED
V9: Pays off | W9: =IF(W10="","",MIN(AC12:AC191)) -> 2026-02-15 | AB9: =IF(W10="","",IF(W9<W8,"YES","NO")) -> YES | AF9: Pays off | AG9: =IF(OR(AG10="",AG10=0),"",MIN(AM12:AM79)) -> 2031-09-15 | AL9: =IF(AG10="","",IF(AG9<AG8,"YES","NO")) -> YES | AP9: Pays off | AQ9: =IF(AQ10="","",MIN(AW12:AW79)) -> 2033-04-15 | AV9: =IF(AQ10="","",IF(AQ9<AQ8,"YES","NO")) -> YES | AZ9: Pays off | BA9: =IF(BA10="","",MIN(BG12:BG79)) -> 00:00:00 | BF9: =IF(BA10="","",IF(BA9<BA8,"YES","NO")) -> NO | BJ9: Pays off | BK9: =IF(BK10="","",MIN(BQ12:BQ79)) -> 00:00:00 | BP9: =IF(BK10="","",IF(BK9<BK8,"YES","NO")) -> NO | BT9: Pays off | BU9: =IF(BU10="","",MIN(CA12:CA79)) -> 00:00:00 | BZ9: =IF(BU10="","",IF(BU9<BU8,"YES","NO")) -> NO | CD9: Pays off | CE9: =IF(CE10="","",MIN(CK12:CK79)) -> 00:00:00 | CJ9: =IF(CE10="","",IF(CE9<CE8,"YES","NO")) -> NO | CN9: Pays off | CO9: =IF(CO10="","",MIN(CU12:CU79)) -> 00:00:00 | CT9: =IF(CO10="","",IF(CO9<CO8,"YES","NO")) -> NO | CX9: Pays off | CY9: =IF(CY10="","",MIN(DE12:DE79)) -> 00:00:00 | DD9: =IF(CY10="","",IF(CY9<CY8,"YES","NO")) -> NO | DH9: Pays off | DI9: =IF(DI10="","",MIN(DO12:DO79)) -> 00:00:00 | DN9: =IF(DI10="","",IF(DI9<DI8,"YES","NO")) -> NO
B10: Enter each period in order from earliest to latest tax year | V10: Amount: | W10: =IF(INDIRECT("C"&U7)="","",INDIRECT("C"&U7)) -> 14884.63 | AF10: Amount: | AG10: =IF(INDIRECT("C"&AE7)="","",INDIRECT("C"&AE7)) -> 79569.93 | AP10: Amount: | AQ10: =IF(INDIRECT("C"&AO7)="","",INDIRECT("C"&AO7)) -> 27000 | AZ10: Amount: | BA10: =IF(INDIRECT("C"&AY7)="","",INDIRECT("C"&AY7)) -> 0 | BJ10: Amount: | BK10: =IF(INDIRECT("C"&BI7)="","",INDIRECT("C"&BI7)) -> 0 | BT10: Amount: | BU10: =IF(INDIRECT("C"&BS7)="","",INDIRECT("C"&BS7)) -> 0 | CD10: Amount: | CE10: =IF(INDIRECT("C"&CC7)="","",INDIRECT("C"&CC7)) -> 0 | CN10: Amount: | CO10: =IF(INDIRECT("C"&CM7)="","",INDIRECT("C"&CM7)) -> 0 | CX10: Amount: | CY10: =IF(INDIRECT("C"&CW7)="","",INDIRECT("C"&CW7)) -> 0 | DH10: Amount: | DI10: =IF(INDIRECT("C"&DG7)="","",INDIRECT("C"&DG7)) -> 0
B11: Year | C11: Balance | D11: CSED | E11: Tax Assessed | F11: WH & Credits | G11: Return Due | H11: Return Filed | I11: Tax Due Dt | J11: Payoff date | K11: Paid by CSED | U11: Date | V11: Payment | W11: Beg Bal | X11: Interest | Y11: FTF | Z11: FTP | AA11: Other | AB11: End Bal | AC11: Stop Date | AE11: Date | AF11: Payment | AG11: Beg Bal | AH11: Interest | AI11: FTF | AJ11: FTP | AK11: Other | AL11: End Bal | AM11: Stop Date | AO11: Date | AP11: Payment | AQ11: Beg Bal | AR11: Interest | AS11: FTF | AT11: FTP | AU11: Other | AV11: End Bal | AW11: Stop Date | AY11: Date | AZ11: Payment | BA11: Beg Bal | BB11: Interest | BC11: FTF | BD11: FTP | BE11: Other | BF11: End Bal | BG11: Stop Date | BI11: Date | BJ11: Payment | BK11: Beg Bal | BL11: Interest | BM11: FTF | BN11: FTP | BO11: Other | BP11: End Bal | BQ11: Stop Date | BS11: Date | BT11: Payment | BU11: Beg Bal | BV11: Interest | BW11: FTF | BX11: FTP | BY11: Other | BZ11: End Bal | CA11: Stop Date | CC11: Date | CD11: Payment | CE11: Beg Bal | CF11: Interest | CG11: FTF | CH11: FTP | CI11: Other | CJ11: End Bal | CK11: Stop Date | CM11: Date | CN11: Payment | CO11: Beg Bal | CP11: Interest | CQ11: FTF | CR11: FTP | CS11: Other | CT11: End Bal | CU11: Stop Date | CW11: Date | CX11: Payment | CY11: Beg Bal | CZ11: Interest | DA11: FTF | DB11: FTP | DC11: Other | DD11: End Bal | DE11: Stop Date | DG11: Date | DH11: Payment | DI11: Beg Bal | DJ11: Interest | DK11: FTF | DL11: FTP | DM11: Other | DN11: End Bal | DO11: Stop Date
B12: 2021 | C12: =Table1[[#This Row],[Tax Assessed]]-Table1[[#This Row],[WH & Credits]] -> 14884.63 | D12: 2034-01-01 | E12: 14884.63 | G12: 2022-10-15 | H12: 2024-01-01 | I12: 2022-04-15 | J12: =IF(OR(B12="",C12="",D12=""),"",W9) -> 2026-02-15 | K12: =IF(J12="","",IF(J12<D12,"YES","NO")) -> YES | U12: =IFERROR(IF((ROW()-ROW(Year1Table[#Headers]))=1,IF(OR(Table1[[#This Row],[Tax Assessed]]="",Table1[[#This Row],[Tax Assessed]]=0),"",Table1[[#This Row],[Tax Due Dt]]),IF((ROW()-ROW(Year1Table[#Headers]))>1,IF(OFFSET(AB12,-1,)<1,"",EDATE(U11,1)))),"") -> 2022-04-15 | V12: =IF(OR(AB11<0,AB11=""),"",IF(AND($B$7<>"",U12>=$B$7),$C$7,IF(AND($B$6<>"",U12>=$B$6),$C$6,IF(U12>=$B$5,$C$5,IF(U12<$B$5,0))))) -> 0 | W12: =IF(W10="","",W10) -> 14884.63 | X12: =IFERROR(_xlfn.XLOOKUP(YEAR(Year1Table[[#This Row],[Date]])&MONTH(Year1Table[[#This Row],[Date]]),PenaltyTable[Year]&PenaltyTable[Month],PenaltyTable[Daily])*$W$10,"") -> 2.038990411 | AB12: =IF(W10="","",(W12+X12)-V12) -> 14886.66899 | AC12: =IF(AB12>0,"",IF(VALUE(U12)>=VALUE($W$8),"",U12)) ->  | AE12: =IF(OR(AG10="",AG10=0),"",MIN(AC12:AC191)) -> 2026-02-15 | AF12: =IF(ROW()-ROW(Year2Table[#Headers])=1,$AI$193,IF(AG10="","",IF(AND($B$7<>"",AE12>=$B$7),$C$7,IF(AND($B$6<>"",AE12>=$B$6),$C$6,IF(AE12>=$B$5,$C$5,IF(AE12<$B$5,0)))))) -> 13.90199205 | AG12: =IF(OR(AG10="",AG10=0),"",AG10) -> 79569.93 | AH12: =IFERROR(_xlfn.XLOOKUP(YEAR(Year2Table[[#This Row],[Date]])&MONTH(Year2Table[[#This Row],[Date]]),PenaltyTable[Year]&PenaltyTable[Month],PenaltyTable[Daily])*$AG$10,"") -> 15.25998658 | AL12: =IF(OR(AG10="",AG10=0),"",AG12-AF12+(AG12*$B$2)) -> 80086.49421 | AM12: =IF(AL12>0,"",IF(VALUE(AE12)>=VALUE($W$8),"",AE12)) ->  | AO12: =IF(OR(AQ10="",AQ10=0),"",MIN(AM12:AM191)) -> 2031-09-15 | AP12: =IF(AQ10="","",IF(AND($B$7<>"",AO12>=$B$7),$C$7,IF(AND($B$6<>"",AO12>=$B$6),$C$6,IF(AO12>=$B$5,$C$5,IF(AO12<$B$5,0))))) -> 1500 | AQ12: =IF(OR(AQ10="",AQ10=0),"",AQ10) -> 27000 | AR12: =IFERROR(_xlfn.XLOOKUP(YEAR(Year3Table[[#This Row],[Date]])&MONTH(Year3Table[[#This Row],[Date]]),PenaltyTable[Year]&PenaltyTable[Month],PenaltyTable[Daily])*$AQ$10,"") -> 5.178082192 | AV12: =IF(OR(AQ10="",AQ10=0),"",AQ12-AP12+(AQ12*$B$2)) -> 25680 | AW12: =IF(AV12>0,"",IF(VALUE(AO12)>=VALUE($W$8),"",AO12)) ->  | AY12: =IF(OR(BA10="",BA10=0),"",MIN(AW12:AW191)) ->  | AZ12: =IF(BA10="","",IF(AND($B$7<>"",AY12>=$B$7),$C$7,IF(AND($B$6<>"",AY12>=$B$6),$C$6,IF(AY12>=$B$5,$C$5,IF(AY12<$B$5,0))))) -> 1500 | BA12: =IF(OR(BA10="",BA10=0),"",BA10) ->  | BB12: =IFERROR(_xlfn.XLOOKUP(YEAR(Year4Table[[#This Row],[Date]])&MONTH(Year4Table[[#This Row],[Date]]),PenaltyTable[Year]&PenaltyTable[Month],PenaltyTable[Daily])*$BA$10,"") ->  | BF12: =IF(OR(BA10="",BA10=0),"",BA12-AZ12+(BA12*$B$2)) ->  | BG12: =IF(BF12>0,"",AY12) ->  | BI12: =IF(OR(BK10="",BK10=0),"",MIN(BG12:BG191)) ->  | BJ12: =IF(BK10="","",IF(AND($B$7<>"",BI12>=$B$7),$C$7,IF(AND($B$6<>"",BI12>=$B$6),$C$6,IF(BI12>=$B$5,$C$5,IF(BI12<$B$5,0))))) -> 1500 | BK12: =IF(OR(BK10="",BK10=0),"",BK10) ->  | BL12: =IFERROR(_xlfn.XLOOKUP(YEAR(Year5Table[[#This Row],[Date]])&MONTH(Year5Table[[#This Row],[Date]]),PenaltyTable[Year]&PenaltyTable[Month],PenaltyTable[Daily])*$BK$10,"") ->  | BP12: =IF(OR(BK10="",BK10=0),"",BK12-BJ12+(BK12*$B$2)) ->  | BQ12: =IF(BP12>0,"",BI12) ->  | BS12: =IF(OR(BU10="",BU10=0),"",MIN(BQ12:BQ191)) ->  | BT12: =IF(BU10="","",IF(AND($B$7<>"",BS12>=$B$7),$C$7,IF(AND($B$6<>"",BS12>=$B$6),$C$6,IF(BS12>=$B$5,$C$5,IF(BS12<$B$5,0))))) -> 1500 | BU12: =IF(OR(BU10="",BU10=0),"",BU10) ->  | BV12: =IFERROR(_xlfn.XLOOKUP(YEAR(Year6Table[[#This Row],[Date]])&MONTH(Year6Table[[#This Row],[Date]]),PenaltyTable[Year]&PenaltyTable[Month],PenaltyTable[Daily])*$BU$10,"") ->  | BZ12: =IF(OR(BU10="",BU10=0),"",BU12-BT12+(BU12*$B$2)) ->  | CA12: =IF(BZ12>0,"",BS12) ->  | CC12: =IF(OR(CE10="",CE10=0),"",MIN(CA12:CA191)) ->  | CD12: =IF(CE10="","",IF(AND($B$7<>"",CC12>=$B$7),$C$7,IF(AND($B$6<>"",CC12>=$B$6),$C$6,IF(CC12>=$B$5,$C$5,IF(CC12<$B$5,0))))) -> 1500 | CE12: =IF(OR(CE10="",CE10=0),"",CE10) ->  | CF12: =IFERROR(_xlfn.XLOOKUP(YEAR(Year7Table[[#This Row],[Date]])&MONTH(Year7Table[[#This Row],[Date]]),PenaltyTable[Year]&PenaltyTable[Month],PenaltyTable[Daily])*CE$10,"") ->  | CJ12: =IF(OR(CE10="",CE10=0),"",CE12-CD12+(CE12*$B$2)) ->  | CK12: =IF(CJ12>0,"",CC12) ->  | CM12: =IF(OR(CO10="",CO10=0),"",MIN(CK12:CK191)) ->  | CN12: =IF(CO10="","",IF(AND($B$7<>"",CM12>=$B$7),$C$7,IF(AND($B$6<>"",CM12>=$B$6),$C$6,IF(CM12>=$B$5,$C$5,IF(CM12<$B$5,0))))) -> 1500 | CO12: =IF(OR(CO10="",CO10=0),"",CO10) ->  | CP12: =IFERROR(_xlfn.XLOOKUP(YEAR(Year8Table[[#This Row],[Date]])&MONTH(Year8Table[[#This Row],[Date]]),PenaltyTable[Year]&PenaltyTable[Month],PenaltyTable[Daily])*$CO$10,"") ->  | CT12: =IF(OR(CO10="",CO10=0),"",CO12-CN12+(CO12*$B$2)) ->  | CU12: =IF(CT12>0,"",CM12) ->  | CW12: =IF(OR(CY10="",CY10=0),"",MIN(CU12:CU191)) ->  | CX12: =IF(CY10="","",IF(AND($B$7<>"",CW12>=$B$7),$C$7,IF(AND($B$6<>"",CW12>=$B$6),$C$6,IF(CW12>=$B$5,$C$5,IF(CW12<$B$5,0))))) -> 1500 | CY12: =IF(OR(CY10="",CY10=0),"",CY10) ->  | CZ12: =IFERROR(_xlfn.XLOOKUP(YEAR(Year9Table[[#This Row],[Date]])&MONTH(Year9Table[[#This Row],[Date]]),PenaltyTable[Year]&PenaltyTable[Month],PenaltyTable[Daily])*$CY$10,"") ->  | DD12: =IF(OR(CY10="",CY10=0),"",CY12-CX12+(CY12*$B$2)) ->  | DE12: =IF(DD12>0,"",CW12) ->  | DG12: =IF(OR(DI10="",DI10=0),"",MIN(DE12:DE191)) ->  | DH12: =IF(DI10="","",IF(AND($B$7<>"",DG12>=$B$7),$C$7,IF(AND($B$6<>"",DG12>=$B$6),$C$6,IF(DG12>=$B$5,$C$5,IF(DG12<$B$5,0))))) -> 1500 | DI12: =IF(OR(DI10="",DI10=0),"",DI10) ->  | DJ12: =IFERROR(_xlfn.XLOOKUP(YEAR(Year10Table[[#This Row],[Date]])&MONTH(Year10Table[[#This Row],[Date]]),PenaltyTable[Year]&PenaltyTable[Month],PenaltyTable[Daily])*$DI$10,"") ->  | DN12: =IF(OR(DI10="",DI10=0),"",DI12-DH12+(DI12*$B$2)) ->  | DO12: =IF(DN12>0,"",DG12) -> 
B13: 2022 | C13: =Table1[[#This Row],[Tax Assessed]]-Table1[[#This Row],[WH & Credits]] -> 79569.93 | D13: 2035-02-24 | E13: 79569.93 | G13: 2023-04-15 | H13: 2025-02-24 | I13: 2023-04-15 | J13: =IF(OR(B13="",C13="",D13=""),"",AG9) -> 2031-09-15 | K13: YES | U13: =IFERROR(IF((ROW()-ROW(Year1Table[#Headers]))=1,IF(OR(Table1[[#This Row],[Tax Assessed]]="",Table1[[#This Row],[Tax Assessed]]=0),"",Table1[[#This Row],[Tax Due Dt]]),IF((ROW()-ROW(Year1Table[#Headers]))>1,IF(OFFSET(AB13,-1,)<1,"",EDATE(U12,1)))),"") -> 2022-05-15 | V13: 0 | W13: =IF(OR(AB12<0,AB12=""),"",AB12) -> 14886.66899 | X13: =IFERROR(_xlfn.XLOOKUP(YEAR(Year1Table[[#This Row],[Date]])&MONTH(Year1Table[[#This Row],[Date]]),PenaltyTable[Year]&PenaltyTable[Month],PenaltyTable[Daily])*$W$10,"") -> 2.038990411 | AB13: =IF(OR(AB12<0,AB12=""),"",(W13+X13)-V13) -> 14888.70798 | AC13: =IF(AB13>0,"",IF(VALUE(U13)>=VALUE($W$8),"",U13)) ->  | AE13: =IF(OR(AL12="",AL12<0),"",EDATE(AE12,1)) -> 2026-03-15 | AF13: =IF(ROW()-ROW(Year2Table[#Headers])=1,$AI$193,IF(AG11="","",IF(AND($B$7<>"",AE13>=$B$7),$C$7,IF(AND($B$6<>"",AE13>=$B$6),$C$6,IF(AE13>=$B$5,$C$5,IF(AE13<$B$5,0)))))) -> 1500 | AG13: =IF(OR(AL12<0,AL12=""),"",AL12) -> 80086.49421 | AH13: =IFERROR(_xlfn.XLOOKUP(YEAR(Year2Table[[#This Row],[Date]])&MONTH(Year2Table[[#This Row],[Date]]),PenaltyTable[Year]&PenaltyTable[Month],PenaltyTable[Daily])*$AG$10,"") -> 15.25998658 | AL13: =IF(OR(AL12<0,AL12=""),"",AG13-AF13+(AG13*$B$2)) -> 79120.40417 | AO13: =IF(OR(AV12="",AV12<0),"",EDATE(AO12,1)) -> 2031-10-15 | AP13: =IF(OR(AV12="",AV12<0),"",IF(AND($B$7<>"",AO13>=$B$7),$C$7,IF(AND($B$6<>"",AO13>=$B$6),$C$6,IF(AO13>=$B$5,$C$5,IF(AO13<$B$5,0))))) -> 1500 | AQ13: =IF(OR(AV12<0,AV12=""),"",AV12) -> 25680 | AR13: =IFERROR(_xlfn.XLOOKUP(YEAR(Year3Table[[#This Row],[Date]])&MONTH(Year3Table[[#This Row],[Date]]),PenaltyTable[Year]&PenaltyTable[Month],PenaltyTable[Daily])*$AQ$10,"") -> 5.178082192 | AV13: =IF(OR(AV12<0,AV12=""),"",AQ13-AP13+(AQ13*$B$2)) -> 24351.2 | AY13: =IF(OR(BF12="",BF12<0),"",EDATE(AY12,1)) ->  | AZ13: =IF(OR(BF12="",BF12<0),"",IF(AND($B$7<>"",AY13>=$B$7),$C$7,IF(AND($B$6<>"",AY13>=$B$6),$C$6,IF(AY13>=$B$5,$C$5,IF(AY13<$B$5,0))))) ->  | BA13: =IF(OR(BF12<0,BF12=""),"",BF12) ->  | BB13: =IFERROR(_xlfn.XLOOKUP(YEAR(Year4Table[[#This Row],[Date]])&MONTH(Year4Table[[#This Row],[Date]]),PenaltyTable[Year]&PenaltyTable[Month],PenaltyTable[Daily])*$BA$10,"") ->  | BF13: =IF(OR(BF12<0,BF12=""),"",BA13-AZ13+(BA13*$B$2)) ->  | BG13: =IF(BF13>0,"",AY13) ->  | BI13: =IF(OR(BP12="",BP12<0),"",EDATE(BI12,1)) ->  | BJ13: =IF(OR(BP12="",BP12<0),"",IF(AND($B$7<>"",BI13>=$B$7),$C$7,IF(AND($B$6<>"",BI13>=$B$6),$C$6,IF(BI13>=$B$5,$C$5,IF(BI13<$B$5,0))))) ->  | BK13: =IF(OR(BP12<0,BP12=""),"",BP12) ->  | BL13: =IFERROR(_xlfn.XLOOKUP(YEAR(Year5Table[[#This Row],[Date]])&MONTH(Year5Table[[#This Row],[Date]]),PenaltyTable[Year]&PenaltyTable[Month],PenaltyTable[Daily])*$BK$10,"") ->  | BP13: =IF(OR(BP12<0,BP12=""),"",BK13-BJ13+(BK13*$B$2)) ->  | BQ13: =IF(BP13>0,"",BI13) ->  | BS13: =IF(OR(BZ12="",BZ12<0),"",EDATE(BS12,1)) ->  | BT13: =IF(OR(BZ12="",BZ12<0),"",IF(AND($B$7<>"",BS13>=$B$7),$C$7,IF(AND($B$6<>"",BS13>=$B$6),$C$6,IF(BS13>=$B$5,$C$5,IF(BS13<$B$5,0))))) ->  | BU13: =IF(OR(BZ12<0,BZ12=""),"",BZ12) ->  | BV13: =IFERROR(_xlfn.XLOOKUP(YEAR(Year6Table[[#This Row],[Date]])&MONTH(Year6Table[[#This Row],[Date]]),PenaltyTable[Year]&PenaltyTable[Month],PenaltyTable[Daily])*$BU$10,"") ->  | BZ13: =IF(OR(BZ12<0,BZ12=""),"",BU13-BT13+(BU13*$B$2)) ->  | CA13: =IF(BZ13>0,"",BS13) ->  | CC13: =IF(OR(CJ12="",CJ12<0),"",EDATE(CC12,1)) ->  | CD13: =IF(OR(CJ12="",CJ12<0),"",IF(AND($B$7<>"",CC13>=$B$7),$C$7,IF(AND($B$6<>"",CC13>=$B$6),$C$6,IF(CC13>=$B$5,$C$5,IF(CC13<$B$5,0))))) ->  | CE13: =IF(OR(CJ12<0,CJ12=""),"",CJ12) ->  | CF13: =IFERROR(_xlfn.XLOOKUP(YEAR(Year7Table[[#This Row],[Date]])&MONTH(Year7Table[[#This Row],[Date]]),PenaltyTable[Year]&PenaltyTable[Month],PenaltyTable[Daily])*CE$10,"") ->  | CJ13: =IF(OR(CJ12<0,CJ12=""),"",CE13-CD13+(CE13*$B$2)) ->  | CK13: =IF(CJ13>0,"",CC13) ->  | CM13: =IF(OR(CT12="",CT12<0),"",EDATE(CM12,1)) ->  | CN13: =IF(OR(CT12="",CT12<0),"",IF(AND($B$7<>"",CM13>=$B$7),$C$7,IF(AND($B$6<>"",CM13>=$B$6),$C$6,IF(CM13>=$B$5,$C$5,IF(CM13<$B$5,0))))) ->  | CO13: =IF(OR(CT12<0,CT12=""),"",CT12) ->  | CP13: =IFERROR(_xlfn.XLOOKUP(YEAR(Year8Table[[#This Row],[Date]])&MONTH(Year8Table[[#This Row],[Date]]),PenaltyTable[Year]&PenaltyTable[Month],PenaltyTable[Daily])*$CO$10,"") ->  | CT13: =IF(OR(CT12<0,CT12=""),"",CO13-CN13+(CO13*$B$2)) ->  | CU13: =IF(CT13>0,"",CM13) ->  | CW13: =IF(OR(DD12="",DD12<0),"",EDATE(CW12,1)) ->  | CX13: =IF(OR(DD12="",DD12<0),"",IF(AND($B$7<>"",CW13>=$B$7),$C$7,IF(AND($B$6<>"",CW13>=$B$6),$C$6,IF(CW13>=$B$5,$C$5,IF(CW13<$B$5,0))))) ->  | CY13: =IF(OR(DD12<0,DD12=""),"",DD12) ->  | CZ13: =IFERROR(_xlfn.XLOOKUP(YEAR(Year9Table[[#This Row],[Date]])&MONTH(Year9Table[[#This Row],[Date]]),PenaltyTable[Year]&PenaltyTable[Month],PenaltyTable[Daily])*$CY$10,"") ->  | DD13: =IF(OR(DD12<0,DD12=""),"",CY13-CX13+(CY13*$B$2)) ->  | DE13: =IF(DD13>0,"",CW13) ->  | DG13: =IF(OR(DN12="",DN12<0),"",EDATE(DG12,1)) ->  | DH13: =IF(OR(DN12="",DN12<0),"",IF(AND($B$7<>"",DG13>=$B$7),$C$7,IF(AND($B$6<>"",DG13>=$B$6),$C$6,IF(DG13>=$B$5,$C$5,IF(DG13<$B$5,0))))) ->  | DI13: =IF(OR(DN12<0,DN12=""),"",DN12) ->  | DJ13: =IFERROR(_xlfn.XLOOKUP(YEAR(Year10Table[[#This Row],[Date]])&MONTH(Year10Table[[#This Row],[Date]]),PenaltyTable[Year]&PenaltyTable[Month],PenaltyTable[Daily])*$DI$10,"") ->  | DN13: =IF(OR(DN12<0,DN12=""),"",DI13-DH13+(DI13*$B$2)) ->  | DO13: =IF(DN13>0,"",DG13) -> 
B14: 2023 | C14: 27000 | D14: 2035-02-24 | E14: 27000 | G14: 2024-04-15 | H14: 2025-02-24 | I14: 2024-04-15 | J14: =IF(OR(B14="",C14="",D14=""),"",AQ9) -> 2033-04-15 | K14: YES | R14: =ROW(Year1Table[#Headers]) -> 11 | U14: =IFERROR(IF((ROW()-ROW(Year1Table[#Headers]))=1,IF(OR(Table1[[#This Row],[Tax Assessed]]="",Table1[[#This Row],[Tax Assessed]]=0),"",Table1[[#This Row],[Tax Due Dt]]),IF((ROW()-ROW(Year1Table[#Headers]))>1,IF(OFFSET(AB14,-1,)<1,"",EDATE(U13,1)))),"") -> 2022-06-15 | V14: 0 | W14: =IF(OR(AB13<0,AB13=""),"",AB13) -> 14888.70798 | X14: =IFERROR(_xlfn.XLOOKUP(YEAR(Year1Table[[#This Row],[Date]])&MONTH(Year1Table[[#This Row],[Date]]),PenaltyTable[Year]&PenaltyTable[Month],PenaltyTable[Daily])*$W$10,"") -> 2.038990411 | AB14: 14890.74697 | AE14: =IF(OR(AL13="",AL13<0),"",EDATE(AE13,1)) -> 2026-04-15 | AF14: =IF(ROW()-ROW(Year2Table[#Headers])=1,$AI$193,IF(AG12="","",IF(AND($B$7<>"",AE14>=$B$7),$C$7,IF(AND($B$6<>"",AE14>=$B$6),$C$6,IF(AE14>=$B$5,$C$5,IF(AE14<$B$5,0)))))) -> 1500 | AG14: =IF(OR(AL13<0,AL13=""),"",AL13) -> 79120.40417 | AH14: =IFERROR(_xlfn.XLOOKUP(YEAR(Year2Table[[#This Row],[Date]])&MONTH(Year2Table[[#This Row],[Date]]),PenaltyTable[Year]&PenaltyTable[Month],PenaltyTable[Daily])*$AG$10,"") -> 15.25998658 | AL14: =IF(OR(AL13<0,AL13=""),"",AG14-AF14+(AG14*$B$2)) -> 78147.87353 | AO14: =IF(OR(AV13="",AV13<0),"",EDATE(AO13,1)) -> 2031-11-15 | AP14: =IF(OR(AV13="",AV13<0),"",IF(AND($B$7<>"",AO14>=$B$7),$C$7,IF(AND($B$6<>"",AO14>=$B$6),$C$6,IF(AO14>=$B$5,$C$5,IF(AO14<$B$5,0))))) -> 1500 | AQ14: =IF(OR(AV13<0,AV13=""),"",AV13) -> 24351.2 | AR14: =IFERROR(_xlfn.XLOOKUP(YEAR(Year3Table[[#This Row],[Date]])&MONTH(Year3Table[[#This Row],[Date]]),PenaltyTable[Year]&PenaltyTable[Month],PenaltyTable[Daily])*$AQ$10,"") -> 5.178082192 | AV14: =IF(OR(AV13<0,AV13=""),"",AQ14-AP14+(AQ14*$B$2)) -> 23013.54133 | AY14: =IF(OR(BF13="",BF13<0),"",EDATE(AY13,1)) ->  | AZ14: =IF(OR(BF13="",BF13<0),"",IF(AND($B$7<>"",AY14>=$B$7),$C$7,IF(AND($B$6<>"",AY14>=$B$6),$C$6,IF(AY14>=$B$5,$C$5,IF(AY14<$B$5,0))))) ->  | BA14: =IF(OR(BF13<0,BF13=""),"",BF13) ->  | BB14: =IFERROR(_xlfn.XLOOKUP(YEAR(Year4Table[[#This Row],[Date]])&MONTH(Year4Table[[#This Row],[Date]]),PenaltyTable[Year]&PenaltyTable[Month],PenaltyTable[Daily])*$BA$10,"") ->  | BF14: =IF(OR(BF13<0,BF13=""),"",BA14-AZ14+(BA14*$B$2)) ->  | BG14: =IF(BF14>0,"",AY14) ->  | BI14: =IF(OR(BP13="",BP13<0),"",EDATE(BI13,1)) ->  | BJ14: =IF(OR(BP13="",BP13<0),"",IF(AND($B$7<>"",BI14>=$B$7),$C$7,IF(AND($B$6<>"",BI14>=$B$6),$C$6,IF(BI14>=$B$5,$C$5,IF(BI14<$B$5,0))))) ->  | BK14: =IF(OR(BP13<0,BP13=""),"",BP13) ->  | BL14: =IFERROR(_xlfn.XLOOKUP(YEAR(Year5Table[[#This Row],[Date]])&MONTH(Year5Table[[#This Row],[Date]]),PenaltyTable[Year]&PenaltyTable[Month],PenaltyTable[Daily])*$BK$10,"") ->  | BP14: =IF(OR(BP13<0,BP13=""),"",BK14-BJ14+(BK14*$B$2)) ->  | BQ14: =IF(BP14>0,"",BI14) ->  | BS14: =IF(OR(BZ13="",BZ13<0),"",EDATE(BS13,1)) ->  | BT14: =IF(OR(BZ13="",BZ13<0),"",IF(AND($B$7<>"",BS14>=$B$7),$C$7,IF(AND($B$6<>"",BS14>=$B$6),$C$6,IF(BS14>=$B$5,$C$5,IF(BS14<$B$5,0))))) ->  | BU14: =IF(OR(BZ13<0,BZ13=""),"",BZ13) ->  | BV14: =IFERROR(_xlfn.XLOOKUP(YEAR(Year6Table[[#This Row],[Date]])&MONTH(Year6Table[[#This Row],[Date]]),PenaltyTable[Year]&PenaltyTable[Month],PenaltyTable[Daily])*$BU$10,"") ->  | BZ14: =IF(OR(BZ13<0,BZ13=""),"",BU14-BT14+(BU14*$B$2)) ->  | CA14: =IF(BZ14>0,"",BS14) ->  | CC14: =IF(OR(CJ13="",CJ13<0),"",EDATE(CC13,1)) ->  | CD14: =IF(OR(CJ13="",CJ13<0),"",IF(AND($B$7<>"",CC14>=$B$7),$C$7,IF(AND($B$6<>"",CC14>=$B$6),$C$6,IF(CC14>=$B$5,$C$5,IF(CC14<$B$5,0))))) ->  | CE14: =IF(OR(CJ13<0,CJ13=""),"",CJ13) ->  | CF14: =IFERROR(_xlfn.XLOOKUP(YEAR(Year7Table[[#This Row],[Date]])&MONTH(Year7Table[[#This Row],[Date]]),PenaltyTable[Year]&PenaltyTable[Month],PenaltyTable[Daily])*CE$10,"") ->  | CJ14: =IF(OR(CJ13<0,CJ13=""),"",CE14-CD14+(CE14*$B$2)) ->  | CK14: =IF(CJ14>0,"",CC14) ->  | CM14: =IF(OR(CT13="",CT13<0),"",EDATE(CM13,1)) ->  | CN14: =IF(OR(CT13="",CT13<0),"",IF(AND($B$7<>"",CM14>=$B$7),$C$7,IF(AND($B$6<>"",CM14>=$B$6),$C$6,IF(CM14>=$B$5,$C$5,IF(CM14<$B$5,0))))) ->  | CO14: =IF(OR(CT13<0,CT13=""),"",CT13) ->  | CP14: =IFERROR(_xlfn.XLOOKUP(YEAR(Year8Table[[#This Row],[Date]])&MONTH(Year8Table[[#This Row],[Date]]),PenaltyTable[Year]&PenaltyTable[Month],PenaltyTable[Daily])*$CO$10,"") ->  | CT14: =IF(OR(CT13<0,CT13=""),"",CO14-CN14+(CO14*$B$2)) ->  | CU14: =IF(CT14>0,"",CM14) ->  | CW14: =IF(OR(DD13="",DD13<0),"",EDATE(CW13,1)) ->  | CX14: =IF(OR(DD13="",DD13<0),"",IF(AND($B$7<>"",CW14>=$B$7),$C$7,IF(AND($B$6<>"",CW14>=$B$6),$C$6,IF(CW14>=$B$5,$C$5,IF(CW14<$B$5,0))))) ->  | CY14: =IF(OR(DD13<0,DD13=""),"",DD13) ->  | CZ14: =IFERROR(_xlfn.XLOOKUP(YEAR(Year9Table[[#This Row],[Date]])&MONTH(Year9Table[[#This Row],[Date]]),PenaltyTable[Year]&PenaltyTable[Month],PenaltyTable[Daily])*$CY$10,"") ->  | DD14: =IF(OR(DD13<0,DD13=""),"",CY14-CX14+(CY14*$B$2)) ->  | DE14: =IF(DD14>0,"",CW14) ->  | DG14: =IF(OR(DN13="",DN13<0),"",EDATE(DG13,1)) ->  | DH14: =IF(OR(DN13="",DN13<0),"",IF(AND($B$7<>"",DG14>=$B$7),$C$7,IF(AND($B$6<>"",DG14>=$B$6),$C$6,IF(DG14>=$B$5,$C$5,IF(DG14<$B$5,0))))) ->  | DI14: =IF(OR(DN13<0,DN13=""),"",DN13) ->  | DJ14: =IFERROR(_xlfn.XLOOKUP(YEAR(Year10Table[[#This Row],[Date]])&MONTH(Year10Table[[#This Row],[Date]]),PenaltyTable[Year]&PenaltyTable[Month],PenaltyTable[Daily])*$DI$10,"") ->  | DN14: =IF(OR(DN13<0,DN13=""),"",DI14-DH14+(DI14*$B$2)) ->  | DO14: =IF(DN14>0,"",DG14) -> 
C15: =Table1[[#This Row],[Tax Assessed]]-Table1[[#This Row],[WH & Credits]] -> 0 | J15: =IF(OR(B15="",C15="",D15=""),"",BA9) ->  | U15: =IFERROR(IF((ROW()-ROW(Year1Table[#Headers]))=1,IF(OR(Table1[[#This Row],[Tax Assessed]]="",Table1[[#This Row],[Tax Assessed]]=0),"",Table1[[#This Row],[Tax Due Dt]]),IF((ROW()-ROW(Year1Table[#Headers]))>1,IF(OFFSET(AB15,-1,)<1,"",EDATE(U14,1)))),"") -> 2022-07-15 | V15: 0 | W15: 14890.74697 | X15: =IFERROR(_xlfn.XLOOKUP(YEAR(Year1Table[[#This Row],[Date]])&MONTH(Year1Table[[#This Row],[Date]]),PenaltyTable[Year]&PenaltyTable[Month],PenaltyTable[Daily])*$W$10,"") -> 1.631192329 | AB15: 14892.37816 | AE15: 2026-05-15 | AF15: =IF(ROW()-ROW(Year2Table[#Headers])=1,$AI$193,IF(AG13="","",IF(AND($B$7<>"",AE15>=$B$7),$C$7,IF(AND($B$6<>"",AE15>=$B$6),$C$6,IF(AE15>=$B$5,$C$5,IF(AE15<$B$5,0)))))) -> 1500 | AG15: 78147.87353 | AH15: =IFERROR(_xlfn.XLOOKUP(YEAR(Year2Table[[#This Row],[Date]])&MONTH(Year2Table[[#This Row],[Date]]),PenaltyTable[Year]&PenaltyTable[Month],PenaltyTable[Daily])*$AG$10,"") -> 15.25998658 | AL15: 77168.85935 | AO15: 2031-12-15 | AP15: 1500 | AQ15: 23013.54133 | AR15: =IFERROR(_xlfn.XLOOKUP(YEAR(Year3Table[[#This Row],[Date]])&MONTH(Year3Table[[#This Row],[Date]]),PenaltyTable[Year]&PenaltyTable[Month],PenaltyTable[Daily])*$AQ$10,"") -> 5.178082192 | AV15: 21666.96494 | BB15: =IFERROR(_xlfn.XLOOKUP(YEAR(Year4Table[[#This Row],[Date]])&MONTH(Year4Table[[#This Row],[Date]]),PenaltyTable[Year]&PenaltyTable[Month],PenaltyTable[Daily])*$BA$10,"") ->  | BL15: =IFERROR(_xlfn.XLOOKUP(YEAR(Year5Table[[#This Row],[Date]])&MONTH(Year5Table[[#This Row],[Date]]),PenaltyTable[Year]&PenaltyTable[Month],PenaltyTable[Daily])*$BK$10,"") ->  | BV15: =IFERROR(_xlfn.XLOOKUP(YEAR(Year6Table[[#This Row],[Date]])&MONTH(Year6Table[[#This Row],[Date]]),PenaltyTable[Year]&PenaltyTable[Month],PenaltyTable[Daily])*$BU$10,"") ->  | CF15: =IFERROR(_xlfn.XLOOKUP(YEAR(Year7Table[[#This Row],[Date]])&MONTH(Year7Table[[#This Row],[Date]]),PenaltyTable[Year]&PenaltyTable[Month],PenaltyTable[Daily])*CE$10,"") ->  | CP15: =IFERROR(_xlfn.XLOOKUP(YEAR(Year8Table[[#This Row],[Date]])&MONTH(Year8Table[[#This Row],[Date]]),PenaltyTable[Year]&PenaltyTable[Month],PenaltyTable[Daily])*$CO$10,"") ->  | CZ15: =IFERROR(_xlfn.XLOOKUP(YEAR(Year9Table[[#This Row],[Date]])&MONTH(Year9Table[[#This Row],[Date]]),PenaltyTable[Year]&PenaltyTable[Month],PenaltyTable[Daily])*$CY$10,"") ->  | DJ15: =IFERROR(_xlfn.XLOOKUP(YEAR(Year10Table[[#This Row],[Date]])&MONTH(Year10Table[[#This Row],[Date]]),PenaltyTable[Year]&PenaltyTable[Month],PenaltyTable[Daily])*$DI$10,"") -> 
C16: =Table1[[#This Row],[Tax Assessed]]-Table1[[#This Row],[WH & Credits]] -> 0 | J16: =IF(OR(B16="",C16="",D16=""),"",BK9) ->  | U16: =IFERROR(IF((ROW()-ROW(Year1Table[#Headers]))=1,IF(OR(Table1[[#This Row],[Tax Assessed]]="",Table1[[#This Row],[Tax Assessed]]=0),"",Table1[[#This Row],[Tax Due Dt]]),IF((ROW()-ROW(Year1Table[#Headers]))>1,IF(OFFSET(AB16,-1,)<1,"",EDATE(U15,1)))),"") -> 2022-08-15 | V16: 0 | W16: 14892.37816 | X16: =IFERROR(_xlfn.XLOOKUP(YEAR(Year1Table[[#This Row],[Date]])&MONTH(Year1Table[[#This Row],[Date]]),PenaltyTable[Year]&PenaltyTable[Month],PenaltyTable[Daily])*$W$10,"") -> 1.631192329 | AB16: 14894.00936 | AE16: 2026-06-15 | AF16: =IF(ROW()-ROW(Year2Table[#Headers])=1,$AI$193,IF(AG14="","",IF(AND($B$7<>"",AE16>=$B$7),$C$7,IF(AND($B$6<>"",AE16>=$B$6),$C$6,IF(AE16>=$B$5,$C$5,IF(AE16<$B$5,0)))))) -> 1500 | AG16: 77168.85935 | AH16: =IFERROR(_xlfn.XLOOKUP(YEAR(Year2Table[[#This Row],[Date]])&MONTH(Year2Table[[#This Row],[Date]]),PenaltyTable[Year]&PenaltyTable[Month],PenaltyTable[Daily])*$AG$10,"") -> 15.25998658 | AL16: 76183.31842 | AO16: 2032-01-15 | AP16: 1500 | AQ16: 21666.96494 | AR16: =IFERROR(_xlfn.XLOOKUP(YEAR(Year3Table[[#This Row],[Date]])&MONTH(Year3Table[[#This Row],[Date]]),PenaltyTable[Year]&PenaltyTable[Month],PenaltyTable[Daily])*$AQ$10,"") -> 5.178082192 | AV16: 20311.41138 | BB16: =IFERROR(_xlfn.XLOOKUP(YEAR(Year4Table[[#This Row],[Date]])&MONTH(Year4Table[[#This Row],[Date]]),PenaltyTable[Year]&PenaltyTable[Month],PenaltyTable[Daily])*$BA$10,"") ->  | BL16: =IFERROR(_xlfn.XLOOKUP(YEAR(Year5Table[[#This Row],[Date]])&MONTH(Year5Table[[#This Row],[Date]]),PenaltyTable[Year]&PenaltyTable[Month],PenaltyTable[Daily])*$BK$10,"") ->  | BV16: =IFERROR(_xlfn.XLOOKUP(YEAR(Year6Table[[#This Row],[Date]])&MONTH(Year6Table[[#This Row],[Date]]),PenaltyTable[Year]&PenaltyTable[Month],PenaltyTable[Daily])*$BU$10,"") ->  | CF16: =IFERROR(_xlfn.XLOOKUP(YEAR(Year7Table[[#This Row],[Date]])&MONTH(Year7Table[[#This Row],[Date]]),PenaltyTable[Year]&PenaltyTable[Month],PenaltyTable[Daily])*CE$10,"") ->  | CP16: =IFERROR(_xlfn.XLOOKUP(YEAR(Year8Table[[#This Row],[Date]])&MONTH(Year8Table[[#This Row],[Date]]),PenaltyTable[Year]&PenaltyTable[Month],PenaltyTable[Daily])*$CO$10,"") ->  | CZ16: =IFERROR(_xlfn.XLOOKUP(YEAR(Year9Table[[#This Row],[Date]])&MONTH(Year9Table[[#This Row],[Date]]),PenaltyTable[Year]&PenaltyTable[Month],PenaltyTable[Daily])*$CY$10,"") ->  | DJ16: =IFERROR(_xlfn.XLOOKUP(YEAR(Year10Table[[#This Row],[Date]])&MONTH(Year10Table[[#This Row],[Date]]),PenaltyTable[Year]&PenaltyTable[Month],PenaltyTable[Daily])*$DI$10,"") -> 
C17: =Table1[[#This Row],[Tax Assessed]]-Table1[[#This Row],[WH & Credits]] -> 0 | J17: =IF(OR(B17="",C17="",D17=""),"",BU9) ->  | U17: =IFERROR(IF((ROW()-ROW(Year1Table[#Headers]))=1,IF(OR(Table1[[#This Row],[Tax Assessed]]="",Table1[[#This Row],[Tax Assessed]]=0),"",Table1[[#This Row],[Tax Due Dt]]),IF((ROW()-ROW(Year1Table[#Headers]))>1,IF(OFFSET(AB17,-1,)<1,"",EDATE(U16,1)))),"") -> 2022-09-15 | V17: 0 | W17: 14894.00936 | X17: =IFERROR(_xlfn.XLOOKUP(YEAR(Year1Table[[#This Row],[Date]])&MONTH(Year1Table[[#This Row],[Date]]),PenaltyTable[Year]&PenaltyTable[Month],PenaltyTable[Daily])*$W$10,"") -> 1.631192329 | AB17: 14895.64055 | AE17: 2026-07-15 | AF17: =IF(ROW()-ROW(Year2Table[#Headers])=1,$AI$193,IF(AG15="","",IF(AND($B$7<>"",AE17>=$B$7),$C$7,IF(AND($B$6<>"",AE17>=$B$6),$C$6,IF(AE17>=$B$5,$C$5,IF(AE17<$B$5,0)))))) -> 1500 | AG17: 76183.31842 | AH17: =IFERROR(_xlfn.XLOOKUP(YEAR(Year2Table[[#This Row],[Date]])&MONTH(Year2Table[[#This Row],[Date]]),PenaltyTable[Year]&PenaltyTable[Month],PenaltyTable[Daily])*$AG$10,"") -> 15.25998658 | AL17: 75191.20721 | AO17: 2032-02-15 | AP17: 1500 | AQ17: 20311.41138 | AR17: =IFERROR(_xlfn.XLOOKUP(YEAR(Year3Table[[#This Row],[Date]])&MONTH(Year3Table[[#This Row],[Date]]),PenaltyTable[Year]&PenaltyTable[Month],PenaltyTable[Daily])*$AQ$10,"") -> 5.178082192 | AV17: 18946.82078 | BB17: =IFERROR(_xlfn.XLOOKUP(YEAR(Year4Table[[#This Row],[Date]])&MONTH(Year4Table[[#This Row],[Date]]),PenaltyTable[Year]&PenaltyTable[Month],PenaltyTable[Daily])*$BA$10,"") ->  | BL17: =IFERROR(_xlfn.XLOOKUP(YEAR(Year5Table[[#This Row],[Date]])&MONTH(Year5Table[[#This Row],[Date]]),PenaltyTable[Year]&PenaltyTable[Month],PenaltyTable[Daily])*$BK$10,"") ->  | BV17: =IFERROR(_xlfn.XLOOKUP(YEAR(Year6Table[[#This Row],[Date]])&MONTH(Year6Table[[#This Row],[Date]]),PenaltyTable[Year]&PenaltyTable[Month],PenaltyTable[Daily])*$BU$10,"") ->  | CF17: =IFERROR(_xlfn.XLOOKUP(YEAR(Year7Table[[#This Row],[Date]])&MONTH(Year7Table[[#This Row],[Date]]),PenaltyTable[Year]&PenaltyTable[Month],PenaltyTable[Daily])*CE$10,"") ->  | CP17: =IFERROR(_xlfn.XLOOKUP(YEAR(Year8Table[[#This Row],[Date]])&MONTH(Year8Table[[#This Row],[Date]]),PenaltyTable[Year]&PenaltyTable[Month],PenaltyTable[Daily])*$CO$10,"") ->  | CZ17: =IFERROR(_xlfn.XLOOKUP(YEAR(Year9Table[[#This Row],[Date]])&MONTH(Year9Table[[#This Row],[Date]]),PenaltyTable[Year]&PenaltyTable[Month],PenaltyTable[Daily])*$CY$10,"") ->  | DJ17: =IFERROR(_xlfn.XLOOKUP(YEAR(Year10Table[[#This Row],[Date]])&MONTH(Year10Table[[#This Row],[Date]]),PenaltyTable[Year]&PenaltyTable[Month],PenaltyTable[Daily])*$DI$10,"") -> 
C18: =Table1[[#This Row],[Tax Assessed]]-Table1[[#This Row],[WH & Credits]] -> 0 | J18: =IF(OR(B18="",C18="",D18=""),"",CE9) ->  | U18: =IFERROR(IF((ROW()-ROW(Year1Table[#Headers]))=1,IF(OR(Table1[[#This Row],[Tax Assessed]]="",Table1[[#This Row],[Tax Assessed]]=0),"",Table1[[#This Row],[Tax Due Dt]]),IF((ROW()-ROW(Year1Table[#Headers]))>1,IF(OFFSET(AB18,-1,)<1,"",EDATE(U17,1)))),"") -> 2022-10-15 | V18: 0 | W18: 14895.64055 | X18: =IFERROR(_xlfn.XLOOKUP(YEAR(Year1Table[[#This Row],[Date]])&MONTH(Year1Table[[#This Row],[Date]]),PenaltyTable[Year]&PenaltyTable[Month],PenaltyTable[Daily])*$W$10,"") -> 1.223394247 | AB18: 14896.86394 | AE18: 2026-08-15 | AF18: =IF(ROW()-ROW(Year2Table[#Headers])=1,$AI$193,IF(AG16="","",IF(AND($B$7<>"",AE18>=$B$7),$C$7,IF(AND($B$6<>"",AE18>=$B$6),$C$6,IF(AE18>=$B$5,$C$5,IF(AE18<$B$5,0)))))) -> 1500 | AG18: 75191.20721 | AH18: =IFERROR(_xlfn.XLOOKUP(YEAR(Year2Table[[#This Row],[Date]])&MONTH(Year2Table[[#This Row],[Date]]),PenaltyTable[Year]&PenaltyTable[Month],PenaltyTable[Daily])*$AG$10,"") -> 15.25998658 | AL18: 74192.48192 | AO18: 2032-03-15 | AP18: 1500 | AQ18: 18946.82078 | AR18: =IFERROR(_xlfn.XLOOKUP(YEAR(Year3Table[[#This Row],[Date]])&MONTH(Year3Table[[#This Row],[Date]]),PenaltyTable[Year]&PenaltyTable[Month],PenaltyTable[Daily])*$AQ$10,"") -> 5.178082192 | AV18: 17573.13292 | BB18: =IFERROR(_xlfn.XLOOKUP(YEAR(Year4Table[[#This Row],[Date]])&MONTH(Year4Table[[#This Row],[Date]]),PenaltyTable[Year]&PenaltyTable[Month],PenaltyTable[Daily])*$BA$10,"") ->  | BL18: =IFERROR(_xlfn.XLOOKUP(YEAR(Year5Table[[#This Row],[Date]])&MONTH(Year5Table[[#This Row],[Date]]),PenaltyTable[Year]&PenaltyTable[Month],PenaltyTable[Daily])*$BK$10,"") ->  | BV18: =IFERROR(_xlfn.XLOOKUP(YEAR(Year6Table[[#This Row],[Date]])&MONTH(Year6Table[[#This Row],[Date]]),PenaltyTable[Year]&PenaltyTable[Month],PenaltyTable[Daily])*$BU$10,"") ->  | CF18: =IFERROR(_xlfn.XLOOKUP(YEAR(Year7Table[[#This Row],[Date]])&MONTH(Year7Table[[#This Row],[Date]]),PenaltyTable[Year]&PenaltyTable[Month],PenaltyTable[Daily])*CE$10,"") ->  | CP18: =IFERROR(_xlfn.XLOOKUP(YEAR(Year8Table[[#This Row],[Date]])&MONTH(Year8Table[[#This Row],[Date]]),PenaltyTable[Year]&PenaltyTable[Month],PenaltyTable[Daily])*$CO$10,"") ->  | CZ18: =IFERROR(_xlfn.XLOOKUP(YEAR(Year9Table[[#This Row],[Date]])&MONTH(Year9Table[[#This Row],[Date]]),PenaltyTable[Year]&PenaltyTable[Month],PenaltyTable[Daily])*$CY$10,"") ->  | DJ18: =IFERROR(_xlfn.XLOOKUP(YEAR(Year10Table[[#This Row],[Date]])&MONTH(Year10Table[[#This Row],[Date]]),PenaltyTable[Year]&PenaltyTable[Month],PenaltyTable[Daily])*$DI$10,"") -> 
C19: =Table1[[#This Row],[Tax Assessed]]-Table1[[#This Row],[WH & Credits]] -> 0 | J19: =IF(OR(B19="",C19="",D19=""),"",CO9) ->  | U19: =IFERROR(IF((ROW()-ROW(Year1Table[#Headers]))=1,IF(OR(Table1[[#This Row],[Tax Assessed]]="",Table1[[#This Row],[Tax Assessed]]=0),"",Table1[[#This Row],[Tax Due Dt]]),IF((ROW()-ROW(Year1Table[#Headers]))>1,IF(OFFSET(AB19,-1,)<1,"",EDATE(U18,1)))),"") -> 2022-11-15 | V19: 0 | W19: 14896.86394 | X19: =IFERROR(_xlfn.XLOOKUP(YEAR(Year1Table[[#This Row],[Date]])&MONTH(Year1Table[[#This Row],[Date]]),PenaltyTable[Year]&PenaltyTable[Month],PenaltyTable[Daily])*$W$10,"") -> 1.223394247 | AB19: 14898.08734 | AE19: 2026-09-15 | AF19: =IF(ROW()-ROW(Year2Table[#Headers])=1,$AI$193,IF(AG17="","",IF(AND($B$7<>"",AE19>=$B$7),$C$7,IF(AND($B$6<>"",AE19>=$B$6),$C$6,IF(AE19>=$B$5,$C$5,IF(AE19<$B$5,0)))))) -> 1500 | AG19: 74192.48192 | AH19: =IFERROR(_xlfn.XLOOKUP(YEAR(Year2Table[[#This Row],[Date]])&MONTH(Year2Table[[#This Row],[Date]]),PenaltyTable[Year]&PenaltyTable[Month],PenaltyTable[Daily])*$AG$10,"") -> 15.25998658 | AL19: 73187.09847 | AO19: 2032-04-15 | AP19: 1500 | AQ19: 17573.13292 | AR19: =IFERROR(_xlfn.XLOOKUP(YEAR(Year3Table[[#This Row],[Date]])&MONTH(Year3Table[[#This Row],[Date]]),PenaltyTable[Year]&PenaltyTable[Month],PenaltyTable[Daily])*$AQ$10,"") -> 5.178082192 | AV19: 16190.28714 | BB19: =IFERROR(_xlfn.XLOOKUP(YEAR(Year4Table[[#This Row],[Date]])&MONTH(Year4Table[[#This Row],[Date]]),PenaltyTable[Year]&PenaltyTable[Month],PenaltyTable[Daily])*$BA$10,"") ->  | BL19: =IFERROR(_xlfn.XLOOKUP(YEAR(Year5Table[[#This Row],[Date]])&MONTH(Year5Table[[#This Row],[Date]]),PenaltyTable[Year]&PenaltyTable[Month],PenaltyTable[Daily])*$BK$10,"") ->  | BV19: =IFERROR(_xlfn.XLOOKUP(YEAR(Year6Table[[#This Row],[Date]])&MONTH(Year6Table[[#This Row],[Date]]),PenaltyTable[Year]&PenaltyTable[Month],PenaltyTable[Daily])*$BU$10,"") ->  | CF19: =IFERROR(_xlfn.XLOOKUP(YEAR(Year7Table[[#This Row],[Date]])&MONTH(Year7Table[[#This Row],[Date]]),PenaltyTable[Year]&PenaltyTable[Month],PenaltyTable[Daily])*CE$10,"") ->  | CP19: =IFERROR(_xlfn.XLOOKUP(YEAR(Year8Table[[#This Row],[Date]])&MONTH(Year8Table[[#This Row],[Date]]),PenaltyTable[Year]&PenaltyTable[Month],PenaltyTable[Daily])*$CO$10,"") ->  | CZ19: =IFERROR(_xlfn.XLOOKUP(YEAR(Year9Table[[#This Row],[Date]])&MONTH(Year9Table[[#This Row],[Date]]),PenaltyTable[Year]&PenaltyTable[Month],PenaltyTable[Daily])*$CY$10,"") ->  | DJ19: =IFERROR(_xlfn.XLOOKUP(YEAR(Year10Table[[#This Row],[Date]])&MONTH(Year10Table[[#This Row],[Date]]),PenaltyTable[Year]&PenaltyTable[Month],PenaltyTable[Daily])*$DI$10,"") -> 
C20: =Table1[[#This Row],[Tax Assessed]]-Table1[[#This Row],[WH & Credits]] -> 0 | J20: =IF(OR(B20="",C20="",D20=""),"",CY9) ->  | U20: =IFERROR(IF((ROW()-ROW(Year1Table[#Headers]))=1,IF(OR(Table1[[#This Row],[Tax Assessed]]="",Table1[[#This Row],[Tax Assessed]]=0),"",Table1[[#This Row],[Tax Due Dt]]),IF((ROW()-ROW(Year1Table[#Headers]))>1,IF(OFFSET(AB20,-1,)<1,"",EDATE(U19,1)))),"") -> 2022-12-15 | V20: 0 | W20: 14898.08734 | X20: =IFERROR(_xlfn.XLOOKUP(YEAR(Year1Table[[#This Row],[Date]])&MONTH(Year1Table[[#This Row],[Date]]),PenaltyTable[Year]&PenaltyTable[Month],PenaltyTable[Daily])*$W$10,"") -> 1.223394247 | AB20: 14899.31073 | AE20: 2026-10-15 | AF20: =IF(ROW()-ROW(Year2Table[#Headers])=1,$AI$193,IF(AG18="","",IF(AND($B$7<>"",AE20>=$B$7),$C$7,IF(AND($B$6<>"",AE20>=$B$6),$C$6,IF(AE20>=$B$5,$C$5,IF(AE20<$B$5,0)))))) -> 1500 | AG20: 73187.09847 | AH20: =IFERROR(_xlfn.XLOOKUP(YEAR(Year2Table[[#This Row],[Date]])&MONTH(Year2Table[[#This Row],[Date]]),PenaltyTable[Year]&PenaltyTable[Month],PenaltyTable[Daily])*$AG$10,"") -> 15.25998658 | AL20: 72175.01246 | AO20: 2032-05-15 | AP20: 1500 | AQ20: 16190.28714 | AR20: =IFERROR(_xlfn.XLOOKUP(YEAR(Year3Table[[#This Row],[Date]])&MONTH(Year3Table[[#This Row],[Date]]),PenaltyTable[Year]&PenaltyTable[Month],PenaltyTable[Daily])*$AQ$10,"") -> 5.178082192 | AV20: 14798.22239 | BB20: =IFERROR(_xlfn.XLOOKUP(YEAR(Year4Table[[#This Row],[Date]])&MONTH(Year4Table[[#This Row],[Date]]),PenaltyTable[Year]&PenaltyTable[Month],PenaltyTable[Daily])*$BA$10,"") ->  | BL20: =IFERROR(_xlfn.XLOOKUP(YEAR(Year5Table[[#This Row],[Date]])&MONTH(Year5Table[[#This Row],[Date]]),PenaltyTable[Year]&PenaltyTable[Month],PenaltyTable[Daily])*$BK$10,"") ->  | BV20: =IFERROR(_xlfn.XLOOKUP(YEAR(Year6Table[[#This Row],[Date]])&MONTH(Year6Table[[#This Row],[Date]]),PenaltyTable[Year]&PenaltyTable[Month],PenaltyTable[Daily])*$BU$10,"") ->  | CF20: =IFERROR(_xlfn.XLOOKUP(YEAR(Year7Table[[#This Row],[Date]])&MONTH(Year7Table[[#This Row],[Date]]),PenaltyTable[Year]&PenaltyTable[Month],PenaltyTable[Daily])*CE$10,"") ->  | CP20: =IFERROR(_xlfn.XLOOKUP(YEAR(Year8Table[[#This Row],[Date]])&MONTH(Year8Table[[#This Row],[Date]]),PenaltyTable[Year]&PenaltyTable[Month],PenaltyTable[Daily])*$CO$10,"") ->  | CZ20: =IFERROR(_xlfn.XLOOKUP(YEAR(Year9Table[[#This Row],[Date]])&MONTH(Year9Table[[#This Row],[Date]]),PenaltyTable[Year]&PenaltyTable[Month],PenaltyTable[Daily])*$CY$10,"") ->  | DJ20: =IFERROR(_xlfn.XLOOKUP(YEAR(Year10Table[[#This Row],[Date]])&MONTH(Year10Table[[#This Row],[Date]]),PenaltyTable[Year]&PenaltyTable[Month],PenaltyTable[Daily])*$DI$10,"") -> 
C21: =Table1[[#This Row],[Tax Assessed]]-Table1[[#This Row],[WH & Credits]] -> 0 | J21: =IF(OR(B21="",C21="",D21=""),"",DI9) ->  | U21: =IFERROR(IF((ROW()-ROW(Year1Table[#Headers]))=1,IF(OR(Table1[[#This Row],[Tax Assessed]]="",Table1[[#This Row],[Tax Assessed]]=0),"",Table1[[#This Row],[Tax Due Dt]]),IF((ROW()-ROW(Year1Table[#Headers]))>1,IF(OFFSET(AB21,-1,)<1,"",EDATE(U20,1)))),"") -> 2023-01-15 | V21: 0 | W21: 14899.31073 | X21: =IFERROR(_xlfn.XLOOKUP(YEAR(Year1Table[[#This Row],[Date]])&MONTH(Year1Table[[#This Row],[Date]]),PenaltyTable[Year]&PenaltyTable[Month],PenaltyTable[Daily])*$W$10,"") -> 3.262384658 | AB21: 14902.57312 | AE21: 2026-11-15 | AF21: =IF(ROW()-ROW(Year2Table[#Headers])=1,$AI$193,IF(AG19="","",IF(AND($B$7<>"",AE21>=$B$7),$C$7,IF(AND($B$6<>"",AE21>=$B$6),$C$6,IF(AE21>=$B$5,$C$5,IF(AE21<$B$5,0)))))) -> 1500 | AG21: 72175.01246 | AH21: =IFERROR(_xlfn.XLOOKUP(YEAR(Year2Table[[#This Row],[Date]])&MONTH(Year2Table[[#This Row],[Date]]),PenaltyTable[Year]&PenaltyTable[Month],PenaltyTable[Daily])*$AG$10,"") -> 15.25998658 | AL21: 71156.17921 | AO21: 2032-06-15 | AP21: 1500 | AQ21: 14798.22239 | AR21: =IFERROR(_xlfn.XLOOKUP(YEAR(Year3Table[[#This Row],[Date]])&MONTH(Year3Table[[#This Row],[Date]]),PenaltyTable[Year]&PenaltyTable[Month],PenaltyTable[Daily])*$AQ$10,"") -> 5.178082192 | AV21: 13396.87721 | BB21: =IFERROR(_xlfn.XLOOKUP(YEAR(Year4Table[[#This Row],[Date]])&MONTH(Year4Table[[#This Row],[Date]]),PenaltyTable[Year]&PenaltyTable[Month],PenaltyTable[Daily])*$BA$10,"") ->  | BL21: =IFERROR(_xlfn.XLOOKUP(YEAR(Year5Table[[#This Row],[Date]])&MONTH(Year5Table[[#This Row],[Date]]),PenaltyTable[Year]&PenaltyTable[Month],PenaltyTable[Daily])*$BK$10,"") ->  | BV21: =IFERROR(_xlfn.XLOOKUP(YEAR(Year6Table[[#This Row],[Date]])&MONTH(Year6Table[[#This Row],[Date]]),PenaltyTable[Year]&PenaltyTable[Month],PenaltyTable[Daily])*$BU$10,"") ->  | CF21: =IFERROR(_xlfn.XLOOKUP(YEAR(Year7Table[[#This Row],[Date]])&MONTH(Year7Table[[#This Row],[Date]]),PenaltyTable[Year]&PenaltyTable[Month],PenaltyTable[Daily])*CE$10,"") ->  | CP21: =IFERROR(_xlfn.XLOOKUP(YEAR(Year8Table[[#This Row],[Date]])&MONTH(Year8Table[[#This Row],[Date]]),PenaltyTable[Year]&PenaltyTable[Month],PenaltyTable[Daily])*$CO$10,"") ->  | CZ21: =IFERROR(_xlfn.XLOOKUP(YEAR(Year9Table[[#This Row],[Date]])&MONTH(Year9Table[[#This Row],[Date]]),PenaltyTable[Year]&PenaltyTable[Month],PenaltyTable[Daily])*$CY$10,"") ->  | DJ21: =IFERROR(_xlfn.XLOOKUP(YEAR(Year10Table[[#This Row],[Date]])&MONTH(Year10Table[[#This Row],[Date]]),PenaltyTable[Year]&PenaltyTable[Month],PenaltyTable[Daily])*$DI$10,"") -> 
B22: Total | C22: =SUBTOTAL(9,Table1[Tax Assessed]) -> 121454.56 | D22: ="Earliest: "&TEXT(MIN(Table1[CSED]),"mm/dd/yyyy") -> Earliest: 01/01/2034 | E22: =SUBTOTAL(9,Table1[Tax Assessed]) -> 121454.56 | F22: =SUBTOTAL(9,Table1[WH & Credits]) -> 0 | K22: =IF(COUNTIF(Table1[Paid by CSED],"NO")=0,"All Paid by CSED","Unpaid "&COUNTIF(Table1[Paid by CSED],"NO")) -> All Paid by CSED | U22: =IFERROR(IF((ROW()-ROW(Year1Table[#Headers]))=1,IF(OR(Table1[[#This Row],[Tax Assessed]]="",Table1[[#This Row],[Tax Assessed]]=0),"",Table1[[#This Row],[Tax Due Dt]]),IF((ROW()-ROW(Year1Table[#Headers]))>1,IF(OFFSET(AB22,-1,)<1,"",EDATE(U21,1)))),"") -> 2023-02-15 | V22: 0 | W22: 14902.57312 | X22: =IFERROR(_xlfn.XLOOKUP(YEAR(Year1Table[[#This Row],[Date]])&MONTH(Year1Table[[#This Row],[Date]]),PenaltyTable[Year]&PenaltyTable[Month],PenaltyTable[Daily])*$W$10,"") -> 3.262384658 | AB22: 14905.8355 | AE22: 2026-12-15 | AF22: =IF(ROW()-ROW(Year2Table[#Headers])=1,$AI$193,IF(AG20="","",IF(AND($B$7<>"",AE22>=$B$7),$C$7,IF(AND($B$6<>"",AE22>=$B$6),$C$6,IF(AE22>=$B$5,$C$5,IF(AE22<$B$5,0)))))) -> 1500 | AG22: 71156.17921 | AH22: =IFERROR(_xlfn.XLOOKUP(YEAR(Year2Table[[#This Row],[Date]])&MONTH(Year2Table[[#This Row],[Date]]),PenaltyTable[Year]&PenaltyTable[Month],PenaltyTable[Daily])*$AG$10,"") -> 15.25998658 | AL22: 70130.55373 | AO22: 2032-07-15 | AP22: 1500 | AQ22: 13396.87721 | AR22: =IFERROR(_xlfn.XLOOKUP(YEAR(Year3Table[[#This Row],[Date]])&MONTH(Year3Table[[#This Row],[Date]]),PenaltyTable[Year]&PenaltyTable[Month],PenaltyTable[Daily])*$AQ$10,"") -> 5.178082192 | AV22: 11986.18972 | BB22: =IFERROR(_xlfn.XLOOKUP(YEAR(Year4Table[[#This Row],[Date]])&MONTH(Year4Table[[#This Row],[Date]]),PenaltyTable[Year]&PenaltyTable[Month],PenaltyTable[Daily])*$BA$10,"") ->  | BL22: =IFERROR(_xlfn.XLOOKUP(YEAR(Year5Table[[#This Row],[Date]])&MONTH(Year5Table[[#This Row],[Date]]),PenaltyTable[Year]&PenaltyTable[Month],PenaltyTable[Daily])*$BK$10,"") ->  | BV22: =IFERROR(_xlfn.XLOOKUP(YEAR(Year6Table[[#This Row],[Date]])&MONTH(Year6Table[[#This Row],[Date]]),PenaltyTable[Year]&PenaltyTable[Month],PenaltyTable[Daily])*$BU$10,"") ->  | CF22: =IFERROR(_xlfn.XLOOKUP(YEAR(Year7Table[[#This Row],[Date]])&MONTH(Year7Table[[#This Row],[Date]]),PenaltyTable[Year]&PenaltyTable[Month],PenaltyTable[Daily])*CE$10,"") ->  | CP22: =IFERROR(_xlfn.XLOOKUP(YEAR(Year8Table[[#This Row],[Date]])&MONTH(Year8Table[[#This Row],[Date]]),PenaltyTable[Year]&PenaltyTable[Month],PenaltyTable[Daily])*$CO$10,"") ->  | CZ22: =IFERROR(_xlfn.XLOOKUP(YEAR(Year9Table[[#This Row],[Date]])&MONTH(Year9Table[[#This Row],[Date]]),PenaltyTable[Year]&PenaltyTable[Month],PenaltyTable[Daily])*$CY$10,"") ->  | DJ22: =IFERROR(_xlfn.XLOOKUP(YEAR(Year10Table[[#This Row],[Date]])&MONTH(Year10Table[[#This Row],[Date]]),PenaltyTable[Year]&PenaltyTable[Month],PenaltyTable[Daily])*$DI$10,"") -> 
U23: =IFERROR(IF((ROW()-ROW(Year1Table[#Headers]))=1,IF(OR(Table1[[#This Row],[Tax Assessed]]="",Table1[[#This Row],[Tax Assessed]]=0),"",Table1[[#This Row],[Tax Due Dt]]),IF((ROW()-ROW(Year1Table[#Headers]))>1,IF(OFFSET(AB23,-1,)<1,"",EDATE(U22,1)))),"") -> 2023-03-15 | V23: 0 | W23: 14905.8355 | X23: =IFERROR(_xlfn.XLOOKUP(YEAR(Year1Table[[#This Row],[Date]])&MONTH(Year1Table[[#This Row],[Date]]),PenaltyTable[Year]&PenaltyTable[Month],PenaltyTable[Daily])*$W$10,"") -> 3.262384658 | AB23: 14909.09788 | AE23: 2027-01-15 | AF23: =IF(ROW()-ROW(Year2Table[#Headers])=1,$AI$193,IF(AG21="","",IF(AND($B$7<>"",AE23>=$B$7),$C$7,IF(AND($B$6<>"",AE23>=$B$6),$C$6,IF(AE23>=$B$5,$C$5,IF(AE23<$B$5,0)))))) -> 1500 | AG23: 70130.55373 | AH23: =IFERROR(_xlfn.XLOOKUP(YEAR(Year2Table[[#This Row],[Date]])&MONTH(Year2Table[[#This Row],[Date]]),PenaltyTable[Year]&PenaltyTable[Month],PenaltyTable[Daily])*$AG$10,"") -> 15.25998658 | AL23: 69098.09076 | AO23: 2032-08-15 | AP23: 1500 | AQ23: 11986.18972 | AR23: =IFERROR(_xlfn.XLOOKUP(YEAR(Year3Table[[#This Row],[Date]])&MONTH(Year3Table[[#This Row],[Date]]),PenaltyTable[Year]&PenaltyTable[Month],PenaltyTable[Daily])*$AQ$10,"") -> 5.178082192 | AV23: 10566.09765 | BB23: =IFERROR(_xlfn.XLOOKUP(YEAR(Year4Table[[#This Row],[Date]])&MONTH(Year4Table[[#This Row],[Date]]),PenaltyTable[Year]&PenaltyTable[Month],PenaltyTable[Daily])*$BA$10,"") ->  | BL23: =IFERROR(_xlfn.XLOOKUP(YEAR(Year5Table[[#This Row],[Date]])&MONTH(Year5Table[[#This Row],[Date]]),PenaltyTable[Year]&PenaltyTable[Month],PenaltyTable[Daily])*$BK$10,"") ->  | BV23: =IFERROR(_xlfn.XLOOKUP(YEAR(Year6Table[[#This Row],[Date]])&MONTH(Year6Table[[#This Row],[Date]]),PenaltyTable[Year]&PenaltyTable[Month],PenaltyTable[Daily])*$BU$10,"") ->  | CF23: =IFERROR(_xlfn.XLOOKUP(YEAR(Year7Table[[#This Row],[Date]])&MONTH(Year7Table[[#This Row],[Date]]),PenaltyTable[Year]&PenaltyTable[Month],PenaltyTable[Daily])*CE$10,"") ->  | CP23: =IFERROR(_xlfn.XLOOKUP(YEAR(Year8Table[[#This Row],[Date]])&MONTH(Year8Table[[#This Row],[Date]]),PenaltyTable[Year]&PenaltyTable[Month],PenaltyTable[Daily])*$CO$10,"") ->  | CZ23: =IFERROR(_xlfn.XLOOKUP(YEAR(Year9Table[[#This Row],[Date]])&MONTH(Year9Table[[#This Row],[Date]]),PenaltyTable[Year]&PenaltyTable[Month],PenaltyTable[Daily])*$CY$10,"") ->  | DJ23: =IFERROR(_xlfn.XLOOKUP(YEAR(Year10Table[[#This Row],[Date]])&MONTH(Year10Table[[#This Row],[Date]]),PenaltyTable[Year]&PenaltyTable[Month],PenaltyTable[Daily])*$DI$10,"") -> 
U24: =IFERROR(IF((ROW()-ROW(Year1Table[#Headers]))=1,IF(OR(Table1[[#This Row],[Tax Assessed]]="",Table1[[#This Row],[Tax Assessed]]=0),"",Table1[[#This Row],[Tax Due Dt]]),IF((ROW()-ROW(Year1Table[#Headers]))>1,IF(OFFSET(AB24,-1,)<1,"",EDATE(U23,1)))),"") -> 2023-04-15 | V24: 0 | W24: 14909.09788 | X24: =IFERROR(_xlfn.XLOOKUP(YEAR(Year1Table[[#This Row],[Date]])&MONTH(Year1Table[[#This Row],[Date]]),PenaltyTable[Year]&PenaltyTable[Month],PenaltyTable[Daily])*$W$10,"") -> 2.854586575 | AB24: 14911.95247 | AE24: 2027-02-15 | AF24: =IF(ROW()-ROW(Year2Table[#Headers])=1,$AI$193,IF(AG22="","",IF(AND($B$7<>"",AE24>=$B$7),$C$7,IF(AND($B$6<>"",AE24>=$B$6),$C$6,IF(AE24>=$B$5,$C$5,IF(AE24<$B$5,0)))))) -> 1500 | AG24: 69098.09076 | AH24: =IFERROR(_xlfn.XLOOKUP(YEAR(Year2Table[[#This Row],[Date]])&MONTH(Year2Table[[#This Row],[Date]]),PenaltyTable[Year]&PenaltyTable[Month],PenaltyTable[Daily])*$AG$10,"") -> 15.25998658 | AL24: 68058.7447 | AO24: 2032-09-15 | AP24: 1500 | AQ24: 10566.09765 | AR24: =IFERROR(_xlfn.XLOOKUP(YEAR(Year3Table[[#This Row],[Date]])&MONTH(Year3Table[[#This Row],[Date]]),PenaltyTable[Year]&PenaltyTable[Month],PenaltyTable[Daily])*$AQ$10,"") -> 5.178082192 | AV24: 9136.538303 | BB24: =IFERROR(_xlfn.XLOOKUP(YEAR(Year4Table[[#This Row],[Date]])&MONTH(Year4Table[[#This Row],[Date]]),PenaltyTable[Year]&PenaltyTable[Month],PenaltyTable[Daily])*$BA$10,"") ->  | BL24: =IFERROR(_xlfn.XLOOKUP(YEAR(Year5Table[[#This Row],[Date]])&MONTH(Year5Table[[#This Row],[Date]]),PenaltyTable[Year]&PenaltyTable[Month],PenaltyTable[Daily])*$BK$10,"") ->  | BV24: =IFERROR(_xlfn.XLOOKUP(YEAR(Year6Table[[#This Row],[Date]])&MONTH(Year6Table[[#This Row],[Date]]),PenaltyTable[Year]&PenaltyTable[Month],PenaltyTable[Daily])*$BU$10,"") ->  | CF24: =IFERROR(_xlfn.XLOOKUP(YEAR(Year7Table[[#This Row],[Date]])&MONTH(Year7Table[[#This Row],[Date]]),PenaltyTable[Year]&PenaltyTable[Month],PenaltyTable[Daily])*CE$10,"") ->  | CP24: =IFERROR(_xlfn.XLOOKUP(YEAR(Year8Table[[#This Row],[Date]])&MONTH(Year8Table[[#This Row],[Date]]),PenaltyTable[Year]&PenaltyTable[Month],PenaltyTable[Daily])*$CO$10,"") ->  | CZ24: =IFERROR(_xlfn.XLOOKUP(YEAR(Year9Table[[#This Row],[Date]])&MONTH(Year9Table[[#This Row],[Date]]),PenaltyTable[Year]&PenaltyTable[Month],PenaltyTable[Daily])*$CY$10,"") ->  | DJ24: =IFERROR(_xlfn.XLOOKUP(YEAR(Year10Table[[#This Row],[Date]])&MONTH(Year10Table[[#This Row],[Date]]),PenaltyTable[Year]&PenaltyTable[Month],PenaltyTable[Daily])*$DI$10,"") -> 
U25: =IFERROR(IF((ROW()-ROW(Year1Table[#Headers]))=1,IF(OR(Table1[[#This Row],[Tax Assessed]]="",Table1[[#This Row],[Tax Assessed]]=0),"",Table1[[#This Row],[Tax Due Dt]]),IF((ROW()-ROW(Year1Table[#Headers]))>1,IF(OFFSET(AB25,-1,)<1,"",EDATE(U24,1)))),"") -> 2023-05-15 | V25: 0 | W25: 14911.95247 | X25: =IFERROR(_xlfn.XLOOKUP(YEAR(Year1Table[[#This Row],[Date]])&MONTH(Year1Table[[#This Row],[Date]]),PenaltyTable[Year]&PenaltyTable[Month],PenaltyTable[Daily])*$W$10,"") -> 2.854586575 | AB25: 14914.80706 | AE25: 2027-03-15 | AF25: =IF(ROW()-ROW(Year2Table[#Headers])=1,$AI$193,IF(AG23="","",IF(AND($B$7<>"",AE25>=$B$7),$C$7,IF(AND($B$6<>"",AE25>=$B$6),$C$6,IF(AE25>=$B$5,$C$5,IF(AE25<$B$5,0)))))) -> 1500 | AG25: 68058.7447 | AH25: =IFERROR(_xlfn.XLOOKUP(YEAR(Year2Table[[#This Row],[Date]])&MONTH(Year2Table[[#This Row],[Date]]),PenaltyTable[Year]&PenaltyTable[Month],PenaltyTable[Daily])*$AG$10,"") -> 15.25998658 | AL25: 67012.46966 | AO25: 2032-10-15 | AP25: 1500 | AQ25: 9136.538303 | AR25: =IFERROR(_xlfn.XLOOKUP(YEAR(Year3Table[[#This Row],[Date]])&MONTH(Year3Table[[#This Row],[Date]]),PenaltyTable[Year]&PenaltyTable[Month],PenaltyTable[Daily])*$AQ$10,"") -> 5.178082192 | AV25: 7697.448558 | BB25: =IFERROR(_xlfn.XLOOKUP(YEAR(Year4Table[[#This Row],[Date]])&MONTH(Year4Table[[#This Row],[Date]]),PenaltyTable[Year]&PenaltyTable[Month],PenaltyTable[Daily])*$BA$10,"") ->  | BL25: =IFERROR(_xlfn.XLOOKUP(YEAR(Year5Table[[#This Row],[Date]])&MONTH(Year5Table[[#This Row],[Date]]),PenaltyTable[Year]&PenaltyTable[Month],PenaltyTable[Daily])*$BK$10,"") ->  | BV25: =IFERROR(_xlfn.XLOOKUP(YEAR(Year6Table[[#This Row],[Date]])&MONTH(Year6Table[[#This Row],[Date]]),PenaltyTable[Year]&PenaltyTable[Month],PenaltyTable[Daily])*$BU$10,"") ->  | CF25: =IFERROR(_xlfn.XLOOKUP(YEAR(Year7Table[[#This Row],[Date]])&MONTH(Year7Table[[#This Row],[Date]]),PenaltyTable[Year]&PenaltyTable[Month],PenaltyTable[Daily])*CE$10,"") ->  | CP25: =IFERROR(_xlfn.XLOOKUP(YEAR(Year8Table[[#This Row],[Date]])&MONTH(Year8Table[[#This Row],[Date]]),PenaltyTable[Year]&PenaltyTable[Month],PenaltyTable[Daily])*$CO$10,"") ->  | CZ25: =IFERROR(_xlfn.XLOOKUP(YEAR(Year9Table[[#This Row],[Date]])&MONTH(Year9Table[[#This Row],[Date]]),PenaltyTable[Year]&PenaltyTable[Month],PenaltyTable[Daily])*$CY$10,"") ->  | DJ25: =IFERROR(_xlfn.XLOOKUP(YEAR(Year10Table[[#This Row],[Date]])&MONTH(Year10Table[[#This Row],[Date]]),PenaltyTable[Year]&PenaltyTable[Month],PenaltyTable[Daily])*$DI$10,"") -> 
U26: =IFERROR(IF((ROW()-ROW(Year1Table[#Headers]))=1,IF(OR(Table1[[#This Row],[Tax Assessed]]="",Table1[[#This Row],[Tax Assessed]]=0),"",Table1[[#This Row],[Tax Due Dt]]),IF((ROW()-ROW(Year1Table[#Headers]))>1,IF(OFFSET(AB26,-1,)<1,"",EDATE(U25,1)))),"") -> 2023-06-15 | V26: 0 | W26: 14914.80706 | X26: =IFERROR(_xlfn.XLOOKUP(YEAR(Year1Table[[#This Row],[Date]])&MONTH(Year1Table[[#This Row],[Date]]),PenaltyTable[Year]&PenaltyTable[Month],PenaltyTable[Daily])*$W$10,"") -> 2.854586575 | AB26: 14917.66164 | AE26: 2027-04-15 | AF26: =IF(ROW()-ROW(Year2Table[#Headers])=1,$AI$193,IF(AG24="","",IF(AND($B$7<>"",AE26>=$B$7),$C$7,IF(AND($B$6<>"",AE26>=$B$6),$C$6,IF(AE26>=$B$5,$C$5,IF(AE26<$B$5,0)))))) -> 1500 | AG26: 67012.46966 | AH26: =IFERROR(_xlfn.XLOOKUP(YEAR(Year2Table[[#This Row],[Date]])&MONTH(Year2Table[[#This Row],[Date]]),PenaltyTable[Year]&PenaltyTable[Month],PenaltyTable[Daily])*$AG$10,"") -> 15.25998658 | AL26: 65959.21946 | AO26: 2032-11-15 | AP26: 1500 | AQ26: 7697.448558 | AR26: =IFERROR(_xlfn.XLOOKUP(YEAR(Year3Table[[#This Row],[Date]])&MONTH(Year3Table[[#This Row],[Date]]),PenaltyTable[Year]&PenaltyTable[Month],PenaltyTable[Daily])*$AQ$10,"") -> 5.178082192 | AV26: 6248.764882 | BB26: =IFERROR(_xlfn.XLOOKUP(YEAR(Year4Table[[#This Row],[Date]])&MONTH(Year4Table[[#This Row],[Date]]),PenaltyTable[Year]&PenaltyTable[Month],PenaltyTable[Daily])*$BA$10,"") ->  | BL26: =IFERROR(_xlfn.XLOOKUP(YEAR(Year5Table[[#This Row],[Date]])&MONTH(Year5Table[[#This Row],[Date]]),PenaltyTable[Year]&PenaltyTable[Month],PenaltyTable[Daily])*$BK$10,"") ->  | BV26: =IFERROR(_xlfn.XLOOKUP(YEAR(Year6Table[[#This Row],[Date]])&MONTH(Year6Table[[#This Row],[Date]]),PenaltyTable[Year]&PenaltyTable[Month],PenaltyTable[Daily])*$BU$10,"") ->  | CF26: =IFERROR(_xlfn.XLOOKUP(YEAR(Year7Table[[#This Row],[Date]])&MONTH(Year7Table[[#This Row],[Date]]),PenaltyTable[Year]&PenaltyTable[Month],PenaltyTable[Daily])*CE$10,"") ->  | CP26: =IFERROR(_xlfn.XLOOKUP(YEAR(Year8Table[[#This Row],[Date]])&MONTH(Year8Table[[#This Row],[Date]]),PenaltyTable[Year]&PenaltyTable[Month],PenaltyTable[Daily])*$CO$10,"") ->  | CZ26: =IFERROR(_xlfn.XLOOKUP(YEAR(Year9Table[[#This Row],[Date]])&MONTH(Year9Table[[#This Row],[Date]]),PenaltyTable[Year]&PenaltyTable[Month],PenaltyTable[Daily])*$CY$10,"") ->  | DJ26: =IFERROR(_xlfn.XLOOKUP(YEAR(Year10Table[[#This Row],[Date]])&MONTH(Year10Table[[#This Row],[Date]]),PenaltyTable[Year]&PenaltyTable[Month],PenaltyTable[Daily])*$DI$10,"") -> 
U27: =IFERROR(IF((ROW()-ROW(Year1Table[#Headers]))=1,IF(OR(Table1[[#This Row],[Tax Assessed]]="",Table1[[#This Row],[Tax Assessed]]=0),"",Table1[[#This Row],[Tax Due Dt]]),IF((ROW()-ROW(Year1Table[#Headers]))>1,IF(OFFSET(AB27,-1,)<1,"",EDATE(U26,1)))),"") -> 2023-07-15 | V27: 0 | W27: 14917.66164 | X27: =IFERROR(_xlfn.XLOOKUP(YEAR(Year1Table[[#This Row],[Date]])&MONTH(Year1Table[[#This Row],[Date]]),PenaltyTable[Year]&PenaltyTable[Month],PenaltyTable[Daily])*$W$10,"") -> 2.854586575 | AB27: 14920.51623 | AE27: 2027-05-15 | AF27: =IF(ROW()-ROW(Year2Table[#Headers])=1,$AI$193,IF(AG25="","",IF(AND($B$7<>"",AE27>=$B$7),$C$7,IF(AND($B$6<>"",AE27>=$B$6),$C$6,IF(AE27>=$B$5,$C$5,IF(AE27<$B$5,0)))))) -> 1500 | AG27: 65959.21946 | AH27: =IFERROR(_xlfn.XLOOKUP(YEAR(Year2Table[[#This Row],[Date]])&MONTH(Year2Table[[#This Row],[Date]]),PenaltyTable[Year]&PenaltyTable[Month],PenaltyTable[Daily])*$AG$10,"") -> 15.25998658 | AL27: 64898.94759 | AO27: 2032-12-15 | AP27: 1500 | AQ27: 6248.764882 | AR27: =IFERROR(_xlfn.XLOOKUP(YEAR(Year3Table[[#This Row],[Date]])&MONTH(Year3Table[[#This Row],[Date]]),PenaltyTable[Year]&PenaltyTable[Month],PenaltyTable[Daily])*$AQ$10,"") -> 5.178082192 | AV27: 4790.423315 | BB27: =IFERROR(_xlfn.XLOOKUP(YEAR(Year4Table[[#This Row],[Date]])&MONTH(Year4Table[[#This Row],[Date]]),PenaltyTable[Year]&PenaltyTable[Month],PenaltyTable[Daily])*$BA$10,"") ->  | BL27: =IFERROR(_xlfn.XLOOKUP(YEAR(Year5Table[[#This Row],[Date]])&MONTH(Year5Table[[#This Row],[Date]]),PenaltyTable[Year]&PenaltyTable[Month],PenaltyTable[Daily])*$BK$10,"") ->  | BV27: =IFERROR(_xlfn.XLOOKUP(YEAR(Year6Table[[#This Row],[Date]])&MONTH(Year6Table[[#This Row],[Date]]),PenaltyTable[Year]&PenaltyTable[Month],PenaltyTable[Daily])*$BU$10,"") ->  | CF27: =IFERROR(_xlfn.XLOOKUP(YEAR(Year7Table[[#This Row],[Date]])&MONTH(Year7Table[[#This Row],[Date]]),PenaltyTable[Year]&PenaltyTable[Month],PenaltyTable[Daily])*CE$10,"") ->  | CP27: =IFERROR(_xlfn.XLOOKUP(YEAR(Year8Table[[#This Row],[Date]])&MONTH(Year8Table[[#This Row],[Date]]),PenaltyTable[Year]&PenaltyTable[Month],PenaltyTable[Daily])*$CO$10,"") ->  | CZ27: =IFERROR(_xlfn.XLOOKUP(YEAR(Year9Table[[#This Row],[Date]])&MONTH(Year9Table[[#This Row],[Date]]),PenaltyTable[Year]&PenaltyTable[Month],PenaltyTable[Daily])*$CY$10,"") ->  | DJ27: =IFERROR(_xlfn.XLOOKUP(YEAR(Year10Table[[#This Row],[Date]])&MONTH(Year10Table[[#This Row],[Date]]),PenaltyTable[Year]&PenaltyTable[Month],PenaltyTable[Daily])*$DI$10,"") -> 
U28: =IFERROR(IF((ROW()-ROW(Year1Table[#Headers]))=1,IF(OR(Table1[[#This Row],[Tax Assessed]]="",Table1[[#This Row],[Tax Assessed]]=0),"",Table1[[#This Row],[Tax Due Dt]]),IF((ROW()-ROW(Year1Table[#Headers]))>1,IF(OFFSET(AB28,-1,)<1,"",EDATE(U27,1)))),"") -> 2023-08-15 | V28: 0 | W28: 14920.51623 | X28: =IFERROR(_xlfn.XLOOKUP(YEAR(Year1Table[[#This Row],[Date]])&MONTH(Year1Table[[#This Row],[Date]]),PenaltyTable[Year]&PenaltyTable[Month],PenaltyTable[Daily])*$W$10,"") -> 2.854586575 | AB28: 14923.37082 | AE28: 2027-06-15 | AF28: =IF(ROW()-ROW(Year2Table[#Headers])=1,$AI$193,IF(AG26="","",IF(AND($B$7<>"",AE28>=$B$7),$C$7,IF(AND($B$6<>"",AE28>=$B$6),$C$6,IF(AE28>=$B$5,$C$5,IF(AE28<$B$5,0)))))) -> 1500 | AG28: 64898.94759 | AH28: =IFERROR(_xlfn.XLOOKUP(YEAR(Year2Table[[#This Row],[Date]])&MONTH(Year2Table[[#This Row],[Date]]),PenaltyTable[Year]&PenaltyTable[Month],PenaltyTable[Daily])*$AG$10,"") -> 15.25998658 | AL28: 63831.60724 | AO28: 2033-01-15 | AP28: 1500 | AQ28: 4790.423315 | AR28: =IFERROR(_xlfn.XLOOKUP(YEAR(Year3Table[[#This Row],[Date]])&MONTH(Year3Table[[#This Row],[Date]]),PenaltyTable[Year]&PenaltyTable[Month],PenaltyTable[Daily])*$AQ$10,"") -> 5.178082192 | AV28: 3322.35947 | BB28: =IFERROR(_xlfn.XLOOKUP(YEAR(Year4Table[[#This Row],[Date]])&MONTH(Year4Table[[#This Row],[Date]]),PenaltyTable[Year]&PenaltyTable[Month],PenaltyTable[Daily])*$BA$10,"") ->  | BL28: =IFERROR(_xlfn.XLOOKUP(YEAR(Year5Table[[#This Row],[Date]])&MONTH(Year5Table[[#This Row],[Date]]),PenaltyTable[Year]&PenaltyTable[Month],PenaltyTable[Daily])*$BK$10,"") ->  | BV28: =IFERROR(_xlfn.XLOOKUP(YEAR(Year6Table[[#This Row],[Date]])&MONTH(Year6Table[[#This Row],[Date]]),PenaltyTable[Year]&PenaltyTable[Month],PenaltyTable[Daily])*$BU$10,"") ->  | CF28: =IFERROR(_xlfn.XLOOKUP(YEAR(Year7Table[[#This Row],[Date]])&MONTH(Year7Table[[#This Row],[Date]]),PenaltyTable[Year]&PenaltyTable[Month],PenaltyTable[Daily])*CE$10,"") ->  | CP28: =IFERROR(_xlfn.XLOOKUP(YEAR(Year8Table[[#This Row],[Date]])&MONTH(Year8Table[[#This Row],[Date]]),PenaltyTable[Year]&PenaltyTable[Month],PenaltyTable[Daily])*$CO$10,"") ->  | CZ28: =IFERROR(_xlfn.XLOOKUP(YEAR(Year9Table[[#This Row],[Date]])&MONTH(Year9Table[[#This Row],[Date]]),PenaltyTable[Year]&PenaltyTable[Month],PenaltyTable[Daily])*$CY$10,"") ->  | DJ28: =IFERROR(_xlfn.XLOOKUP(YEAR(Year10Table[[#This Row],[Date]])&MONTH(Year10Table[[#This Row],[Date]]),PenaltyTable[Year]&PenaltyTable[Month],PenaltyTable[Daily])*$DI$10,"") -> 
U29: =IFERROR(IF((ROW()-ROW(Year1Table[#Headers]))=1,IF(OR(Table1[[#This Row],[Tax Assessed]]="",Table1[[#This Row],[Tax Assessed]]=0),"",Table1[[#This Row],[Tax Due Dt]]),IF((ROW()-ROW(Year1Table[#Headers]))>1,IF(OFFSET(AB29,-1,)<1,"",EDATE(U28,1)))),"") -> 2023-09-15 | V29: 0 | W29: 14923.37082 | X29: =IFERROR(_xlfn.XLOOKUP(YEAR(Year1Table[[#This Row],[Date]])&MONTH(Year1Table[[#This Row],[Date]]),PenaltyTable[Year]&PenaltyTable[Month],PenaltyTable[Daily])*$W$10,"") -> 2.854586575 | AB29: 14926.2254 | AE29: 2027-07-15 | AF29: =IF(ROW()-ROW(Year2Table[#Headers])=1,$AI$193,IF(AG27="","",IF(AND($B$7<>"",AE29>=$B$7),$C$7,IF(AND($B$6<>"",AE29>=$B$6),$C$6,IF(AE29>=$B$5,$C$5,IF(AE29<$B$5,0)))))) -> 1500 | AG29: 63831.60724 | AH29: =IFERROR(_xlfn.XLOOKUP(YEAR(Year2Table[[#This Row],[Date]])&MONTH(Year2Table[[#This Row],[Date]]),PenaltyTable[Year]&PenaltyTable[Month],PenaltyTable[Daily])*$AG$10,"") -> 15.25998658 | AL29: 62757.15129 | AO29: 2033-02-15 | AP29: 1500 | AQ29: 3322.35947 | AR29: =IFERROR(_xlfn.XLOOKUP(YEAR(Year3Table[[#This Row],[Date]])&MONTH(Year3Table[[#This Row],[Date]]),PenaltyTable[Year]&PenaltyTable[Month],PenaltyTable[Daily])*$AQ$10,"") -> 5.178082192 | AV29: 1844.508533 | BB29: =IFERROR(_xlfn.XLOOKUP(YEAR(Year4Table[[#This Row],[Date]])&MONTH(Year4Table[[#This Row],[Date]]),PenaltyTable[Year]&PenaltyTable[Month],PenaltyTable[Daily])*$BA$10,"") ->  | BL29: =IFERROR(_xlfn.XLOOKUP(YEAR(Year5Table[[#This Row],[Date]])&MONTH(Year5Table[[#This Row],[Date]]),PenaltyTable[Year]&PenaltyTable[Month],PenaltyTable[Daily])*$BK$10,"") ->  | BV29: =IFERROR(_xlfn.XLOOKUP(YEAR(Year6Table[[#This Row],[Date]])&MONTH(Year6Table[[#This Row],[Date]]),PenaltyTable[Year]&PenaltyTable[Month],PenaltyTable[Daily])*$BU$10,"") ->  | CF29: =IFERROR(_xlfn.XLOOKUP(YEAR(Year7Table[[#This Row],[Date]])&MONTH(Year7Table[[#This Row],[Date]]),PenaltyTable[Year]&PenaltyTable[Month],PenaltyTable[Daily])*CE$10,"") ->  | CP29: =IFERROR(_xlfn.XLOOKUP(YEAR(Year8Table[[#This Row],[Date]])&MONTH(Year8Table[[#This Row],[Date]]),PenaltyTable[Year]&PenaltyTable[Month],PenaltyTable[Daily])*$CO$10,"") ->  | CZ29: =IFERROR(_xlfn.XLOOKUP(YEAR(Year9Table[[#This Row],[Date]])&MONTH(Year9Table[[#This Row],[Date]]),PenaltyTable[Year]&PenaltyTable[Month],PenaltyTable[Daily])*$CY$10,"") ->  | DJ29: =IFERROR(_xlfn.XLOOKUP(YEAR(Year10Table[[#This Row],[Date]])&MONTH(Year10Table[[#This Row],[Date]]),PenaltyTable[Year]&PenaltyTable[Month],PenaltyTable[Daily])*$DI$10,"") -> 
U30: =IFERROR(IF((ROW()-ROW(Year1Table[#Headers]))=1,IF(OR(Table1[[#This Row],[Tax Assessed]]="",Table1[[#This Row],[Tax Assessed]]=0),"",Table1[[#This Row],[Tax Due Dt]]),IF((ROW()-ROW(Year1Table[#Headers]))>1,IF(OFFSET(AB30,-1,)<1,"",EDATE(U29,1)))),"") -> 2023-10-15 | V30: 0 | W30: 14926.2254 | X30: =IFERROR(_xlfn.XLOOKUP(YEAR(Year1Table[[#This Row],[Date]])&MONTH(Year1Table[[#This Row],[Date]]),PenaltyTable[Year]&PenaltyTable[Month],PenaltyTable[Daily])*$W$10,"") -> 2.854586575 | AB30: 14929.07999 | AE30: 2027-08-15 | AF30: =IF(ROW()-ROW(Year2Table[#Headers])=1,$AI$193,IF(AG28="","",IF(AND($B$7<>"",AE30>=$B$7),$C$7,IF(AND($B$6<>"",AE30>=$B$6),$C$6,IF(AE30>=$B$5,$C$5,IF(AE30<$B$5,0)))))) -> 1500 | AG30: 62757.15129 | AH30: =IFERROR(_xlfn.XLOOKUP(YEAR(Year2Table[[#This Row],[Date]])&MONTH(Year2Table[[#This Row],[Date]]),PenaltyTable[Year]&PenaltyTable[Month],PenaltyTable[Daily])*$AG$10,"") -> 15.25998658 | AL30: 61675.5323 | AO30: 2033-03-15 | AP30: 1500 | AQ30: 1844.508533 | AR30: =IFERROR(_xlfn.XLOOKUP(YEAR(Year3Table[[#This Row],[Date]])&MONTH(Year3Table[[#This Row],[Date]]),PenaltyTable[Year]&PenaltyTable[Month],PenaltyTable[Daily])*$AQ$10,"") -> 5.178082192 | AV30: 356.8052569 | BB30: =IFERROR(_xlfn.XLOOKUP(YEAR(Year4Table[[#This Row],[Date]])&MONTH(Year4Table[[#This Row],[Date]]),PenaltyTable[Year]&PenaltyTable[Month],PenaltyTable[Daily])*$BA$10,"") ->  | BL30: =IFERROR(_xlfn.XLOOKUP(YEAR(Year5Table[[#This Row],[Date]])&MONTH(Year5Table[[#This Row],[Date]]),PenaltyTable[Year]&PenaltyTable[Month],PenaltyTable[Daily])*$BK$10,"") ->  | BV30: =IFERROR(_xlfn.XLOOKUP(YEAR(Year6Table[[#This Row],[Date]])&MONTH(Year6Table[[#This Row],[Date]]),PenaltyTable[Year]&PenaltyTable[Month],PenaltyTable[Daily])*$BU$10,"") ->  | CF30: =IFERROR(_xlfn.XLOOKUP(YEAR(Year7Table[[#This Row],[Date]])&MONTH(Year7Table[[#This Row],[Date]]),PenaltyTable[Year]&PenaltyTable[Month],PenaltyTable[Daily])*CE$10,"") ->  | CP30: =IFERROR(_xlfn.XLOOKUP(YEAR(Year8Table[[#This Row],[Date]])&MONTH(Year8Table[[#This Row],[Date]]),PenaltyTable[Year]&PenaltyTable[Month],PenaltyTable[Daily])*$CO$10,"") ->  | CZ30: =IFERROR(_xlfn.XLOOKUP(YEAR(Year9Table[[#This Row],[Date]])&MONTH(Year9Table[[#This Row],[Date]]),PenaltyTable[Year]&PenaltyTable[Month],PenaltyTable[Daily])*$CY$10,"") ->  | DJ30: =IFERROR(_xlfn.XLOOKUP(YEAR(Year10Table[[#This Row],[Date]])&MONTH(Year10Table[[#This Row],[Date]]),PenaltyTable[Year]&PenaltyTable[Month],PenaltyTable[Daily])*$DI$10,"") -> 
U31: =IFERROR(IF((ROW()-ROW(Year1Table[#Headers]))=1,IF(OR(Table1[[#This Row],[Tax Assessed]]="",Table1[[#This Row],[Tax Assessed]]=0),"",Table1[[#This Row],[Tax Due Dt]]),IF((ROW()-ROW(Year1Table[#Headers]))>1,IF(OFFSET(AB31,-1,)<1,"",EDATE(U30,1)))),"") -> 2023-11-15 | V31: 0 | W31: 14929.07999 | X31: =IFERROR(_xlfn.XLOOKUP(YEAR(Year1Table[[#This Row],[Date]])&MONTH(Year1Table[[#This Row],[Date]]),PenaltyTable[Year]&PenaltyTable[Month],PenaltyTable[Daily])*$W$10,"") -> 2.854586575 | AB31: 14931.93458 | AE31: 2027-09-15 | AF31: =IF(ROW()-ROW(Year2Table[#Headers])=1,$AI$193,IF(AG29="","",IF(AND($B$7<>"",AE31>=$B$7),$C$7,IF(AND($B$6<>"",AE31>=$B$6),$C$6,IF(AE31>=$B$5,$C$5,IF(AE31<$B$5,0)))))) -> 1500 | AG31: 61675.5323 | AH31: =IFERROR(_xlfn.XLOOKUP(YEAR(Year2Table[[#This Row],[Date]])&MONTH(Year2Table[[#This Row],[Date]]),PenaltyTable[Year]&PenaltyTable[Month],PenaltyTable[Daily])*$AG$10,"") -> 15.25998658 | AL31: 60586.70251 | AO31: 2033-04-15 | AP31: 1500 | AQ31: 356.8052569 | AR31: =IFERROR(_xlfn.XLOOKUP(YEAR(Year3Table[[#This Row],[Date]])&MONTH(Year3Table[[#This Row],[Date]]),PenaltyTable[Year]&PenaltyTable[Month],PenaltyTable[Daily])*$AQ$10,"") -> 5.178082192 | AV31: -1140.816041 | AW31: 2033-04-15 | BB31: =IFERROR(_xlfn.XLOOKUP(YEAR(Year4Table[[#This Row],[Date]])&MONTH(Year4Table[[#This Row],[Date]]),PenaltyTable[Year]&PenaltyTable[Month],PenaltyTable[Daily])*$BA$10,"") ->  | BL31: =IFERROR(_xlfn.XLOOKUP(YEAR(Year5Table[[#This Row],[Date]])&MONTH(Year5Table[[#This Row],[Date]]),PenaltyTable[Year]&PenaltyTable[Month],PenaltyTable[Daily])*$BK$10,"") ->  | BV31: =IFERROR(_xlfn.XLOOKUP(YEAR(Year6Table[[#This Row],[Date]])&MONTH(Year6Table[[#This Row],[Date]]),PenaltyTable[Year]&PenaltyTable[Month],PenaltyTable[Daily])*$BU$10,"") ->  | CF31: =IFERROR(_xlfn.XLOOKUP(YEAR(Year7Table[[#This Row],[Date]])&MONTH(Year7Table[[#This Row],[Date]]),PenaltyTable[Year]&PenaltyTable[Month],PenaltyTable[Daily])*CE$10,"") ->  | CP31: =IFERROR(_xlfn.XLOOKUP(YEAR(Year8Table[[#This Row],[Date]])&MONTH(Year8Table[[#This Row],[Date]]),PenaltyTable[Year]&PenaltyTable[Month],PenaltyTable[Daily])*$CO$10,"") ->  | CZ31: =IFERROR(_xlfn.XLOOKUP(YEAR(Year9Table[[#This Row],[Date]])&MONTH(Year9Table[[#This Row],[Date]]),PenaltyTable[Year]&PenaltyTable[Month],PenaltyTable[Daily])*$CY$10,"") ->  | DJ31: =IFERROR(_xlfn.XLOOKUP(YEAR(Year10Table[[#This Row],[Date]])&MONTH(Year10Table[[#This Row],[Date]]),PenaltyTable[Year]&PenaltyTable[Month],PenaltyTable[Daily])*$DI$10,"") -> 
U32: =IFERROR(IF((ROW()-ROW(Year1Table[#Headers]))=1,IF(OR(Table1[[#This Row],[Tax Assessed]]="",Table1[[#This Row],[Tax Assessed]]=0),"",Table1[[#This Row],[Tax Due Dt]]),IF((ROW()-ROW(Year1Table[#Headers]))>1,IF(OFFSET(AB32,-1,)<1,"",EDATE(U31,1)))),"") -> 2023-12-15 | V32: 0 | W32: 14931.93458 | X32: =IFERROR(_xlfn.XLOOKUP(YEAR(Year1Table[[#This Row],[Date]])&MONTH(Year1Table[[#This Row],[Date]]),PenaltyTable[Year]&PenaltyTable[Month],PenaltyTable[Daily])*$W$10,"") -> 2.854586575 | AB32: 14934.78916 | AE32: 2027-10-15 | AF32: =IF(ROW()-ROW(Year2Table[#Headers])=1,$AI$193,IF(AG30="","",IF(AND($B$7<>"",AE32>=$B$7),$C$7,IF(AND($B$6<>"",AE32>=$B$6),$C$6,IF(AE32>=$B$5,$C$5,IF(AE32<$B$5,0)))))) -> 1500 | AG32: 60586.70251 | AH32: =IFERROR(_xlfn.XLOOKUP(YEAR(Year2Table[[#This Row],[Date]])&MONTH(Year2Table[[#This Row],[Date]]),PenaltyTable[Year]&PenaltyTable[Month],PenaltyTable[Daily])*$AG$10,"") -> 15.25998658 | AL32: 59490.61386 | AR32: =IFERROR(_xlfn.XLOOKUP(YEAR(Year3Table[[#This Row],[Date]])&MONTH(Year3Table[[#This Row],[Date]]),PenaltyTable[Year]&PenaltyTable[Month],PenaltyTable[Daily])*$AQ$10,"") ->  | BB32: =IFERROR(_xlfn.XLOOKUP(YEAR(Year4Table[[#This Row],[Date]])&MONTH(Year4Table[[#This Row],[Date]]),PenaltyTable[Year]&PenaltyTable[Month],PenaltyTable[Daily])*$BA$10,"") ->  | BL32: =IFERROR(_xlfn.XLOOKUP(YEAR(Year5Table[[#This Row],[Date]])&MONTH(Year5Table[[#This Row],[Date]]),PenaltyTable[Year]&PenaltyTable[Month],PenaltyTable[Daily])*$BK$10,"") ->  | BV32: =IFERROR(_xlfn.XLOOKUP(YEAR(Year6Table[[#This Row],[Date]])&MONTH(Year6Table[[#This Row],[Date]]),PenaltyTable[Year]&PenaltyTable[Month],PenaltyTable[Daily])*$BU$10,"") ->  | CF32: =IFERROR(_xlfn.XLOOKUP(YEAR(Year7Table[[#This Row],[Date]])&MONTH(Year7Table[[#This Row],[Date]]),PenaltyTable[Year]&PenaltyTable[Month],PenaltyTable[Daily])*CE$10,"") ->  | CP32: =IFERROR(_xlfn.XLOOKUP(YEAR(Year8Table[[#This Row],[Date]])&MONTH(Year8Table[[#This Row],[Date]]),PenaltyTable[Year]&PenaltyTable[Month],PenaltyTable[Daily])*$CO$10,"") ->  | CZ32: =IFERROR(_xlfn.XLOOKUP(YEAR(Year9Table[[#This Row],[Date]])&MONTH(Year9Table[[#This Row],[Date]]),PenaltyTable[Year]&PenaltyTable[Month],PenaltyTable[Daily])*$CY$10,"") ->  | DJ32: =IFERROR(_xlfn.XLOOKUP(YEAR(Year10Table[[#This Row],[Date]])&MONTH(Year10Table[[#This Row],[Date]]),PenaltyTable[Year]&PenaltyTable[Month],PenaltyTable[Daily])*$DI$10,"") -> 
U33: =IFERROR(IF((ROW()-ROW(Year1Table[#Headers]))=1,IF(OR(Table1[[#This Row],[Tax Assessed]]="",Table1[[#This Row],[Tax Assessed]]=0),"",Table1[[#This Row],[Tax Due Dt]]),IF((ROW()-ROW(Year1Table[#Headers]))>1,IF(OFFSET(AB33,-1,)<1,"",EDATE(U32,1)))),"") -> 2024-01-15 | V33: 0 | W33: 14934.78916 | X33: =IFERROR(_xlfn.XLOOKUP(YEAR(Year1Table[[#This Row],[Date]])&MONTH(Year1Table[[#This Row],[Date]]),PenaltyTable[Year]&PenaltyTable[Month],PenaltyTable[Daily])*$W$10,"") -> 3.262384658 | AB33: 14938.05155 | AE33: 2027-11-15 | AF33: =IF(ROW()-ROW(Year2Table[#Headers])=1,$AI$193,IF(AG31="","",IF(AND($B$7<>"",AE33>=$B$7),$C$7,IF(AND($B$6<>"",AE33>=$B$6),$C$6,IF(AE33>=$B$5,$C$5,IF(AE33<$B$5,0)))))) -> 1500 | AG33: 59490.61386 | AH33: =IFERROR(_xlfn.XLOOKUP(YEAR(Year2Table[[#This Row],[Date]])&MONTH(Year2Table[[#This Row],[Date]]),PenaltyTable[Year]&PenaltyTable[Month],PenaltyTable[Daily])*$AG$10,"") -> 15.25998658 | AL33: 58387.21795 | AR33: =IFERROR(_xlfn.XLOOKUP(YEAR(Year3Table[[#This Row],[Date]])&MONTH(Year3Table[[#This Row],[Date]]),PenaltyTable[Year]&PenaltyTable[Month],PenaltyTable[Daily])*$AQ$10,"") ->  | BB33: =IFERROR(_xlfn.XLOOKUP(YEAR(Year4Table[[#This Row],[Date]])&MONTH(Year4Table[[#This Row],[Date]]),PenaltyTable[Year]&PenaltyTable[Month],PenaltyTable[Daily])*$BA$10,"") ->  | BL33: =IFERROR(_xlfn.XLOOKUP(YEAR(Year5Table[[#This Row],[Date]])&MONTH(Year5Table[[#This Row],[Date]]),PenaltyTable[Year]&PenaltyTable[Month],PenaltyTable[Daily])*$BK$10,"") ->  | BV33: =IFERROR(_xlfn.XLOOKUP(YEAR(Year6Table[[#This Row],[Date]])&MONTH(Year6Table[[#This Row],[Date]]),PenaltyTable[Year]&PenaltyTable[Month],PenaltyTable[Daily])*$BU$10,"") ->  | CF33: =IFERROR(_xlfn.XLOOKUP(YEAR(Year7Table[[#This Row],[Date]])&MONTH(Year7Table[[#This Row],[Date]]),PenaltyTable[Year]&PenaltyTable[Month],PenaltyTable[Daily])*CE$10,"") ->  | CP33: =IFERROR(_xlfn.XLOOKUP(YEAR(Year8Table[[#This Row],[Date]])&MONTH(Year8Table[[#This Row],[Date]]),PenaltyTable[Year]&PenaltyTable[Month],PenaltyTable[Daily])*$CO$10,"") ->  | CZ33: =IFERROR(_xlfn.XLOOKUP(YEAR(Year9Table[[#This Row],[Date]])&MONTH(Year9Table[[#This Row],[Date]]),PenaltyTable[Year]&PenaltyTable[Month],PenaltyTable[Daily])*$CY$10,"") ->  | DJ33: =IFERROR(_xlfn.XLOOKUP(YEAR(Year10Table[[#This Row],[Date]])&MONTH(Year10Table[[#This Row],[Date]]),PenaltyTable[Year]&PenaltyTable[Month],PenaltyTable[Daily])*$DI$10,"") -> 
U34: =IFERROR(IF((ROW()-ROW(Year1Table[#Headers]))=1,IF(OR(Table1[[#This Row],[Tax Assessed]]="",Table1[[#This Row],[Tax Assessed]]=0),"",Table1[[#This Row],[Tax Due Dt]]),IF((ROW()-ROW(Year1Table[#Headers]))>1,IF(OFFSET(AB34,-1,)<1,"",EDATE(U33,1)))),"") -> 2024-02-15 | V34: 0 | W34: 14938.05155 | X34: =IFERROR(_xlfn.XLOOKUP(YEAR(Year1Table[[#This Row],[Date]])&MONTH(Year1Table[[#This Row],[Date]]),PenaltyTable[Year]&PenaltyTable[Month],PenaltyTable[Daily])*$W$10,"") -> 3.262384658 | AB34: 14941.31393 | AE34: 2027-12-15 | AF34: =IF(ROW()-ROW(Year2Table[#Headers])=1,$AI$193,IF(AG32="","",IF(AND($B$7<>"",AE34>=$B$7),$C$7,IF(AND($B$6<>"",AE34>=$B$6),$C$6,IF(AE34>=$B$5,$C$5,IF(AE34<$B$5,0)))))) -> 1500 | AG34: 58387.21795 | AH34: =IFERROR(_xlfn.XLOOKUP(YEAR(Year2Table[[#This Row],[Date]])&MONTH(Year2Table[[#This Row],[Date]]),PenaltyTable[Year]&PenaltyTable[Month],PenaltyTable[Daily])*$AG$10,"") -> 15.25998658 | AL34: 57276.46607 | AR34: =IFERROR(_xlfn.XLOOKUP(YEAR(Year3Table[[#This Row],[Date]])&MONTH(Year3Table[[#This Row],[Date]]),PenaltyTable[Year]&PenaltyTable[Month],PenaltyTable[Daily])*$AQ$10,"") ->  | BB34: =IFERROR(_xlfn.XLOOKUP(YEAR(Year4Table[[#This Row],[Date]])&MONTH(Year4Table[[#This Row],[Date]]),PenaltyTable[Year]&PenaltyTable[Month],PenaltyTable[Daily])*$BA$10,"") ->  | BL34: =IFERROR(_xlfn.XLOOKUP(YEAR(Year5Table[[#This Row],[Date]])&MONTH(Year5Table[[#This Row],[Date]]),PenaltyTable[Year]&PenaltyTable[Month],PenaltyTable[Daily])*$BK$10,"") ->  | BV34: =IFERROR(_xlfn.XLOOKUP(YEAR(Year6Table[[#This Row],[Date]])&MONTH(Year6Table[[#This Row],[Date]]),PenaltyTable[Year]&PenaltyTable[Month],PenaltyTable[Daily])*$BU$10,"") ->  | CF34: =IFERROR(_xlfn.XLOOKUP(YEAR(Year7Table[[#This Row],[Date]])&MONTH(Year7Table[[#This Row],[Date]]),PenaltyTable[Year]&PenaltyTable[Month],PenaltyTable[Daily])*CE$10,"") ->  | CP34: =IFERROR(_xlfn.XLOOKUP(YEAR(Year8Table[[#This Row],[Date]])&MONTH(Year8Table[[#This Row],[Date]]),PenaltyTable[Year]&PenaltyTable[Month],PenaltyTable[Daily])*$CO$10,"") ->  | CZ34: =IFERROR(_xlfn.XLOOKUP(YEAR(Year9Table[[#This Row],[Date]])&MONTH(Year9Table[[#This Row],[Date]]),PenaltyTable[Year]&PenaltyTable[Month],PenaltyTable[Daily])*$CY$10,"") ->  | DJ34: =IFERROR(_xlfn.XLOOKUP(YEAR(Year10Table[[#This Row],[Date]])&MONTH(Year10Table[[#This Row],[Date]]),PenaltyTable[Year]&PenaltyTable[Month],PenaltyTable[Daily])*$DI$10,"") -> 
U35: =IFERROR(IF((ROW()-ROW(Year1Table[#Headers]))=1,IF(OR(Table1[[#This Row],[Tax Assessed]]="",Table1[[#This Row],[Tax Assessed]]=0),"",Table1[[#This Row],[Tax Due Dt]]),IF((ROW()-ROW(Year1Table[#Headers]))>1,IF(OFFSET(AB35,-1,)<1,"",EDATE(U34,1)))),"") -> 2024-03-15 | V35: 0 | W35: 14941.31393 | X35: =IFERROR(_xlfn.XLOOKUP(YEAR(Year1Table[[#This Row],[Date]])&MONTH(Year1Table[[#This Row],[Date]]),PenaltyTable[Year]&PenaltyTable[Month],PenaltyTable[Daily])*$W$10,"") -> 3.262384658 | AB35: 14944.57632 | AE35: 2028-01-15 | AF35: =IF(ROW()-ROW(Year2Table[#Headers])=1,$AI$193,IF(AG33="","",IF(AND($B$7<>"",AE35>=$B$7),$C$7,IF(AND($B$6<>"",AE35>=$B$6),$C$6,IF(AE35>=$B$5,$C$5,IF(AE35<$B$5,0)))))) -> 1500 | AG35: 57276.46607 | AH35: =IFERROR(_xlfn.XLOOKUP(YEAR(Year2Table[[#This Row],[Date]])&MONTH(Year2Table[[#This Row],[Date]]),PenaltyTable[Year]&PenaltyTable[Month],PenaltyTable[Daily])*$AG$10,"") -> 15.25998658 | AL35: 56158.30918 | AR35: =IFERROR(_xlfn.XLOOKUP(YEAR(Year3Table[[#This Row],[Date]])&MONTH(Year3Table[[#This Row],[Date]]),PenaltyTable[Year]&PenaltyTable[Month],PenaltyTable[Daily])*$AQ$10,"") ->  | BB35: =IFERROR(_xlfn.XLOOKUP(YEAR(Year4Table[[#This Row],[Date]])&MONTH(Year4Table[[#This Row],[Date]]),PenaltyTable[Year]&PenaltyTable[Month],PenaltyTable[Daily])*$BA$10,"") ->  | BL35: =IFERROR(_xlfn.XLOOKUP(YEAR(Year5Table[[#This Row],[Date]])&MONTH(Year5Table[[#This Row],[Date]]),PenaltyTable[Year]&PenaltyTable[Month],PenaltyTable[Daily])*$BK$10,"") ->  | BV35: =IFERROR(_xlfn.XLOOKUP(YEAR(Year6Table[[#This Row],[Date]])&MONTH(Year6Table[[#This Row],[Date]]),PenaltyTable[Year]&PenaltyTable[Month],PenaltyTable[Daily])*$BU$10,"") ->  | CF35: =IFERROR(_xlfn.XLOOKUP(YEAR(Year7Table[[#This Row],[Date]])&MONTH(Year7Table[[#This Row],[Date]]),PenaltyTable[Year]&PenaltyTable[Month],PenaltyTable[Daily])*CE$10,"") ->  | CP35: =IFERROR(_xlfn.XLOOKUP(YEAR(Year8Table[[#This Row],[Date]])&MONTH(Year8Table[[#This Row],[Date]]),PenaltyTable[Year]&PenaltyTable[Month],PenaltyTable[Daily])*$CO$10,"") ->  | CZ35: =IFERROR(_xlfn.XLOOKUP(YEAR(Year9Table[[#This Row],[Date]])&MONTH(Year9Table[[#This Row],[Date]]),PenaltyTable[Year]&PenaltyTable[Month],PenaltyTable[Daily])*$CY$10,"") ->  | DJ35: =IFERROR(_xlfn.XLOOKUP(YEAR(Year10Table[[#This Row],[Date]])&MONTH(Year10Table[[#This Row],[Date]]),PenaltyTable[Year]&PenaltyTable[Month],PenaltyTable[Daily])*$DI$10,"") -> 
U36: =IFERROR(IF((ROW()-ROW(Year1Table[#Headers]))=1,IF(OR(Table1[[#This Row],[Tax Assessed]]="",Table1[[#This Row],[Tax Assessed]]=0),"",Table1[[#This Row],[Tax Due Dt]]),IF((ROW()-ROW(Year1Table[#Headers]))>1,IF(OFFSET(AB36,-1,)<1,"",EDATE(U35,1)))),"") -> 2024-04-15 | V36: 0 | W36: 14944.57632 | X36: =IFERROR(_xlfn.XLOOKUP(YEAR(Year1Table[[#This Row],[Date]])&MONTH(Year1Table[[#This Row],[Date]]),PenaltyTable[Year]&PenaltyTable[Month],PenaltyTable[Daily])*$W$10,"") -> 3.262384658 | AB36: 14947.8387 | AE36: 2028-02-15 | AF36: =IF(ROW()-ROW(Year2Table[#Headers])=1,$AI$193,IF(AG34="","",IF(AND($B$7<>"",AE36>=$B$7),$C$7,IF(AND($B$6<>"",AE36>=$B$6),$C$6,IF(AE36>=$B$5,$C$5,IF(AE36<$B$5,0)))))) -> 1500 | AG36: 56158.30918 | AH36: =IFERROR(_xlfn.XLOOKUP(YEAR(Year2Table[[#This Row],[Date]])&MONTH(Year2Table[[#This Row],[Date]]),PenaltyTable[Year]&PenaltyTable[Month],PenaltyTable[Daily])*$AG$10,"") -> 15.25998658 | AL36: 55032.69791 | AR36: =IFERROR(_xlfn.XLOOKUP(YEAR(Year3Table[[#This Row],[Date]])&MONTH(Year3Table[[#This Row],[Date]]),PenaltyTable[Year]&PenaltyTable[Month],PenaltyTable[Daily])*$AQ$10,"") ->  | BB36: =IFERROR(_xlfn.XLOOKUP(YEAR(Year4Table[[#This Row],[Date]])&MONTH(Year4Table[[#This Row],[Date]]),PenaltyTable[Year]&PenaltyTable[Month],PenaltyTable[Daily])*$BA$10,"") ->  | BL36: =IFERROR(_xlfn.XLOOKUP(YEAR(Year5Table[[#This Row],[Date]])&MONTH(Year5Table[[#This Row],[Date]]),PenaltyTable[Year]&PenaltyTable[Month],PenaltyTable[Daily])*$BK$10,"") ->  | BV36: =IFERROR(_xlfn.XLOOKUP(YEAR(Year6Table[[#This Row],[Date]])&MONTH(Year6Table[[#This Row],[Date]]),PenaltyTable[Year]&PenaltyTable[Month],PenaltyTable[Daily])*$BU$10,"") ->  | CF36: =IFERROR(_xlfn.XLOOKUP(YEAR(Year7Table[[#This Row],[Date]])&MONTH(Year7Table[[#This Row],[Date]]),PenaltyTable[Year]&PenaltyTable[Month],PenaltyTable[Daily])*CE$10,"") ->  | CP36: =IFERROR(_xlfn.XLOOKUP(YEAR(Year8Table[[#This Row],[Date]])&MONTH(Year8Table[[#This Row],[Date]]),PenaltyTable[Year]&PenaltyTable[Month],PenaltyTable[Daily])*$CO$10,"") ->  | CZ36: =IFERROR(_xlfn.XLOOKUP(YEAR(Year9Table[[#This Row],[Date]])&MONTH(Year9Table[[#This Row],[Date]]),PenaltyTable[Year]&PenaltyTable[Month],PenaltyTable[Daily])*$CY$10,"") ->  | DJ36: =IFERROR(_xlfn.XLOOKUP(YEAR(Year10Table[[#This Row],[Date]])&MONTH(Year10Table[[#This Row],[Date]]),PenaltyTable[Year]&PenaltyTable[Month],PenaltyTable[Daily])*$DI$10,"") -> 
U37: =IFERROR(IF((ROW()-ROW(Year1Table[#Headers]))=1,IF(OR(Table1[[#This Row],[Tax Assessed]]="",Table1[[#This Row],[Tax Assessed]]=0),"",Table1[[#This Row],[Tax Due Dt]]),IF((ROW()-ROW(Year1Table[#Headers]))>1,IF(OFFSET(AB37,-1,)<1,"",EDATE(U36,1)))),"") -> 2024-05-15 | V37: 0 | W37: 14947.8387 | X37: =IFERROR(_xlfn.XLOOKUP(YEAR(Year1Table[[#This Row],[Date]])&MONTH(Year1Table[[#This Row],[Date]]),PenaltyTable[Year]&PenaltyTable[Month],PenaltyTable[Daily])*$W$10,"") -> 3.262384658 | AB37: 14951.10109 | AE37: 2028-03-15 | AF37: =IF(ROW()-ROW(Year2Table[#Headers])=1,$AI$193,IF(AG35="","",IF(AND($B$7<>"",AE37>=$B$7),$C$7,IF(AND($B$6<>"",AE37>=$B$6),$C$6,IF(AE37>=$B$5,$C$5,IF(AE37<$B$5,0)))))) -> 1500 | AG37: 55032.69791 | AH37: =IFERROR(_xlfn.XLOOKUP(YEAR(Year2Table[[#This Row],[Date]])&MONTH(Year2Table[[#This Row],[Date]]),PenaltyTable[Year]&PenaltyTable[Month],PenaltyTable[Daily])*$AG$10,"") -> 15.25998658 | AL37: 53899.58256 | AR37: =IFERROR(_xlfn.XLOOKUP(YEAR(Year3Table[[#This Row],[Date]])&MONTH(Year3Table[[#This Row],[Date]]),PenaltyTable[Year]&PenaltyTable[Month],PenaltyTable[Daily])*$AQ$10,"") ->  | BB37: =IFERROR(_xlfn.XLOOKUP(YEAR(Year4Table[[#This Row],[Date]])&MONTH(Year4Table[[#This Row],[Date]]),PenaltyTable[Year]&PenaltyTable[Month],PenaltyTable[Daily])*$BA$10,"") ->  | BL37: =IFERROR(_xlfn.XLOOKUP(YEAR(Year5Table[[#This Row],[Date]])&MONTH(Year5Table[[#This Row],[Date]]),PenaltyTable[Year]&PenaltyTable[Month],PenaltyTable[Daily])*$BK$10,"") ->  | BV37: =IFERROR(_xlfn.XLOOKUP(YEAR(Year6Table[[#This Row],[Date]])&MONTH(Year6Table[[#This Row],[Date]]),PenaltyTable[Year]&PenaltyTable[Month],PenaltyTable[Daily])*$BU$10,"") ->  | CF37: =IFERROR(_xlfn.XLOOKUP(YEAR(Year7Table[[#This Row],[Date]])&MONTH(Year7Table[[#This Row],[Date]]),PenaltyTable[Year]&PenaltyTable[Month],PenaltyTable[Daily])*CE$10,"") ->  | CP37: =IFERROR(_xlfn.XLOOKUP(YEAR(Year8Table[[#This Row],[Date]])&MONTH(Year8Table[[#This Row],[Date]]),PenaltyTable[Year]&PenaltyTable[Month],PenaltyTable[Daily])*$CO$10,"") ->  | CZ37: =IFERROR(_xlfn.XLOOKUP(YEAR(Year9Table[[#This Row],[Date]])&MONTH(Year9Table[[#This Row],[Date]]),PenaltyTable[Year]&PenaltyTable[Month],PenaltyTable[Daily])*$CY$10,"") ->  | DJ37: =IFERROR(_xlfn.XLOOKUP(YEAR(Year10Table[[#This Row],[Date]])&MONTH(Year10Table[[#This Row],[Date]]),PenaltyTable[Year]&PenaltyTable[Month],PenaltyTable[Daily])*$DI$10,"") -> 
U38: =IFERROR(IF((ROW()-ROW(Year1Table[#Headers]))=1,IF(OR(Table1[[#This Row],[Tax Assessed]]="",Table1[[#This Row],[Tax Assessed]]=0),"",Table1[[#This Row],[Tax Due Dt]]),IF((ROW()-ROW(Year1Table[#Headers]))>1,IF(OFFSET(AB38,-1,)<1,"",EDATE(U37,1)))),"") -> 2024-06-15 | V38: 0 | W38: 14951.10109 | X38: =IFERROR(_xlfn.XLOOKUP(YEAR(Year1Table[[#This Row],[Date]])&MONTH(Year1Table[[#This Row],[Date]]),PenaltyTable[Year]&PenaltyTable[Month],PenaltyTable[Daily])*$W$10,"") -> 3.262384658 | AB38: 14954.36347 | AE38: 2028-04-15 | AF38: =IF(ROW()-ROW(Year2Table[#Headers])=1,$AI$193,IF(AG36="","",IF(AND($B$7<>"",AE38>=$B$7),$C$7,IF(AND($B$6<>"",AE38>=$B$6),$C$6,IF(AE38>=$B$5,$C$5,IF(AE38<$B$5,0)))))) -> 1500 | AG38: 53899.58256 | AH38: =IFERROR(_xlfn.XLOOKUP(YEAR(Year2Table[[#This Row],[Date]])&MONTH(Year2Table[[#This Row],[Date]]),PenaltyTable[Year]&PenaltyTable[Month],PenaltyTable[Daily])*$AG$10,"") -> 15.25998658 | AL38: 52758.91311 | AR38: =IFERROR(_xlfn.XLOOKUP(YEAR(Year3Table[[#This Row],[Date]])&MONTH(Year3Table[[#This Row],[Date]]),PenaltyTable[Year]&PenaltyTable[Month],PenaltyTable[Daily])*$AQ$10,"") ->  | BB38: =IFERROR(_xlfn.XLOOKUP(YEAR(Year4Table[[#This Row],[Date]])&MONTH(Year4Table[[#This Row],[Date]]),PenaltyTable[Year]&PenaltyTable[Month],PenaltyTable[Daily])*$BA$10,"") ->  | BL38: =IFERROR(_xlfn.XLOOKUP(YEAR(Year5Table[[#This Row],[Date]])&MONTH(Year5Table[[#This Row],[Date]]),PenaltyTable[Year]&PenaltyTable[Month],PenaltyTable[Daily])*$BK$10,"") ->  | BV38: =IFERROR(_xlfn.XLOOKUP(YEAR(Year6Table[[#This Row],[Date]])&MONTH(Year6Table[[#This Row],[Date]]),PenaltyTable[Year]&PenaltyTable[Month],PenaltyTable[Daily])*$BU$10,"") ->  | CF38: =IFERROR(_xlfn.XLOOKUP(YEAR(Year7Table[[#This Row],[Date]])&MONTH(Year7Table[[#This Row],[Date]]),PenaltyTable[Year]&PenaltyTable[Month],PenaltyTable[Daily])*CE$10,"") ->  | CP38: =IFERROR(_xlfn.XLOOKUP(YEAR(Year8Table[[#This Row],[Date]])&MONTH(Year8Table[[#This Row],[Date]]),PenaltyTable[Year]&PenaltyTable[Month],PenaltyTable[Daily])*$CO$10,"") ->  | CZ38: =IFERROR(_xlfn.XLOOKUP(YEAR(Year9Table[[#This Row],[Date]])&MONTH(Year9Table[[#This Row],[Date]]),PenaltyTable[Year]&PenaltyTable[Month],PenaltyTable[Daily])*$CY$10,"") ->  | DJ38: =IFERROR(_xlfn.XLOOKUP(YEAR(Year10Table[[#This Row],[Date]])&MONTH(Year10Table[[#This Row],[Date]]),PenaltyTable[Year]&PenaltyTable[Month],PenaltyTable[Daily])*$DI$10,"") -> 
U39: =IFERROR(IF((ROW()-ROW(Year1Table[#Headers]))=1,IF(OR(Table1[[#This Row],[Tax Assessed]]="",Table1[[#This Row],[Tax Assessed]]=0),"",Table1[[#This Row],[Tax Due Dt]]),IF((ROW()-ROW(Year1Table[#Headers]))>1,IF(OFFSET(AB39,-1,)<1,"",EDATE(U38,1)))),"") -> 2024-07-15 | V39: 0 | W39: 14954.36347 | X39: =IFERROR(_xlfn.XLOOKUP(YEAR(Year1Table[[#This Row],[Date]])&MONTH(Year1Table[[#This Row],[Date]]),PenaltyTable[Year]&PenaltyTable[Month],PenaltyTable[Daily])*$W$10,"") -> 3.262384658 | AB39: 14957.62586 | AE39: 2028-05-15 | AF39: =IF(ROW()-ROW(Year2Table[#Headers])=1,$AI$193,IF(AG37="","",IF(AND($B$7<>"",AE39>=$B$7),$C$7,IF(AND($B$6<>"",AE39>=$B$6),$C$6,IF(AE39>=$B$5,$C$5,IF(AE39<$B$5,0)))))) -> 1500 | AG39: 52758.91311 | AH39: =IFERROR(_xlfn.XLOOKUP(YEAR(Year2Table[[#This Row],[Date]])&MONTH(Year2Table[[#This Row],[Date]]),PenaltyTable[Year]&PenaltyTable[Month],PenaltyTable[Daily])*$AG$10,"") -> 15.25998658 | AL39: 51610.6392 | AR39: =IFERROR(_xlfn.XLOOKUP(YEAR(Year3Table[[#This Row],[Date]])&MONTH(Year3Table[[#This Row],[Date]]),PenaltyTable[Year]&PenaltyTable[Month],PenaltyTable[Daily])*$AQ$10,"") ->  | BB39: =IFERROR(_xlfn.XLOOKUP(YEAR(Year4Table[[#This Row],[Date]])&MONTH(Year4Table[[#This Row],[Date]]),PenaltyTable[Year]&PenaltyTable[Month],PenaltyTable[Daily])*$BA$10,"") ->  | BL39: =IFERROR(_xlfn.XLOOKUP(YEAR(Year5Table[[#This Row],[Date]])&MONTH(Year5Table[[#This Row],[Date]]),PenaltyTable[Year]&PenaltyTable[Month],PenaltyTable[Daily])*$BK$10,"") ->  | BV39: =IFERROR(_xlfn.XLOOKUP(YEAR(Year6Table[[#This Row],[Date]])&MONTH(Year6Table[[#This Row],[Date]]),PenaltyTable[Year]&PenaltyTable[Month],PenaltyTable[Daily])*$BU$10,"") ->  | CF39: =IFERROR(_xlfn.XLOOKUP(YEAR(Year7Table[[#This Row],[Date]])&MONTH(Year7Table[[#This Row],[Date]]),PenaltyTable[Year]&PenaltyTable[Month],PenaltyTable[Daily])*CE$10,"") ->  | CP39: =IFERROR(_xlfn.XLOOKUP(YEAR(Year8Table[[#This Row],[Date]])&MONTH(Year8Table[[#This Row],[Date]]),PenaltyTable[Year]&PenaltyTable[Month],PenaltyTable[Daily])*$CO$10,"") ->  | CZ39: =IFERROR(_xlfn.XLOOKUP(YEAR(Year9Table[[#This Row],[Date]])&MONTH(Year9Table[[#This Row],[Date]]),PenaltyTable[Year]&PenaltyTable[Month],PenaltyTable[Daily])*$CY$10,"") ->  | DJ39: =IFERROR(_xlfn.XLOOKUP(YEAR(Year10Table[[#This Row],[Date]])&MONTH(Year10Table[[#This Row],[Date]]),PenaltyTable[Year]&PenaltyTable[Month],PenaltyTable[Daily])*$DI$10,"") -> 
U40: =IFERROR(IF((ROW()-ROW(Year1Table[#Headers]))=1,IF(OR(Table1[[#This Row],[Tax Assessed]]="",Table1[[#This Row],[Tax Assessed]]=0),"",Table1[[#This Row],[Tax Due Dt]]),IF((ROW()-ROW(Year1Table[#Headers]))>1,IF(OFFSET(AB40,-1,)<1,"",EDATE(U39,1)))),"") -> 2024-08-15 | V40: 0 | W40: 14957.62586 | X40: =IFERROR(_xlfn.XLOOKUP(YEAR(Year1Table[[#This Row],[Date]])&MONTH(Year1Table[[#This Row],[Date]]),PenaltyTable[Year]&PenaltyTable[Month],PenaltyTable[Daily])*$W$10,"") -> 3.262384658 | AB40: 14960.88824 | AE40: 2028-06-15 | AF40: =IF(ROW()-ROW(Year2Table[#Headers])=1,$AI$193,IF(AG38="","",IF(AND($B$7<>"",AE40>=$B$7),$C$7,IF(AND($B$6<>"",AE40>=$B$6),$C$6,IF(AE40>=$B$5,$C$5,IF(AE40<$B$5,0)))))) -> 1500 | AG40: 51610.6392 | AH40: =IFERROR(_xlfn.XLOOKUP(YEAR(Year2Table[[#This Row],[Date]])&MONTH(Year2Table[[#This Row],[Date]]),PenaltyTable[Year]&PenaltyTable[Month],PenaltyTable[Daily])*$AG$10,"") -> 15.25998658 | AL40: 50454.71013 | AR40: =IFERROR(_xlfn.XLOOKUP(YEAR(Year3Table[[#This Row],[Date]])&MONTH(Year3Table[[#This Row],[Date]]),PenaltyTable[Year]&PenaltyTable[Month],PenaltyTable[Daily])*$AQ$10,"") ->  | BB40: =IFERROR(_xlfn.XLOOKUP(YEAR(Year4Table[[#This Row],[Date]])&MONTH(Year4Table[[#This Row],[Date]]),PenaltyTable[Year]&PenaltyTable[Month],PenaltyTable[Daily])*$BA$10,"") ->  | BL40: =IFERROR(_xlfn.XLOOKUP(YEAR(Year5Table[[#This Row],[Date]])&MONTH(Year5Table[[#This Row],[Date]]),PenaltyTable[Year]&PenaltyTable[Month],PenaltyTable[Daily])*$BK$10,"") ->  | BV40: =IFERROR(_xlfn.XLOOKUP(YEAR(Year6Table[[#This Row],[Date]])&MONTH(Year6Table[[#This Row],[Date]]),PenaltyTable[Year]&PenaltyTable[Month],PenaltyTable[Daily])*$BU$10,"") ->  | CF40: =IFERROR(_xlfn.XLOOKUP(YEAR(Year7Table[[#This Row],[Date]])&MONTH(Year7Table[[#This Row],[Date]]),PenaltyTable[Year]&PenaltyTable[Month],PenaltyTable[Daily])*CE$10,"") ->  | CP40: =IFERROR(_xlfn.XLOOKUP(YEAR(Year8Table[[#This Row],[Date]])&MONTH(Year8Table[[#This Row],[Date]]),PenaltyTable[Year]&PenaltyTable[Month],PenaltyTable[Daily])*$CO$10,"") ->  | CZ40: =IFERROR(_xlfn.XLOOKUP(YEAR(Year9Table[[#This Row],[Date]])&MONTH(Year9Table[[#This Row],[Date]]),PenaltyTable[Year]&PenaltyTable[Month],PenaltyTable[Daily])*$CY$10,"") ->  | DJ40: =IFERROR(_xlfn.XLOOKUP(YEAR(Year10Table[[#This Row],[Date]])&MONTH(Year10Table[[#This Row],[Date]]),PenaltyTable[Year]&PenaltyTable[Month],PenaltyTable[Daily])*$DI$10,"") -> 
U41: =IFERROR(IF((ROW()-ROW(Year1Table[#Headers]))=1,IF(OR(Table1[[#This Row],[Tax Assessed]]="",Table1[[#This Row],[Tax Assessed]]=0),"",Table1[[#This Row],[Tax Due Dt]]),IF((ROW()-ROW(Year1Table[#Headers]))>1,IF(OFFSET(AB41,-1,)<1,"",EDATE(U40,1)))),"") -> 2024-09-15 | V41: 0 | W41: 14960.88824 | X41: =IFERROR(_xlfn.XLOOKUP(YEAR(Year1Table[[#This Row],[Date]])&MONTH(Year1Table[[#This Row],[Date]]),PenaltyTable[Year]&PenaltyTable[Month],PenaltyTable[Daily])*$W$10,"") -> 3.262384658 | AB41: 14964.15063 | AE41: 2028-07-15 | AF41: =IF(ROW()-ROW(Year2Table[#Headers])=1,$AI$193,IF(AG39="","",IF(AND($B$7<>"",AE41>=$B$7),$C$7,IF(AND($B$6<>"",AE41>=$B$6),$C$6,IF(AE41>=$B$5,$C$5,IF(AE41<$B$5,0)))))) -> 1500 | AG41: 50454.71013 | AH41: =IFERROR(_xlfn.XLOOKUP(YEAR(Year2Table[[#This Row],[Date]])&MONTH(Year2Table[[#This Row],[Date]]),PenaltyTable[Year]&PenaltyTable[Month],PenaltyTable[Daily])*$AG$10,"") -> 15.25998658 | AL41: 49291.07486 | AR41: =IFERROR(_xlfn.XLOOKUP(YEAR(Year3Table[[#This Row],[Date]])&MONTH(Year3Table[[#This Row],[Date]]),PenaltyTable[Year]&PenaltyTable[Month],PenaltyTable[Daily])*$AQ$10,"") ->  | BB41: =IFERROR(_xlfn.XLOOKUP(YEAR(Year4Table[[#This Row],[Date]])&MONTH(Year4Table[[#This Row],[Date]]),PenaltyTable[Year]&PenaltyTable[Month],PenaltyTable[Daily])*$BA$10,"") ->  | BL41: =IFERROR(_xlfn.XLOOKUP(YEAR(Year5Table[[#This Row],[Date]])&MONTH(Year5Table[[#This Row],[Date]]),PenaltyTable[Year]&PenaltyTable[Month],PenaltyTable[Daily])*$BK$10,"") ->  | BV41: =IFERROR(_xlfn.XLOOKUP(YEAR(Year6Table[[#This Row],[Date]])&MONTH(Year6Table[[#This Row],[Date]]),PenaltyTable[Year]&PenaltyTable[Month],PenaltyTable[Daily])*$BU$10,"") ->  | CF41: =IFERROR(_xlfn.XLOOKUP(YEAR(Year7Table[[#This Row],[Date]])&MONTH(Year7Table[[#This Row],[Date]]),PenaltyTable[Year]&PenaltyTable[Month],PenaltyTable[Daily])*CE$10,"") ->  | CP41: =IFERROR(_xlfn.XLOOKUP(YEAR(Year8Table[[#This Row],[Date]])&MONTH(Year8Table[[#This Row],[Date]]),PenaltyTable[Year]&PenaltyTable[Month],PenaltyTable[Daily])*$CO$10,"") ->  | CZ41: =IFERROR(_xlfn.XLOOKUP(YEAR(Year9Table[[#This Row],[Date]])&MONTH(Year9Table[[#This Row],[Date]]),PenaltyTable[Year]&PenaltyTable[Month],PenaltyTable[Daily])*$CY$10,"") ->  | DJ41: =IFERROR(_xlfn.XLOOKUP(YEAR(Year10Table[[#This Row],[Date]])&MONTH(Year10Table[[#This Row],[Date]]),PenaltyTable[Year]&PenaltyTable[Month],PenaltyTable[Daily])*$DI$10,"") -> 
U42: =IFERROR(IF((ROW()-ROW(Year1Table[#Headers]))=1,IF(OR(Table1[[#This Row],[Tax Assessed]]="",Table1[[#This Row],[Tax Assessed]]=0),"",Table1[[#This Row],[Tax Due Dt]]),IF((ROW()-ROW(Year1Table[#Headers]))>1,IF(OFFSET(AB42,-1,)<1,"",EDATE(U41,1)))),"") -> 2024-10-15 | V42: 0 | W42: 14964.15063 | X42: =IFERROR(_xlfn.XLOOKUP(YEAR(Year1Table[[#This Row],[Date]])&MONTH(Year1Table[[#This Row],[Date]]),PenaltyTable[Year]&PenaltyTable[Month],PenaltyTable[Daily])*$W$10,"") -> 3.262384658 | AB42: 14967.41301 | AE42: 2028-08-15 | AF42: =IF(ROW()-ROW(Year2Table[#Headers])=1,$AI$193,IF(AG40="","",IF(AND($B$7<>"",AE42>=$B$7),$C$7,IF(AND($B$6<>"",AE42>=$B$6),$C$6,IF(AE42>=$B$5,$C$5,IF(AE42<$B$5,0)))))) -> 1500 | AG42: 49291.07486 | AH42: =IFERROR(_xlfn.XLOOKUP(YEAR(Year2Table[[#This Row],[Date]])&MONTH(Year2Table[[#This Row],[Date]]),PenaltyTable[Year]&PenaltyTable[Month],PenaltyTable[Daily])*$AG$10,"") -> 15.25998658 | AL42: 48119.68203 | AR42: =IFERROR(_xlfn.XLOOKUP(YEAR(Year3Table[[#This Row],[Date]])&MONTH(Year3Table[[#This Row],[Date]]),PenaltyTable[Year]&PenaltyTable[Month],PenaltyTable[Daily])*$AQ$10,"") ->  | BB42: =IFERROR(_xlfn.XLOOKUP(YEAR(Year4Table[[#This Row],[Date]])&MONTH(Year4Table[[#This Row],[Date]]),PenaltyTable[Year]&PenaltyTable[Month],PenaltyTable[Daily])*$BA$10,"") ->  | BL42: =IFERROR(_xlfn.XLOOKUP(YEAR(Year5Table[[#This Row],[Date]])&MONTH(Year5Table[[#This Row],[Date]]),PenaltyTable[Year]&PenaltyTable[Month],PenaltyTable[Daily])*$BK$10,"") ->  | BV42: =IFERROR(_xlfn.XLOOKUP(YEAR(Year6Table[[#This Row],[Date]])&MONTH(Year6Table[[#This Row],[Date]]),PenaltyTable[Year]&PenaltyTable[Month],PenaltyTable[Daily])*$BU$10,"") ->  | CF42: =IFERROR(_xlfn.XLOOKUP(YEAR(Year7Table[[#This Row],[Date]])&MONTH(Year7Table[[#This Row],[Date]]),PenaltyTable[Year]&PenaltyTable[Month],PenaltyTable[Daily])*CE$10,"") ->  | CP42: =IFERROR(_xlfn.XLOOKUP(YEAR(Year8Table[[#This Row],[Date]])&MONTH(Year8Table[[#This Row],[Date]]),PenaltyTable[Year]&PenaltyTable[Month],PenaltyTable[Daily])*$CO$10,"") ->  | CZ42: =IFERROR(_xlfn.XLOOKUP(YEAR(Year9Table[[#This Row],[Date]])&MONTH(Year9Table[[#This Row],[Date]]),PenaltyTable[Year]&PenaltyTable[Month],PenaltyTable[Daily])*$CY$10,"") ->  | DJ42: =IFERROR(_xlfn.XLOOKUP(YEAR(Year10Table[[#This Row],[Date]])&MONTH(Year10Table[[#This Row],[Date]]),PenaltyTable[Year]&PenaltyTable[Month],PenaltyTable[Daily])*$DI$10,"") -> 
U43: =IFERROR(IF((ROW()-ROW(Year1Table[#Headers]))=1,IF(OR(Table1[[#This Row],[Tax Assessed]]="",Table1[[#This Row],[Tax Assessed]]=0),"",Table1[[#This Row],[Tax Due Dt]]),IF((ROW()-ROW(Year1Table[#Headers]))>1,IF(OFFSET(AB43,-1,)<1,"",EDATE(U42,1)))),"") -> 2024-11-15 | V43: 0 | W43: 14967.41301 | X43: =IFERROR(_xlfn.XLOOKUP(YEAR(Year1Table[[#This Row],[Date]])&MONTH(Year1Table[[#This Row],[Date]]),PenaltyTable[Year]&PenaltyTable[Month],PenaltyTable[Daily])*$W$10,"") -> 3.262384658 | AB43: 14970.6754 | AE43: 2028-09-15 | AF43: =IF(ROW()-ROW(Year2Table[#Headers])=1,$AI$193,IF(AG41="","",IF(AND($B$7<>"",AE43>=$B$7),$C$7,IF(AND($B$6<>"",AE43>=$B$6),$C$6,IF(AE43>=$B$5,$C$5,IF(AE43<$B$5,0)))))) -> 1500 | AG43: 48119.68203 | AH43: =IFERROR(_xlfn.XLOOKUP(YEAR(Year2Table[[#This Row],[Date]])&MONTH(Year2Table[[#This Row],[Date]]),PenaltyTable[Year]&PenaltyTable[Month],PenaltyTable[Daily])*$AG$10,"") -> 15.25998658 | AL43: 46940.47991 | AR43: =IFERROR(_xlfn.XLOOKUP(YEAR(Year3Table[[#This Row],[Date]])&MONTH(Year3Table[[#This Row],[Date]]),PenaltyTable[Year]&PenaltyTable[Month],PenaltyTable[Daily])*$AQ$10,"") ->  | BB43: =IFERROR(_xlfn.XLOOKUP(YEAR(Year4Table[[#This Row],[Date]])&MONTH(Year4Table[[#This Row],[Date]]),PenaltyTable[Year]&PenaltyTable[Month],PenaltyTable[Daily])*$BA$10,"") ->  | BL43: =IFERROR(_xlfn.XLOOKUP(YEAR(Year5Table[[#This Row],[Date]])&MONTH(Year5Table[[#This Row],[Date]]),PenaltyTable[Year]&PenaltyTable[Month],PenaltyTable[Daily])*$BK$10,"") ->  | BV43: =IFERROR(_xlfn.XLOOKUP(YEAR(Year6Table[[#This Row],[Date]])&MONTH(Year6Table[[#This Row],[Date]]),PenaltyTable[Year]&PenaltyTable[Month],PenaltyTable[Daily])*$BU$10,"") ->  | CF43: =IFERROR(_xlfn.XLOOKUP(YEAR(Year7Table[[#This Row],[Date]])&MONTH(Year7Table[[#This Row],[Date]]),PenaltyTable[Year]&PenaltyTable[Month],PenaltyTable[Daily])*CE$10,"") ->  | CP43: =IFERROR(_xlfn.XLOOKUP(YEAR(Year8Table[[#This Row],[Date]])&MONTH(Year8Table[[#This Row],[Date]]),PenaltyTable[Year]&PenaltyTable[Month],PenaltyTable[Daily])*$CO$10,"") ->  | CZ43: =IFERROR(_xlfn.XLOOKUP(YEAR(Year9Table[[#This Row],[Date]])&MONTH(Year9Table[[#This Row],[Date]]),PenaltyTable[Year]&PenaltyTable[Month],PenaltyTable[Daily])*$CY$10,"") ->  | DJ43: =IFERROR(_xlfn.XLOOKUP(YEAR(Year10Table[[#This Row],[Date]])&MONTH(Year10Table[[#This Row],[Date]]),PenaltyTable[Year]&PenaltyTable[Month],PenaltyTable[Daily])*$DI$10,"") -> 
U44: =IFERROR(IF((ROW()-ROW(Year1Table[#Headers]))=1,IF(OR(Table1[[#This Row],[Tax Assessed]]="",Table1[[#This Row],[Tax Assessed]]=0),"",Table1[[#This Row],[Tax Due Dt]]),IF((ROW()-ROW(Year1Table[#Headers]))>1,IF(OFFSET(AB44,-1,)<1,"",EDATE(U43,1)))),"") -> 2024-12-15 | V44: =IF(OR(AB43<0,AB43=""),"",IF(AND($B$7<>"",U44>=$B$7),$C$7,IF(AND($B$6<>"",U44>=$B$6),$C$6,IF(U44>=$B$5,$C$5,IF(U44<$B$5,0))))) -> 0 | W44: 14970.6754 | X44: =IFERROR(_xlfn.XLOOKUP(YEAR(Year1Table[[#This Row],[Date]])&MONTH(Year1Table[[#This Row],[Date]]),PenaltyTable[Year]&PenaltyTable[Month],PenaltyTable[Daily])*$W$10,"") -> 3.262384658 | AB44: 14973.93778 | AE44: 2028-10-15 | AF44: =IF(ROW()-ROW(Year2Table[#Headers])=1,$AI$193,IF(AG42="","",IF(AND($B$7<>"",AE44>=$B$7),$C$7,IF(AND($B$6<>"",AE44>=$B$6),$C$6,IF(AE44>=$B$5,$C$5,IF(AE44<$B$5,0)))))) -> 1500 | AG44: 46940.47991 | AH44: =IFERROR(_xlfn.XLOOKUP(YEAR(Year2Table[[#This Row],[Date]])&MONTH(Year2Table[[#This Row],[Date]]),PenaltyTable[Year]&PenaltyTable[Month],PenaltyTable[Daily])*$AG$10,"") -> 15.25998658 | AL44: 45753.41644 | AM44: =IF(AL44>0,"",IF(VALUE(AE44)>=VALUE($W$8),"",AE44)) ->  | AR44: =IFERROR(_xlfn.XLOOKUP(YEAR(Year3Table[[#This Row],[Date]])&MONTH(Year3Table[[#This Row],[Date]]),PenaltyTable[Year]&PenaltyTable[Month],PenaltyTable[Daily])*$AQ$10,"") ->  | AW44: =IF(AV44>0,"",IF(VALUE(AO44)>=VALUE($W$8),"",AO44)) ->  | BB44: =IFERROR(_xlfn.XLOOKUP(YEAR(Year4Table[[#This Row],[Date]])&MONTH(Year4Table[[#This Row],[Date]]),PenaltyTable[Year]&PenaltyTable[Month],PenaltyTable[Daily])*$BA$10,"") ->  | BL44: =IFERROR(_xlfn.XLOOKUP(YEAR(Year5Table[[#This Row],[Date]])&MONTH(Year5Table[[#This Row],[Date]]),PenaltyTable[Year]&PenaltyTable[Month],PenaltyTable[Daily])*$BK$10,"") ->  | BV44: =IFERROR(_xlfn.XLOOKUP(YEAR(Year6Table[[#This Row],[Date]])&MONTH(Year6Table[[#This Row],[Date]]),PenaltyTable[Year]&PenaltyTable[Month],PenaltyTable[Daily])*$BU$10,"") ->  | CF44: =IFERROR(_xlfn.XLOOKUP(YEAR(Year7Table[[#This Row],[Date]])&MONTH(Year7Table[[#This Row],[Date]]),PenaltyTable[Year]&PenaltyTable[Month],PenaltyTable[Daily])*CE$10,"") ->  | CP44: =IFERROR(_xlfn.XLOOKUP(YEAR(Year8Table[[#This Row],[Date]])&MONTH(Year8Table[[#This Row],[Date]]),PenaltyTable[Year]&PenaltyTable[Month],PenaltyTable[Daily])*$CO$10,"") ->  | CZ44: =IFERROR(_xlfn.XLOOKUP(YEAR(Year9Table[[#This Row],[Date]])&MONTH(Year9Table[[#This Row],[Date]]),PenaltyTable[Year]&PenaltyTable[Month],PenaltyTable[Daily])*$CY$10,"") ->  | DJ44: =IFERROR(_xlfn.XLOOKUP(YEAR(Year10Table[[#This Row],[Date]])&MONTH(Year10Table[[#This Row],[Date]]),PenaltyTable[Year]&PenaltyTable[Month],PenaltyTable[Daily])*$DI$10,"") -> 
U45: =IFERROR(IF((ROW()-ROW(Year1Table[#Headers]))=1,IF(OR(Table1[[#This Row],[Tax Assessed]]="",Table1[[#This Row],[Tax Assessed]]=0),"",Table1[[#This Row],[Tax Due Dt]]),IF((ROW()-ROW(Year1Table[#Headers]))>1,IF(OFFSET(AB45,-1,)<1,"",EDATE(U44,1)))),"") -> 2025-01-15 | V45: 0 | W45: 14973.93778 | X45: =IFERROR(_xlfn.XLOOKUP(YEAR(Year1Table[[#This Row],[Date]])&MONTH(Year1Table[[#This Row],[Date]]),PenaltyTable[Year]&PenaltyTable[Month],PenaltyTable[Daily])*$W$10,"") -> 2.854586575 | AB45: =IF(OR(AB44<0,AB44=""),"",(W45+X45)-V45) -> 14976.79237 | AE45: 2028-11-15 | AF45: =IF(ROW()-ROW(Year2Table[#Headers])=1,$AI$193,IF(AG43="","",IF(AND($B$7<>"",AE45>=$B$7),$C$7,IF(AND($B$6<>"",AE45>=$B$6),$C$6,IF(AE45>=$B$5,$C$5,IF(AE45<$B$5,0)))))) -> 1500 | AG45: 45753.41644 | AH45: =IFERROR(_xlfn.XLOOKUP(YEAR(Year2Table[[#This Row],[Date]])&MONTH(Year2Table[[#This Row],[Date]]),PenaltyTable[Year]&PenaltyTable[Month],PenaltyTable[Daily])*$AG$10,"") -> 15.25998658 | AL45: 44558.43922 | AR45: =IFERROR(_xlfn.XLOOKUP(YEAR(Year3Table[[#This Row],[Date]])&MONTH(Year3Table[[#This Row],[Date]]),PenaltyTable[Year]&PenaltyTable[Month],PenaltyTable[Daily])*$AQ$10,"") ->  | BB45: =IFERROR(_xlfn.XLOOKUP(YEAR(Year4Table[[#This Row],[Date]])&MONTH(Year4Table[[#This Row],[Date]]),PenaltyTable[Year]&PenaltyTable[Month],PenaltyTable[Daily])*$BA$10,"") ->  | BL45: =IFERROR(_xlfn.XLOOKUP(YEAR(Year5Table[[#This Row],[Date]])&MONTH(Year5Table[[#This Row],[Date]]),PenaltyTable[Year]&PenaltyTable[Month],PenaltyTable[Daily])*$BK$10,"") ->  | BV45: =IFERROR(_xlfn.XLOOKUP(YEAR(Year6Table[[#This Row],[Date]])&MONTH(Year6Table[[#This Row],[Date]]),PenaltyTable[Year]&PenaltyTable[Month],PenaltyTable[Daily])*$BU$10,"") ->  | CF45: =IFERROR(_xlfn.XLOOKUP(YEAR(Year7Table[[#This Row],[Date]])&MONTH(Year7Table[[#This Row],[Date]]),PenaltyTable[Year]&PenaltyTable[Month],PenaltyTable[Daily])*CE$10,"") ->  | CP45: =IFERROR(_xlfn.XLOOKUP(YEAR(Year8Table[[#This Row],[Date]])&MONTH(Year8Table[[#This Row],[Date]]),PenaltyTable[Year]&PenaltyTable[Month],PenaltyTable[Daily])*$CO$10,"") ->  | CZ45: =IFERROR(_xlfn.XLOOKUP(YEAR(Year9Table[[#This Row],[Date]])&MONTH(Year9Table[[#This Row],[Date]]),PenaltyTable[Year]&PenaltyTable[Month],PenaltyTable[Daily])*$CY$10,"") ->  | DJ45: =IFERROR(_xlfn.XLOOKUP(YEAR(Year10Table[[#This Row],[Date]])&MONTH(Year10Table[[#This Row],[Date]]),PenaltyTable[Year]&PenaltyTable[Month],PenaltyTable[Daily])*$DI$10,"") -> 
U46: =IFERROR(IF((ROW()-ROW(Year1Table[#Headers]))=1,IF(OR(Table1[[#This Row],[Tax Assessed]]="",Table1[[#This Row],[Tax Assessed]]=0),"",Table1[[#This Row],[Tax Due Dt]]),IF((ROW()-ROW(Year1Table[#Headers]))>1,IF(OFFSET(AB46,-1,)<1,"",EDATE(U45,1)))),"") -> 2025-02-15 | V46: 0 | W46: 14976.79237 | X46: =IFERROR(_xlfn.XLOOKUP(YEAR(Year1Table[[#This Row],[Date]])&MONTH(Year1Table[[#This Row],[Date]]),PenaltyTable[Year]&PenaltyTable[Month],PenaltyTable[Daily])*$W$10,"") -> 2.854586575 | AB46: 14979.64695 | AE46: 2028-12-15 | AF46: =IF(ROW()-ROW(Year2Table[#Headers])=1,$AI$193,IF(AG44="","",IF(AND($B$7<>"",AE46>=$B$7),$C$7,IF(AND($B$6<>"",AE46>=$B$6),$C$6,IF(AE46>=$B$5,$C$5,IF(AE46<$B$5,0)))))) -> 1500 | AG46: 44558.43922 | AH46: =IFERROR(_xlfn.XLOOKUP(YEAR(Year2Table[[#This Row],[Date]])&MONTH(Year2Table[[#This Row],[Date]]),PenaltyTable[Year]&PenaltyTable[Month],PenaltyTable[Daily])*$AG$10,"") -> 15.25998658 | AL46: 43355.49548 | AR46: =IFERROR(_xlfn.XLOOKUP(YEAR(Year3Table[[#This Row],[Date]])&MONTH(Year3Table[[#This Row],[Date]]),PenaltyTable[Year]&PenaltyTable[Month],PenaltyTable[Daily])*$AQ$10,"") ->  | BB46: =IFERROR(_xlfn.XLOOKUP(YEAR(Year4Table[[#This Row],[Date]])&MONTH(Year4Table[[#This Row],[Date]]),PenaltyTable[Year]&PenaltyTable[Month],PenaltyTable[Daily])*$BA$10,"") ->  | BL46: =IFERROR(_xlfn.XLOOKUP(YEAR(Year5Table[[#This Row],[Date]])&MONTH(Year5Table[[#This Row],[Date]]),PenaltyTable[Year]&PenaltyTable[Month],PenaltyTable[Daily])*$BK$10,"") ->  | BV46: =IFERROR(_xlfn.XLOOKUP(YEAR(Year6Table[[#This Row],[Date]])&MONTH(Year6Table[[#This Row],[Date]]),PenaltyTable[Year]&PenaltyTable[Month],PenaltyTable[Daily])*$BU$10,"") ->  | CF46: =IFERROR(_xlfn.XLOOKUP(YEAR(Year7Table[[#This Row],[Date]])&MONTH(Year7Table[[#This Row],[Date]]),PenaltyTable[Year]&PenaltyTable[Month],PenaltyTable[Daily])*CE$10,"") ->  | CP46: =IFERROR(_xlfn.XLOOKUP(YEAR(Year8Table[[#This Row],[Date]])&MONTH(Year8Table[[#This Row],[Date]]),PenaltyTable[Year]&PenaltyTable[Month],PenaltyTable[Daily])*$CO$10,"") ->  | CZ46: =IFERROR(_xlfn.XLOOKUP(YEAR(Year9Table[[#This Row],[Date]])&MONTH(Year9Table[[#This Row],[Date]]),PenaltyTable[Year]&PenaltyTable[Month],PenaltyTable[Daily])*$CY$10,"") ->  | DJ46: =IFERROR(_xlfn.XLOOKUP(YEAR(Year10Table[[#This Row],[Date]])&MONTH(Year10Table[[#This Row],[Date]]),PenaltyTable[Year]&PenaltyTable[Month],PenaltyTable[Daily])*$DI$10,"") -> 
U47: =IFERROR(IF((ROW()-ROW(Year1Table[#Headers]))=1,IF(OR(Table1[[#This Row],[Tax Assessed]]="",Table1[[#This Row],[Tax Assessed]]=0),"",Table1[[#This Row],[Tax Due Dt]]),IF((ROW()-ROW(Year1Table[#Headers]))>1,IF(OFFSET(AB47,-1,)<1,"",EDATE(U46,1)))),"") -> 2025-03-15 | V47: 0 | W47: 14979.64695 | X47: =IFERROR(_xlfn.XLOOKUP(YEAR(Year1Table[[#This Row],[Date]])&MONTH(Year1Table[[#This Row],[Date]]),PenaltyTable[Year]&PenaltyTable[Month],PenaltyTable[Daily])*$W$10,"") -> 2.854586575 | AB47: 14982.50154 | AE47: 2029-01-15 | AF47: =IF(ROW()-ROW(Year2Table[#Headers])=1,$AI$193,IF(AG45="","",IF(AND($B$7<>"",AE47>=$B$7),$C$7,IF(AND($B$6<>"",AE47>=$B$6),$C$6,IF(AE47>=$B$5,$C$5,IF(AE47<$B$5,0)))))) -> 1500 | AG47: 43355.49548 | AH47: =IFERROR(_xlfn.XLOOKUP(YEAR(Year2Table[[#This Row],[Date]])&MONTH(Year2Table[[#This Row],[Date]]),PenaltyTable[Year]&PenaltyTable[Month],PenaltyTable[Daily])*$AG$10,"") -> 15.25998658 | AL47: 42144.53212 | AR47: =IFERROR(_xlfn.XLOOKUP(YEAR(Year3Table[[#This Row],[Date]])&MONTH(Year3Table[[#This Row],[Date]]),PenaltyTable[Year]&PenaltyTable[Month],PenaltyTable[Daily])*$AQ$10,"") ->  | BB47: =IFERROR(_xlfn.XLOOKUP(YEAR(Year4Table[[#This Row],[Date]])&MONTH(Year4Table[[#This Row],[Date]]),PenaltyTable[Year]&PenaltyTable[Month],PenaltyTable[Daily])*$BA$10,"") ->  | BL47: =IFERROR(_xlfn.XLOOKUP(YEAR(Year5Table[[#This Row],[Date]])&MONTH(Year5Table[[#This Row],[Date]]),PenaltyTable[Year]&PenaltyTable[Month],PenaltyTable[Daily])*$BK$10,"") ->  | BV47: =IFERROR(_xlfn.XLOOKUP(YEAR(Year6Table[[#This Row],[Date]])&MONTH(Year6Table[[#This Row],[Date]]),PenaltyTable[Year]&PenaltyTable[Month],PenaltyTable[Daily])*$BU$10,"") ->  | CF47: =IFERROR(_xlfn.XLOOKUP(YEAR(Year7Table[[#This Row],[Date]])&MONTH(Year7Table[[#This Row],[Date]]),PenaltyTable[Year]&PenaltyTable[Month],PenaltyTable[Daily])*CE$10,"") ->  | CP47: =IFERROR(_xlfn.XLOOKUP(YEAR(Year8Table[[#This Row],[Date]])&MONTH(Year8Table[[#This Row],[Date]]),PenaltyTable[Year]&PenaltyTable[Month],PenaltyTable[Daily])*$CO$10,"") ->  | CZ47: =IFERROR(_xlfn.XLOOKUP(YEAR(Year9Table[[#This Row],[Date]])&MONTH(Year9Table[[#This Row],[Date]]),PenaltyTable[Year]&PenaltyTable[Month],PenaltyTable[Daily])*$CY$10,"") ->  | DJ47: =IFERROR(_xlfn.XLOOKUP(YEAR(Year10Table[[#This Row],[Date]])&MONTH(Year10Table[[#This Row],[Date]]),PenaltyTable[Year]&PenaltyTable[Month],PenaltyTable[Daily])*$DI$10,"") -> 
U48: =IFERROR(IF((ROW()-ROW(Year1Table[#Headers]))=1,IF(OR(Table1[[#This Row],[Tax Assessed]]="",Table1[[#This Row],[Tax Assessed]]=0),"",Table1[[#This Row],[Tax Due Dt]]),IF((ROW()-ROW(Year1Table[#Headers]))>1,IF(OFFSET(AB48,-1,)<1,"",EDATE(U47,1)))),"") -> 2025-04-15 | V48: 1500 | W48: 14982.50154 | X48: =IFERROR(_xlfn.XLOOKUP(YEAR(Year1Table[[#This Row],[Date]])&MONTH(Year1Table[[#This Row],[Date]]),PenaltyTable[Year]&PenaltyTable[Month],PenaltyTable[Daily])*$W$10,"") -> 2.854586575 | AB48: 13485.35613 | AE48: 2029-02-15 | AF48: =IF(ROW()-ROW(Year2Table[#Headers])=1,$AI$193,IF(AG46="","",IF(AND($B$7<>"",AE48>=$B$7),$C$7,IF(AND($B$6<>"",AE48>=$B$6),$C$6,IF(AE48>=$B$5,$C$5,IF(AE48<$B$5,0)))))) -> 1500 | AG48: 42144.53212 | AH48: =IFERROR(_xlfn.XLOOKUP(YEAR(Year2Table[[#This Row],[Date]])&MONTH(Year2Table[[#This Row],[Date]]),PenaltyTable[Year]&PenaltyTable[Month],PenaltyTable[Daily])*$AG$10,"") -> 15.25998658 | AL48: 40925.49566 | AR48: =IFERROR(_xlfn.XLOOKUP(YEAR(Year3Table[[#This Row],[Date]])&MONTH(Year3Table[[#This Row],[Date]]),PenaltyTable[Year]&PenaltyTable[Month],PenaltyTable[Daily])*$AQ$10,"") ->  | BB48: =IFERROR(_xlfn.XLOOKUP(YEAR(Year4Table[[#This Row],[Date]])&MONTH(Year4Table[[#This Row],[Date]]),PenaltyTable[Year]&PenaltyTable[Month],PenaltyTable[Daily])*$BA$10,"") ->  | BL48: =IFERROR(_xlfn.XLOOKUP(YEAR(Year5Table[[#This Row],[Date]])&MONTH(Year5Table[[#This Row],[Date]]),PenaltyTable[Year]&PenaltyTable[Month],PenaltyTable[Daily])*$BK$10,"") ->  | BV48: =IFERROR(_xlfn.XLOOKUP(YEAR(Year6Table[[#This Row],[Date]])&MONTH(Year6Table[[#This Row],[Date]]),PenaltyTable[Year]&PenaltyTable[Month],PenaltyTable[Daily])*$BU$10,"") ->  | CF48: =IFERROR(_xlfn.XLOOKUP(YEAR(Year7Table[[#This Row],[Date]])&MONTH(Year7Table[[#This Row],[Date]]),PenaltyTable[Year]&PenaltyTable[Month],PenaltyTable[Daily])*CE$10,"") ->  | CP48: =IFERROR(_xlfn.XLOOKUP(YEAR(Year8Table[[#This Row],[Date]])&MONTH(Year8Table[[#This Row],[Date]]),PenaltyTable[Year]&PenaltyTable[Month],PenaltyTable[Daily])*$CO$10,"") ->  | CZ48: =IFERROR(_xlfn.XLOOKUP(YEAR(Year9Table[[#This Row],[Date]])&MONTH(Year9Table[[#This Row],[Date]]),PenaltyTable[Year]&PenaltyTable[Month],PenaltyTable[Daily])*$CY$10,"") ->  | DJ48: =IFERROR(_xlfn.XLOOKUP(YEAR(Year10Table[[#This Row],[Date]])&MONTH(Year10Table[[#This Row],[Date]]),PenaltyTable[Year]&PenaltyTable[Month],PenaltyTable[Daily])*$DI$10,"") -> 
U49: =IFERROR(IF((ROW()-ROW(Year1Table[#Headers]))=1,IF(OR(Table1[[#This Row],[Tax Assessed]]="",Table1[[#This Row],[Tax Assessed]]=0),"",Table1[[#This Row],[Tax Due Dt]]),IF((ROW()-ROW(Year1Table[#Headers]))>1,IF(OFFSET(AB49,-1,)<1,"",EDATE(U48,1)))),"") -> 2025-05-15 | V49: 1500 | W49: 13485.35613 | X49: =IFERROR(_xlfn.XLOOKUP(YEAR(Year1Table[[#This Row],[Date]])&MONTH(Year1Table[[#This Row],[Date]]),PenaltyTable[Year]&PenaltyTable[Month],PenaltyTable[Daily])*$W$10,"") -> 2.854586575 | AB49: 11988.21071 | AE49: 2029-03-15 | AF49: =IF(ROW()-ROW(Year2Table[#Headers])=1,$AI$193,IF(AG47="","",IF(AND($B$7<>"",AE49>=$B$7),$C$7,IF(AND($B$6<>"",AE49>=$B$6),$C$6,IF(AE49>=$B$5,$C$5,IF(AE49<$B$5,0)))))) -> 1500 | AG49: 40925.49566 | AH49: =IFERROR(_xlfn.XLOOKUP(YEAR(Year2Table[[#This Row],[Date]])&MONTH(Year2Table[[#This Row],[Date]]),PenaltyTable[Year]&PenaltyTable[Month],PenaltyTable[Daily])*$AG$10,"") -> 15.25998658 | AL49: 39698.3323 | AR49: =IFERROR(_xlfn.XLOOKUP(YEAR(Year3Table[[#This Row],[Date]])&MONTH(Year3Table[[#This Row],[Date]]),PenaltyTable[Year]&PenaltyTable[Month],PenaltyTable[Daily])*$AQ$10,"") ->  | BB49: =IFERROR(_xlfn.XLOOKUP(YEAR(Year4Table[[#This Row],[Date]])&MONTH(Year4Table[[#This Row],[Date]]),PenaltyTable[Year]&PenaltyTable[Month],PenaltyTable[Daily])*$BA$10,"") ->  | BL49: =IFERROR(_xlfn.XLOOKUP(YEAR(Year5Table[[#This Row],[Date]])&MONTH(Year5Table[[#This Row],[Date]]),PenaltyTable[Year]&PenaltyTable[Month],PenaltyTable[Daily])*$BK$10,"") ->  | BV49: =IFERROR(_xlfn.XLOOKUP(YEAR(Year6Table[[#This Row],[Date]])&MONTH(Year6Table[[#This Row],[Date]]),PenaltyTable[Year]&PenaltyTable[Month],PenaltyTable[Daily])*$BU$10,"") ->  | CF49: =IFERROR(_xlfn.XLOOKUP(YEAR(Year7Table[[#This Row],[Date]])&MONTH(Year7Table[[#This Row],[Date]]),PenaltyTable[Year]&PenaltyTable[Month],PenaltyTable[Daily])*CE$10,"") ->  | CP49: =IFERROR(_xlfn.XLOOKUP(YEAR(Year8Table[[#This Row],[Date]])&MONTH(Year8Table[[#This Row],[Date]]),PenaltyTable[Year]&PenaltyTable[Month],PenaltyTable[Daily])*$CO$10,"") ->  | CZ49: =IFERROR(_xlfn.XLOOKUP(YEAR(Year9Table[[#This Row],[Date]])&MONTH(Year9Table[[#This Row],[Date]]),PenaltyTable[Year]&PenaltyTable[Month],PenaltyTable[Daily])*$CY$10,"") ->  | DJ49: =IFERROR(_xlfn.XLOOKUP(YEAR(Year10Table[[#This Row],[Date]])&MONTH(Year10Table[[#This Row],[Date]]),PenaltyTable[Year]&PenaltyTable[Month],PenaltyTable[Daily])*$DI$10,"") -> 
U50: =IFERROR(IF((ROW()-ROW(Year1Table[#Headers]))=1,IF(OR(Table1[[#This Row],[Tax Assessed]]="",Table1[[#This Row],[Tax Assessed]]=0),"",Table1[[#This Row],[Tax Due Dt]]),IF((ROW()-ROW(Year1Table[#Headers]))>1,IF(OFFSET(AB50,-1,)<1,"",EDATE(U49,1)))),"") -> 2025-06-15 | V50: 1500 | W50: 11988.21071 | X50: =IFERROR(_xlfn.XLOOKUP(YEAR(Year1Table[[#This Row],[Date]])&MONTH(Year1Table[[#This Row],[Date]]),PenaltyTable[Year]&PenaltyTable[Month],PenaltyTable[Daily])*$W$10,"") -> 2.854586575 | AB50: 10491.0653 | AE50: 2029-04-15 | AF50: =IF(ROW()-ROW(Year2Table[#Headers])=1,$AI$193,IF(AG48="","",IF(AND($B$7<>"",AE50>=$B$7),$C$7,IF(AND($B$6<>"",AE50>=$B$6),$C$6,IF(AE50>=$B$5,$C$5,IF(AE50<$B$5,0)))))) -> 1500 | AG50: 39698.3323 | AH50: =IFERROR(_xlfn.XLOOKUP(YEAR(Year2Table[[#This Row],[Date]])&MONTH(Year2Table[[#This Row],[Date]]),PenaltyTable[Year]&PenaltyTable[Month],PenaltyTable[Daily])*$AG$10,"") -> 15.25998658 | AL50: 38462.98785 | AR50: =IFERROR(_xlfn.XLOOKUP(YEAR(Year3Table[[#This Row],[Date]])&MONTH(Year3Table[[#This Row],[Date]]),PenaltyTable[Year]&PenaltyTable[Month],PenaltyTable[Daily])*$AQ$10,"") ->  | BB50: =IFERROR(_xlfn.XLOOKUP(YEAR(Year4Table[[#This Row],[Date]])&MONTH(Year4Table[[#This Row],[Date]]),PenaltyTable[Year]&PenaltyTable[Month],PenaltyTable[Daily])*$BA$10,"") ->  | BL50: =IFERROR(_xlfn.XLOOKUP(YEAR(Year5Table[[#This Row],[Date]])&MONTH(Year5Table[[#This Row],[Date]]),PenaltyTable[Year]&PenaltyTable[Month],PenaltyTable[Daily])*$BK$10,"") ->  | BV50: =IFERROR(_xlfn.XLOOKUP(YEAR(Year6Table[[#This Row],[Date]])&MONTH(Year6Table[[#This Row],[Date]]),PenaltyTable[Year]&PenaltyTable[Month],PenaltyTable[Daily])*$BU$10,"") ->  | CF50: =IFERROR(_xlfn.XLOOKUP(YEAR(Year7Table[[#This Row],[Date]])&MONTH(Year7Table[[#This Row],[Date]]),PenaltyTable[Year]&PenaltyTable[Month],PenaltyTable[Daily])*CE$10,"") ->  | CP50: =IFERROR(_xlfn.XLOOKUP(YEAR(Year8Table[[#This Row],[Date]])&MONTH(Year8Table[[#This Row],[Date]]),PenaltyTable[Year]&PenaltyTable[Month],PenaltyTable[Daily])*$CO$10,"") ->  | CZ50: =IFERROR(_xlfn.XLOOKUP(YEAR(Year9Table[[#This Row],[Date]])&MONTH(Year9Table[[#This Row],[Date]]),PenaltyTable[Year]&PenaltyTable[Month],PenaltyTable[Daily])*$CY$10,"") ->  | DJ50: =IFERROR(_xlfn.XLOOKUP(YEAR(Year10Table[[#This Row],[Date]])&MONTH(Year10Table[[#This Row],[Date]]),PenaltyTable[Year]&PenaltyTable[Month],PenaltyTable[Daily])*$DI$10,"") -> 
U51: =IFERROR(IF((ROW()-ROW(Year1Table[#Headers]))=1,IF(OR(Table1[[#This Row],[Tax Assessed]]="",Table1[[#This Row],[Tax Assessed]]=0),"",Table1[[#This Row],[Tax Due Dt]]),IF((ROW()-ROW(Year1Table[#Headers]))>1,IF(OFFSET(AB51,-1,)<1,"",EDATE(U50,1)))),"") -> 2025-07-15 | V51: 1500 | W51: 10491.0653 | X51: =IFERROR(_xlfn.XLOOKUP(YEAR(Year1Table[[#This Row],[Date]])&MONTH(Year1Table[[#This Row],[Date]]),PenaltyTable[Year]&PenaltyTable[Month],PenaltyTable[Daily])*$W$10,"") -> 2.854586575 | AB51: 8993.919886 | AE51: 2029-05-15 | AF51: =IF(ROW()-ROW(Year2Table[#Headers])=1,$AI$193,IF(AG49="","",IF(AND($B$7<>"",AE51>=$B$7),$C$7,IF(AND($B$6<>"",AE51>=$B$6),$C$6,IF(AE51>=$B$5,$C$5,IF(AE51<$B$5,0)))))) -> 1500 | AG51: 38462.98785 | AH51: =IFERROR(_xlfn.XLOOKUP(YEAR(Year2Table[[#This Row],[Date]])&MONTH(Year2Table[[#This Row],[Date]]),PenaltyTable[Year]&PenaltyTable[Month],PenaltyTable[Daily])*$AG$10,"") -> 15.25998658 | AL51: 37219.40777 | AR51: =IFERROR(_xlfn.XLOOKUP(YEAR(Year3Table[[#This Row],[Date]])&MONTH(Year3Table[[#This Row],[Date]]),PenaltyTable[Year]&PenaltyTable[Month],PenaltyTable[Daily])*$AQ$10,"") ->  | BB51: =IFERROR(_xlfn.XLOOKUP(YEAR(Year4Table[[#This Row],[Date]])&MONTH(Year4Table[[#This Row],[Date]]),PenaltyTable[Year]&PenaltyTable[Month],PenaltyTable[Daily])*$BA$10,"") ->  | BL51: =IFERROR(_xlfn.XLOOKUP(YEAR(Year5Table[[#This Row],[Date]])&MONTH(Year5Table[[#This Row],[Date]]),PenaltyTable[Year]&PenaltyTable[Month],PenaltyTable[Daily])*$BK$10,"") ->  | BV51: =IFERROR(_xlfn.XLOOKUP(YEAR(Year6Table[[#This Row],[Date]])&MONTH(Year6Table[[#This Row],[Date]]),PenaltyTable[Year]&PenaltyTable[Month],PenaltyTable[Daily])*$BU$10,"") ->  | CF51: =IFERROR(_xlfn.XLOOKUP(YEAR(Year7Table[[#This Row],[Date]])&MONTH(Year7Table[[#This Row],[Date]]),PenaltyTable[Year]&PenaltyTable[Month],PenaltyTable[Daily])*CE$10,"") ->  | CP51: =IFERROR(_xlfn.XLOOKUP(YEAR(Year8Table[[#This Row],[Date]])&MONTH(Year8Table[[#This Row],[Date]]),PenaltyTable[Year]&PenaltyTable[Month],PenaltyTable[Daily])*$CO$10,"") ->  | CZ51: =IFERROR(_xlfn.XLOOKUP(YEAR(Year9Table[[#This Row],[Date]])&MONTH(Year9Table[[#This Row],[Date]]),PenaltyTable[Year]&PenaltyTable[Month],PenaltyTable[Daily])*$CY$10,"") ->  | DJ51: =IFERROR(_xlfn.XLOOKUP(YEAR(Year10Table[[#This Row],[Date]])&MONTH(Year10Table[[#This Row],[Date]]),PenaltyTable[Year]&PenaltyTable[Month],PenaltyTable[Daily])*$DI$10,"") -> 
U52: =IFERROR(IF((ROW()-ROW(Year1Table[#Headers]))=1,IF(OR(Table1[[#This Row],[Tax Assessed]]="",Table1[[#This Row],[Tax Assessed]]=0),"",Table1[[#This Row],[Tax Due Dt]]),IF((ROW()-ROW(Year1Table[#Headers]))>1,IF(OFFSET(AB52,-1,)<1,"",EDATE(U51,1)))),"") -> 2025-08-15 | V52: 1500 | W52: 8993.919886 | X52: =IFERROR(_xlfn.XLOOKUP(YEAR(Year1Table[[#This Row],[Date]])&MONTH(Year1Table[[#This Row],[Date]]),PenaltyTable[Year]&PenaltyTable[Month],PenaltyTable[Daily])*$W$10,"") -> 2.854586575 | AB52: 7496.774473 | AE52: 2029-06-15 | AF52: =IF(ROW()-ROW(Year2Table[#Headers])=1,$AI$193,IF(AG50="","",IF(AND($B$7<>"",AE52>=$B$7),$C$7,IF(AND($B$6<>"",AE52>=$B$6),$C$6,IF(AE52>=$B$5,$C$5,IF(AE52<$B$5,0)))))) -> 1500 | AG52: 37219.40777 | AH52: =IFERROR(_xlfn.XLOOKUP(YEAR(Year2Table[[#This Row],[Date]])&MONTH(Year2Table[[#This Row],[Date]]),PenaltyTable[Year]&PenaltyTable[Month],PenaltyTable[Daily])*$AG$10,"") -> 15.25998658 | AL52: 35967.53715 | AR52: =IFERROR(_xlfn.XLOOKUP(YEAR(Year3Table[[#This Row],[Date]])&MONTH(Year3Table[[#This Row],[Date]]),PenaltyTable[Year]&PenaltyTable[Month],PenaltyTable[Daily])*$AQ$10,"") ->  | BB52: =IFERROR(_xlfn.XLOOKUP(YEAR(Year4Table[[#This Row],[Date]])&MONTH(Year4Table[[#This Row],[Date]]),PenaltyTable[Year]&PenaltyTable[Month],PenaltyTable[Daily])*$BA$10,"") ->  | BL52: =IFERROR(_xlfn.XLOOKUP(YEAR(Year5Table[[#This Row],[Date]])&MONTH(Year5Table[[#This Row],[Date]]),PenaltyTable[Year]&PenaltyTable[Month],PenaltyTable[Daily])*$BK$10,"") ->  | BV52: =IFERROR(_xlfn.XLOOKUP(YEAR(Year6Table[[#This Row],[Date]])&MONTH(Year6Table[[#This Row],[Date]]),PenaltyTable[Year]&PenaltyTable[Month],PenaltyTable[Daily])*$BU$10,"") ->  | CF52: =IFERROR(_xlfn.XLOOKUP(YEAR(Year7Table[[#This Row],[Date]])&MONTH(Year7Table[[#This Row],[Date]]),PenaltyTable[Year]&PenaltyTable[Month],PenaltyTable[Daily])*CE$10,"") ->  | CP52: =IFERROR(_xlfn.XLOOKUP(YEAR(Year8Table[[#This Row],[Date]])&MONTH(Year8Table[[#This Row],[Date]]),PenaltyTable[Year]&PenaltyTable[Month],PenaltyTable[Daily])*$CO$10,"") ->  | CZ52: =IFERROR(_xlfn.XLOOKUP(YEAR(Year9Table[[#This Row],[Date]])&MONTH(Year9Table[[#This Row],[Date]]),PenaltyTable[Year]&PenaltyTable[Month],PenaltyTable[Daily])*$CY$10,"") ->  | DJ52: =IFERROR(_xlfn.XLOOKUP(YEAR(Year10Table[[#This Row],[Date]])&MONTH(Year10Table[[#This Row],[Date]]),PenaltyTable[Year]&PenaltyTable[Month],PenaltyTable[Daily])*$DI$10,"") -> 
U53: =IFERROR(IF((ROW()-ROW(Year1Table[#Headers]))=1,IF(OR(Table1[[#This Row],[Tax Assessed]]="",Table1[[#This Row],[Tax Assessed]]=0),"",Table1[[#This Row],[Tax Due Dt]]),IF((ROW()-ROW(Year1Table[#Headers]))>1,IF(OFFSET(AB53,-1,)<1,"",EDATE(U52,1)))),"") -> 2025-09-15 | V53: 1500 | W53: 7496.774473 | X53: =IFERROR(_xlfn.XLOOKUP(YEAR(Year1Table[[#This Row],[Date]])&MONTH(Year1Table[[#This Row],[Date]]),PenaltyTable[Year]&PenaltyTable[Month],PenaltyTable[Daily])*$W$10,"") -> 2.854586575 | AB53: 5999.629059 | AE53: 2029-07-15 | AF53: =IF(ROW()-ROW(Year2Table[#Headers])=1,$AI$193,IF(AG51="","",IF(AND($B$7<>"",AE53>=$B$7),$C$7,IF(AND($B$6<>"",AE53>=$B$6),$C$6,IF(AE53>=$B$5,$C$5,IF(AE53<$B$5,0)))))) -> 1500 | AG53: 35967.53715 | AH53: =IFERROR(_xlfn.XLOOKUP(YEAR(Year2Table[[#This Row],[Date]])&MONTH(Year2Table[[#This Row],[Date]]),PenaltyTable[Year]&PenaltyTable[Month],PenaltyTable[Daily])*$AG$10,"") -> 15.25998658 | AL53: 34707.32073 | AR53: =IFERROR(_xlfn.XLOOKUP(YEAR(Year3Table[[#This Row],[Date]])&MONTH(Year3Table[[#This Row],[Date]]),PenaltyTable[Year]&PenaltyTable[Month],PenaltyTable[Daily])*$AQ$10,"") ->  | BB53: =IFERROR(_xlfn.XLOOKUP(YEAR(Year4Table[[#This Row],[Date]])&MONTH(Year4Table[[#This Row],[Date]]),PenaltyTable[Year]&PenaltyTable[Month],PenaltyTable[Daily])*$BA$10,"") ->  | BL53: =IFERROR(_xlfn.XLOOKUP(YEAR(Year5Table[[#This Row],[Date]])&MONTH(Year5Table[[#This Row],[Date]]),PenaltyTable[Year]&PenaltyTable[Month],PenaltyTable[Daily])*$BK$10,"") ->  | BV53: =IFERROR(_xlfn.XLOOKUP(YEAR(Year6Table[[#This Row],[Date]])&MONTH(Year6Table[[#This Row],[Date]]),PenaltyTable[Year]&PenaltyTable[Month],PenaltyTable[Daily])*$BU$10,"") ->  | CF53: =IFERROR(_xlfn.XLOOKUP(YEAR(Year7Table[[#This Row],[Date]])&MONTH(Year7Table[[#This Row],[Date]]),PenaltyTable[Year]&PenaltyTable[Month],PenaltyTable[Daily])*CE$10,"") ->  | CP53: =IFERROR(_xlfn.XLOOKUP(YEAR(Year8Table[[#This Row],[Date]])&MONTH(Year8Table[[#This Row],[Date]]),PenaltyTable[Year]&PenaltyTable[Month],PenaltyTable[Daily])*$CO$10,"") ->  | CZ53: =IFERROR(_xlfn.XLOOKUP(YEAR(Year9Table[[#This Row],[Date]])&MONTH(Year9Table[[#This Row],[Date]]),PenaltyTable[Year]&PenaltyTable[Month],PenaltyTable[Daily])*$CY$10,"") ->  | DJ53: =IFERROR(_xlfn.XLOOKUP(YEAR(Year10Table[[#This Row],[Date]])&MONTH(Year10Table[[#This Row],[Date]]),PenaltyTable[Year]&PenaltyTable[Month],PenaltyTable[Daily])*$DI$10,"") -> 
U54: =IFERROR(IF((ROW()-ROW(Year1Table[#Headers]))=1,IF(OR(Table1[[#This Row],[Tax Assessed]]="",Table1[[#This Row],[Tax Assessed]]=0),"",Table1[[#This Row],[Tax Due Dt]]),IF((ROW()-ROW(Year1Table[#Headers]))>1,IF(OFFSET(AB54,-1,)<1,"",EDATE(U53,1)))),"") -> 2025-10-15 | V54: 1500 | W54: 5999.629059 | X54: =IFERROR(_xlfn.XLOOKUP(YEAR(Year1Table[[#This Row],[Date]])&MONTH(Year1Table[[#This Row],[Date]]),PenaltyTable[Year]&PenaltyTable[Month],PenaltyTable[Daily])*$W$10,"") -> 2.854586575 | AB54: 4502.483646 | AE54: 2029-08-15 | AF54: =IF(ROW()-ROW(Year2Table[#Headers])=1,$AI$193,IF(AG52="","",IF(AND($B$7<>"",AE54>=$B$7),$C$7,IF(AND($B$6<>"",AE54>=$B$6),$C$6,IF(AE54>=$B$5,$C$5,IF(AE54<$B$5,0)))))) -> 1500 | AG54: 34707.32073 | AH54: =IFERROR(_xlfn.XLOOKUP(YEAR(Year2Table[[#This Row],[Date]])&MONTH(Year2Table[[#This Row],[Date]]),PenaltyTable[Year]&PenaltyTable[Month],PenaltyTable[Daily])*$AG$10,"") -> 15.25998658 | AL54: 33438.70287 | AR54: =IFERROR(_xlfn.XLOOKUP(YEAR(Year3Table[[#This Row],[Date]])&MONTH(Year3Table[[#This Row],[Date]]),PenaltyTable[Year]&PenaltyTable[Month],PenaltyTable[Daily])*$AQ$10,"") ->  | BB54: =IFERROR(_xlfn.XLOOKUP(YEAR(Year4Table[[#This Row],[Date]])&MONTH(Year4Table[[#This Row],[Date]]),PenaltyTable[Year]&PenaltyTable[Month],PenaltyTable[Daily])*$BA$10,"") ->  | BL54: =IFERROR(_xlfn.XLOOKUP(YEAR(Year5Table[[#This Row],[Date]])&MONTH(Year5Table[[#This Row],[Date]]),PenaltyTable[Year]&PenaltyTable[Month],PenaltyTable[Daily])*$BK$10,"") ->  | BV54: =IFERROR(_xlfn.XLOOKUP(YEAR(Year6Table[[#This Row],[Date]])&MONTH(Year6Table[[#This Row],[Date]]),PenaltyTable[Year]&PenaltyTable[Month],PenaltyTable[Daily])*$BU$10,"") ->  | CF54: =IFERROR(_xlfn.XLOOKUP(YEAR(Year7Table[[#This Row],[Date]])&MONTH(Year7Table[[#This Row],[Date]]),PenaltyTable[Year]&PenaltyTable[Month],PenaltyTable[Daily])*CE$10,"") ->  | CP54: =IFERROR(_xlfn.XLOOKUP(YEAR(Year8Table[[#This Row],[Date]])&MONTH(Year8Table[[#This Row],[Date]]),PenaltyTable[Year]&PenaltyTable[Month],PenaltyTable[Daily])*$CO$10,"") ->  | CZ54: =IFERROR(_xlfn.XLOOKUP(YEAR(Year9Table[[#This Row],[Date]])&MONTH(Year9Table[[#This Row],[Date]]),PenaltyTable[Year]&PenaltyTable[Month],PenaltyTable[Daily])*$CY$10,"") ->  | DJ54: =IFERROR(_xlfn.XLOOKUP(YEAR(Year10Table[[#This Row],[Date]])&MONTH(Year10Table[[#This Row],[Date]]),PenaltyTable[Year]&PenaltyTable[Month],PenaltyTable[Daily])*$DI$10,"") -> 
U55: =IFERROR(IF((ROW()-ROW(Year1Table[#Headers]))=1,IF(OR(Table1[[#This Row],[Tax Assessed]]="",Table1[[#This Row],[Tax Assessed]]=0),"",Table1[[#This Row],[Tax Due Dt]]),IF((ROW()-ROW(Year1Table[#Headers]))>1,IF(OFFSET(AB55,-1,)<1,"",EDATE(U54,1)))),"") -> 2025-11-15 | V55: 1500 | W55: 4502.483646 | X55: =IFERROR(_xlfn.XLOOKUP(YEAR(Year1Table[[#This Row],[Date]])&MONTH(Year1Table[[#This Row],[Date]]),PenaltyTable[Year]&PenaltyTable[Month],PenaltyTable[Daily])*$W$10,"") -> 2.854586575 | AB55: 3005.338232 | AE55: 2029-09-15 | AF55: =IF(ROW()-ROW(Year2Table[#Headers])=1,$AI$193,IF(AG53="","",IF(AND($B$7<>"",AE55>=$B$7),$C$7,IF(AND($B$6<>"",AE55>=$B$6),$C$6,IF(AE55>=$B$5,$C$5,IF(AE55<$B$5,0)))))) -> 1500 | AG55: 33438.70287 | AH55: =IFERROR(_xlfn.XLOOKUP(YEAR(Year2Table[[#This Row],[Date]])&MONTH(Year2Table[[#This Row],[Date]]),PenaltyTable[Year]&PenaltyTable[Month],PenaltyTable[Daily])*$AG$10,"") -> 15.25998658 | AL55: 32161.62756 | AR55: =IFERROR(_xlfn.XLOOKUP(YEAR(Year3Table[[#This Row],[Date]])&MONTH(Year3Table[[#This Row],[Date]]),PenaltyTable[Year]&PenaltyTable[Month],PenaltyTable[Daily])*$AQ$10,"") ->  | BB55: =IFERROR(_xlfn.XLOOKUP(YEAR(Year4Table[[#This Row],[Date]])&MONTH(Year4Table[[#This Row],[Date]]),PenaltyTable[Year]&PenaltyTable[Month],PenaltyTable[Daily])*$BA$10,"") ->  | BL55: =IFERROR(_xlfn.XLOOKUP(YEAR(Year5Table[[#This Row],[Date]])&MONTH(Year5Table[[#This Row],[Date]]),PenaltyTable[Year]&PenaltyTable[Month],PenaltyTable[Daily])*$BK$10,"") ->  | BV55: =IFERROR(_xlfn.XLOOKUP(YEAR(Year6Table[[#This Row],[Date]])&MONTH(Year6Table[[#This Row],[Date]]),PenaltyTable[Year]&PenaltyTable[Month],PenaltyTable[Daily])*$BU$10,"") ->  | CF55: =IFERROR(_xlfn.XLOOKUP(YEAR(Year7Table[[#This Row],[Date]])&MONTH(Year7Table[[#This Row],[Date]]),PenaltyTable[Year]&PenaltyTable[Month],PenaltyTable[Daily])*CE$10,"") ->  | CP55: =IFERROR(_xlfn.XLOOKUP(YEAR(Year8Table[[#This Row],[Date]])&MONTH(Year8Table[[#This Row],[Date]]),PenaltyTable[Year]&PenaltyTable[Month],PenaltyTable[Daily])*$CO$10,"") ->  | CZ55: =IFERROR(_xlfn.XLOOKUP(YEAR(Year9Table[[#This Row],[Date]])&MONTH(Year9Table[[#This Row],[Date]]),PenaltyTable[Year]&PenaltyTable[Month],PenaltyTable[Daily])*$CY$10,"") ->  | DJ55: =IFERROR(_xlfn.XLOOKUP(YEAR(Year10Table[[#This Row],[Date]])&MONTH(Year10Table[[#This Row],[Date]]),PenaltyTable[Year]&PenaltyTable[Month],PenaltyTable[Daily])*$DI$10,"") -> 
U56: =IFERROR(IF((ROW()-ROW(Year1Table[#Headers]))=1,IF(OR(Table1[[#This Row],[Tax Assessed]]="",Table1[[#This Row],[Tax Assessed]]=0),"",Table1[[#This Row],[Tax Due Dt]]),IF((ROW()-ROW(Year1Table[#Headers]))>1,IF(OFFSET(AB56,-1,)<1,"",EDATE(U55,1)))),"") -> 2025-12-15 | V56: 1500 | W56: 3005.338232 | X56: =IFERROR(_xlfn.XLOOKUP(YEAR(Year1Table[[#This Row],[Date]])&MONTH(Year1Table[[#This Row],[Date]]),PenaltyTable[Year]&PenaltyTable[Month],PenaltyTable[Daily])*$W$10,"") -> 2.854586575 | AB56: 1508.192819 | AE56: 2029-10-15 | AF56: =IF(ROW()-ROW(Year2Table[#Headers])=1,$AI$193,IF(AG54="","",IF(AND($B$7<>"",AE56>=$B$7),$C$7,IF(AND($B$6<>"",AE56>=$B$6),$C$6,IF(AE56>=$B$5,$C$5,IF(AE56<$B$5,0)))))) -> 1500 | AG56: 32161.62756 | AH56: =IFERROR(_xlfn.XLOOKUP(YEAR(Year2Table[[#This Row],[Date]])&MONTH(Year2Table[[#This Row],[Date]]),PenaltyTable[Year]&PenaltyTable[Month],PenaltyTable[Daily])*$AG$10,"") -> 15.25998658 | AL56: 30876.03841 | AR56: =IFERROR(_xlfn.XLOOKUP(YEAR(Year3Table[[#This Row],[Date]])&MONTH(Year3Table[[#This Row],[Date]]),PenaltyTable[Year]&PenaltyTable[Month],PenaltyTable[Daily])*$AQ$10,"") ->  | BB56: =IFERROR(_xlfn.XLOOKUP(YEAR(Year4Table[[#This Row],[Date]])&MONTH(Year4Table[[#This Row],[Date]]),PenaltyTable[Year]&PenaltyTable[Month],PenaltyTable[Daily])*$BA$10,"") ->  | BL56: =IFERROR(_xlfn.XLOOKUP(YEAR(Year5Table[[#This Row],[Date]])&MONTH(Year5Table[[#This Row],[Date]]),PenaltyTable[Year]&PenaltyTable[Month],PenaltyTable[Daily])*$BK$10,"") ->  | BV56: =IFERROR(_xlfn.XLOOKUP(YEAR(Year6Table[[#This Row],[Date]])&MONTH(Year6Table[[#This Row],[Date]]),PenaltyTable[Year]&PenaltyTable[Month],PenaltyTable[Daily])*$BU$10,"") ->  | CF56: =IFERROR(_xlfn.XLOOKUP(YEAR(Year7Table[[#This Row],[Date]])&MONTH(Year7Table[[#This Row],[Date]]),PenaltyTable[Year]&PenaltyTable[Month],PenaltyTable[Daily])*CE$10,"") ->  | CP56: =IFERROR(_xlfn.XLOOKUP(YEAR(Year8Table[[#This Row],[Date]])&MONTH(Year8Table[[#This Row],[Date]]),PenaltyTable[Year]&PenaltyTable[Month],PenaltyTable[Daily])*$CO$10,"") ->  | CZ56: =IFERROR(_xlfn.XLOOKUP(YEAR(Year9Table[[#This Row],[Date]])&MONTH(Year9Table[[#This Row],[Date]]),PenaltyTable[Year]&PenaltyTable[Month],PenaltyTable[Daily])*$CY$10,"") ->  | DJ56: =IFERROR(_xlfn.XLOOKUP(YEAR(Year10Table[[#This Row],[Date]])&MONTH(Year10Table[[#This Row],[Date]]),PenaltyTable[Year]&PenaltyTable[Month],PenaltyTable[Daily])*$DI$10,"") -> 
U57: =IFERROR(IF((ROW()-ROW(Year1Table[#Headers]))=1,IF(OR(Table1[[#This Row],[Tax Assessed]]="",Table1[[#This Row],[Tax Assessed]]=0),"",Table1[[#This Row],[Tax Due Dt]]),IF((ROW()-ROW(Year1Table[#Headers]))>1,IF(OFFSET(AB57,-1,)<1,"",EDATE(U56,1)))),"") -> 2026-01-15 | V57: 1500 | W57: 1508.192819 | X57: =IFERROR(_xlfn.XLOOKUP(YEAR(Year1Table[[#This Row],[Date]])&MONTH(Year1Table[[#This Row],[Date]]),PenaltyTable[Year]&PenaltyTable[Month],PenaltyTable[Daily])*$W$10,"") -> 2.854586575 | AB57: 11.04740548 | AE57: 2029-11-15 | AF57: =IF(ROW()-ROW(Year2Table[#Headers])=1,$AI$193,IF(AG55="","",IF(AND($B$7<>"",AE57>=$B$7),$C$7,IF(AND($B$6<>"",AE57>=$B$6),$C$6,IF(AE57>=$B$5,$C$5,IF(AE57<$B$5,0)))))) -> 1500 | AG57: 30876.03841 | AH57: =IFERROR(_xlfn.XLOOKUP(YEAR(Year2Table[[#This Row],[Date]])&MONTH(Year2Table[[#This Row],[Date]]),PenaltyTable[Year]&PenaltyTable[Month],PenaltyTable[Daily])*$AG$10,"") -> 15.25998658 | AL57: 29581.87866 | AR57: =IFERROR(_xlfn.XLOOKUP(YEAR(Year3Table[[#This Row],[Date]])&MONTH(Year3Table[[#This Row],[Date]]),PenaltyTable[Year]&PenaltyTable[Month],PenaltyTable[Daily])*$AQ$10,"") ->  | BB57: =IFERROR(_xlfn.XLOOKUP(YEAR(Year4Table[[#This Row],[Date]])&MONTH(Year4Table[[#This Row],[Date]]),PenaltyTable[Year]&PenaltyTable[Month],PenaltyTable[Daily])*$BA$10,"") ->  | BL57: =IFERROR(_xlfn.XLOOKUP(YEAR(Year5Table[[#This Row],[Date]])&MONTH(Year5Table[[#This Row],[Date]]),PenaltyTable[Year]&PenaltyTable[Month],PenaltyTable[Daily])*$BK$10,"") ->  | BV57: =IFERROR(_xlfn.XLOOKUP(YEAR(Year6Table[[#This Row],[Date]])&MONTH(Year6Table[[#This Row],[Date]]),PenaltyTable[Year]&PenaltyTable[Month],PenaltyTable[Daily])*$BU$10,"") ->  | CF57: =IFERROR(_xlfn.XLOOKUP(YEAR(Year7Table[[#This Row],[Date]])&MONTH(Year7Table[[#This Row],[Date]]),PenaltyTable[Year]&PenaltyTable[Month],PenaltyTable[Daily])*CE$10,"") ->  | CP57: =IFERROR(_xlfn.XLOOKUP(YEAR(Year8Table[[#This Row],[Date]])&MONTH(Year8Table[[#This Row],[Date]]),PenaltyTable[Year]&PenaltyTable[Month],PenaltyTable[Daily])*$CO$10,"") ->  | CZ57: =IFERROR(_xlfn.XLOOKUP(YEAR(Year9Table[[#This Row],[Date]])&MONTH(Year9Table[[#This Row],[Date]]),PenaltyTable[Year]&PenaltyTable[Month],PenaltyTable[Daily])*$CY$10,"") ->  | DJ57: =IFERROR(_xlfn.XLOOKUP(YEAR(Year10Table[[#This Row],[Date]])&MONTH(Year10Table[[#This Row],[Date]]),PenaltyTable[Year]&PenaltyTable[Month],PenaltyTable[Daily])*$DI$10,"") -> 
U58: =IFERROR(IF((ROW()-ROW(Year1Table[#Headers]))=1,IF(OR(Table1[[#This Row],[Tax Assessed]]="",Table1[[#This Row],[Tax Assessed]]=0),"",Table1[[#This Row],[Tax Due Dt]]),IF((ROW()-ROW(Year1Table[#Headers]))>1,IF(OFFSET(AB58,-1,)<1,"",EDATE(U57,1)))),"") -> 2026-02-15 | V58: 1500 | W58: 11.04740548 | X58: =IFERROR(_xlfn.XLOOKUP(YEAR(Year1Table[[#This Row],[Date]])&MONTH(Year1Table[[#This Row],[Date]]),PenaltyTable[Year]&PenaltyTable[Month],PenaltyTable[Daily])*$W$10,"") -> 2.854586575 | AB58: -1486.098008 | AC58: 2026-02-15 | AE58: 2029-12-15 | AF58: =IF(ROW()-ROW(Year2Table[#Headers])=1,$AI$193,IF(AG56="","",IF(AND($B$7<>"",AE58>=$B$7),$C$7,IF(AND($B$6<>"",AE58>=$B$6),$C$6,IF(AE58>=$B$5,$C$5,IF(AE58<$B$5,0)))))) -> 1500 | AG58: 29581.87866 | AH58: =IFERROR(_xlfn.XLOOKUP(YEAR(Year2Table[[#This Row],[Date]])&MONTH(Year2Table[[#This Row],[Date]]),PenaltyTable[Year]&PenaltyTable[Month],PenaltyTable[Daily])*$AG$10,"") -> 15.25998658 | AL58: 28279.09119 | AR58: =IFERROR(_xlfn.XLOOKUP(YEAR(Year3Table[[#This Row],[Date]])&MONTH(Year3Table[[#This Row],[Date]]),PenaltyTable[Year]&PenaltyTable[Month],PenaltyTable[Daily])*$AQ$10,"") ->  | BB58: =IFERROR(_xlfn.XLOOKUP(YEAR(Year4Table[[#This Row],[Date]])&MONTH(Year4Table[[#This Row],[Date]]),PenaltyTable[Year]&PenaltyTable[Month],PenaltyTable[Daily])*$BA$10,"") ->  | BL58: =IFERROR(_xlfn.XLOOKUP(YEAR(Year5Table[[#This Row],[Date]])&MONTH(Year5Table[[#This Row],[Date]]),PenaltyTable[Year]&PenaltyTable[Month],PenaltyTable[Daily])*$BK$10,"") ->  | BV58: =IFERROR(_xlfn.XLOOKUP(YEAR(Year6Table[[#This Row],[Date]])&MONTH(Year6Table[[#This Row],[Date]]),PenaltyTable[Year]&PenaltyTable[Month],PenaltyTable[Daily])*$BU$10,"") ->  | CF58: =IFERROR(_xlfn.XLOOKUP(YEAR(Year7Table[[#This Row],[Date]])&MONTH(Year7Table[[#This Row],[Date]]),PenaltyTable[Year]&PenaltyTable[Month],PenaltyTable[Daily])*CE$10,"") ->  | CP58: =IFERROR(_xlfn.XLOOKUP(YEAR(Year8Table[[#This Row],[Date]])&MONTH(Year8Table[[#This Row],[Date]]),PenaltyTable[Year]&PenaltyTable[Month],PenaltyTable[Daily])*$CO$10,"") ->  | CZ58: =IFERROR(_xlfn.XLOOKUP(YEAR(Year9Table[[#This Row],[Date]])&MONTH(Year9Table[[#This Row],[Date]]),PenaltyTable[Year]&PenaltyTable[Month],PenaltyTable[Daily])*$CY$10,"") ->  | DJ58: =IFERROR(_xlfn.XLOOKUP(YEAR(Year10Table[[#This Row],[Date]])&MONTH(Year10Table[[#This Row],[Date]]),PenaltyTable[Year]&PenaltyTable[Month],PenaltyTable[Daily])*$DI$10,"") -> 
U59: =IFERROR(IF((ROW()-ROW(Year1Table[#Headers]))=1,IF(OR(Table1[[#This Row],[Tax Assessed]]="",Table1[[#This Row],[Tax Assessed]]=0),"",Table1[[#This Row],[Tax Due Dt]]),IF((ROW()-ROW(Year1Table[#Headers]))>1,IF(OFFSET(AB59,-1,)<1,"",EDATE(U58,1)))),"") ->  | X59: =IFERROR(_xlfn.XLOOKUP(YEAR(Year1Table[[#This Row],[Date]])&MONTH(Year1Table[[#This Row],[Date]]),PenaltyTable[Year]&PenaltyTable[Month],PenaltyTable[Daily])*$W$10,"") ->  | AE59: 2030-01-15 | AF59: =IF(ROW()-ROW(Year2Table[#Headers])=1,$AI$193,IF(AG57="","",IF(AND($B$7<>"",AE59>=$B$7),$C$7,IF(AND($B$6<>"",AE59>=$B$6),$C$6,IF(AE59>=$B$5,$C$5,IF(AE59<$B$5,0)))))) -> 1500 | AG59: 28279.09119 | AH59: =IFERROR(_xlfn.XLOOKUP(YEAR(Year2Table[[#This Row],[Date]])&MONTH(Year2Table[[#This Row],[Date]]),PenaltyTable[Year]&PenaltyTable[Month],PenaltyTable[Daily])*$AG$10,"") -> 15.25998658 | AL59: 26967.61846 | AR59: =IFERROR(_xlfn.XLOOKUP(YEAR(Year3Table[[#This Row],[Date]])&MONTH(Year3Table[[#This Row],[Date]]),PenaltyTable[Year]&PenaltyTable[Month],PenaltyTable[Daily])*$AQ$10,"") ->  | BB59: =IFERROR(_xlfn.XLOOKUP(YEAR(Year4Table[[#This Row],[Date]])&MONTH(Year4Table[[#This Row],[Date]]),PenaltyTable[Year]&PenaltyTable[Month],PenaltyTable[Daily])*$BA$10,"") ->  | BL59: =IFERROR(_xlfn.XLOOKUP(YEAR(Year5Table[[#This Row],[Date]])&MONTH(Year5Table[[#This Row],[Date]]),PenaltyTable[Year]&PenaltyTable[Month],PenaltyTable[Daily])*$BK$10,"") ->  | BV59: =IFERROR(_xlfn.XLOOKUP(YEAR(Year6Table[[#This Row],[Date]])&MONTH(Year6Table[[#This Row],[Date]]),PenaltyTable[Year]&PenaltyTable[Month],PenaltyTable[Daily])*$BU$10,"") ->  | CF59: =IFERROR(_xlfn.XLOOKUP(YEAR(Year7Table[[#This Row],[Date]])&MONTH(Year7Table[[#This Row],[Date]]),PenaltyTable[Year]&PenaltyTable[Month],PenaltyTable[Daily])*CE$10,"") ->  | CP59: =IFERROR(_xlfn.XLOOKUP(YEAR(Year8Table[[#This Row],[Date]])&MONTH(Year8Table[[#This Row],[Date]]),PenaltyTable[Year]&PenaltyTable[Month],PenaltyTable[Daily])*$CO$10,"") ->  | CZ59: =IFERROR(_xlfn.XLOOKUP(YEAR(Year9Table[[#This Row],[Date]])&MONTH(Year9Table[[#This Row],[Date]]),PenaltyTable[Year]&PenaltyTable[Month],PenaltyTable[Daily])*$CY$10,"") ->  | DJ59: =IFERROR(_xlfn.XLOOKUP(YEAR(Year10Table[[#This Row],[Date]])&MONTH(Year10Table[[#This Row],[Date]]),PenaltyTable[Year]&PenaltyTable[Month],PenaltyTable[Daily])*$DI$10,"") -> 
U60: =IFERROR(IF((ROW()-ROW(Year1Table[#Headers]))=1,IF(OR(Table1[[#This Row],[Tax Assessed]]="",Table1[[#This Row],[Tax Assessed]]=0),"",Table1[[#This Row],[Tax Due Dt]]),IF((ROW()-ROW(Year1Table[#Headers]))>1,IF(OFFSET(AB60,-1,)<1,"",EDATE(U59,1)))),"") ->  | X60: =IFERROR(_xlfn.XLOOKUP(YEAR(Year1Table[[#This Row],[Date]])&MONTH(Year1Table[[#This Row],[Date]]),PenaltyTable[Year]&PenaltyTable[Month],PenaltyTable[Daily])*$W$10,"") ->  | AE60: 2030-02-15 | AF60: =IF(ROW()-ROW(Year2Table[#Headers])=1,$AI$193,IF(AG58="","",IF(AND($B$7<>"",AE60>=$B$7),$C$7,IF(AND($B$6<>"",AE60>=$B$6),$C$6,IF(AE60>=$B$5,$C$5,IF(AE60<$B$5,0)))))) -> 1500 | AG60: 26967.61846 | AH60: =IFERROR(_xlfn.XLOOKUP(YEAR(Year2Table[[#This Row],[Date]])&MONTH(Year2Table[[#This Row],[Date]]),PenaltyTable[Year]&PenaltyTable[Month],PenaltyTable[Daily])*$AG$10,"") -> 15.25998658 | AL60: 25647.40259 | AR60: =IFERROR(_xlfn.XLOOKUP(YEAR(Year3Table[[#This Row],[Date]])&MONTH(Year3Table[[#This Row],[Date]]),PenaltyTable[Year]&PenaltyTable[Month],PenaltyTable[Daily])*$AQ$10,"") ->  | BB60: =IFERROR(_xlfn.XLOOKUP(YEAR(Year4Table[[#This Row],[Date]])&MONTH(Year4Table[[#This Row],[Date]]),PenaltyTable[Year]&PenaltyTable[Month],PenaltyTable[Daily])*$BA$10,"") ->  | BL60: =IFERROR(_xlfn.XLOOKUP(YEAR(Year5Table[[#This Row],[Date]])&MONTH(Year5Table[[#This Row],[Date]]),PenaltyTable[Year]&PenaltyTable[Month],PenaltyTable[Daily])*$BK$10,"") ->  | BV60: =IFERROR(_xlfn.XLOOKUP(YEAR(Year6Table[[#This Row],[Date]])&MONTH(Year6Table[[#This Row],[Date]]),PenaltyTable[Year]&PenaltyTable[Month],PenaltyTable[Daily])*$BU$10,"") ->  | CF60: =IFERROR(_xlfn.XLOOKUP(YEAR(Year7Table[[#This Row],[Date]])&MONTH(Year7Table[[#This Row],[Date]]),PenaltyTable[Year]&PenaltyTable[Month],PenaltyTable[Daily])*CE$10,"") ->  | CP60: =IFERROR(_xlfn.XLOOKUP(YEAR(Year8Table[[#This Row],[Date]])&MONTH(Year8Table[[#This Row],[Date]]),PenaltyTable[Year]&PenaltyTable[Month],PenaltyTable[Daily])*$CO$10,"") ->  | CZ60: =IFERROR(_xlfn.XLOOKUP(YEAR(Year9Table[[#This Row],[Date]])&MONTH(Year9Table[[#This Row],[Date]]),PenaltyTable[Year]&PenaltyTable[Month],PenaltyTable[Daily])*$CY$10,"") ->  | DJ60: =IFERROR(_xlfn.XLOOKUP(YEAR(Year10Table[[#This Row],[Date]])&MONTH(Year10Table[[#This Row],[Date]]),PenaltyTable[Year]&PenaltyTable[Month],PenaltyTable[Daily])*$DI$10,"") -> 
U61: =IFERROR(IF((ROW()-ROW(Year1Table[#Headers]))=1,IF(OR(Table1[[#This Row],[Tax Assessed]]="",Table1[[#This Row],[Tax Assessed]]=0),"",Table1[[#This Row],[Tax Due Dt]]),IF((ROW()-ROW(Year1Table[#Headers]))>1,IF(OFFSET(AB61,-1,)<1,"",EDATE(U60,1)))),"") ->  | X61: =IFERROR(_xlfn.XLOOKUP(YEAR(Year1Table[[#This Row],[Date]])&MONTH(Year1Table[[#This Row],[Date]]),PenaltyTable[Year]&PenaltyTable[Month],PenaltyTable[Daily])*$W$10,"") ->  | AE61: 2030-03-15 | AF61: =IF(ROW()-ROW(Year2Table[#Headers])=1,$AI$193,IF(AG59="","",IF(AND($B$7<>"",AE61>=$B$7),$C$7,IF(AND($B$6<>"",AE61>=$B$6),$C$6,IF(AE61>=$B$5,$C$5,IF(AE61<$B$5,0)))))) -> 1500 | AG61: 25647.40259 | AH61: =IFERROR(_xlfn.XLOOKUP(YEAR(Year2Table[[#This Row],[Date]])&MONTH(Year2Table[[#This Row],[Date]]),PenaltyTable[Year]&PenaltyTable[Month],PenaltyTable[Daily])*$AG$10,"") -> 15.25998658 | AL61: 24318.38527 | AR61: =IFERROR(_xlfn.XLOOKUP(YEAR(Year3Table[[#This Row],[Date]])&MONTH(Year3Table[[#This Row],[Date]]),PenaltyTable[Year]&PenaltyTable[Month],PenaltyTable[Daily])*$AQ$10,"") ->  | BB61: =IFERROR(_xlfn.XLOOKUP(YEAR(Year4Table[[#This Row],[Date]])&MONTH(Year4Table[[#This Row],[Date]]),PenaltyTable[Year]&PenaltyTable[Month],PenaltyTable[Daily])*$BA$10,"") ->  | BL61: =IFERROR(_xlfn.XLOOKUP(YEAR(Year5Table[[#This Row],[Date]])&MONTH(Year5Table[[#This Row],[Date]]),PenaltyTable[Year]&PenaltyTable[Month],PenaltyTable[Daily])*$BK$10,"") ->  | BV61: =IFERROR(_xlfn.XLOOKUP(YEAR(Year6Table[[#This Row],[Date]])&MONTH(Year6Table[[#This Row],[Date]]),PenaltyTable[Year]&PenaltyTable[Month],PenaltyTable[Daily])*$BU$10,"") ->  | CF61: =IFERROR(_xlfn.XLOOKUP(YEAR(Year7Table[[#This Row],[Date]])&MONTH(Year7Table[[#This Row],[Date]]),PenaltyTable[Year]&PenaltyTable[Month],PenaltyTable[Daily])*CE$10,"") ->  | CP61: =IFERROR(_xlfn.XLOOKUP(YEAR(Year8Table[[#This Row],[Date]])&MONTH(Year8Table[[#This Row],[Date]]),PenaltyTable[Year]&PenaltyTable[Month],PenaltyTable[Daily])*$CO$10,"") ->  | CZ61: =IFERROR(_xlfn.XLOOKUP(YEAR(Year9Table[[#This Row],[Date]])&MONTH(Year9Table[[#This Row],[Date]]),PenaltyTable[Year]&PenaltyTable[Month],PenaltyTable[Daily])*$CY$10,"") ->  | DJ61: =IFERROR(_xlfn.XLOOKUP(YEAR(Year10Table[[#This Row],[Date]])&MONTH(Year10Table[[#This Row],[Date]]),PenaltyTable[Year]&PenaltyTable[Month],PenaltyTable[Daily])*$DI$10,"") -> 
U62: =IFERROR(IF((ROW()-ROW(Year1Table[#Headers]))=1,IF(OR(Table1[[#This Row],[Tax Assessed]]="",Table1[[#This Row],[Tax Assessed]]=0),"",Table1[[#This Row],[Tax Due Dt]]),IF((ROW()-ROW(Year1Table[#Headers]))>1,IF(OFFSET(AB62,-1,)<1,"",EDATE(U61,1)))),"") ->  | X62: =IFERROR(_xlfn.XLOOKUP(YEAR(Year1Table[[#This Row],[Date]])&MONTH(Year1Table[[#This Row],[Date]]),PenaltyTable[Year]&PenaltyTable[Month],PenaltyTable[Daily])*$W$10,"") ->  | AE62: 2030-04-15 | AF62: =IF(ROW()-ROW(Year2Table[#Headers])=1,$AI$193,IF(AG60="","",IF(AND($B$7<>"",AE62>=$B$7),$C$7,IF(AND($B$6<>"",AE62>=$B$6),$C$6,IF(AE62>=$B$5,$C$5,IF(AE62<$B$5,0)))))) -> 1500 | AG62: 24318.38527 | AH62: =IFERROR(_xlfn.XLOOKUP(YEAR(Year2Table[[#This Row],[Date]])&MONTH(Year2Table[[#This Row],[Date]]),PenaltyTable[Year]&PenaltyTable[Month],PenaltyTable[Daily])*$AG$10,"") -> 15.25998658 | AL62: 22980.50784 | AR62: =IFERROR(_xlfn.XLOOKUP(YEAR(Year3Table[[#This Row],[Date]])&MONTH(Year3Table[[#This Row],[Date]]),PenaltyTable[Year]&PenaltyTable[Month],PenaltyTable[Daily])*$AQ$10,"") ->  | BB62: =IFERROR(_xlfn.XLOOKUP(YEAR(Year4Table[[#This Row],[Date]])&MONTH(Year4Table[[#This Row],[Date]]),PenaltyTable[Year]&PenaltyTable[Month],PenaltyTable[Daily])*$BA$10,"") ->  | BL62: =IFERROR(_xlfn.XLOOKUP(YEAR(Year5Table[[#This Row],[Date]])&MONTH(Year5Table[[#This Row],[Date]]),PenaltyTable[Year]&PenaltyTable[Month],PenaltyTable[Daily])*$BK$10,"") ->  | BV62: =IFERROR(_xlfn.XLOOKUP(YEAR(Year6Table[[#This Row],[Date]])&MONTH(Year6Table[[#This Row],[Date]]),PenaltyTable[Year]&PenaltyTable[Month],PenaltyTable[Daily])*$BU$10,"") ->  | CF62: =IFERROR(_xlfn.XLOOKUP(YEAR(Year7Table[[#This Row],[Date]])&MONTH(Year7Table[[#This Row],[Date]]),PenaltyTable[Year]&PenaltyTable[Month],PenaltyTable[Daily])*CE$10,"") ->  | CP62: =IFERROR(_xlfn.XLOOKUP(YEAR(Year8Table[[#This Row],[Date]])&MONTH(Year8Table[[#This Row],[Date]]),PenaltyTable[Year]&PenaltyTable[Month],PenaltyTable[Daily])*$CO$10,"") ->  | CZ62: =IFERROR(_xlfn.XLOOKUP(YEAR(Year9Table[[#This Row],[Date]])&MONTH(Year9Table[[#This Row],[Date]]),PenaltyTable[Year]&PenaltyTable[Month],PenaltyTable[Daily])*$CY$10,"") ->  | DJ62: =IFERROR(_xlfn.XLOOKUP(YEAR(Year10Table[[#This Row],[Date]])&MONTH(Year10Table[[#This Row],[Date]]),PenaltyTable[Year]&PenaltyTable[Month],PenaltyTable[Daily])*$DI$10,"") -> 
U63: =IFERROR(IF((ROW()-ROW(Year1Table[#Headers]))=1,IF(OR(Table1[[#This Row],[Tax Assessed]]="",Table1[[#This Row],[Tax Assessed]]=0),"",Table1[[#This Row],[Tax Due Dt]]),IF((ROW()-ROW(Year1Table[#Headers]))>1,IF(OFFSET(AB63,-1,)<1,"",EDATE(U62,1)))),"") ->  | X63: =IFERROR(_xlfn.XLOOKUP(YEAR(Year1Table[[#This Row],[Date]])&MONTH(Year1Table[[#This Row],[Date]]),PenaltyTable[Year]&PenaltyTable[Month],PenaltyTable[Daily])*$W$10,"") ->  | AE63: 2030-05-15 | AF63: =IF(ROW()-ROW(Year2Table[#Headers])=1,$AI$193,IF(AG61="","",IF(AND($B$7<>"",AE63>=$B$7),$C$7,IF(AND($B$6<>"",AE63>=$B$6),$C$6,IF(AE63>=$B$5,$C$5,IF(AE63<$B$5,0)))))) -> 1500 | AG63: 22980.50784 | AH63: =IFERROR(_xlfn.XLOOKUP(YEAR(Year2Table[[#This Row],[Date]])&MONTH(Year2Table[[#This Row],[Date]]),PenaltyTable[Year]&PenaltyTable[Month],PenaltyTable[Daily])*$AG$10,"") -> 15.25998658 | AL63: 21633.71122 | AR63: =IFERROR(_xlfn.XLOOKUP(YEAR(Year3Table[[#This Row],[Date]])&MONTH(Year3Table[[#This Row],[Date]]),PenaltyTable[Year]&PenaltyTable[Month],PenaltyTable[Daily])*$AQ$10,"") ->  | BB63: =IFERROR(_xlfn.XLOOKUP(YEAR(Year4Table[[#This Row],[Date]])&MONTH(Year4Table[[#This Row],[Date]]),PenaltyTable[Year]&PenaltyTable[Month],PenaltyTable[Daily])*$BA$10,"") ->  | BL63: =IFERROR(_xlfn.XLOOKUP(YEAR(Year5Table[[#This Row],[Date]])&MONTH(Year5Table[[#This Row],[Date]]),PenaltyTable[Year]&PenaltyTable[Month],PenaltyTable[Daily])*$BK$10,"") ->  | BV63: =IFERROR(_xlfn.XLOOKUP(YEAR(Year6Table[[#This Row],[Date]])&MONTH(Year6Table[[#This Row],[Date]]),PenaltyTable[Year]&PenaltyTable[Month],PenaltyTable[Daily])*$BU$10,"") ->  | CF63: =IFERROR(_xlfn.XLOOKUP(YEAR(Year7Table[[#This Row],[Date]])&MONTH(Year7Table[[#This Row],[Date]]),PenaltyTable[Year]&PenaltyTable[Month],PenaltyTable[Daily])*CE$10,"") ->  | CP63: =IFERROR(_xlfn.XLOOKUP(YEAR(Year8Table[[#This Row],[Date]])&MONTH(Year8Table[[#This Row],[Date]]),PenaltyTable[Year]&PenaltyTable[Month],PenaltyTable[Daily])*$CO$10,"") ->  | CZ63: =IFERROR(_xlfn.XLOOKUP(YEAR(Year9Table[[#This Row],[Date]])&MONTH(Year9Table[[#This Row],[Date]]),PenaltyTable[Year]&PenaltyTable[Month],PenaltyTable[Daily])*$CY$10,"") ->  | DJ63: =IFERROR(_xlfn.XLOOKUP(YEAR(Year10Table[[#This Row],[Date]])&MONTH(Year10Table[[#This Row],[Date]]),PenaltyTable[Year]&PenaltyTable[Month],PenaltyTable[Daily])*$DI$10,"") -> 
U64: =IFERROR(IF((ROW()-ROW(Year1Table[#Headers]))=1,IF(OR(Table1[[#This Row],[Tax Assessed]]="",Table1[[#This Row],[Tax Assessed]]=0),"",Table1[[#This Row],[Tax Due Dt]]),IF((ROW()-ROW(Year1Table[#Headers]))>1,IF(OFFSET(AB64,-1,)<1,"",EDATE(U63,1)))),"") ->  | X64: =IFERROR(_xlfn.XLOOKUP(YEAR(Year1Table[[#This Row],[Date]])&MONTH(Year1Table[[#This Row],[Date]]),PenaltyTable[Year]&PenaltyTable[Month],PenaltyTable[Daily])*$W$10,"") ->  | AE64: 2030-06-15 | AF64: =IF(ROW()-ROW(Year2Table[#Headers])=1,$AI$193,IF(AG62="","",IF(AND($B$7<>"",AE64>=$B$7),$C$7,IF(AND($B$6<>"",AE64>=$B$6),$C$6,IF(AE64>=$B$5,$C$5,IF(AE64<$B$5,0)))))) -> 1500 | AG64: 21633.71122 | AH64: =IFERROR(_xlfn.XLOOKUP(YEAR(Year2Table[[#This Row],[Date]])&MONTH(Year2Table[[#This Row],[Date]]),PenaltyTable[Year]&PenaltyTable[Month],PenaltyTable[Daily])*$AG$10,"") -> 15.25998658 | AL64: 20277.93597 | AR64: =IFERROR(_xlfn.XLOOKUP(YEAR(Year3Table[[#This Row],[Date]])&MONTH(Year3Table[[#This Row],[Date]]),PenaltyTable[Year]&PenaltyTable[Month],PenaltyTable[Daily])*$AQ$10,"") ->  | BB64: =IFERROR(_xlfn.XLOOKUP(YEAR(Year4Table[[#This Row],[Date]])&MONTH(Year4Table[[#This Row],[Date]]),PenaltyTable[Year]&PenaltyTable[Month],PenaltyTable[Daily])*$BA$10,"") ->  | BL64: =IFERROR(_xlfn.XLOOKUP(YEAR(Year5Table[[#This Row],[Date]])&MONTH(Year5Table[[#This Row],[Date]]),PenaltyTable[Year]&PenaltyTable[Month],PenaltyTable[Daily])*$BK$10,"") ->  | BV64: =IFERROR(_xlfn.XLOOKUP(YEAR(Year6Table[[#This Row],[Date]])&MONTH(Year6Table[[#This Row],[Date]]),PenaltyTable[Year]&PenaltyTable[Month],PenaltyTable[Daily])*$BU$10,"") ->  | CF64: =IFERROR(_xlfn.XLOOKUP(YEAR(Year7Table[[#This Row],[Date]])&MONTH(Year7Table[[#This Row],[Date]]),PenaltyTable[Year]&PenaltyTable[Month],PenaltyTable[Daily])*CE$10,"") ->  | CP64: =IFERROR(_xlfn.XLOOKUP(YEAR(Year8Table[[#This Row],[Date]])&MONTH(Year8Table[[#This Row],[Date]]),PenaltyTable[Year]&PenaltyTable[Month],PenaltyTable[Daily])*$CO$10,"") ->  | CZ64: =IFERROR(_xlfn.XLOOKUP(YEAR(Year9Table[[#This Row],[Date]])&MONTH(Year9Table[[#This Row],[Date]]),PenaltyTable[Year]&PenaltyTable[Month],PenaltyTable[Daily])*$CY$10,"") ->  | DJ64: =IFERROR(_xlfn.XLOOKUP(YEAR(Year10Table[[#This Row],[Date]])&MONTH(Year10Table[[#This Row],[Date]]),PenaltyTable[Year]&PenaltyTable[Month],PenaltyTable[Daily])*$DI$10,"") -> 
U65: =IFERROR(IF((ROW()-ROW(Year1Table[#Headers]))=1,IF(OR(Table1[[#This Row],[Tax Assessed]]="",Table1[[#This Row],[Tax Assessed]]=0),"",Table1[[#This Row],[Tax Due Dt]]),IF((ROW()-ROW(Year1Table[#Headers]))>1,IF(OFFSET(AB65,-1,)<1,"",EDATE(U64,1)))),"") ->  | X65: =IFERROR(_xlfn.XLOOKUP(YEAR(Year1Table[[#This Row],[Date]])&MONTH(Year1Table[[#This Row],[Date]]),PenaltyTable[Year]&PenaltyTable[Month],PenaltyTable[Daily])*$W$10,"") ->  | AE65: 2030-07-15 | AF65: =IF(ROW()-ROW(Year2Table[#Headers])=1,$AI$193,IF(AG63="","",IF(AND($B$7<>"",AE65>=$B$7),$C$7,IF(AND($B$6<>"",AE65>=$B$6),$C$6,IF(AE65>=$B$5,$C$5,IF(AE65<$B$5,0)))))) -> 1500 | AG65: 20277.93597 | AH65: =IFERROR(_xlfn.XLOOKUP(YEAR(Year2Table[[#This Row],[Date]])&MONTH(Year2Table[[#This Row],[Date]]),PenaltyTable[Year]&PenaltyTable[Month],PenaltyTable[Daily])*$AG$10,"") -> 15.25998658 | AL65: 18913.12221 | AR65: =IFERROR(_xlfn.XLOOKUP(YEAR(Year3Table[[#This Row],[Date]])&MONTH(Year3Table[[#This Row],[Date]]),PenaltyTable[Year]&PenaltyTable[Month],PenaltyTable[Daily])*$AQ$10,"") ->  | BB65: =IFERROR(_xlfn.XLOOKUP(YEAR(Year4Table[[#This Row],[Date]])&MONTH(Year4Table[[#This Row],[Date]]),PenaltyTable[Year]&PenaltyTable[Month],PenaltyTable[Daily])*$BA$10,"") ->  | BL65: =IFERROR(_xlfn.XLOOKUP(YEAR(Year5Table[[#This Row],[Date]])&MONTH(Year5Table[[#This Row],[Date]]),PenaltyTable[Year]&PenaltyTable[Month],PenaltyTable[Daily])*$BK$10,"") ->  | BV65: =IFERROR(_xlfn.XLOOKUP(YEAR(Year6Table[[#This Row],[Date]])&MONTH(Year6Table[[#This Row],[Date]]),PenaltyTable[Year]&PenaltyTable[Month],PenaltyTable[Daily])*$BU$10,"") ->  | CF65: =IFERROR(_xlfn.XLOOKUP(YEAR(Year7Table[[#This Row],[Date]])&MONTH(Year7Table[[#This Row],[Date]]),PenaltyTable[Year]&PenaltyTable[Month],PenaltyTable[Daily])*CE$10,"") ->  | CP65: =IFERROR(_xlfn.XLOOKUP(YEAR(Year8Table[[#This Row],[Date]])&MONTH(Year8Table[[#This Row],[Date]]),PenaltyTable[Year]&PenaltyTable[Month],PenaltyTable[Daily])*$CO$10,"") ->  | CZ65: =IFERROR(_xlfn.XLOOKUP(YEAR(Year9Table[[#This Row],[Date]])&MONTH(Year9Table[[#This Row],[Date]]),PenaltyTable[Year]&PenaltyTable[Month],PenaltyTable[Daily])*$CY$10,"") ->  | DJ65: =IFERROR(_xlfn.XLOOKUP(YEAR(Year10Table[[#This Row],[Date]])&MONTH(Year10Table[[#This Row],[Date]]),PenaltyTable[Year]&PenaltyTable[Month],PenaltyTable[Daily])*$DI$10,"") -> 
U66: =IFERROR(IF((ROW()-ROW(Year1Table[#Headers]))=1,IF(OR(Table1[[#This Row],[Tax Assessed]]="",Table1[[#This Row],[Tax Assessed]]=0),"",Table1[[#This Row],[Tax Due Dt]]),IF((ROW()-ROW(Year1Table[#Headers]))>1,IF(OFFSET(AB66,-1,)<1,"",EDATE(U65,1)))),"") ->  | X66: =IFERROR(_xlfn.XLOOKUP(YEAR(Year1Table[[#This Row],[Date]])&MONTH(Year1Table[[#This Row],[Date]]),PenaltyTable[Year]&PenaltyTable[Month],PenaltyTable[Daily])*$W$10,"") ->  | AE66: 2030-08-15 | AF66: =IF(ROW()-ROW(Year2Table[#Headers])=1,$AI$193,IF(AG64="","",IF(AND($B$7<>"",AE66>=$B$7),$C$7,IF(AND($B$6<>"",AE66>=$B$6),$C$6,IF(AE66>=$B$5,$C$5,IF(AE66<$B$5,0)))))) -> 1500 | AG66: 18913.12221 | AH66: =IFERROR(_xlfn.XLOOKUP(YEAR(Year2Table[[#This Row],[Date]])&MONTH(Year2Table[[#This Row],[Date]]),PenaltyTable[Year]&PenaltyTable[Month],PenaltyTable[Daily])*$AG$10,"") -> 15.25998658 | AL66: 17539.20969 | AR66: =IFERROR(_xlfn.XLOOKUP(YEAR(Year3Table[[#This Row],[Date]])&MONTH(Year3Table[[#This Row],[Date]]),PenaltyTable[Year]&PenaltyTable[Month],PenaltyTable[Daily])*$AQ$10,"") ->  | BB66: =IFERROR(_xlfn.XLOOKUP(YEAR(Year4Table[[#This Row],[Date]])&MONTH(Year4Table[[#This Row],[Date]]),PenaltyTable[Year]&PenaltyTable[Month],PenaltyTable[Daily])*$BA$10,"") ->  | BL66: =IFERROR(_xlfn.XLOOKUP(YEAR(Year5Table[[#This Row],[Date]])&MONTH(Year5Table[[#This Row],[Date]]),PenaltyTable[Year]&PenaltyTable[Month],PenaltyTable[Daily])*$BK$10,"") ->  | BV66: =IFERROR(_xlfn.XLOOKUP(YEAR(Year6Table[[#This Row],[Date]])&MONTH(Year6Table[[#This Row],[Date]]),PenaltyTable[Year]&PenaltyTable[Month],PenaltyTable[Daily])*$BU$10,"") ->  | CF66: =IFERROR(_xlfn.XLOOKUP(YEAR(Year7Table[[#This Row],[Date]])&MONTH(Year7Table[[#This Row],[Date]]),PenaltyTable[Year]&PenaltyTable[Month],PenaltyTable[Daily])*CE$10,"") ->  | CP66: =IFERROR(_xlfn.XLOOKUP(YEAR(Year8Table[[#This Row],[Date]])&MONTH(Year8Table[[#This Row],[Date]]),PenaltyTable[Year]&PenaltyTable[Month],PenaltyTable[Daily])*$CO$10,"") ->  | CZ66: =IFERROR(_xlfn.XLOOKUP(YEAR(Year9Table[[#This Row],[Date]])&MONTH(Year9Table[[#This Row],[Date]]),PenaltyTable[Year]&PenaltyTable[Month],PenaltyTable[Daily])*$CY$10,"") ->  | DJ66: =IFERROR(_xlfn.XLOOKUP(YEAR(Year10Table[[#This Row],[Date]])&MONTH(Year10Table[[#This Row],[Date]]),PenaltyTable[Year]&PenaltyTable[Month],PenaltyTable[Daily])*$DI$10,"") -> 
U67: =IFERROR(IF((ROW()-ROW(Year1Table[#Headers]))=1,IF(OR(Table1[[#This Row],[Tax Assessed]]="",Table1[[#This Row],[Tax Assessed]]=0),"",Table1[[#This Row],[Tax Due Dt]]),IF((ROW()-ROW(Year1Table[#Headers]))>1,IF(OFFSET(AB67,-1,)<1,"",EDATE(U66,1)))),"") ->  | X67: =IFERROR(_xlfn.XLOOKUP(YEAR(Year1Table[[#This Row],[Date]])&MONTH(Year1Table[[#This Row],[Date]]),PenaltyTable[Year]&PenaltyTable[Month],PenaltyTable[Daily])*$W$10,"") ->  | AE67: 2030-09-15 | AF67: =IF(ROW()-ROW(Year2Table[#Headers])=1,$AI$193,IF(AG65="","",IF(AND($B$7<>"",AE67>=$B$7),$C$7,IF(AND($B$6<>"",AE67>=$B$6),$C$6,IF(AE67>=$B$5,$C$5,IF(AE67<$B$5,0)))))) -> 1500 | AG67: 17539.20969 | AH67: =IFERROR(_xlfn.XLOOKUP(YEAR(Year2Table[[#This Row],[Date]])&MONTH(Year2Table[[#This Row],[Date]]),PenaltyTable[Year]&PenaltyTable[Month],PenaltyTable[Daily])*$AG$10,"") -> 15.25998658 | AL67: 16156.13775 | AR67: =IFERROR(_xlfn.XLOOKUP(YEAR(Year3Table[[#This Row],[Date]])&MONTH(Year3Table[[#This Row],[Date]]),PenaltyTable[Year]&PenaltyTable[Month],PenaltyTable[Daily])*$AQ$10,"") ->  | BB67: =IFERROR(_xlfn.XLOOKUP(YEAR(Year4Table[[#This Row],[Date]])&MONTH(Year4Table[[#This Row],[Date]]),PenaltyTable[Year]&PenaltyTable[Month],PenaltyTable[Daily])*$BA$10,"") ->  | BL67: =IFERROR(_xlfn.XLOOKUP(YEAR(Year5Table[[#This Row],[Date]])&MONTH(Year5Table[[#This Row],[Date]]),PenaltyTable[Year]&PenaltyTable[Month],PenaltyTable[Daily])*$BK$10,"") ->  | BV67: =IFERROR(_xlfn.XLOOKUP(YEAR(Year6Table[[#This Row],[Date]])&MONTH(Year6Table[[#This Row],[Date]]),PenaltyTable[Year]&PenaltyTable[Month],PenaltyTable[Daily])*$BU$10,"") ->  | CF67: =IFERROR(_xlfn.XLOOKUP(YEAR(Year7Table[[#This Row],[Date]])&MONTH(Year7Table[[#This Row],[Date]]),PenaltyTable[Year]&PenaltyTable[Month],PenaltyTable[Daily])*CE$10,"") ->  | CP67: =IFERROR(_xlfn.XLOOKUP(YEAR(Year8Table[[#This Row],[Date]])&MONTH(Year8Table[[#This Row],[Date]]),PenaltyTable[Year]&PenaltyTable[Month],PenaltyTable[Daily])*$CO$10,"") ->  | CZ67: =IFERROR(_xlfn.XLOOKUP(YEAR(Year9Table[[#This Row],[Date]])&MONTH(Year9Table[[#This Row],[Date]]),PenaltyTable[Year]&PenaltyTable[Month],PenaltyTable[Daily])*$CY$10,"") ->  | DJ67: =IFERROR(_xlfn.XLOOKUP(YEAR(Year10Table[[#This Row],[Date]])&MONTH(Year10Table[[#This Row],[Date]]),PenaltyTable[Year]&PenaltyTable[Month],PenaltyTable[Daily])*$DI$10,"") -> 
U68: =IFERROR(IF((ROW()-ROW(Year1Table[#Headers]))=1,IF(OR(Table1[[#This Row],[Tax Assessed]]="",Table1[[#This Row],[Tax Assessed]]=0),"",Table1[[#This Row],[Tax Due Dt]]),IF((ROW()-ROW(Year1Table[#Headers]))>1,IF(OFFSET(AB68,-1,)<1,"",EDATE(U67,1)))),"") ->  | X68: =IFERROR(_xlfn.XLOOKUP(YEAR(Year1Table[[#This Row],[Date]])&MONTH(Year1Table[[#This Row],[Date]]),PenaltyTable[Year]&PenaltyTable[Month],PenaltyTable[Daily])*$W$10,"") ->  | AE68: 2030-10-15 | AF68: =IF(ROW()-ROW(Year2Table[#Headers])=1,$AI$193,IF(AG66="","",IF(AND($B$7<>"",AE68>=$B$7),$C$7,IF(AND($B$6<>"",AE68>=$B$6),$C$6,IF(AE68>=$B$5,$C$5,IF(AE68<$B$5,0)))))) -> 1500 | AG68: 16156.13775 | AH68: =IFERROR(_xlfn.XLOOKUP(YEAR(Year2Table[[#This Row],[Date]])&MONTH(Year2Table[[#This Row],[Date]]),PenaltyTable[Year]&PenaltyTable[Month],PenaltyTable[Daily])*$AG$10,"") -> 15.25998658 | AL68: 14763.84534 | AR68: =IFERROR(_xlfn.XLOOKUP(YEAR(Year3Table[[#This Row],[Date]])&MONTH(Year3Table[[#This Row],[Date]]),PenaltyTable[Year]&PenaltyTable[Month],PenaltyTable[Daily])*$AQ$10,"") ->  | BB68: =IFERROR(_xlfn.XLOOKUP(YEAR(Year4Table[[#This Row],[Date]])&MONTH(Year4Table[[#This Row],[Date]]),PenaltyTable[Year]&PenaltyTable[Month],PenaltyTable[Daily])*$BA$10,"") ->  | BL68: =IFERROR(_xlfn.XLOOKUP(YEAR(Year5Table[[#This Row],[Date]])&MONTH(Year5Table[[#This Row],[Date]]),PenaltyTable[Year]&PenaltyTable[Month],PenaltyTable[Daily])*$BK$10,"") ->  | BV68: =IFERROR(_xlfn.XLOOKUP(YEAR(Year6Table[[#This Row],[Date]])&MONTH(Year6Table[[#This Row],[Date]]),PenaltyTable[Year]&PenaltyTable[Month],PenaltyTable[Daily])*$BU$10,"") ->  | CF68: =IFERROR(_xlfn.XLOOKUP(YEAR(Year7Table[[#This Row],[Date]])&MONTH(Year7Table[[#This Row],[Date]]),PenaltyTable[Year]&PenaltyTable[Month],PenaltyTable[Daily])*CE$10,"") ->  | CP68: =IFERROR(_xlfn.XLOOKUP(YEAR(Year8Table[[#This Row],[Date]])&MONTH(Year8Table[[#This Row],[Date]]),PenaltyTable[Year]&PenaltyTable[Month],PenaltyTable[Daily])*$CO$10,"") ->  | CZ68: =IFERROR(_xlfn.XLOOKUP(YEAR(Year9Table[[#This Row],[Date]])&MONTH(Year9Table[[#This Row],[Date]]),PenaltyTable[Year]&PenaltyTable[Month],PenaltyTable[Daily])*$CY$10,"") ->  | DJ68: =IFERROR(_xlfn.XLOOKUP(YEAR(Year10Table[[#This Row],[Date]])&MONTH(Year10Table[[#This Row],[Date]]),PenaltyTable[Year]&PenaltyTable[Month],PenaltyTable[Daily])*$DI$10,"") -> 
U69: =IFERROR(IF((ROW()-ROW(Year1Table[#Headers]))=1,IF(OR(Table1[[#This Row],[Tax Assessed]]="",Table1[[#This Row],[Tax Assessed]]=0),"",Table1[[#This Row],[Tax Due Dt]]),IF((ROW()-ROW(Year1Table[#Headers]))>1,IF(OFFSET(AB69,-1,)<1,"",EDATE(U68,1)))),"") ->  | X69: =IFERROR(_xlfn.XLOOKUP(YEAR(Year1Table[[#This Row],[Date]])&MONTH(Year1Table[[#This Row],[Date]]),PenaltyTable[Year]&PenaltyTable[Month],PenaltyTable[Daily])*$W$10,"") ->  | AE69: 2030-11-15 | AF69: =IF(ROW()-ROW(Year2Table[#Headers])=1,$AI$193,IF(AG67="","",IF(AND($B$7<>"",AE69>=$B$7),$C$7,IF(AND($B$6<>"",AE69>=$B$6),$C$6,IF(AE69>=$B$5,$C$5,IF(AE69<$B$5,0)))))) -> 1500 | AG69: 14763.84534 | AH69: =IFERROR(_xlfn.XLOOKUP(YEAR(Year2Table[[#This Row],[Date]])&MONTH(Year2Table[[#This Row],[Date]]),PenaltyTable[Year]&PenaltyTable[Month],PenaltyTable[Daily])*$AG$10,"") -> 15.25998658 | AL69: 13362.27097 | AR69: =IFERROR(_xlfn.XLOOKUP(YEAR(Year3Table[[#This Row],[Date]])&MONTH(Year3Table[[#This Row],[Date]]),PenaltyTable[Year]&PenaltyTable[Month],PenaltyTable[Daily])*$AQ$10,"") ->  | BB69: =IFERROR(_xlfn.XLOOKUP(YEAR(Year4Table[[#This Row],[Date]])&MONTH(Year4Table[[#This Row],[Date]]),PenaltyTable[Year]&PenaltyTable[Month],PenaltyTable[Daily])*$BA$10,"") ->  | BL69: =IFERROR(_xlfn.XLOOKUP(YEAR(Year5Table[[#This Row],[Date]])&MONTH(Year5Table[[#This Row],[Date]]),PenaltyTable[Year]&PenaltyTable[Month],PenaltyTable[Daily])*$BK$10,"") ->  | BV69: =IFERROR(_xlfn.XLOOKUP(YEAR(Year6Table[[#This Row],[Date]])&MONTH(Year6Table[[#This Row],[Date]]),PenaltyTable[Year]&PenaltyTable[Month],PenaltyTable[Daily])*$BU$10,"") ->  | CF69: =IFERROR(_xlfn.XLOOKUP(YEAR(Year7Table[[#This Row],[Date]])&MONTH(Year7Table[[#This Row],[Date]]),PenaltyTable[Year]&PenaltyTable[Month],PenaltyTable[Daily])*CE$10,"") ->  | CP69: =IFERROR(_xlfn.XLOOKUP(YEAR(Year8Table[[#This Row],[Date]])&MONTH(Year8Table[[#This Row],[Date]]),PenaltyTable[Year]&PenaltyTable[Month],PenaltyTable[Daily])*$CO$10,"") ->  | CZ69: =IFERROR(_xlfn.XLOOKUP(YEAR(Year9Table[[#This Row],[Date]])&MONTH(Year9Table[[#This Row],[Date]]),PenaltyTable[Year]&PenaltyTable[Month],PenaltyTable[Daily])*$CY$10,"") ->  | DJ69: =IFERROR(_xlfn.XLOOKUP(YEAR(Year10Table[[#This Row],[Date]])&MONTH(Year10Table[[#This Row],[Date]]),PenaltyTable[Year]&PenaltyTable[Month],PenaltyTable[Daily])*$DI$10,"") -> 
U70: =IFERROR(IF((ROW()-ROW(Year1Table[#Headers]))=1,IF(OR(Table1[[#This Row],[Tax Assessed]]="",Table1[[#This Row],[Tax Assessed]]=0),"",Table1[[#This Row],[Tax Due Dt]]),IF((ROW()-ROW(Year1Table[#Headers]))>1,IF(OFFSET(AB70,-1,)<1,"",EDATE(U69,1)))),"") ->  | X70: =IFERROR(_xlfn.XLOOKUP(YEAR(Year1Table[[#This Row],[Date]])&MONTH(Year1Table[[#This Row],[Date]]),PenaltyTable[Year]&PenaltyTable[Month],PenaltyTable[Daily])*$W$10,"") ->  | AE70: 2030-12-15 | AF70: =IF(ROW()-ROW(Year2Table[#Headers])=1,$AI$193,IF(AG68="","",IF(AND($B$7<>"",AE70>=$B$7),$C$7,IF(AND($B$6<>"",AE70>=$B$6),$C$6,IF(AE70>=$B$5,$C$5,IF(AE70<$B$5,0)))))) -> 1500 | AG70: 13362.27097 | AH70: =IFERROR(_xlfn.XLOOKUP(YEAR(Year2Table[[#This Row],[Date]])&MONTH(Year2Table[[#This Row],[Date]]),PenaltyTable[Year]&PenaltyTable[Month],PenaltyTable[Daily])*$AG$10,"") -> 15.25998658 | AL70: 11951.35278 | AR70: =IFERROR(_xlfn.XLOOKUP(YEAR(Year3Table[[#This Row],[Date]])&MONTH(Year3Table[[#This Row],[Date]]),PenaltyTable[Year]&PenaltyTable[Month],PenaltyTable[Daily])*$AQ$10,"") ->  | BB70: =IFERROR(_xlfn.XLOOKUP(YEAR(Year4Table[[#This Row],[Date]])&MONTH(Year4Table[[#This Row],[Date]]),PenaltyTable[Year]&PenaltyTable[Month],PenaltyTable[Daily])*$BA$10,"") ->  | BL70: =IFERROR(_xlfn.XLOOKUP(YEAR(Year5Table[[#This Row],[Date]])&MONTH(Year5Table[[#This Row],[Date]]),PenaltyTable[Year]&PenaltyTable[Month],PenaltyTable[Daily])*$BK$10,"") ->  | BV70: =IFERROR(_xlfn.XLOOKUP(YEAR(Year6Table[[#This Row],[Date]])&MONTH(Year6Table[[#This Row],[Date]]),PenaltyTable[Year]&PenaltyTable[Month],PenaltyTable[Daily])*$BU$10,"") ->  | CF70: =IFERROR(_xlfn.XLOOKUP(YEAR(Year7Table[[#This Row],[Date]])&MONTH(Year7Table[[#This Row],[Date]]),PenaltyTable[Year]&PenaltyTable[Month],PenaltyTable[Daily])*CE$10,"") ->  | CP70: =IFERROR(_xlfn.XLOOKUP(YEAR(Year8Table[[#This Row],[Date]])&MONTH(Year8Table[[#This Row],[Date]]),PenaltyTable[Year]&PenaltyTable[Month],PenaltyTable[Daily])*$CO$10,"") ->  | CZ70: =IFERROR(_xlfn.XLOOKUP(YEAR(Year9Table[[#This Row],[Date]])&MONTH(Year9Table[[#This Row],[Date]]),PenaltyTable[Year]&PenaltyTable[Month],PenaltyTable[Daily])*$CY$10,"") ->  | DJ70: =IFERROR(_xlfn.XLOOKUP(YEAR(Year10Table[[#This Row],[Date]])&MONTH(Year10Table[[#This Row],[Date]]),PenaltyTable[Year]&PenaltyTable[Month],PenaltyTable[Daily])*$DI$10,"") -> 
U71: =IFERROR(IF((ROW()-ROW(Year1Table[#Headers]))=1,IF(OR(Table1[[#This Row],[Tax Assessed]]="",Table1[[#This Row],[Tax Assessed]]=0),"",Table1[[#This Row],[Tax Due Dt]]),IF((ROW()-ROW(Year1Table[#Headers]))>1,IF(OFFSET(AB71,-1,)<1,"",EDATE(U70,1)))),"") ->  | X71: =IFERROR(_xlfn.XLOOKUP(YEAR(Year1Table[[#This Row],[Date]])&MONTH(Year1Table[[#This Row],[Date]]),PenaltyTable[Year]&PenaltyTable[Month],PenaltyTable[Daily])*$W$10,"") ->  | AE71: 2031-01-15 | AF71: =IF(ROW()-ROW(Year2Table[#Headers])=1,$AI$193,IF(AG69="","",IF(AND($B$7<>"",AE71>=$B$7),$C$7,IF(AND($B$6<>"",AE71>=$B$6),$C$6,IF(AE71>=$B$5,$C$5,IF(AE71<$B$5,0)))))) -> 1500 | AG71: 11951.35278 | AH71: =IFERROR(_xlfn.XLOOKUP(YEAR(Year2Table[[#This Row],[Date]])&MONTH(Year2Table[[#This Row],[Date]]),PenaltyTable[Year]&PenaltyTable[Month],PenaltyTable[Daily])*$AG$10,"") -> 15.25998658 | AL71: 10531.02846 | AR71: =IFERROR(_xlfn.XLOOKUP(YEAR(Year3Table[[#This Row],[Date]])&MONTH(Year3Table[[#This Row],[Date]]),PenaltyTable[Year]&PenaltyTable[Month],PenaltyTable[Daily])*$AQ$10,"") ->  | BB71: =IFERROR(_xlfn.XLOOKUP(YEAR(Year4Table[[#This Row],[Date]])&MONTH(Year4Table[[#This Row],[Date]]),PenaltyTable[Year]&PenaltyTable[Month],PenaltyTable[Daily])*$BA$10,"") ->  | BL71: =IFERROR(_xlfn.XLOOKUP(YEAR(Year5Table[[#This Row],[Date]])&MONTH(Year5Table[[#This Row],[Date]]),PenaltyTable[Year]&PenaltyTable[Month],PenaltyTable[Daily])*$BK$10,"") ->  | BV71: =IFERROR(_xlfn.XLOOKUP(YEAR(Year6Table[[#This Row],[Date]])&MONTH(Year6Table[[#This Row],[Date]]),PenaltyTable[Year]&PenaltyTable[Month],PenaltyTable[Daily])*$BU$10,"") ->  | CF71: =IFERROR(_xlfn.XLOOKUP(YEAR(Year7Table[[#This Row],[Date]])&MONTH(Year7Table[[#This Row],[Date]]),PenaltyTable[Year]&PenaltyTable[Month],PenaltyTable[Daily])*CE$10,"") ->  | CP71: =IFERROR(_xlfn.XLOOKUP(YEAR(Year8Table[[#This Row],[Date]])&MONTH(Year8Table[[#This Row],[Date]]),PenaltyTable[Year]&PenaltyTable[Month],PenaltyTable[Daily])*$CO$10,"") ->  | CZ71: =IFERROR(_xlfn.XLOOKUP(YEAR(Year9Table[[#This Row],[Date]])&MONTH(Year9Table[[#This Row],[Date]]),PenaltyTable[Year]&PenaltyTable[Month],PenaltyTable[Daily])*$CY$10,"") ->  | DJ71: =IFERROR(_xlfn.XLOOKUP(YEAR(Year10Table[[#This Row],[Date]])&MONTH(Year10Table[[#This Row],[Date]]),PenaltyTable[Year]&PenaltyTable[Month],PenaltyTable[Daily])*$DI$10,"") -> 
U72: =IFERROR(IF((ROW()-ROW(Year1Table[#Headers]))=1,IF(OR(Table1[[#This Row],[Tax Assessed]]="",Table1[[#This Row],[Tax Assessed]]=0),"",Table1[[#This Row],[Tax Due Dt]]),IF((ROW()-ROW(Year1Table[#Headers]))>1,IF(OFFSET(AB72,-1,)<1,"",EDATE(U71,1)))),"") ->  | X72: =IFERROR(_xlfn.XLOOKUP(YEAR(Year1Table[[#This Row],[Date]])&MONTH(Year1Table[[#This Row],[Date]]),PenaltyTable[Year]&PenaltyTable[Month],PenaltyTable[Daily])*$W$10,"") ->  | AE72: 2031-02-15 | AF72: =IF(ROW()-ROW(Year2Table[#Headers])=1,$AI$193,IF(AG70="","",IF(AND($B$7<>"",AE72>=$B$7),$C$7,IF(AND($B$6<>"",AE72>=$B$6),$C$6,IF(AE72>=$B$5,$C$5,IF(AE72<$B$5,0)))))) -> 1500 | AG72: 10531.02846 | AH72: =IFERROR(_xlfn.XLOOKUP(YEAR(Year2Table[[#This Row],[Date]])&MONTH(Year2Table[[#This Row],[Date]]),PenaltyTable[Year]&PenaltyTable[Month],PenaltyTable[Daily])*$AG$10,"") -> 15.25998658 | AL72: 9101.235321 | AR72: =IFERROR(_xlfn.XLOOKUP(YEAR(Year3Table[[#This Row],[Date]])&MONTH(Year3Table[[#This Row],[Date]]),PenaltyTable[Year]&PenaltyTable[Month],PenaltyTable[Daily])*$AQ$10,"") ->  | BB72: =IFERROR(_xlfn.XLOOKUP(YEAR(Year4Table[[#This Row],[Date]])&MONTH(Year4Table[[#This Row],[Date]]),PenaltyTable[Year]&PenaltyTable[Month],PenaltyTable[Daily])*$BA$10,"") ->  | BL72: =IFERROR(_xlfn.XLOOKUP(YEAR(Year5Table[[#This Row],[Date]])&MONTH(Year5Table[[#This Row],[Date]]),PenaltyTable[Year]&PenaltyTable[Month],PenaltyTable[Daily])*$BK$10,"") ->  | BV72: =IFERROR(_xlfn.XLOOKUP(YEAR(Year6Table[[#This Row],[Date]])&MONTH(Year6Table[[#This Row],[Date]]),PenaltyTable[Year]&PenaltyTable[Month],PenaltyTable[Daily])*$BU$10,"") ->  | CF72: =IFERROR(_xlfn.XLOOKUP(YEAR(Year7Table[[#This Row],[Date]])&MONTH(Year7Table[[#This Row],[Date]]),PenaltyTable[Year]&PenaltyTable[Month],PenaltyTable[Daily])*CE$10,"") ->  | CP72: =IFERROR(_xlfn.XLOOKUP(YEAR(Year8Table[[#This Row],[Date]])&MONTH(Year8Table[[#This Row],[Date]]),PenaltyTable[Year]&PenaltyTable[Month],PenaltyTable[Daily])*$CO$10,"") ->  | CZ72: =IFERROR(_xlfn.XLOOKUP(YEAR(Year9Table[[#This Row],[Date]])&MONTH(Year9Table[[#This Row],[Date]]),PenaltyTable[Year]&PenaltyTable[Month],PenaltyTable[Daily])*$CY$10,"") ->  | DJ72: =IFERROR(_xlfn.XLOOKUP(YEAR(Year10Table[[#This Row],[Date]])&MONTH(Year10Table[[#This Row],[Date]]),PenaltyTable[Year]&PenaltyTable[Month],PenaltyTable[Daily])*$DI$10,"") -> 
U73: =IFERROR(IF((ROW()-ROW(Year1Table[#Headers]))=1,IF(OR(Table1[[#This Row],[Tax Assessed]]="",Table1[[#This Row],[Tax Assessed]]=0),"",Table1[[#This Row],[Tax Due Dt]]),IF((ROW()-ROW(Year1Table[#Headers]))>1,IF(OFFSET(AB73,-1,)<1,"",EDATE(U72,1)))),"") ->  | X73: =IFERROR(_xlfn.XLOOKUP(YEAR(Year1Table[[#This Row],[Date]])&MONTH(Year1Table[[#This Row],[Date]]),PenaltyTable[Year]&PenaltyTable[Month],PenaltyTable[Daily])*$W$10,"") ->  | AE73: 2031-03-15 | AF73: =IF(ROW()-ROW(Year2Table[#Headers])=1,$AI$193,IF(AG71="","",IF(AND($B$7<>"",AE73>=$B$7),$C$7,IF(AND($B$6<>"",AE73>=$B$6),$C$6,IF(AE73>=$B$5,$C$5,IF(AE73<$B$5,0)))))) -> 1500 | AG73: 9101.235321 | AH73: =IFERROR(_xlfn.XLOOKUP(YEAR(Year2Table[[#This Row],[Date]])&MONTH(Year2Table[[#This Row],[Date]]),PenaltyTable[Year]&PenaltyTable[Month],PenaltyTable[Daily])*$AG$10,"") -> 15.25998658 | AL73: 7661.910223 | AR73: =IFERROR(_xlfn.XLOOKUP(YEAR(Year3Table[[#This Row],[Date]])&MONTH(Year3Table[[#This Row],[Date]]),PenaltyTable[Year]&PenaltyTable[Month],PenaltyTable[Daily])*$AQ$10,"") ->  | BB73: =IFERROR(_xlfn.XLOOKUP(YEAR(Year4Table[[#This Row],[Date]])&MONTH(Year4Table[[#This Row],[Date]]),PenaltyTable[Year]&PenaltyTable[Month],PenaltyTable[Daily])*$BA$10,"") ->  | BL73: =IFERROR(_xlfn.XLOOKUP(YEAR(Year5Table[[#This Row],[Date]])&MONTH(Year5Table[[#This Row],[Date]]),PenaltyTable[Year]&PenaltyTable[Month],PenaltyTable[Daily])*$BK$10,"") ->  | BV73: =IFERROR(_xlfn.XLOOKUP(YEAR(Year6Table[[#This Row],[Date]])&MONTH(Year6Table[[#This Row],[Date]]),PenaltyTable[Year]&PenaltyTable[Month],PenaltyTable[Daily])*$BU$10,"") ->  | CF73: =IFERROR(_xlfn.XLOOKUP(YEAR(Year7Table[[#This Row],[Date]])&MONTH(Year7Table[[#This Row],[Date]]),PenaltyTable[Year]&PenaltyTable[Month],PenaltyTable[Daily])*CE$10,"") ->  | CP73: =IFERROR(_xlfn.XLOOKUP(YEAR(Year8Table[[#This Row],[Date]])&MONTH(Year8Table[[#This Row],[Date]]),PenaltyTable[Year]&PenaltyTable[Month],PenaltyTable[Daily])*$CO$10,"") ->  | CZ73: =IFERROR(_xlfn.XLOOKUP(YEAR(Year9Table[[#This Row],[Date]])&MONTH(Year9Table[[#This Row],[Date]]),PenaltyTable[Year]&PenaltyTable[Month],PenaltyTable[Daily])*$CY$10,"") ->  | DJ73: =IFERROR(_xlfn.XLOOKUP(YEAR(Year10Table[[#This Row],[Date]])&MONTH(Year10Table[[#This Row],[Date]]),PenaltyTable[Year]&PenaltyTable[Month],PenaltyTable[Daily])*$DI$10,"") -> 
U74: =IFERROR(IF((ROW()-ROW(Year1Table[#Headers]))=1,IF(OR(Table1[[#This Row],[Tax Assessed]]="",Table1[[#This Row],[Tax Assessed]]=0),"",Table1[[#This Row],[Tax Due Dt]]),IF((ROW()-ROW(Year1Table[#Headers]))>1,IF(OFFSET(AB74,-1,)<1,"",EDATE(U73,1)))),"") ->  | X74: =IFERROR(_xlfn.XLOOKUP(YEAR(Year1Table[[#This Row],[Date]])&MONTH(Year1Table[[#This Row],[Date]]),PenaltyTable[Year]&PenaltyTable[Month],PenaltyTable[Daily])*$W$10,"") ->  | AE74: 2031-04-15 | AF74: =IF(ROW()-ROW(Year2Table[#Headers])=1,$AI$193,IF(AG72="","",IF(AND($B$7<>"",AE74>=$B$7),$C$7,IF(AND($B$6<>"",AE74>=$B$6),$C$6,IF(AE74>=$B$5,$C$5,IF(AE74<$B$5,0)))))) -> 1500 | AG74: 7661.910223 | AH74: =IFERROR(_xlfn.XLOOKUP(YEAR(Year2Table[[#This Row],[Date]])&MONTH(Year2Table[[#This Row],[Date]]),PenaltyTable[Year]&PenaltyTable[Month],PenaltyTable[Daily])*$AG$10,"") -> 15.25998658 | AL74: 6212.989624 | AR74: =IFERROR(_xlfn.XLOOKUP(YEAR(Year3Table[[#This Row],[Date]])&MONTH(Year3Table[[#This Row],[Date]]),PenaltyTable[Year]&PenaltyTable[Month],PenaltyTable[Daily])*$AQ$10,"") ->  | BB74: =IFERROR(_xlfn.XLOOKUP(YEAR(Year4Table[[#This Row],[Date]])&MONTH(Year4Table[[#This Row],[Date]]),PenaltyTable[Year]&PenaltyTable[Month],PenaltyTable[Daily])*$BA$10,"") ->  | BL74: =IFERROR(_xlfn.XLOOKUP(YEAR(Year5Table[[#This Row],[Date]])&MONTH(Year5Table[[#This Row],[Date]]),PenaltyTable[Year]&PenaltyTable[Month],PenaltyTable[Daily])*$BK$10,"") ->  | BV74: =IFERROR(_xlfn.XLOOKUP(YEAR(Year6Table[[#This Row],[Date]])&MONTH(Year6Table[[#This Row],[Date]]),PenaltyTable[Year]&PenaltyTable[Month],PenaltyTable[Daily])*$BU$10,"") ->  | CF74: =IFERROR(_xlfn.XLOOKUP(YEAR(Year7Table[[#This Row],[Date]])&MONTH(Year7Table[[#This Row],[Date]]),PenaltyTable[Year]&PenaltyTable[Month],PenaltyTable[Daily])*CE$10,"") ->  | CP74: =IFERROR(_xlfn.XLOOKUP(YEAR(Year8Table[[#This Row],[Date]])&MONTH(Year8Table[[#This Row],[Date]]),PenaltyTable[Year]&PenaltyTable[Month],PenaltyTable[Daily])*$CO$10,"") ->  | CZ74: =IFERROR(_xlfn.XLOOKUP(YEAR(Year9Table[[#This Row],[Date]])&MONTH(Year9Table[[#This Row],[Date]]),PenaltyTable[Year]&PenaltyTable[Month],PenaltyTable[Daily])*$CY$10,"") ->  | DJ74: =IFERROR(_xlfn.XLOOKUP(YEAR(Year10Table[[#This Row],[Date]])&MONTH(Year10Table[[#This Row],[Date]]),PenaltyTable[Year]&PenaltyTable[Month],PenaltyTable[Daily])*$DI$10,"") -> 
U75: =IFERROR(IF((ROW()-ROW(Year1Table[#Headers]))=1,IF(OR(Table1[[#This Row],[Tax Assessed]]="",Table1[[#This Row],[Tax Assessed]]=0),"",Table1[[#This Row],[Tax Due Dt]]),IF((ROW()-ROW(Year1Table[#Headers]))>1,IF(OFFSET(AB75,-1,)<1,"",EDATE(U74,1)))),"") ->  | X75: =IFERROR(_xlfn.XLOOKUP(YEAR(Year1Table[[#This Row],[Date]])&MONTH(Year1Table[[#This Row],[Date]]),PenaltyTable[Year]&PenaltyTable[Month],PenaltyTable[Daily])*$W$10,"") ->  | AE75: 2031-05-15 | AF75: =IF(ROW()-ROW(Year2Table[#Headers])=1,$AI$193,IF(AG73="","",IF(AND($B$7<>"",AE75>=$B$7),$C$7,IF(AND($B$6<>"",AE75>=$B$6),$C$6,IF(AE75>=$B$5,$C$5,IF(AE75<$B$5,0)))))) -> 1500 | AG75: 6212.989624 | AH75: =IFERROR(_xlfn.XLOOKUP(YEAR(Year2Table[[#This Row],[Date]])&MONTH(Year2Table[[#This Row],[Date]]),PenaltyTable[Year]&PenaltyTable[Month],PenaltyTable[Daily])*$AG$10,"") -> 15.25998658 | AL75: 4754.409555 | AR75: =IFERROR(_xlfn.XLOOKUP(YEAR(Year3Table[[#This Row],[Date]])&MONTH(Year3Table[[#This Row],[Date]]),PenaltyTable[Year]&PenaltyTable[Month],PenaltyTable[Daily])*$AQ$10,"") ->  | BB75: =IFERROR(_xlfn.XLOOKUP(YEAR(Year4Table[[#This Row],[Date]])&MONTH(Year4Table[[#This Row],[Date]]),PenaltyTable[Year]&PenaltyTable[Month],PenaltyTable[Daily])*$BA$10,"") ->  | BL75: =IFERROR(_xlfn.XLOOKUP(YEAR(Year5Table[[#This Row],[Date]])&MONTH(Year5Table[[#This Row],[Date]]),PenaltyTable[Year]&PenaltyTable[Month],PenaltyTable[Daily])*$BK$10,"") ->  | BV75: =IFERROR(_xlfn.XLOOKUP(YEAR(Year6Table[[#This Row],[Date]])&MONTH(Year6Table[[#This Row],[Date]]),PenaltyTable[Year]&PenaltyTable[Month],PenaltyTable[Daily])*$BU$10,"") ->  | CF75: =IFERROR(_xlfn.XLOOKUP(YEAR(Year7Table[[#This Row],[Date]])&MONTH(Year7Table[[#This Row],[Date]]),PenaltyTable[Year]&PenaltyTable[Month],PenaltyTable[Daily])*CE$10,"") ->  | CP75: =IFERROR(_xlfn.XLOOKUP(YEAR(Year8Table[[#This Row],[Date]])&MONTH(Year8Table[[#This Row],[Date]]),PenaltyTable[Year]&PenaltyTable[Month],PenaltyTable[Daily])*$CO$10,"") ->  | CZ75: =IFERROR(_xlfn.XLOOKUP(YEAR(Year9Table[[#This Row],[Date]])&MONTH(Year9Table[[#This Row],[Date]]),PenaltyTable[Year]&PenaltyTable[Month],PenaltyTable[Daily])*$CY$10,"") ->  | DJ75: =IFERROR(_xlfn.XLOOKUP(YEAR(Year10Table[[#This Row],[Date]])&MONTH(Year10Table[[#This Row],[Date]]),PenaltyTable[Year]&PenaltyTable[Month],PenaltyTable[Daily])*$DI$10,"") -> 
U76: =IFERROR(IF((ROW()-ROW(Year1Table[#Headers]))=1,IF(OR(Table1[[#This Row],[Tax Assessed]]="",Table1[[#This Row],[Tax Assessed]]=0),"",Table1[[#This Row],[Tax Due Dt]]),IF((ROW()-ROW(Year1Table[#Headers]))>1,IF(OFFSET(AB76,-1,)<1,"",EDATE(U75,1)))),"") ->  | V76: =IF(OR(AB75<0,AB75=""),"",IF(AND($B$7<>"",U76>=$B$7),$C$7,IF(AND($B$6<>"",U76>=$B$6),$C$6,IF(U76>=$B$5,$C$5,IF(U76<$B$5,0))))) ->  | X76: =IFERROR(_xlfn.XLOOKUP(YEAR(Year1Table[[#This Row],[Date]])&MONTH(Year1Table[[#This Row],[Date]]),PenaltyTable[Year]&PenaltyTable[Month],PenaltyTable[Daily])*$W$10,"") ->  | AE76: 2031-06-15 | AF76: =IF(ROW()-ROW(Year2Table[#Headers])=1,$AI$193,IF(AG74="","",IF(AND($B$7<>"",AE76>=$B$7),$C$7,IF(AND($B$6<>"",AE76>=$B$6),$C$6,IF(AE76>=$B$5,$C$5,IF(AE76<$B$5,0)))))) -> 1500 | AG76: 4754.409555 | AH76: =IFERROR(_xlfn.XLOOKUP(YEAR(Year2Table[[#This Row],[Date]])&MONTH(Year2Table[[#This Row],[Date]]),PenaltyTable[Year]&PenaltyTable[Month],PenaltyTable[Daily])*$AG$10,"") -> 15.25998658 | AL76: 3286.105619 | AM76: =IF(AL76>0,"",IF(VALUE(AE76)>=VALUE($W$8),"",AE76)) ->  | AR76: =IFERROR(_xlfn.XLOOKUP(YEAR(Year3Table[[#This Row],[Date]])&MONTH(Year3Table[[#This Row],[Date]]),PenaltyTable[Year]&PenaltyTable[Month],PenaltyTable[Daily])*$AQ$10,"") ->  | AW76: =IF(AV76>0,"",IF(VALUE(AO76)>=VALUE($W$8),"",AO76)) ->  | BB76: =IFERROR(_xlfn.XLOOKUP(YEAR(Year4Table[[#This Row],[Date]])&MONTH(Year4Table[[#This Row],[Date]]),PenaltyTable[Year]&PenaltyTable[Month],PenaltyTable[Daily])*$BA$10,"") ->  | BL76: =IFERROR(_xlfn.XLOOKUP(YEAR(Year5Table[[#This Row],[Date]])&MONTH(Year5Table[[#This Row],[Date]]),PenaltyTable[Year]&PenaltyTable[Month],PenaltyTable[Daily])*$BK$10,"") ->  | BV76: =IFERROR(_xlfn.XLOOKUP(YEAR(Year6Table[[#This Row],[Date]])&MONTH(Year6Table[[#This Row],[Date]]),PenaltyTable[Year]&PenaltyTable[Month],PenaltyTable[Daily])*$BU$10,"") ->  | CF76: =IFERROR(_xlfn.XLOOKUP(YEAR(Year7Table[[#This Row],[Date]])&MONTH(Year7Table[[#This Row],[Date]]),PenaltyTable[Year]&PenaltyTable[Month],PenaltyTable[Daily])*CE$10,"") ->  | CP76: =IFERROR(_xlfn.XLOOKUP(YEAR(Year8Table[[#This Row],[Date]])&MONTH(Year8Table[[#This Row],[Date]]),PenaltyTable[Year]&PenaltyTable[Month],PenaltyTable[Daily])*$CO$10,"") ->  | CZ76: =IFERROR(_xlfn.XLOOKUP(YEAR(Year9Table[[#This Row],[Date]])&MONTH(Year9Table[[#This Row],[Date]]),PenaltyTable[Year]&PenaltyTable[Month],PenaltyTable[Daily])*$CY$10,"") ->  | DJ76: =IFERROR(_xlfn.XLOOKUP(YEAR(Year10Table[[#This Row],[Date]])&MONTH(Year10Table[[#This Row],[Date]]),PenaltyTable[Year]&PenaltyTable[Month],PenaltyTable[Daily])*$DI$10,"") -> 
U77: =IFERROR(IF((ROW()-ROW(Year1Table[#Headers]))=1,IF(OR(Table1[[#This Row],[Tax Assessed]]="",Table1[[#This Row],[Tax Assessed]]=0),"",Table1[[#This Row],[Tax Due Dt]]),IF((ROW()-ROW(Year1Table[#Headers]))>1,IF(OFFSET(AB77,-1,)<1,"",EDATE(U76,1)))),"") ->  | X77: =IFERROR(_xlfn.XLOOKUP(YEAR(Year1Table[[#This Row],[Date]])&MONTH(Year1Table[[#This Row],[Date]]),PenaltyTable[Year]&PenaltyTable[Month],PenaltyTable[Daily])*$W$10,"") ->  | AB77: =IF(OR(AB76<0,AB76=""),"",(W77+X77)-V77) ->  | AC77: =IF(AB77>0,"",IF(VALUE(U77)>=VALUE($W$8),"",U77)) ->  | AE77: 2031-07-15 | AF77: =IF(ROW()-ROW(Year2Table[#Headers])=1,$AI$193,IF(AG75="","",IF(AND($B$7<>"",AE77>=$B$7),$C$7,IF(AND($B$6<>"",AE77>=$B$6),$C$6,IF(AE77>=$B$5,$C$5,IF(AE77<$B$5,0)))))) -> 1500 | AG77: 3286.105619 | AH77: =IFERROR(_xlfn.XLOOKUP(YEAR(Year2Table[[#This Row],[Date]])&MONTH(Year2Table[[#This Row],[Date]]),PenaltyTable[Year]&PenaltyTable[Month],PenaltyTable[Daily])*$AG$10,"") -> 15.25998658 | AL77: 1808.01299 | AR77: =IFERROR(_xlfn.XLOOKUP(YEAR(Year3Table[[#This Row],[Date]])&MONTH(Year3Table[[#This Row],[Date]]),PenaltyTable[Year]&PenaltyTable[Month],PenaltyTable[Daily])*$AQ$10,"") ->  | BB77: =IFERROR(_xlfn.XLOOKUP(YEAR(Year4Table[[#This Row],[Date]])&MONTH(Year4Table[[#This Row],[Date]]),PenaltyTable[Year]&PenaltyTable[Month],PenaltyTable[Daily])*$BA$10,"") ->  | BL77: =IFERROR(_xlfn.XLOOKUP(YEAR(Year5Table[[#This Row],[Date]])&MONTH(Year5Table[[#This Row],[Date]]),PenaltyTable[Year]&PenaltyTable[Month],PenaltyTable[Daily])*$BK$10,"") ->  | BV77: =IFERROR(_xlfn.XLOOKUP(YEAR(Year6Table[[#This Row],[Date]])&MONTH(Year6Table[[#This Row],[Date]]),PenaltyTable[Year]&PenaltyTable[Month],PenaltyTable[Daily])*$BU$10,"") ->  | CF77: =IFERROR(_xlfn.XLOOKUP(YEAR(Year7Table[[#This Row],[Date]])&MONTH(Year7Table[[#This Row],[Date]]),PenaltyTable[Year]&PenaltyTable[Month],PenaltyTable[Daily])*CE$10,"") ->  | CP77: =IFERROR(_xlfn.XLOOKUP(YEAR(Year8Table[[#This Row],[Date]])&MONTH(Year8Table[[#This Row],[Date]]),PenaltyTable[Year]&PenaltyTable[Month],PenaltyTable[Daily])*$CO$10,"") ->  | CZ77: =IFERROR(_xlfn.XLOOKUP(YEAR(Year9Table[[#This Row],[Date]])&MONTH(Year9Table[[#This Row],[Date]]),PenaltyTable[Year]&PenaltyTable[Month],PenaltyTable[Daily])*$CY$10,"") ->  | DJ77: =IFERROR(_xlfn.XLOOKUP(YEAR(Year10Table[[#This Row],[Date]])&MONTH(Year10Table[[#This Row],[Date]]),PenaltyTable[Year]&PenaltyTable[Month],PenaltyTable[Daily])*$DI$10,"") -> 
U78: =IFERROR(IF((ROW()-ROW(Year1Table[#Headers]))=1,IF(OR(Table1[[#This Row],[Tax Assessed]]="",Table1[[#This Row],[Tax Assessed]]=0),"",Table1[[#This Row],[Tax Due Dt]]),IF((ROW()-ROW(Year1Table[#Headers]))>1,IF(OFFSET(AB78,-1,)<1,"",EDATE(U77,1)))),"") ->  | W78: =IF(OR(AB77<0,AB77=""),"",AB77) ->  | X78: =IFERROR(_xlfn.XLOOKUP(YEAR(Year1Table[[#This Row],[Date]])&MONTH(Year1Table[[#This Row],[Date]]),PenaltyTable[Year]&PenaltyTable[Month],PenaltyTable[Daily])*$W$10,"") ->  | AE78: =IF(OR(AL77="",AL77<0),"",EDATE(AE77,1)) -> 2031-08-15 | AF78: =IF(ROW()-ROW(Year2Table[#Headers])=1,$AI$193,IF(AG76="","",IF(AND($B$7<>"",AE78>=$B$7),$C$7,IF(AND($B$6<>"",AE78>=$B$6),$C$6,IF(AE78>=$B$5,$C$5,IF(AE78<$B$5,0)))))) -> 1500 | AG78: =IF(OR(AL77<0,AL77=""),"",AL77) -> 1808.01299 | AH78: =IFERROR(_xlfn.XLOOKUP(YEAR(Year2Table[[#This Row],[Date]])&MONTH(Year2Table[[#This Row],[Date]]),PenaltyTable[Year]&PenaltyTable[Month],PenaltyTable[Daily])*$AG$10,"") -> 15.25998658 | AL78: =IF(OR(AL77<0,AL77=""),"",AG78-AF78+(AG78*$B$2)) -> 320.0664096 | AO78: =IF(OR(AV77="",AV77<0),"",EDATE(AO77,1)) ->  | AP78: =IF(OR(AV77="",AV77<0),"",IF(AND($B$7<>"",AO78>=$B$7),$C$7,IF(AND($B$6<>"",AO78>=$B$6),$C$6,IF(AO78>=$B$5,$C$5,IF(AO78<$B$5,0))))) ->  | AQ78: =IF(OR(AV77<0,AV77=""),"",AV77) ->  | AR78: =IFERROR(_xlfn.XLOOKUP(YEAR(Year3Table[[#This Row],[Date]])&MONTH(Year3Table[[#This Row],[Date]]),PenaltyTable[Year]&PenaltyTable[Month],PenaltyTable[Daily])*$AQ$10,"") ->  | AV78: =IF(OR(AV77<0,AV77=""),"",AQ78-AP78+(AQ78*$B$2)) ->  | AY78: =IF(OR(BF77="",BF77<0),"",EDATE(AY77,1)) ->  | AZ78: =IF(OR(BF77="",BF77<0),"",IF(AND($B$7<>"",AY78>=$B$7),$C$7,IF(AND($B$6<>"",AY78>=$B$6),$C$6,IF(AY78>=$B$5,$C$5,IF(AY78<$B$5,0))))) ->  | BA78: =IF(OR(BF77<0,BF77=""),"",BF77) ->  | BB78: =IFERROR(_xlfn.XLOOKUP(YEAR(Year4Table[[#This Row],[Date]])&MONTH(Year4Table[[#This Row],[Date]]),PenaltyTable[Year]&PenaltyTable[Month],PenaltyTable[Daily])*$BA$10,"") ->  | BF78: =IF(OR(BF77<0,BF77=""),"",BA78-AZ78+(BA78*$B$2)) ->  | BG78: =IF(BF78>0,"",AY78) ->  | BI78: =IF(OR(BP77="",BP77<0),"",EDATE(BI77,1)) ->  | BJ78: =IF(OR(BP77="",BP77<0),"",IF(AND($B$7<>"",BI78>=$B$7),$C$7,IF(AND($B$6<>"",BI78>=$B$6),$C$6,IF(BI78>=$B$5,$C$5,IF(BI78<$B$5,0))))) ->  | BK78: =IF(OR(BP77<0,BP77=""),"",BP77) ->  | BL78: =IFERROR(_xlfn.XLOOKUP(YEAR(Year5Table[[#This Row],[Date]])&MONTH(Year5Table[[#This Row],[Date]]),PenaltyTable[Year]&PenaltyTable[Month],PenaltyTable[Daily])*$BK$10,"") ->  | BP78: =IF(OR(BP77<0,BP77=""),"",BK78-BJ78+(BK78*$B$2)) ->  | BQ78: =IF(BP78>0,"",BI78) ->  | BS78: =IF(OR(BZ77="",BZ77<0),"",EDATE(BS77,1)) ->  | BT78: =IF(OR(BZ77="",BZ77<0),"",IF(AND($B$7<>"",BS78>=$B$7),$C$7,IF(AND($B$6<>"",BS78>=$B$6),$C$6,IF(BS78>=$B$5,$C$5,IF(BS78<$B$5,0))))) ->  | BU78: =IF(OR(BZ77<0,BZ77=""),"",BZ77) ->  | BV78: =IFERROR(_xlfn.XLOOKUP(YEAR(Year6Table[[#This Row],[Date]])&MONTH(Year6Table[[#This Row],[Date]]),PenaltyTable[Year]&PenaltyTable[Month],PenaltyTable[Daily])*$BU$10,"") ->  | BZ78: =IF(OR(BZ77<0,BZ77=""),"",BU78-BT78+(BU78*$B$2)) ->  | CA78: =IF(BZ78>0,"",BS78) ->  | CC78: =IF(OR(CJ77="",CJ77<0),"",EDATE(CC77,1)) ->  | CD78: =IF(OR(CJ77="",CJ77<0),"",IF(AND($B$7<>"",CC78>=$B$7),$C$7,IF(AND($B$6<>"",CC78>=$B$6),$C$6,IF(CC78>=$B$5,$C$5,IF(CC78<$B$5,0))))) ->  | CE78: =IF(OR(CJ77<0,CJ77=""),"",CJ77) ->  | CF78: =IFERROR(_xlfn.XLOOKUP(YEAR(Year7Table[[#This Row],[Date]])&MONTH(Year7Table[[#This Row],[Date]]),PenaltyTable[Year]&PenaltyTable[Month],PenaltyTable[Daily])*CE$10,"") ->  | CJ78: =IF(OR(CJ77<0,CJ77=""),"",CE78-CD78+(CE78*$B$2)) ->  | CK78: =IF(CJ78>0,"",CC78) ->  | CM78: =IF(OR(CT77="",CT77<0),"",EDATE(CM77,1)) ->  | CN78: =IF(OR(CT77="",CT77<0),"",IF(AND($B$7<>"",CM78>=$B$7),$C$7,IF(AND($B$6<>"",CM78>=$B$6),$C$6,IF(CM78>=$B$5,$C$5,IF(CM78<$B$5,0))))) ->  | CO78: =IF(OR(CT77<0,CT77=""),"",CT77) ->  | CP78: =IFERROR(_xlfn.XLOOKUP(YEAR(Year8Table[[#This Row],[Date]])&MONTH(Year8Table[[#This Row],[Date]]),PenaltyTable[Year]&PenaltyTable[Month],PenaltyTable[Daily])*$CO$10,"") ->  | CT78: =IF(OR(CT77<0,CT77=""),"",CO78-CN78+(CO78*$B$2)) ->  | CU78: =IF(CT78>0,"",CM78) ->  | CW78: =IF(OR(DD77="",DD77<0),"",EDATE(CW77,1)) ->  | CX78: =IF(OR(DD77="",DD77<0),"",IF(AND($B$7<>"",CW78>=$B$7),$C$7,IF(AND($B$6<>"",CW78>=$B$6),$C$6,IF(CW78>=$B$5,$C$5,IF(CW78<$B$5,0))))) ->  | CY78: =IF(OR(DD77<0,DD77=""),"",DD77) ->  | CZ78: =IFERROR(_xlfn.XLOOKUP(YEAR(Year9Table[[#This Row],[Date]])&MONTH(Year9Table[[#This Row],[Date]]),PenaltyTable[Year]&PenaltyTable[Month],PenaltyTable[Daily])*$CY$10,"") ->  | DD78: =IF(OR(DD77<0,DD77=""),"",CY78-CX78+(CY78*$B$2)) ->  | DE78: =IF(DD78>0,"",CW78) ->  | DG78: =IF(OR(DN77="",DN77<0),"",EDATE(DG77,1)) ->  | DH78: =IF(OR(DN77="",DN77<0),"",IF(AND($B$7<>"",DG78>=$B$7),$C$7,IF(AND($B$6<>"",DG78>=$B$6),$C$6,IF(DG78>=$B$5,$C$5,IF(DG78<$B$5,0))))) ->  | DI78: =IF(OR(DN77<0,DN77=""),"",DN77) ->  | DJ78: =IFERROR(_xlfn.XLOOKUP(YEAR(Year10Table[[#This Row],[Date]])&MONTH(Year10Table[[#This Row],[Date]]),PenaltyTable[Year]&PenaltyTable[Month],PenaltyTable[Daily])*$DI$10,"") ->  | DN78: =IF(OR(DN77<0,DN77=""),"",DI78-DH78+(DI78*$B$2)) ->  | DO78: =IF(DN78>0,"",DG78) -> 
U79: =IFERROR(IF((ROW()-ROW(Year1Table[#Headers]))=1,IF(OR(Table1[[#This Row],[Tax Assessed]]="",Table1[[#This Row],[Tax Assessed]]=0),"",Table1[[#This Row],[Tax Due Dt]]),IF((ROW()-ROW(Year1Table[#Headers]))>1,IF(OFFSET(AB79,-1,)<1,"",EDATE(U78,1)))),"") ->  | X79: =IFERROR(_xlfn.XLOOKUP(YEAR(Year1Table[[#This Row],[Date]])&MONTH(Year1Table[[#This Row],[Date]]),PenaltyTable[Year]&PenaltyTable[Month],PenaltyTable[Daily])*$W$10,"") ->  | AE79: 2031-09-15 | AF79: =IF(ROW()-ROW(Year2Table[#Headers])=1,$AI$193,IF(AG77="","",IF(AND($B$7<>"",AE79>=$B$7),$C$7,IF(AND($B$6<>"",AE79>=$B$6),$C$6,IF(AE79>=$B$5,$C$5,IF(AE79<$B$5,0)))))) -> 1500 | AG79: 320.0664096 | AH79: =IFERROR(_xlfn.XLOOKUP(YEAR(Year2Table[[#This Row],[Date]])&MONTH(Year2Table[[#This Row],[Date]]),PenaltyTable[Year]&PenaltyTable[Month],PenaltyTable[Daily])*$AG$10,"") -> 15.25998658 | AL79: -1177.799814 | AM79: 2031-09-15 | AR79: =IFERROR(_xlfn.XLOOKUP(YEAR(Year3Table[[#This Row],[Date]])&MONTH(Year3Table[[#This Row],[Date]]),PenaltyTable[Year]&PenaltyTable[Month],PenaltyTable[Daily])*$AQ$10,"") ->  | BB79: =IFERROR(_xlfn.XLOOKUP(YEAR(Year4Table[[#This Row],[Date]])&MONTH(Year4Table[[#This Row],[Date]]),PenaltyTable[Year]&PenaltyTable[Month],PenaltyTable[Daily])*$BA$10,"") ->  | BL79: =IFERROR(_xlfn.XLOOKUP(YEAR(Year5Table[[#This Row],[Date]])&MONTH(Year5Table[[#This Row],[Date]]),PenaltyTable[Year]&PenaltyTable[Month],PenaltyTable[Daily])*$BK$10,"") ->  | BV79: =IFERROR(_xlfn.XLOOKUP(YEAR(Year6Table[[#This Row],[Date]])&MONTH(Year6Table[[#This Row],[Date]]),PenaltyTable[Year]&PenaltyTable[Month],PenaltyTable[Daily])*$BU$10,"") ->  | CF79: =IFERROR(_xlfn.XLOOKUP(YEAR(Year7Table[[#This Row],[Date]])&MONTH(Year7Table[[#This Row],[Date]]),PenaltyTable[Year]&PenaltyTable[Month],PenaltyTable[Daily])*CE$10,"") ->  | CP79: =IFERROR(_xlfn.XLOOKUP(YEAR(Year8Table[[#This Row],[Date]])&MONTH(Year8Table[[#This Row],[Date]]),PenaltyTable[Year]&PenaltyTable[Month],PenaltyTable[Daily])*$CO$10,"") ->  | CZ79: =IFERROR(_xlfn.XLOOKUP(YEAR(Year9Table[[#This Row],[Date]])&MONTH(Year9Table[[#This Row],[Date]]),PenaltyTable[Year]&PenaltyTable[Month],PenaltyTable[Daily])*$CY$10,"") ->  | DJ79: =IFERROR(_xlfn.XLOOKUP(YEAR(Year10Table[[#This Row],[Date]])&MONTH(Year10Table[[#This Row],[Date]]),PenaltyTable[Year]&PenaltyTable[Month],PenaltyTable[Daily])*$DI$10,"") -> 
U80: =IFERROR(IF((ROW()-ROW(Year1Table[#Headers]))=1,IF(OR(Table1[[#This Row],[Tax Assessed]]="",Table1[[#This Row],[Tax Assessed]]=0),"",Table1[[#This Row],[Tax Due Dt]]),IF((ROW()-ROW(Year1Table[#Headers]))>1,IF(OFFSET(AB80,-1,)<1,"",EDATE(U79,1)))),"") ->  | X80: =IFERROR(_xlfn.XLOOKUP(YEAR(Year1Table[[#This Row],[Date]])&MONTH(Year1Table[[#This Row],[Date]]),PenaltyTable[Year]&PenaltyTable[Month],PenaltyTable[Daily])*$W$10,"") ->  | AF80: =IF(ROW()-ROW(Year2Table[#Headers])=1,$AI$193,IF(AG78="","",IF(AND($B$7<>"",AE80>=$B$7),$C$7,IF(AND($B$6<>"",AE80>=$B$6),$C$6,IF(AE80>=$B$5,$C$5,IF(AE80<$B$5,0)))))) -> 1500 | AH80: =IFERROR(_xlfn.XLOOKUP(YEAR(Year2Table[[#This Row],[Date]])&MONTH(Year2Table[[#This Row],[Date]]),PenaltyTable[Year]&PenaltyTable[Month],PenaltyTable[Daily])*$AG$10,"") ->  | AR80: =IFERROR(_xlfn.XLOOKUP(YEAR(Year3Table[[#This Row],[Date]])&MONTH(Year3Table[[#This Row],[Date]]),PenaltyTable[Year]&PenaltyTable[Month],PenaltyTable[Daily])*$AQ$10,"") ->  | BB80: =IFERROR(_xlfn.XLOOKUP(YEAR(Year4Table[[#This Row],[Date]])&MONTH(Year4Table[[#This Row],[Date]]),PenaltyTable[Year]&PenaltyTable[Month],PenaltyTable[Daily])*$BA$10,"") ->  | BL80: =IFERROR(_xlfn.XLOOKUP(YEAR(Year5Table[[#This Row],[Date]])&MONTH(Year5Table[[#This Row],[Date]]),PenaltyTable[Year]&PenaltyTable[Month],PenaltyTable[Daily])*$BK$10,"") ->  | BV80: =IFERROR(_xlfn.XLOOKUP(YEAR(Year6Table[[#This Row],[Date]])&MONTH(Year6Table[[#This Row],[Date]]),PenaltyTable[Year]&PenaltyTable[Month],PenaltyTable[Daily])*$BU$10,"") ->  | CF80: =IFERROR(_xlfn.XLOOKUP(YEAR(Year7Table[[#This Row],[Date]])&MONTH(Year7Table[[#This Row],[Date]]),PenaltyTable[Year]&PenaltyTable[Month],PenaltyTable[Daily])*CE$10,"") ->  | CP80: =IFERROR(_xlfn.XLOOKUP(YEAR(Year8Table[[#This Row],[Date]])&MONTH(Year8Table[[#This Row],[Date]]),PenaltyTable[Year]&PenaltyTable[Month],PenaltyTable[Daily])*$CO$10,"") ->  | CZ80: =IFERROR(_xlfn.XLOOKUP(YEAR(Year9Table[[#This Row],[Date]])&MONTH(Year9Table[[#This Row],[Date]]),PenaltyTable[Year]&PenaltyTable[Month],PenaltyTable[Daily])*$CY$10,"") ->  | DJ80: =IFERROR(_xlfn.XLOOKUP(YEAR(Year10Table[[#This Row],[Date]])&MONTH(Year10Table[[#This Row],[Date]]),PenaltyTable[Year]&PenaltyTable[Month],PenaltyTable[Daily])*$DI$10,"") -> 
U81: =IFERROR(IF((ROW()-ROW(Year1Table[#Headers]))=1,IF(OR(Table1[[#This Row],[Tax Assessed]]="",Table1[[#This Row],[Tax Assessed]]=0),"",Table1[[#This Row],[Tax Due Dt]]),IF((ROW()-ROW(Year1Table[#Headers]))>1,IF(OFFSET(AB81,-1,)<1,"",EDATE(U80,1)))),"") ->  | X81: =IFERROR(_xlfn.XLOOKUP(YEAR(Year1Table[[#This Row],[Date]])&MONTH(Year1Table[[#This Row],[Date]]),PenaltyTable[Year]&PenaltyTable[Month],PenaltyTable[Daily])*$W$10,"") ->  | AF81: =IF(ROW()-ROW(Year2Table[#Headers])=1,$AI$193,IF(AG79="","",IF(AND($B$7<>"",AE81>=$B$7),$C$7,IF(AND($B$6<>"",AE81>=$B$6),$C$6,IF(AE81>=$B$5,$C$5,IF(AE81<$B$5,0)))))) -> 1500 | AH81: =IFERROR(_xlfn.XLOOKUP(YEAR(Year2Table[[#This Row],[Date]])&MONTH(Year2Table[[#This Row],[Date]]),PenaltyTable[Year]&PenaltyTable[Month],PenaltyTable[Daily])*$AG$10,"") ->  | AR81: =IFERROR(_xlfn.XLOOKUP(YEAR(Year3Table[[#This Row],[Date]])&MONTH(Year3Table[[#This Row],[Date]]),PenaltyTable[Year]&PenaltyTable[Month],PenaltyTable[Daily])*$AQ$10,"") ->  | BB81: =IFERROR(_xlfn.XLOOKUP(YEAR(Year4Table[[#This Row],[Date]])&MONTH(Year4Table[[#This Row],[Date]]),PenaltyTable[Year]&PenaltyTable[Month],PenaltyTable[Daily])*$BA$10,"") ->  | BL81: =IFERROR(_xlfn.XLOOKUP(YEAR(Year5Table[[#This Row],[Date]])&MONTH(Year5Table[[#This Row],[Date]]),PenaltyTable[Year]&PenaltyTable[Month],PenaltyTable[Daily])*$BK$10,"") ->  | BV81: =IFERROR(_xlfn.XLOOKUP(YEAR(Year6Table[[#This Row],[Date]])&MONTH(Year6Table[[#This Row],[Date]]),PenaltyTable[Year]&PenaltyTable[Month],PenaltyTable[Daily])*$BU$10,"") ->  | CF81: =IFERROR(_xlfn.XLOOKUP(YEAR(Year7Table[[#This Row],[Date]])&MONTH(Year7Table[[#This Row],[Date]]),PenaltyTable[Year]&PenaltyTable[Month],PenaltyTable[Daily])*CE$10,"") ->  | CP81: =IFERROR(_xlfn.XLOOKUP(YEAR(Year8Table[[#This Row],[Date]])&MONTH(Year8Table[[#This Row],[Date]]),PenaltyTable[Year]&PenaltyTable[Month],PenaltyTable[Daily])*$CO$10,"") ->  | CZ81: =IFERROR(_xlfn.XLOOKUP(YEAR(Year9Table[[#This Row],[Date]])&MONTH(Year9Table[[#This Row],[Date]]),PenaltyTable[Year]&PenaltyTable[Month],PenaltyTable[Daily])*$CY$10,"") ->  | DJ81: =IFERROR(_xlfn.XLOOKUP(YEAR(Year10Table[[#This Row],[Date]])&MONTH(Year10Table[[#This Row],[Date]]),PenaltyTable[Year]&PenaltyTable[Month],PenaltyTable[Daily])*$DI$10,"") -> 
U82: =IFERROR(IF((ROW()-ROW(Year1Table[#Headers]))=1,IF(OR(Table1[[#This Row],[Tax Assessed]]="",Table1[[#This Row],[Tax Assessed]]=0),"",Table1[[#This Row],[Tax Due Dt]]),IF((ROW()-ROW(Year1Table[#Headers]))>1,IF(OFFSET(AB82,-1,)<1,"",EDATE(U81,1)))),"") ->  | X82: =IFERROR(_xlfn.XLOOKUP(YEAR(Year1Table[[#This Row],[Date]])&MONTH(Year1Table[[#This Row],[Date]]),PenaltyTable[Year]&PenaltyTable[Month],PenaltyTable[Daily])*$W$10,"") ->  | AF82: =IF(ROW()-ROW(Year2Table[#Headers])=1,$AI$193,IF(AG80="","",IF(AND($B$7<>"",AE82>=$B$7),$C$7,IF(AND($B$6<>"",AE82>=$B$6),$C$6,IF(AE82>=$B$5,$C$5,IF(AE82<$B$5,0)))))) ->  | AH82: =IFERROR(_xlfn.XLOOKUP(YEAR(Year2Table[[#This Row],[Date]])&MONTH(Year2Table[[#This Row],[Date]]),PenaltyTable[Year]&PenaltyTable[Month],PenaltyTable[Daily])*$AG$10,"") ->  | AR82: =IFERROR(_xlfn.XLOOKUP(YEAR(Year3Table[[#This Row],[Date]])&MONTH(Year3Table[[#This Row],[Date]]),PenaltyTable[Year]&PenaltyTable[Month],PenaltyTable[Daily])*$AQ$10,"") ->  | BB82: =IFERROR(_xlfn.XLOOKUP(YEAR(Year4Table[[#This Row],[Date]])&MONTH(Year4Table[[#This Row],[Date]]),PenaltyTable[Year]&PenaltyTable[Month],PenaltyTable[Daily])*$BA$10,"") ->  | BL82: =IFERROR(_xlfn.XLOOKUP(YEAR(Year5Table[[#This Row],[Date]])&MONTH(Year5Table[[#This Row],[Date]]),PenaltyTable[Year]&PenaltyTable[Month],PenaltyTable[Daily])*$BK$10,"") ->  | BV82: =IFERROR(_xlfn.XLOOKUP(YEAR(Year6Table[[#This Row],[Date]])&MONTH(Year6Table[[#This Row],[Date]]),PenaltyTable[Year]&PenaltyTable[Month],PenaltyTable[Daily])*$BU$10,"") ->  | CF82: =IFERROR(_xlfn.XLOOKUP(YEAR(Year7Table[[#This Row],[Date]])&MONTH(Year7Table[[#This Row],[Date]]),PenaltyTable[Year]&PenaltyTable[Month],PenaltyTable[Daily])*CE$10,"") ->  | CP82: =IFERROR(_xlfn.XLOOKUP(YEAR(Year8Table[[#This Row],[Date]])&MONTH(Year8Table[[#This Row],[Date]]),PenaltyTable[Year]&PenaltyTable[Month],PenaltyTable[Daily])*$CO$10,"") ->  | CZ82: =IFERROR(_xlfn.XLOOKUP(YEAR(Year9Table[[#This Row],[Date]])&MONTH(Year9Table[[#This Row],[Date]]),PenaltyTable[Year]&PenaltyTable[Month],PenaltyTable[Daily])*$CY$10,"") ->  | DJ82: =IFERROR(_xlfn.XLOOKUP(YEAR(Year10Table[[#This Row],[Date]])&MONTH(Year10Table[[#This Row],[Date]]),PenaltyTable[Year]&PenaltyTable[Month],PenaltyTable[Daily])*$DI$10,"") -> 
U83: =IFERROR(IF((ROW()-ROW(Year1Table[#Headers]))=1,IF(OR(Table1[[#This Row],[Tax Assessed]]="",Table1[[#This Row],[Tax Assessed]]=0),"",Table1[[#This Row],[Tax Due Dt]]),IF((ROW()-ROW(Year1Table[#Headers]))>1,IF(OFFSET(AB83,-1,)<1,"",EDATE(U82,1)))),"") ->  | X83: =IFERROR(_xlfn.XLOOKUP(YEAR(Year1Table[[#This Row],[Date]])&MONTH(Year1Table[[#This Row],[Date]]),PenaltyTable[Year]&PenaltyTable[Month],PenaltyTable[Daily])*$W$10,"") ->  | AF83: =IF(ROW()-ROW(Year2Table[#Headers])=1,$AI$193,IF(AG81="","",IF(AND($B$7<>"",AE83>=$B$7),$C$7,IF(AND($B$6<>"",AE83>=$B$6),$C$6,IF(AE83>=$B$5,$C$5,IF(AE83<$B$5,0)))))) ->  | AH83: =IFERROR(_xlfn.XLOOKUP(YEAR(Year2Table[[#This Row],[Date]])&MONTH(Year2Table[[#This Row],[Date]]),PenaltyTable[Year]&PenaltyTable[Month],PenaltyTable[Daily])*$AG$10,"") ->  | AR83: =IFERROR(_xlfn.XLOOKUP(YEAR(Year3Table[[#This Row],[Date]])&MONTH(Year3Table[[#This Row],[Date]]),PenaltyTable[Year]&PenaltyTable[Month],PenaltyTable[Daily])*$AQ$10,"") ->  | BB83: =IFERROR(_xlfn.XLOOKUP(YEAR(Year4Table[[#This Row],[Date]])&MONTH(Year4Table[[#This Row],[Date]]),PenaltyTable[Year]&PenaltyTable[Month],PenaltyTable[Daily])*$BA$10,"") ->  | BL83: =IFERROR(_xlfn.XLOOKUP(YEAR(Year5Table[[#This Row],[Date]])&MONTH(Year5Table[[#This Row],[Date]]),PenaltyTable[Year]&PenaltyTable[Month],PenaltyTable[Daily])*$BK$10,"") ->  | BV83: =IFERROR(_xlfn.XLOOKUP(YEAR(Year6Table[[#This Row],[Date]])&MONTH(Year6Table[[#This Row],[Date]]),PenaltyTable[Year]&PenaltyTable[Month],PenaltyTable[Daily])*$BU$10,"") ->  | CF83: =IFERROR(_xlfn.XLOOKUP(YEAR(Year7Table[[#This Row],[Date]])&MONTH(Year7Table[[#This Row],[Date]]),PenaltyTable[Year]&PenaltyTable[Month],PenaltyTable[Daily])*CE$10,"") ->  | CP83: =IFERROR(_xlfn.XLOOKUP(YEAR(Year8Table[[#This Row],[Date]])&MONTH(Year8Table[[#This Row],[Date]]),PenaltyTable[Year]&PenaltyTable[Month],PenaltyTable[Daily])*$CO$10,"") ->  | CZ83: =IFERROR(_xlfn.XLOOKUP(YEAR(Year9Table[[#This Row],[Date]])&MONTH(Year9Table[[#This Row],[Date]]),PenaltyTable[Year]&PenaltyTable[Month],PenaltyTable[Daily])*$CY$10,"") ->  | DJ83: =IFERROR(_xlfn.XLOOKUP(YEAR(Year10Table[[#This Row],[Date]])&MONTH(Year10Table[[#This Row],[Date]]),PenaltyTable[Year]&PenaltyTable[Month],PenaltyTable[Daily])*$DI$10,"") -> 
U84: =IFERROR(IF((ROW()-ROW(Year1Table[#Headers]))=1,IF(OR(Table1[[#This Row],[Tax Assessed]]="",Table1[[#This Row],[Tax Assessed]]=0),"",Table1[[#This Row],[Tax Due Dt]]),IF((ROW()-ROW(Year1Table[#Headers]))>1,IF(OFFSET(AB84,-1,)<1,"",EDATE(U83,1)))),"") ->  | X84: =IFERROR(_xlfn.XLOOKUP(YEAR(Year1Table[[#This Row],[Date]])&MONTH(Year1Table[[#This Row],[Date]]),PenaltyTable[Year]&PenaltyTable[Month],PenaltyTable[Daily])*$W$10,"") ->  | AF84: =IF(ROW()-ROW(Year2Table[#Headers])=1,$AI$193,IF(AG82="","",IF(AND($B$7<>"",AE84>=$B$7),$C$7,IF(AND($B$6<>"",AE84>=$B$6),$C$6,IF(AE84>=$B$5,$C$5,IF(AE84<$B$5,0)))))) ->  | AH84: =IFERROR(_xlfn.XLOOKUP(YEAR(Year2Table[[#This Row],[Date]])&MONTH(Year2Table[[#This Row],[Date]]),PenaltyTable[Year]&PenaltyTable[Month],PenaltyTable[Daily])*$AG$10,"") ->  | AR84: =IFERROR(_xlfn.XLOOKUP(YEAR(Year3Table[[#This Row],[Date]])&MONTH(Year3Table[[#This Row],[Date]]),PenaltyTable[Year]&PenaltyTable[Month],PenaltyTable[Daily])*$AQ$10,"") ->  | BB84: =IFERROR(_xlfn.XLOOKUP(YEAR(Year4Table[[#This Row],[Date]])&MONTH(Year4Table[[#This Row],[Date]]),PenaltyTable[Year]&PenaltyTable[Month],PenaltyTable[Daily])*$BA$10,"") ->  | BL84: =IFERROR(_xlfn.XLOOKUP(YEAR(Year5Table[[#This Row],[Date]])&MONTH(Year5Table[[#This Row],[Date]]),PenaltyTable[Year]&PenaltyTable[Month],PenaltyTable[Daily])*$BK$10,"") ->  | BV84: =IFERROR(_xlfn.XLOOKUP(YEAR(Year6Table[[#This Row],[Date]])&MONTH(Year6Table[[#This Row],[Date]]),PenaltyTable[Year]&PenaltyTable[Month],PenaltyTable[Daily])*$BU$10,"") ->  | CF84: =IFERROR(_xlfn.XLOOKUP(YEAR(Year7Table[[#This Row],[Date]])&MONTH(Year7Table[[#This Row],[Date]]),PenaltyTable[Year]&PenaltyTable[Month],PenaltyTable[Daily])*CE$10,"") ->  | CP84: =IFERROR(_xlfn.XLOOKUP(YEAR(Year8Table[[#This Row],[Date]])&MONTH(Year8Table[[#This Row],[Date]]),PenaltyTable[Year]&PenaltyTable[Month],PenaltyTable[Daily])*$CO$10,"") ->  | CZ84: =IFERROR(_xlfn.XLOOKUP(YEAR(Year9Table[[#This Row],[Date]])&MONTH(Year9Table[[#This Row],[Date]]),PenaltyTable[Year]&PenaltyTable[Month],PenaltyTable[Daily])*$CY$10,"") ->  | DJ84: =IFERROR(_xlfn.XLOOKUP(YEAR(Year10Table[[#This Row],[Date]])&MONTH(Year10Table[[#This Row],[Date]]),PenaltyTable[Year]&PenaltyTable[Month],PenaltyTable[Daily])*$DI$10,"") -> 
U85: =IFERROR(IF((ROW()-ROW(Year1Table[#Headers]))=1,IF(OR(Table1[[#This Row],[Tax Assessed]]="",Table1[[#This Row],[Tax Assessed]]=0),"",Table1[[#This Row],[Tax Due Dt]]),IF((ROW()-ROW(Year1Table[#Headers]))>1,IF(OFFSET(AB85,-1,)<1,"",EDATE(U84,1)))),"") ->  | X85: =IFERROR(_xlfn.XLOOKUP(YEAR(Year1Table[[#This Row],[Date]])&MONTH(Year1Table[[#This Row],[Date]]),PenaltyTable[Year]&PenaltyTable[Month],PenaltyTable[Daily])*$W$10,"") ->  | AF85: =IF(ROW()-ROW(Year2Table[#Headers])=1,$AI$193,IF(AG83="","",IF(AND($B$7<>"",AE85>=$B$7),$C$7,IF(AND($B$6<>"",AE85>=$B$6),$C$6,IF(AE85>=$B$5,$C$5,IF(AE85<$B$5,0)))))) ->  | AH85: =IFERROR(_xlfn.XLOOKUP(YEAR(Year2Table[[#This Row],[Date]])&MONTH(Year2Table[[#This Row],[Date]]),PenaltyTable[Year]&PenaltyTable[Month],PenaltyTable[Daily])*$AG$10,"") ->  | AR85: =IFERROR(_xlfn.XLOOKUP(YEAR(Year3Table[[#This Row],[Date]])&MONTH(Year3Table[[#This Row],[Date]]),PenaltyTable[Year]&PenaltyTable[Month],PenaltyTable[Daily])*$AQ$10,"") ->  | BB85: =IFERROR(_xlfn.XLOOKUP(YEAR(Year4Table[[#This Row],[Date]])&MONTH(Year4Table[[#This Row],[Date]]),PenaltyTable[Year]&PenaltyTable[Month],PenaltyTable[Daily])*$BA$10,"") ->  | BL85: =IFERROR(_xlfn.XLOOKUP(YEAR(Year5Table[[#This Row],[Date]])&MONTH(Year5Table[[#This Row],[Date]]),PenaltyTable[Year]&PenaltyTable[Month],PenaltyTable[Daily])*$BK$10,"") ->  | BV85: =IFERROR(_xlfn.XLOOKUP(YEAR(Year6Table[[#This Row],[Date]])&MONTH(Year6Table[[#This Row],[Date]]),PenaltyTable[Year]&PenaltyTable[Month],PenaltyTable[Daily])*$BU$10,"") ->  | CF85: =IFERROR(_xlfn.XLOOKUP(YEAR(Year7Table[[#This Row],[Date]])&MONTH(Year7Table[[#This Row],[Date]]),PenaltyTable[Year]&PenaltyTable[Month],PenaltyTable[Daily])*CE$10,"") ->  | CP85: =IFERROR(_xlfn.XLOOKUP(YEAR(Year8Table[[#This Row],[Date]])&MONTH(Year8Table[[#This Row],[Date]]),PenaltyTable[Year]&PenaltyTable[Month],PenaltyTable[Daily])*$CO$10,"") ->  | CZ85: =IFERROR(_xlfn.XLOOKUP(YEAR(Year9Table[[#This Row],[Date]])&MONTH(Year9Table[[#This Row],[Date]]),PenaltyTable[Year]&PenaltyTable[Month],PenaltyTable[Daily])*$CY$10,"") ->  | DJ85: =IFERROR(_xlfn.XLOOKUP(YEAR(Year10Table[[#This Row],[Date]])&MONTH(Year10Table[[#This Row],[Date]]),PenaltyTable[Year]&PenaltyTable[Month],PenaltyTable[Daily])*$DI$10,"") -> 
U86: =IFERROR(IF((ROW()-ROW(Year1Table[#Headers]))=1,IF(OR(Table1[[#This Row],[Tax Assessed]]="",Table1[[#This Row],[Tax Assessed]]=0),"",Table1[[#This Row],[Tax Due Dt]]),IF((ROW()-ROW(Year1Table[#Headers]))>1,IF(OFFSET(AB86,-1,)<1,"",EDATE(U85,1)))),"") ->  | X86: =IFERROR(_xlfn.XLOOKUP(YEAR(Year1Table[[#This Row],[Date]])&MONTH(Year1Table[[#This Row],[Date]]),PenaltyTable[Year]&PenaltyTable[Month],PenaltyTable[Daily])*$W$10,"") ->  | AF86: =IF(ROW()-ROW(Year2Table[#Headers])=1,$AI$193,IF(AG84="","",IF(AND($B$7<>"",AE86>=$B$7),$C$7,IF(AND($B$6<>"",AE86>=$B$6),$C$6,IF(AE86>=$B$5,$C$5,IF(AE86<$B$5,0)))))) ->  | AH86: =IFERROR(_xlfn.XLOOKUP(YEAR(Year2Table[[#This Row],[Date]])&MONTH(Year2Table[[#This Row],[Date]]),PenaltyTable[Year]&PenaltyTable[Month],PenaltyTable[Daily])*$AG$10,"") ->  | AR86: =IFERROR(_xlfn.XLOOKUP(YEAR(Year3Table[[#This Row],[Date]])&MONTH(Year3Table[[#This Row],[Date]]),PenaltyTable[Year]&PenaltyTable[Month],PenaltyTable[Daily])*$AQ$10,"") ->  | BB86: =IFERROR(_xlfn.XLOOKUP(YEAR(Year4Table[[#This Row],[Date]])&MONTH(Year4Table[[#This Row],[Date]]),PenaltyTable[Year]&PenaltyTable[Month],PenaltyTable[Daily])*$BA$10,"") ->  | BL86: =IFERROR(_xlfn.XLOOKUP(YEAR(Year5Table[[#This Row],[Date]])&MONTH(Year5Table[[#This Row],[Date]]),PenaltyTable[Year]&PenaltyTable[Month],PenaltyTable[Daily])*$BK$10,"") ->  | BV86: =IFERROR(_xlfn.XLOOKUP(YEAR(Year6Table[[#This Row],[Date]])&MONTH(Year6Table[[#This Row],[Date]]),PenaltyTable[Year]&PenaltyTable[Month],PenaltyTable[Daily])*$BU$10,"") ->  | CF86: =IFERROR(_xlfn.XLOOKUP(YEAR(Year7Table[[#This Row],[Date]])&MONTH(Year7Table[[#This Row],[Date]]),PenaltyTable[Year]&PenaltyTable[Month],PenaltyTable[Daily])*CE$10,"") ->  | CP86: =IFERROR(_xlfn.XLOOKUP(YEAR(Year8Table[[#This Row],[Date]])&MONTH(Year8Table[[#This Row],[Date]]),PenaltyTable[Year]&PenaltyTable[Month],PenaltyTable[Daily])*$CO$10,"") ->  | CZ86: =IFERROR(_xlfn.XLOOKUP(YEAR(Year9Table[[#This Row],[Date]])&MONTH(Year9Table[[#This Row],[Date]]),PenaltyTable[Year]&PenaltyTable[Month],PenaltyTable[Daily])*$CY$10,"") ->  | DJ86: =IFERROR(_xlfn.XLOOKUP(YEAR(Year10Table[[#This Row],[Date]])&MONTH(Year10Table[[#This Row],[Date]]),PenaltyTable[Year]&PenaltyTable[Month],PenaltyTable[Daily])*$DI$10,"") -> 
U87: =IFERROR(IF((ROW()-ROW(Year1Table[#Headers]))=1,IF(OR(Table1[[#This Row],[Tax Assessed]]="",Table1[[#This Row],[Tax Assessed]]=0),"",Table1[[#This Row],[Tax Due Dt]]),IF((ROW()-ROW(Year1Table[#Headers]))>1,IF(OFFSET(AB87,-1,)<1,"",EDATE(U86,1)))),"") ->  | X87: =IFERROR(_xlfn.XLOOKUP(YEAR(Year1Table[[#This Row],[Date]])&MONTH(Year1Table[[#This Row],[Date]]),PenaltyTable[Year]&PenaltyTable[Month],PenaltyTable[Daily])*$W$10,"") ->  | AF87: =IF(ROW()-ROW(Year2Table[#Headers])=1,$AI$193,IF(AG85="","",IF(AND($B$7<>"",AE87>=$B$7),$C$7,IF(AND($B$6<>"",AE87>=$B$6),$C$6,IF(AE87>=$B$5,$C$5,IF(AE87<$B$5,0)))))) ->  | AH87: =IFERROR(_xlfn.XLOOKUP(YEAR(Year2Table[[#This Row],[Date]])&MONTH(Year2Table[[#This Row],[Date]]),PenaltyTable[Year]&PenaltyTable[Month],PenaltyTable[Daily])*$AG$10,"") ->  | AR87: =IFERROR(_xlfn.XLOOKUP(YEAR(Year3Table[[#This Row],[Date]])&MONTH(Year3Table[[#This Row],[Date]]),PenaltyTable[Year]&PenaltyTable[Month],PenaltyTable[Daily])*$AQ$10,"") ->  | BB87: =IFERROR(_xlfn.XLOOKUP(YEAR(Year4Table[[#This Row],[Date]])&MONTH(Year4Table[[#This Row],[Date]]),PenaltyTable[Year]&PenaltyTable[Month],PenaltyTable[Daily])*$BA$10,"") ->  | BL87: =IFERROR(_xlfn.XLOOKUP(YEAR(Year5Table[[#This Row],[Date]])&MONTH(Year5Table[[#This Row],[Date]]),PenaltyTable[Year]&PenaltyTable[Month],PenaltyTable[Daily])*$BK$10,"") ->  | BV87: =IFERROR(_xlfn.XLOOKUP(YEAR(Year6Table[[#This Row],[Date]])&MONTH(Year6Table[[#This Row],[Date]]),PenaltyTable[Year]&PenaltyTable[Month],PenaltyTable[Daily])*$BU$10,"") ->  | CF87: =IFERROR(_xlfn.XLOOKUP(YEAR(Year7Table[[#This Row],[Date]])&MONTH(Year7Table[[#This Row],[Date]]),PenaltyTable[Year]&PenaltyTable[Month],PenaltyTable[Daily])*CE$10,"") ->  | CP87: =IFERROR(_xlfn.XLOOKUP(YEAR(Year8Table[[#This Row],[Date]])&MONTH(Year8Table[[#This Row],[Date]]),PenaltyTable[Year]&PenaltyTable[Month],PenaltyTable[Daily])*$CO$10,"") ->  | CZ87: =IFERROR(_xlfn.XLOOKUP(YEAR(Year9Table[[#This Row],[Date]])&MONTH(Year9Table[[#This Row],[Date]]),PenaltyTable[Year]&PenaltyTable[Month],PenaltyTable[Daily])*$CY$10,"") ->  | DJ87: =IFERROR(_xlfn.XLOOKUP(YEAR(Year10Table[[#This Row],[Date]])&MONTH(Year10Table[[#This Row],[Date]]),PenaltyTable[Year]&PenaltyTable[Month],PenaltyTable[Daily])*$DI$10,"") -> 
U88: =IFERROR(IF((ROW()-ROW(Year1Table[#Headers]))=1,IF(OR(Table1[[#This Row],[Tax Assessed]]="",Table1[[#This Row],[Tax Assessed]]=0),"",Table1[[#This Row],[Tax Due Dt]]),IF((ROW()-ROW(Year1Table[#Headers]))>1,IF(OFFSET(AB88,-1,)<1,"",EDATE(U87,1)))),"") ->  | X88: =IFERROR(_xlfn.XLOOKUP(YEAR(Year1Table[[#This Row],[Date]])&MONTH(Year1Table[[#This Row],[Date]]),PenaltyTable[Year]&PenaltyTable[Month],PenaltyTable[Daily])*$W$10,"") ->  | AF88: =IF(ROW()-ROW(Year2Table[#Headers])=1,$AI$193,IF(AG86="","",IF(AND($B$7<>"",AE88>=$B$7),$C$7,IF(AND($B$6<>"",AE88>=$B$6),$C$6,IF(AE88>=$B$5,$C$5,IF(AE88<$B$5,0)))))) ->  | AH88: =IFERROR(_xlfn.XLOOKUP(YEAR(Year2Table[[#This Row],[Date]])&MONTH(Year2Table[[#This Row],[Date]]),PenaltyTable[Year]&PenaltyTable[Month],PenaltyTable[Daily])*$AG$10,"") ->  | AR88: =IFERROR(_xlfn.XLOOKUP(YEAR(Year3Table[[#This Row],[Date]])&MONTH(Year3Table[[#This Row],[Date]]),PenaltyTable[Year]&PenaltyTable[Month],PenaltyTable[Daily])*$AQ$10,"") ->  | BB88: =IFERROR(_xlfn.XLOOKUP(YEAR(Year4Table[[#This Row],[Date]])&MONTH(Year4Table[[#This Row],[Date]]),PenaltyTable[Year]&PenaltyTable[Month],PenaltyTable[Daily])*$BA$10,"") ->  | BL88: =IFERROR(_xlfn.XLOOKUP(YEAR(Year5Table[[#This Row],[Date]])&MONTH(Year5Table[[#This Row],[Date]]),PenaltyTable[Year]&PenaltyTable[Month],PenaltyTable[Daily])*$BK$10,"") ->  | BV88: =IFERROR(_xlfn.XLOOKUP(YEAR(Year6Table[[#This Row],[Date]])&MONTH(Year6Table[[#This Row],[Date]]),PenaltyTable[Year]&PenaltyTable[Month],PenaltyTable[Daily])*$BU$10,"") ->  | CF88: =IFERROR(_xlfn.XLOOKUP(YEAR(Year7Table[[#This Row],[Date]])&MONTH(Year7Table[[#This Row],[Date]]),PenaltyTable[Year]&PenaltyTable[Month],PenaltyTable[Daily])*CE$10,"") ->  | CP88: =IFERROR(_xlfn.XLOOKUP(YEAR(Year8Table[[#This Row],[Date]])&MONTH(Year8Table[[#This Row],[Date]]),PenaltyTable[Year]&PenaltyTable[Month],PenaltyTable[Daily])*$CO$10,"") ->  | CZ88: =IFERROR(_xlfn.XLOOKUP(YEAR(Year9Table[[#This Row],[Date]])&MONTH(Year9Table[[#This Row],[Date]]),PenaltyTable[Year]&PenaltyTable[Month],PenaltyTable[Daily])*$CY$10,"") ->  | DJ88: =IFERROR(_xlfn.XLOOKUP(YEAR(Year10Table[[#This Row],[Date]])&MONTH(Year10Table[[#This Row],[Date]]),PenaltyTable[Year]&PenaltyTable[Month],PenaltyTable[Daily])*$DI$10,"") -> 
U89: =IFERROR(IF((ROW()-ROW(Year1Table[#Headers]))=1,IF(OR(Table1[[#This Row],[Tax Assessed]]="",Table1[[#This Row],[Tax Assessed]]=0),"",Table1[[#This Row],[Tax Due Dt]]),IF((ROW()-ROW(Year1Table[#Headers]))>1,IF(OFFSET(AB89,-1,)<1,"",EDATE(U88,1)))),"") ->  | X89: =IFERROR(_xlfn.XLOOKUP(YEAR(Year1Table[[#This Row],[Date]])&MONTH(Year1Table[[#This Row],[Date]]),PenaltyTable[Year]&PenaltyTable[Month],PenaltyTable[Daily])*$W$10,"") ->  | AF89: =IF(ROW()-ROW(Year2Table[#Headers])=1,$AI$193,IF(AG87="","",IF(AND($B$7<>"",AE89>=$B$7),$C$7,IF(AND($B$6<>"",AE89>=$B$6),$C$6,IF(AE89>=$B$5,$C$5,IF(AE89<$B$5,0)))))) ->  | AH89: =IFERROR(_xlfn.XLOOKUP(YEAR(Year2Table[[#This Row],[Date]])&MONTH(Year2Table[[#This Row],[Date]]),PenaltyTable[Year]&PenaltyTable[Month],PenaltyTable[Daily])*$AG$10,"") ->  | AR89: =IFERROR(_xlfn.XLOOKUP(YEAR(Year3Table[[#This Row],[Date]])&MONTH(Year3Table[[#This Row],[Date]]),PenaltyTable[Year]&PenaltyTable[Month],PenaltyTable[Daily])*$AQ$10,"") ->  | BB89: =IFERROR(_xlfn.XLOOKUP(YEAR(Year4Table[[#This Row],[Date]])&MONTH(Year4Table[[#This Row],[Date]]),PenaltyTable[Year]&PenaltyTable[Month],PenaltyTable[Daily])*$BA$10,"") ->  | BL89: =IFERROR(_xlfn.XLOOKUP(YEAR(Year5Table[[#This Row],[Date]])&MONTH(Year5Table[[#This Row],[Date]]),PenaltyTable[Year]&PenaltyTable[Month],PenaltyTable[Daily])*$BK$10,"") ->  | BV89: =IFERROR(_xlfn.XLOOKUP(YEAR(Year6Table[[#This Row],[Date]])&MONTH(Year6Table[[#This Row],[Date]]),PenaltyTable[Year]&PenaltyTable[Month],PenaltyTable[Daily])*$BU$10,"") ->  | CF89: =IFERROR(_xlfn.XLOOKUP(YEAR(Year7Table[[#This Row],[Date]])&MONTH(Year7Table[[#This Row],[Date]]),PenaltyTable[Year]&PenaltyTable[Month],PenaltyTable[Daily])*CE$10,"") ->  | CP89: =IFERROR(_xlfn.XLOOKUP(YEAR(Year8Table[[#This Row],[Date]])&MONTH(Year8Table[[#This Row],[Date]]),PenaltyTable[Year]&PenaltyTable[Month],PenaltyTable[Daily])*$CO$10,"") ->  | CZ89: =IFERROR(_xlfn.XLOOKUP(YEAR(Year9Table[[#This Row],[Date]])&MONTH(Year9Table[[#This Row],[Date]]),PenaltyTable[Year]&PenaltyTable[Month],PenaltyTable[Daily])*$CY$10,"") ->  | DJ89: =IFERROR(_xlfn.XLOOKUP(YEAR(Year10Table[[#This Row],[Date]])&MONTH(Year10Table[[#This Row],[Date]]),PenaltyTable[Year]&PenaltyTable[Month],PenaltyTable[Daily])*$DI$10,"") -> 
U90: =IFERROR(IF((ROW()-ROW(Year1Table[#Headers]))=1,IF(OR(Table1[[#This Row],[Tax Assessed]]="",Table1[[#This Row],[Tax Assessed]]=0),"",Table1[[#This Row],[Tax Due Dt]]),IF((ROW()-ROW(Year1Table[#Headers]))>1,IF(OFFSET(AB90,-1,)<1,"",EDATE(U89,1)))),"") ->  | X90: =IFERROR(_xlfn.XLOOKUP(YEAR(Year1Table[[#This Row],[Date]])&MONTH(Year1Table[[#This Row],[Date]]),PenaltyTable[Year]&PenaltyTable[Month],PenaltyTable[Daily])*$W$10,"") ->  | AF90: =IF(ROW()-ROW(Year2Table[#Headers])=1,$AI$193,IF(AG88="","",IF(AND($B$7<>"",AE90>=$B$7),$C$7,IF(AND($B$6<>"",AE90>=$B$6),$C$6,IF(AE90>=$B$5,$C$5,IF(AE90<$B$5,0)))))) ->  | AH90: =IFERROR(_xlfn.XLOOKUP(YEAR(Year2Table[[#This Row],[Date]])&MONTH(Year2Table[[#This Row],[Date]]),PenaltyTable[Year]&PenaltyTable[Month],PenaltyTable[Daily])*$AG$10,"") ->  | AR90: =IFERROR(_xlfn.XLOOKUP(YEAR(Year3Table[[#This Row],[Date]])&MONTH(Year3Table[[#This Row],[Date]]),PenaltyTable[Year]&PenaltyTable[Month],PenaltyTable[Daily])*$AQ$10,"") ->  | BB90: =IFERROR(_xlfn.XLOOKUP(YEAR(Year4Table[[#This Row],[Date]])&MONTH(Year4Table[[#This Row],[Date]]),PenaltyTable[Year]&PenaltyTable[Month],PenaltyTable[Daily])*$BA$10,"") ->  | BL90: =IFERROR(_xlfn.XLOOKUP(YEAR(Year5Table[[#This Row],[Date]])&MONTH(Year5Table[[#This Row],[Date]]),PenaltyTable[Year]&PenaltyTable[Month],PenaltyTable[Daily])*$BK$10,"") ->  | BV90: =IFERROR(_xlfn.XLOOKUP(YEAR(Year6Table[[#This Row],[Date]])&MONTH(Year6Table[[#This Row],[Date]]),PenaltyTable[Year]&PenaltyTable[Month],PenaltyTable[Daily])*$BU$10,"") ->  | CF90: =IFERROR(_xlfn.XLOOKUP(YEAR(Year7Table[[#This Row],[Date]])&MONTH(Year7Table[[#This Row],[Date]]),PenaltyTable[Year]&PenaltyTable[Month],PenaltyTable[Daily])*CE$10,"") ->  | CP90: =IFERROR(_xlfn.XLOOKUP(YEAR(Year8Table[[#This Row],[Date]])&MONTH(Year8Table[[#This Row],[Date]]),PenaltyTable[Year]&PenaltyTable[Month],PenaltyTable[Daily])*$CO$10,"") ->  | CZ90: =IFERROR(_xlfn.XLOOKUP(YEAR(Year9Table[[#This Row],[Date]])&MONTH(Year9Table[[#This Row],[Date]]),PenaltyTable[Year]&PenaltyTable[Month],PenaltyTable[Daily])*$CY$10,"") ->  | DJ90: =IFERROR(_xlfn.XLOOKUP(YEAR(Year10Table[[#This Row],[Date]])&MONTH(Year10Table[[#This Row],[Date]]),PenaltyTable[Year]&PenaltyTable[Month],PenaltyTable[Daily])*$DI$10,"") -> 
U91: =IFERROR(IF((ROW()-ROW(Year1Table[#Headers]))=1,IF(OR(Table1[[#This Row],[Tax Assessed]]="",Table1[[#This Row],[Tax Assessed]]=0),"",Table1[[#This Row],[Tax Due Dt]]),IF((ROW()-ROW(Year1Table[#Headers]))>1,IF(OFFSET(AB91,-1,)<1,"",EDATE(U90,1)))),"") ->  | X91: =IFERROR(_xlfn.XLOOKUP(YEAR(Year1Table[[#This Row],[Date]])&MONTH(Year1Table[[#This Row],[Date]]),PenaltyTable[Year]&PenaltyTable[Month],PenaltyTable[Daily])*$W$10,"") ->  | AF91: =IF(ROW()-ROW(Year2Table[#Headers])=1,$AI$193,IF(AG89="","",IF(AND($B$7<>"",AE91>=$B$7),$C$7,IF(AND($B$6<>"",AE91>=$B$6),$C$6,IF(AE91>=$B$5,$C$5,IF(AE91<$B$5,0)))))) ->  | AH91: =IFERROR(_xlfn.XLOOKUP(YEAR(Year2Table[[#This Row],[Date]])&MONTH(Year2Table[[#This Row],[Date]]),PenaltyTable[Year]&PenaltyTable[Month],PenaltyTable[Daily])*$AG$10,"") ->  | AR91: =IFERROR(_xlfn.XLOOKUP(YEAR(Year3Table[[#This Row],[Date]])&MONTH(Year3Table[[#This Row],[Date]]),PenaltyTable[Year]&PenaltyTable[Month],PenaltyTable[Daily])*$AQ$10,"") ->  | BB91: =IFERROR(_xlfn.XLOOKUP(YEAR(Year4Table[[#This Row],[Date]])&MONTH(Year4Table[[#This Row],[Date]]),PenaltyTable[Year]&PenaltyTable[Month],PenaltyTable[Daily])*$BA$10,"") ->  | BL91: =IFERROR(_xlfn.XLOOKUP(YEAR(Year5Table[[#This Row],[Date]])&MONTH(Year5Table[[#This Row],[Date]]),PenaltyTable[Year]&PenaltyTable[Month],PenaltyTable[Daily])*$BK$10,"") ->  | BV91: =IFERROR(_xlfn.XLOOKUP(YEAR(Year6Table[[#This Row],[Date]])&MONTH(Year6Table[[#This Row],[Date]]),PenaltyTable[Year]&PenaltyTable[Month],PenaltyTable[Daily])*$BU$10,"") ->  | CF91: =IFERROR(_xlfn.XLOOKUP(YEAR(Year7Table[[#This Row],[Date]])&MONTH(Year7Table[[#This Row],[Date]]),PenaltyTable[Year]&PenaltyTable[Month],PenaltyTable[Daily])*CE$10,"") ->  | CP91: =IFERROR(_xlfn.XLOOKUP(YEAR(Year8Table[[#This Row],[Date]])&MONTH(Year8Table[[#This Row],[Date]]),PenaltyTable[Year]&PenaltyTable[Month],PenaltyTable[Daily])*$CO$10,"") ->  | CZ91: =IFERROR(_xlfn.XLOOKUP(YEAR(Year9Table[[#This Row],[Date]])&MONTH(Year9Table[[#This Row],[Date]]),PenaltyTable[Year]&PenaltyTable[Month],PenaltyTable[Daily])*$CY$10,"") ->  | DJ91: =IFERROR(_xlfn.XLOOKUP(YEAR(Year10Table[[#This Row],[Date]])&MONTH(Year10Table[[#This Row],[Date]]),PenaltyTable[Year]&PenaltyTable[Month],PenaltyTable[Daily])*$DI$10,"") -> 
U92: =IFERROR(IF((ROW()-ROW(Year1Table[#Headers]))=1,IF(OR(Table1[[#This Row],[Tax Assessed]]="",Table1[[#This Row],[Tax Assessed]]=0),"",Table1[[#This Row],[Tax Due Dt]]),IF((ROW()-ROW(Year1Table[#Headers]))>1,IF(OFFSET(AB92,-1,)<1,"",EDATE(U91,1)))),"") ->  | X92: =IFERROR(_xlfn.XLOOKUP(YEAR(Year1Table[[#This Row],[Date]])&MONTH(Year1Table[[#This Row],[Date]]),PenaltyTable[Year]&PenaltyTable[Month],PenaltyTable[Daily])*$W$10,"") ->  | AF92: =IF(ROW()-ROW(Year2Table[#Headers])=1,$AI$193,IF(AG90="","",IF(AND($B$7<>"",AE92>=$B$7),$C$7,IF(AND($B$6<>"",AE92>=$B$6),$C$6,IF(AE92>=$B$5,$C$5,IF(AE92<$B$5,0)))))) ->  | AH92: =IFERROR(_xlfn.XLOOKUP(YEAR(Year2Table[[#This Row],[Date]])&MONTH(Year2Table[[#This Row],[Date]]),PenaltyTable[Year]&PenaltyTable[Month],PenaltyTable[Daily])*$AG$10,"") ->  | AR92: =IFERROR(_xlfn.XLOOKUP(YEAR(Year3Table[[#This Row],[Date]])&MONTH(Year3Table[[#This Row],[Date]]),PenaltyTable[Year]&PenaltyTable[Month],PenaltyTable[Daily])*$AQ$10,"") ->  | BB92: =IFERROR(_xlfn.XLOOKUP(YEAR(Year4Table[[#This Row],[Date]])&MONTH(Year4Table[[#This Row],[Date]]),PenaltyTable[Year]&PenaltyTable[Month],PenaltyTable[Daily])*$BA$10,"") ->  | BL92: =IFERROR(_xlfn.XLOOKUP(YEAR(Year5Table[[#This Row],[Date]])&MONTH(Year5Table[[#This Row],[Date]]),PenaltyTable[Year]&PenaltyTable[Month],PenaltyTable[Daily])*$BK$10,"") ->  | BV92: =IFERROR(_xlfn.XLOOKUP(YEAR(Year6Table[[#This Row],[Date]])&MONTH(Year6Table[[#This Row],[Date]]),PenaltyTable[Year]&PenaltyTable[Month],PenaltyTable[Daily])*$BU$10,"") ->  | CF92: =IFERROR(_xlfn.XLOOKUP(YEAR(Year7Table[[#This Row],[Date]])&MONTH(Year7Table[[#This Row],[Date]]),PenaltyTable[Year]&PenaltyTable[Month],PenaltyTable[Daily])*CE$10,"") ->  | CP92: =IFERROR(_xlfn.XLOOKUP(YEAR(Year8Table[[#This Row],[Date]])&MONTH(Year8Table[[#This Row],[Date]]),PenaltyTable[Year]&PenaltyTable[Month],PenaltyTable[Daily])*$CO$10,"") ->  | CZ92: =IFERROR(_xlfn.XLOOKUP(YEAR(Year9Table[[#This Row],[Date]])&MONTH(Year9Table[[#This Row],[Date]]),PenaltyTable[Year]&PenaltyTable[Month],PenaltyTable[Daily])*$CY$10,"") ->  | DJ92: =IFERROR(_xlfn.XLOOKUP(YEAR(Year10Table[[#This Row],[Date]])&MONTH(Year10Table[[#This Row],[Date]]),PenaltyTable[Year]&PenaltyTable[Month],PenaltyTable[Daily])*$DI$10,"") -> 
U93: =IFERROR(IF((ROW()-ROW(Year1Table[#Headers]))=1,IF(OR(Table1[[#This Row],[Tax Assessed]]="",Table1[[#This Row],[Tax Assessed]]=0),"",Table1[[#This Row],[Tax Due Dt]]),IF((ROW()-ROW(Year1Table[#Headers]))>1,IF(OFFSET(AB93,-1,)<1,"",EDATE(U92,1)))),"") ->  | X93: =IFERROR(_xlfn.XLOOKUP(YEAR(Year1Table[[#This Row],[Date]])&MONTH(Year1Table[[#This Row],[Date]]),PenaltyTable[Year]&PenaltyTable[Month],PenaltyTable[Daily])*$W$10,"") ->  | AF93: =IF(ROW()-ROW(Year2Table[#Headers])=1,$AI$193,IF(AG91="","",IF(AND($B$7<>"",AE93>=$B$7),$C$7,IF(AND($B$6<>"",AE93>=$B$6),$C$6,IF(AE93>=$B$5,$C$5,IF(AE93<$B$5,0)))))) ->  | AH93: =IFERROR(_xlfn.XLOOKUP(YEAR(Year2Table[[#This Row],[Date]])&MONTH(Year2Table[[#This Row],[Date]]),PenaltyTable[Year]&PenaltyTable[Month],PenaltyTable[Daily])*$AG$10,"") ->  | AR93: =IFERROR(_xlfn.XLOOKUP(YEAR(Year3Table[[#This Row],[Date]])&MONTH(Year3Table[[#This Row],[Date]]),PenaltyTable[Year]&PenaltyTable[Month],PenaltyTable[Daily])*$AQ$10,"") ->  | BB93: =IFERROR(_xlfn.XLOOKUP(YEAR(Year4Table[[#This Row],[Date]])&MONTH(Year4Table[[#This Row],[Date]]),PenaltyTable[Year]&PenaltyTable[Month],PenaltyTable[Daily])*$BA$10,"") ->  | BL93: =IFERROR(_xlfn.XLOOKUP(YEAR(Year5Table[[#This Row],[Date]])&MONTH(Year5Table[[#This Row],[Date]]),PenaltyTable[Year]&PenaltyTable[Month],PenaltyTable[Daily])*$BK$10,"") ->  | BV93: =IFERROR(_xlfn.XLOOKUP(YEAR(Year6Table[[#This Row],[Date]])&MONTH(Year6Table[[#This Row],[Date]]),PenaltyTable[Year]&PenaltyTable[Month],PenaltyTable[Daily])*$BU$10,"") ->  | CF93: =IFERROR(_xlfn.XLOOKUP(YEAR(Year7Table[[#This Row],[Date]])&MONTH(Year7Table[[#This Row],[Date]]),PenaltyTable[Year]&PenaltyTable[Month],PenaltyTable[Daily])*CE$10,"") ->  | CP93: =IFERROR(_xlfn.XLOOKUP(YEAR(Year8Table[[#This Row],[Date]])&MONTH(Year8Table[[#This Row],[Date]]),PenaltyTable[Year]&PenaltyTable[Month],PenaltyTable[Daily])*$CO$10,"") ->  | CZ93: =IFERROR(_xlfn.XLOOKUP(YEAR(Year9Table[[#This Row],[Date]])&MONTH(Year9Table[[#This Row],[Date]]),PenaltyTable[Year]&PenaltyTable[Month],PenaltyTable[Daily])*$CY$10,"") ->  | DJ93: =IFERROR(_xlfn.XLOOKUP(YEAR(Year10Table[[#This Row],[Date]])&MONTH(Year10Table[[#This Row],[Date]]),PenaltyTable[Year]&PenaltyTable[Month],PenaltyTable[Daily])*$DI$10,"") -> 
U94: =IFERROR(IF((ROW()-ROW(Year1Table[#Headers]))=1,IF(OR(Table1[[#This Row],[Tax Assessed]]="",Table1[[#This Row],[Tax Assessed]]=0),"",Table1[[#This Row],[Tax Due Dt]]),IF((ROW()-ROW(Year1Table[#Headers]))>1,IF(OFFSET(AB94,-1,)<1,"",EDATE(U93,1)))),"") ->  | X94: =IFERROR(_xlfn.XLOOKUP(YEAR(Year1Table[[#This Row],[Date]])&MONTH(Year1Table[[#This Row],[Date]]),PenaltyTable[Year]&PenaltyTable[Month],PenaltyTable[Daily])*$W$10,"") ->  | AF94: =IF(ROW()-ROW(Year2Table[#Headers])=1,$AI$193,IF(AG92="","",IF(AND($B$7<>"",AE94>=$B$7),$C$7,IF(AND($B$6<>"",AE94>=$B$6),$C$6,IF(AE94>=$B$5,$C$5,IF(AE94<$B$5,0)))))) ->  | AH94: =IFERROR(_xlfn.XLOOKUP(YEAR(Year2Table[[#This Row],[Date]])&MONTH(Year2Table[[#This Row],[Date]]),PenaltyTable[Year]&PenaltyTable[Month],PenaltyTable[Daily])*$AG$10,"") ->  | AR94: =IFERROR(_xlfn.XLOOKUP(YEAR(Year3Table[[#This Row],[Date]])&MONTH(Year3Table[[#This Row],[Date]]),PenaltyTable[Year]&PenaltyTable[Month],PenaltyTable[Daily])*$AQ$10,"") ->  | BB94: =IFERROR(_xlfn.XLOOKUP(YEAR(Year4Table[[#This Row],[Date]])&MONTH(Year4Table[[#This Row],[Date]]),PenaltyTable[Year]&PenaltyTable[Month],PenaltyTable[Daily])*$BA$10,"") ->  | BL94: =IFERROR(_xlfn.XLOOKUP(YEAR(Year5Table[[#This Row],[Date]])&MONTH(Year5Table[[#This Row],[Date]]),PenaltyTable[Year]&PenaltyTable[Month],PenaltyTable[Daily])*$BK$10,"") ->  | BV94: =IFERROR(_xlfn.XLOOKUP(YEAR(Year6Table[[#This Row],[Date]])&MONTH(Year6Table[[#This Row],[Date]]),PenaltyTable[Year]&PenaltyTable[Month],PenaltyTable[Daily])*$BU$10,"") ->  | CF94: =IFERROR(_xlfn.XLOOKUP(YEAR(Year7Table[[#This Row],[Date]])&MONTH(Year7Table[[#This Row],[Date]]),PenaltyTable[Year]&PenaltyTable[Month],PenaltyTable[Daily])*CE$10,"") ->  | CP94: =IFERROR(_xlfn.XLOOKUP(YEAR(Year8Table[[#This Row],[Date]])&MONTH(Year8Table[[#This Row],[Date]]),PenaltyTable[Year]&PenaltyTable[Month],PenaltyTable[Daily])*$CO$10,"") ->  | CZ94: =IFERROR(_xlfn.XLOOKUP(YEAR(Year9Table[[#This Row],[Date]])&MONTH(Year9Table[[#This Row],[Date]]),PenaltyTable[Year]&PenaltyTable[Month],PenaltyTable[Daily])*$CY$10,"") ->  | DJ94: =IFERROR(_xlfn.XLOOKUP(YEAR(Year10Table[[#This Row],[Date]])&MONTH(Year10Table[[#This Row],[Date]]),PenaltyTable[Year]&PenaltyTable[Month],PenaltyTable[Daily])*$DI$10,"") -> 
U95: =IFERROR(IF((ROW()-ROW(Year1Table[#Headers]))=1,IF(OR(Table1[[#This Row],[Tax Assessed]]="",Table1[[#This Row],[Tax Assessed]]=0),"",Table1[[#This Row],[Tax Due Dt]]),IF((ROW()-ROW(Year1Table[#Headers]))>1,IF(OFFSET(AB95,-1,)<1,"",EDATE(U94,1)))),"") ->  | X95: =IFERROR(_xlfn.XLOOKUP(YEAR(Year1Table[[#This Row],[Date]])&MONTH(Year1Table[[#This Row],[Date]]),PenaltyTable[Year]&PenaltyTable[Month],PenaltyTable[Daily])*$W$10,"") ->  | AF95: =IF(ROW()-ROW(Year2Table[#Headers])=1,$AI$193,IF(AG93="","",IF(AND($B$7<>"",AE95>=$B$7),$C$7,IF(AND($B$6<>"",AE95>=$B$6),$C$6,IF(AE95>=$B$5,$C$5,IF(AE95<$B$5,0)))))) ->  | AH95: =IFERROR(_xlfn.XLOOKUP(YEAR(Year2Table[[#This Row],[Date]])&MONTH(Year2Table[[#This Row],[Date]]),PenaltyTable[Year]&PenaltyTable[Month],PenaltyTable[Daily])*$AG$10,"") ->  | AR95: =IFERROR(_xlfn.XLOOKUP(YEAR(Year3Table[[#This Row],[Date]])&MONTH(Year3Table[[#This Row],[Date]]),PenaltyTable[Year]&PenaltyTable[Month],PenaltyTable[Daily])*$AQ$10,"") ->  | BB95: =IFERROR(_xlfn.XLOOKUP(YEAR(Year4Table[[#This Row],[Date]])&MONTH(Year4Table[[#This Row],[Date]]),PenaltyTable[Year]&PenaltyTable[Month],PenaltyTable[Daily])*$BA$10,"") ->  | BL95: =IFERROR(_xlfn.XLOOKUP(YEAR(Year5Table[[#This Row],[Date]])&MONTH(Year5Table[[#This Row],[Date]]),PenaltyTable[Year]&PenaltyTable[Month],PenaltyTable[Daily])*$BK$10,"") ->  | BV95: =IFERROR(_xlfn.XLOOKUP(YEAR(Year6Table[[#This Row],[Date]])&MONTH(Year6Table[[#This Row],[Date]]),PenaltyTable[Year]&PenaltyTable[Month],PenaltyTable[Daily])*$BU$10,"") ->  | CF95: =IFERROR(_xlfn.XLOOKUP(YEAR(Year7Table[[#This Row],[Date]])&MONTH(Year7Table[[#This Row],[Date]]),PenaltyTable[Year]&PenaltyTable[Month],PenaltyTable[Daily])*CE$10,"") ->  | CP95: =IFERROR(_xlfn.XLOOKUP(YEAR(Year8Table[[#This Row],[Date]])&MONTH(Year8Table[[#This Row],[Date]]),PenaltyTable[Year]&PenaltyTable[Month],PenaltyTable[Daily])*$CO$10,"") ->  | CZ95: =IFERROR(_xlfn.XLOOKUP(YEAR(Year9Table[[#This Row],[Date]])&MONTH(Year9Table[[#This Row],[Date]]),PenaltyTable[Year]&PenaltyTable[Month],PenaltyTable[Daily])*$CY$10,"") ->  | DJ95: =IFERROR(_xlfn.XLOOKUP(YEAR(Year10Table[[#This Row],[Date]])&MONTH(Year10Table[[#This Row],[Date]]),PenaltyTable[Year]&PenaltyTable[Month],PenaltyTable[Daily])*$DI$10,"") -> 
U96: =IFERROR(IF((ROW()-ROW(Year1Table[#Headers]))=1,IF(OR(Table1[[#This Row],[Tax Assessed]]="",Table1[[#This Row],[Tax Assessed]]=0),"",Table1[[#This Row],[Tax Due Dt]]),IF((ROW()-ROW(Year1Table[#Headers]))>1,IF(OFFSET(AB96,-1,)<1,"",EDATE(U95,1)))),"") ->  | X96: =IFERROR(_xlfn.XLOOKUP(YEAR(Year1Table[[#This Row],[Date]])&MONTH(Year1Table[[#This Row],[Date]]),PenaltyTable[Year]&PenaltyTable[Month],PenaltyTable[Daily])*$W$10,"") ->  | AF96: =IF(ROW()-ROW(Year2Table[#Headers])=1,$AI$193,IF(AG94="","",IF(AND($B$7<>"",AE96>=$B$7),$C$7,IF(AND($B$6<>"",AE96>=$B$6),$C$6,IF(AE96>=$B$5,$C$5,IF(AE96<$B$5,0)))))) ->  | AH96: =IFERROR(_xlfn.XLOOKUP(YEAR(Year2Table[[#This Row],[Date]])&MONTH(Year2Table[[#This Row],[Date]]),PenaltyTable[Year]&PenaltyTable[Month],PenaltyTable[Daily])*$AG$10,"") ->  | AR96: =IFERROR(_xlfn.XLOOKUP(YEAR(Year3Table[[#This Row],[Date]])&MONTH(Year3Table[[#This Row],[Date]]),PenaltyTable[Year]&PenaltyTable[Month],PenaltyTable[Daily])*$AQ$10,"") ->  | BB96: =IFERROR(_xlfn.XLOOKUP(YEAR(Year4Table[[#This Row],[Date]])&MONTH(Year4Table[[#This Row],[Date]]),PenaltyTable[Year]&PenaltyTable[Month],PenaltyTable[Daily])*$BA$10,"") ->  | BL96: =IFERROR(_xlfn.XLOOKUP(YEAR(Year5Table[[#This Row],[Date]])&MONTH(Year5Table[[#This Row],[Date]]),PenaltyTable[Year]&PenaltyTable[Month],PenaltyTable[Daily])*$BK$10,"") ->  | BV96: =IFERROR(_xlfn.XLOOKUP(YEAR(Year6Table[[#This Row],[Date]])&MONTH(Year6Table[[#This Row],[Date]]),PenaltyTable[Year]&PenaltyTable[Month],PenaltyTable[Daily])*$BU$10,"") ->  | CF96: =IFERROR(_xlfn.XLOOKUP(YEAR(Year7Table[[#This Row],[Date]])&MONTH(Year7Table[[#This Row],[Date]]),PenaltyTable[Year]&PenaltyTable[Month],PenaltyTable[Daily])*CE$10,"") ->  | CP96: =IFERROR(_xlfn.XLOOKUP(YEAR(Year8Table[[#This Row],[Date]])&MONTH(Year8Table[[#This Row],[Date]]),PenaltyTable[Year]&PenaltyTable[Month],PenaltyTable[Daily])*$CO$10,"") ->  | CZ96: =IFERROR(_xlfn.XLOOKUP(YEAR(Year9Table[[#This Row],[Date]])&MONTH(Year9Table[[#This Row],[Date]]),PenaltyTable[Year]&PenaltyTable[Month],PenaltyTable[Daily])*$CY$10,"") ->  | DJ96: =IFERROR(_xlfn.XLOOKUP(YEAR(Year10Table[[#This Row],[Date]])&MONTH(Year10Table[[#This Row],[Date]]),PenaltyTable[Year]&PenaltyTable[Month],PenaltyTable[Daily])*$DI$10,"") -> 
U97: =IFERROR(IF((ROW()-ROW(Year1Table[#Headers]))=1,IF(OR(Table1[[#This Row],[Tax Assessed]]="",Table1[[#This Row],[Tax Assessed]]=0),"",Table1[[#This Row],[Tax Due Dt]]),IF((ROW()-ROW(Year1Table[#Headers]))>1,IF(OFFSET(AB97,-1,)<1,"",EDATE(U96,1)))),"") ->  | X97: =IFERROR(_xlfn.XLOOKUP(YEAR(Year1Table[[#This Row],[Date]])&MONTH(Year1Table[[#This Row],[Date]]),PenaltyTable[Year]&PenaltyTable[Month],PenaltyTable[Daily])*$W$10,"") ->  | AF97: =IF(ROW()-ROW(Year2Table[#Headers])=1,$AI$193,IF(AG95="","",IF(AND($B$7<>"",AE97>=$B$7),$C$7,IF(AND($B$6<>"",AE97>=$B$6),$C$6,IF(AE97>=$B$5,$C$5,IF(AE97<$B$5,0)))))) ->  | AH97: =IFERROR(_xlfn.XLOOKUP(YEAR(Year2Table[[#This Row],[Date]])&MONTH(Year2Table[[#This Row],[Date]]),PenaltyTable[Year]&PenaltyTable[Month],PenaltyTable[Daily])*$AG$10,"") ->  | AR97: =IFERROR(_xlfn.XLOOKUP(YEAR(Year3Table[[#This Row],[Date]])&MONTH(Year3Table[[#This Row],[Date]]),PenaltyTable[Year]&PenaltyTable[Month],PenaltyTable[Daily])*$AQ$10,"") ->  | BB97: =IFERROR(_xlfn.XLOOKUP(YEAR(Year4Table[[#This Row],[Date]])&MONTH(Year4Table[[#This Row],[Date]]),PenaltyTable[Year]&PenaltyTable[Month],PenaltyTable[Daily])*$BA$10,"") ->  | BL97: =IFERROR(_xlfn.XLOOKUP(YEAR(Year5Table[[#This Row],[Date]])&MONTH(Year5Table[[#This Row],[Date]]),PenaltyTable[Year]&PenaltyTable[Month],PenaltyTable[Daily])*$BK$10,"") ->  | BV97: =IFERROR(_xlfn.XLOOKUP(YEAR(Year6Table[[#This Row],[Date]])&MONTH(Year6Table[[#This Row],[Date]]),PenaltyTable[Year]&PenaltyTable[Month],PenaltyTable[Daily])*$BU$10,"") ->  | CF97: =IFERROR(_xlfn.XLOOKUP(YEAR(Year7Table[[#This Row],[Date]])&MONTH(Year7Table[[#This Row],[Date]]),PenaltyTable[Year]&PenaltyTable[Month],PenaltyTable[Daily])*CE$10,"") ->  | CP97: =IFERROR(_xlfn.XLOOKUP(YEAR(Year8Table[[#This Row],[Date]])&MONTH(Year8Table[[#This Row],[Date]]),PenaltyTable[Year]&PenaltyTable[Month],PenaltyTable[Daily])*$CO$10,"") ->  | CZ97: =IFERROR(_xlfn.XLOOKUP(YEAR(Year9Table[[#This Row],[Date]])&MONTH(Year9Table[[#This Row],[Date]]),PenaltyTable[Year]&PenaltyTable[Month],PenaltyTable[Daily])*$CY$10,"") ->  | DJ97: =IFERROR(_xlfn.XLOOKUP(YEAR(Year10Table[[#This Row],[Date]])&MONTH(Year10Table[[#This Row],[Date]]),PenaltyTable[Year]&PenaltyTable[Month],PenaltyTable[Daily])*$DI$10,"") -> 
U98: =IFERROR(IF((ROW()-ROW(Year1Table[#Headers]))=1,IF(OR(Table1[[#This Row],[Tax Assessed]]="",Table1[[#This Row],[Tax Assessed]]=0),"",Table1[[#This Row],[Tax Due Dt]]),IF((ROW()-ROW(Year1Table[#Headers]))>1,IF(OFFSET(AB98,-1,)<1,"",EDATE(U97,1)))),"") ->  | X98: =IFERROR(_xlfn.XLOOKUP(YEAR(Year1Table[[#This Row],[Date]])&MONTH(Year1Table[[#This Row],[Date]]),PenaltyTable[Year]&PenaltyTable[Month],PenaltyTable[Daily])*$W$10,"") ->  | AF98: =IF(ROW()-ROW(Year2Table[#Headers])=1,$AI$193,IF(AG96="","",IF(AND($B$7<>"",AE98>=$B$7),$C$7,IF(AND($B$6<>"",AE98>=$B$6),$C$6,IF(AE98>=$B$5,$C$5,IF(AE98<$B$5,0)))))) ->  | AH98: =IFERROR(_xlfn.XLOOKUP(YEAR(Year2Table[[#This Row],[Date]])&MONTH(Year2Table[[#This Row],[Date]]),PenaltyTable[Year]&PenaltyTable[Month],PenaltyTable[Daily])*$AG$10,"") ->  | AR98: =IFERROR(_xlfn.XLOOKUP(YEAR(Year3Table[[#This Row],[Date]])&MONTH(Year3Table[[#This Row],[Date]]),PenaltyTable[Year]&PenaltyTable[Month],PenaltyTable[Daily])*$AQ$10,"") ->  | BB98: =IFERROR(_xlfn.XLOOKUP(YEAR(Year4Table[[#This Row],[Date]])&MONTH(Year4Table[[#This Row],[Date]]),PenaltyTable[Year]&PenaltyTable[Month],PenaltyTable[Daily])*$BA$10,"") ->  | BL98: =IFERROR(_xlfn.XLOOKUP(YEAR(Year5Table[[#This Row],[Date]])&MONTH(Year5Table[[#This Row],[Date]]),PenaltyTable[Year]&PenaltyTable[Month],PenaltyTable[Daily])*$BK$10,"") ->  | BV98: =IFERROR(_xlfn.XLOOKUP(YEAR(Year6Table[[#This Row],[Date]])&MONTH(Year6Table[[#This Row],[Date]]),PenaltyTable[Year]&PenaltyTable[Month],PenaltyTable[Daily])*$BU$10,"") ->  | CF98: =IFERROR(_xlfn.XLOOKUP(YEAR(Year7Table[[#This Row],[Date]])&MONTH(Year7Table[[#This Row],[Date]]),PenaltyTable[Year]&PenaltyTable[Month],PenaltyTable[Daily])*CE$10,"") ->  | CP98: =IFERROR(_xlfn.XLOOKUP(YEAR(Year8Table[[#This Row],[Date]])&MONTH(Year8Table[[#This Row],[Date]]),PenaltyTable[Year]&PenaltyTable[Month],PenaltyTable[Daily])*$CO$10,"") ->  | CZ98: =IFERROR(_xlfn.XLOOKUP(YEAR(Year9Table[[#This Row],[Date]])&MONTH(Year9Table[[#This Row],[Date]]),PenaltyTable[Year]&PenaltyTable[Month],PenaltyTable[Daily])*$CY$10,"") ->  | DJ98: =IFERROR(_xlfn.XLOOKUP(YEAR(Year10Table[[#This Row],[Date]])&MONTH(Year10Table[[#This Row],[Date]]),PenaltyTable[Year]&PenaltyTable[Month],PenaltyTable[Daily])*$DI$10,"") -> 
U99: =IFERROR(IF((ROW()-ROW(Year1Table[#Headers]))=1,IF(OR(Table1[[#This Row],[Tax Assessed]]="",Table1[[#This Row],[Tax Assessed]]=0),"",Table1[[#This Row],[Tax Due Dt]]),IF((ROW()-ROW(Year1Table[#Headers]))>1,IF(OFFSET(AB99,-1,)<1,"",EDATE(U98,1)))),"") ->  | X99: =IFERROR(_xlfn.XLOOKUP(YEAR(Year1Table[[#This Row],[Date]])&MONTH(Year1Table[[#This Row],[Date]]),PenaltyTable[Year]&PenaltyTable[Month],PenaltyTable[Daily])*$W$10,"") ->  | AF99: =IF(ROW()-ROW(Year2Table[#Headers])=1,$AI$193,IF(AG97="","",IF(AND($B$7<>"",AE99>=$B$7),$C$7,IF(AND($B$6<>"",AE99>=$B$6),$C$6,IF(AE99>=$B$5,$C$5,IF(AE99<$B$5,0)))))) ->  | AH99: =IFERROR(_xlfn.XLOOKUP(YEAR(Year2Table[[#This Row],[Date]])&MONTH(Year2Table[[#This Row],[Date]]),PenaltyTable[Year]&PenaltyTable[Month],PenaltyTable[Daily])*$AG$10,"") ->  | AR99: =IFERROR(_xlfn.XLOOKUP(YEAR(Year3Table[[#This Row],[Date]])&MONTH(Year3Table[[#This Row],[Date]]),PenaltyTable[Year]&PenaltyTable[Month],PenaltyTable[Daily])*$AQ$10,"") ->  | BB99: =IFERROR(_xlfn.XLOOKUP(YEAR(Year4Table[[#This Row],[Date]])&MONTH(Year4Table[[#This Row],[Date]]),PenaltyTable[Year]&PenaltyTable[Month],PenaltyTable[Daily])*$BA$10,"") ->  | BL99: =IFERROR(_xlfn.XLOOKUP(YEAR(Year5Table[[#This Row],[Date]])&MONTH(Year5Table[[#This Row],[Date]]),PenaltyTable[Year]&PenaltyTable[Month],PenaltyTable[Daily])*$BK$10,"") ->  | BV99: =IFERROR(_xlfn.XLOOKUP(YEAR(Year6Table[[#This Row],[Date]])&MONTH(Year6Table[[#This Row],[Date]]),PenaltyTable[Year]&PenaltyTable[Month],PenaltyTable[Daily])*$BU$10,"") ->  | CF99: =IFERROR(_xlfn.XLOOKUP(YEAR(Year7Table[[#This Row],[Date]])&MONTH(Year7Table[[#This Row],[Date]]),PenaltyTable[Year]&PenaltyTable[Month],PenaltyTable[Daily])*CE$10,"") ->  | CP99: =IFERROR(_xlfn.XLOOKUP(YEAR(Year8Table[[#This Row],[Date]])&MONTH(Year8Table[[#This Row],[Date]]),PenaltyTable[Year]&PenaltyTable[Month],PenaltyTable[Daily])*$CO$10,"") ->  | CZ99: =IFERROR(_xlfn.XLOOKUP(YEAR(Year9Table[[#This Row],[Date]])&MONTH(Year9Table[[#This Row],[Date]]),PenaltyTable[Year]&PenaltyTable[Month],PenaltyTable[Daily])*$CY$10,"") ->  | DJ99: =IFERROR(_xlfn.XLOOKUP(YEAR(Year10Table[[#This Row],[Date]])&MONTH(Year10Table[[#This Row],[Date]]),PenaltyTable[Year]&PenaltyTable[Month],PenaltyTable[Daily])*$DI$10,"") -> 
U100: =IFERROR(IF((ROW()-ROW(Year1Table[#Headers]))=1,IF(OR(Table1[[#This Row],[Tax Assessed]]="",Table1[[#This Row],[Tax Assessed]]=0),"",Table1[[#This Row],[Tax Due Dt]]),IF((ROW()-ROW(Year1Table[#Headers]))>1,IF(OFFSET(AB100,-1,)<1,"",EDATE(U99,1)))),"") ->  | X100: =IFERROR(_xlfn.XLOOKUP(YEAR(Year1Table[[#This Row],[Date]])&MONTH(Year1Table[[#This Row],[Date]]),PenaltyTable[Year]&PenaltyTable[Month],PenaltyTable[Daily])*$W$10,"") ->  | AF100: =IF(ROW()-ROW(Year2Table[#Headers])=1,$AI$193,IF(AG98="","",IF(AND($B$7<>"",AE100>=$B$7),$C$7,IF(AND($B$6<>"",AE100>=$B$6),$C$6,IF(AE100>=$B$5,$C$5,IF(AE100<$B$5,0)))))) ->  | AH100: =IFERROR(_xlfn.XLOOKUP(YEAR(Year2Table[[#This Row],[Date]])&MONTH(Year2Table[[#This Row],[Date]]),PenaltyTable[Year]&PenaltyTable[Month],PenaltyTable[Daily])*$AG$10,"") ->  | AR100: =IFERROR(_xlfn.XLOOKUP(YEAR(Year3Table[[#This Row],[Date]])&MONTH(Year3Table[[#This Row],[Date]]),PenaltyTable[Year]&PenaltyTable[Month],PenaltyTable[Daily])*$AQ$10,"") ->  | BB100: =IFERROR(_xlfn.XLOOKUP(YEAR(Year4Table[[#This Row],[Date]])&MONTH(Year4Table[[#This Row],[Date]]),PenaltyTable[Year]&PenaltyTable[Month],PenaltyTable[Daily])*$BA$10,"") ->  | BL100: =IFERROR(_xlfn.XLOOKUP(YEAR(Year5Table[[#This Row],[Date]])&MONTH(Year5Table[[#This Row],[Date]]),PenaltyTable[Year]&PenaltyTable[Month],PenaltyTable[Daily])*$BK$10,"") ->  | BV100: =IFERROR(_xlfn.XLOOKUP(YEAR(Year6Table[[#This Row],[Date]])&MONTH(Year6Table[[#This Row],[Date]]),PenaltyTable[Year]&PenaltyTable[Month],PenaltyTable[Daily])*$BU$10,"") ->  | CF100: =IFERROR(_xlfn.XLOOKUP(YEAR(Year7Table[[#This Row],[Date]])&MONTH(Year7Table[[#This Row],[Date]]),PenaltyTable[Year]&PenaltyTable[Month],PenaltyTable[Daily])*CE$10,"") ->  | CP100: =IFERROR(_xlfn.XLOOKUP(YEAR(Year8Table[[#This Row],[Date]])&MONTH(Year8Table[[#This Row],[Date]]),PenaltyTable[Year]&PenaltyTable[Month],PenaltyTable[Daily])*$CO$10,"") ->  | CZ100: =IFERROR(_xlfn.XLOOKUP(YEAR(Year9Table[[#This Row],[Date]])&MONTH(Year9Table[[#This Row],[Date]]),PenaltyTable[Year]&PenaltyTable[Month],PenaltyTable[Daily])*$CY$10,"") ->  | DJ100: =IFERROR(_xlfn.XLOOKUP(YEAR(Year10Table[[#This Row],[Date]])&MONTH(Year10Table[[#This Row],[Date]]),PenaltyTable[Year]&PenaltyTable[Month],PenaltyTable[Daily])*$DI$10,"") -> 
U101: =IFERROR(IF((ROW()-ROW(Year1Table[#Headers]))=1,IF(OR(Table1[[#This Row],[Tax Assessed]]="",Table1[[#This Row],[Tax Assessed]]=0),"",Table1[[#This Row],[Tax Due Dt]]),IF((ROW()-ROW(Year1Table[#Headers]))>1,IF(OFFSET(AB101,-1,)<1,"",EDATE(U100,1)))),"") ->  | X101: =IFERROR(_xlfn.XLOOKUP(YEAR(Year1Table[[#This Row],[Date]])&MONTH(Year1Table[[#This Row],[Date]]),PenaltyTable[Year]&PenaltyTable[Month],PenaltyTable[Daily])*$W$10,"") ->  | AF101: =IF(ROW()-ROW(Year2Table[#Headers])=1,$AI$193,IF(AG99="","",IF(AND($B$7<>"",AE101>=$B$7),$C$7,IF(AND($B$6<>"",AE101>=$B$6),$C$6,IF(AE101>=$B$5,$C$5,IF(AE101<$B$5,0)))))) ->  | AH101: =IFERROR(_xlfn.XLOOKUP(YEAR(Year2Table[[#This Row],[Date]])&MONTH(Year2Table[[#This Row],[Date]]),PenaltyTable[Year]&PenaltyTable[Month],PenaltyTable[Daily])*$AG$10,"") ->  | AR101: =IFERROR(_xlfn.XLOOKUP(YEAR(Year3Table[[#This Row],[Date]])&MONTH(Year3Table[[#This Row],[Date]]),PenaltyTable[Year]&PenaltyTable[Month],PenaltyTable[Daily])*$AQ$10,"") ->  | BB101: =IFERROR(_xlfn.XLOOKUP(YEAR(Year4Table[[#This Row],[Date]])&MONTH(Year4Table[[#This Row],[Date]]),PenaltyTable[Year]&PenaltyTable[Month],PenaltyTable[Daily])*$BA$10,"") ->  | BL101: =IFERROR(_xlfn.XLOOKUP(YEAR(Year5Table[[#This Row],[Date]])&MONTH(Year5Table[[#This Row],[Date]]),PenaltyTable[Year]&PenaltyTable[Month],PenaltyTable[Daily])*$BK$10,"") ->  | BV101: =IFERROR(_xlfn.XLOOKUP(YEAR(Year6Table[[#This Row],[Date]])&MONTH(Year6Table[[#This Row],[Date]]),PenaltyTable[Year]&PenaltyTable[Month],PenaltyTable[Daily])*$BU$10,"") ->  | CF101: =IFERROR(_xlfn.XLOOKUP(YEAR(Year7Table[[#This Row],[Date]])&MONTH(Year7Table[[#This Row],[Date]]),PenaltyTable[Year]&PenaltyTable[Month],PenaltyTable[Daily])*CE$10,"") ->  | CP101: =IFERROR(_xlfn.XLOOKUP(YEAR(Year8Table[[#This Row],[Date]])&MONTH(Year8Table[[#This Row],[Date]]),PenaltyTable[Year]&PenaltyTable[Month],PenaltyTable[Daily])*$CO$10,"") ->  | CZ101: =IFERROR(_xlfn.XLOOKUP(YEAR(Year9Table[[#This Row],[Date]])&MONTH(Year9Table[[#This Row],[Date]]),PenaltyTable[Year]&PenaltyTable[Month],PenaltyTable[Daily])*$CY$10,"") ->  | DJ101: =IFERROR(_xlfn.XLOOKUP(YEAR(Year10Table[[#This Row],[Date]])&MONTH(Year10Table[[#This Row],[Date]]),PenaltyTable[Year]&PenaltyTable[Month],PenaltyTable[Daily])*$DI$10,"") -> 
U102: =IFERROR(IF((ROW()-ROW(Year1Table[#Headers]))=1,IF(OR(Table1[[#This Row],[Tax Assessed]]="",Table1[[#This Row],[Tax Assessed]]=0),"",Table1[[#This Row],[Tax Due Dt]]),IF((ROW()-ROW(Year1Table[#Headers]))>1,IF(OFFSET(AB102,-1,)<1,"",EDATE(U101,1)))),"") ->  | X102: =IFERROR(_xlfn.XLOOKUP(YEAR(Year1Table[[#This Row],[Date]])&MONTH(Year1Table[[#This Row],[Date]]),PenaltyTable[Year]&PenaltyTable[Month],PenaltyTable[Daily])*$W$10,"") ->  | AF102: =IF(ROW()-ROW(Year2Table[#Headers])=1,$AI$193,IF(AG100="","",IF(AND($B$7<>"",AE102>=$B$7),$C$7,IF(AND($B$6<>"",AE102>=$B$6),$C$6,IF(AE102>=$B$5,$C$5,IF(AE102<$B$5,0)))))) ->  | AH102: =IFERROR(_xlfn.XLOOKUP(YEAR(Year2Table[[#This Row],[Date]])&MONTH(Year2Table[[#This Row],[Date]]),PenaltyTable[Year]&PenaltyTable[Month],PenaltyTable[Daily])*$AG$10,"") ->  | AR102: =IFERROR(_xlfn.XLOOKUP(YEAR(Year3Table[[#This Row],[Date]])&MONTH(Year3Table[[#This Row],[Date]]),PenaltyTable[Year]&PenaltyTable[Month],PenaltyTable[Daily])*$AQ$10,"") ->  | BB102: =IFERROR(_xlfn.XLOOKUP(YEAR(Year4Table[[#This Row],[Date]])&MONTH(Year4Table[[#This Row],[Date]]),PenaltyTable[Year]&PenaltyTable[Month],PenaltyTable[Daily])*$BA$10,"") ->  | BL102: =IFERROR(_xlfn.XLOOKUP(YEAR(Year5Table[[#This Row],[Date]])&MONTH(Year5Table[[#This Row],[Date]]),PenaltyTable[Year]&PenaltyTable[Month],PenaltyTable[Daily])*$BK$10,"") ->  | BV102: =IFERROR(_xlfn.XLOOKUP(YEAR(Year6Table[[#This Row],[Date]])&MONTH(Year6Table[[#This Row],[Date]]),PenaltyTable[Year]&PenaltyTable[Month],PenaltyTable[Daily])*$BU$10,"") ->  | CF102: =IFERROR(_xlfn.XLOOKUP(YEAR(Year7Table[[#This Row],[Date]])&MONTH(Year7Table[[#This Row],[Date]]),PenaltyTable[Year]&PenaltyTable[Month],PenaltyTable[Daily])*CE$10,"") ->  | CP102: =IFERROR(_xlfn.XLOOKUP(YEAR(Year8Table[[#This Row],[Date]])&MONTH(Year8Table[[#This Row],[Date]]),PenaltyTable[Year]&PenaltyTable[Month],PenaltyTable[Daily])*$CO$10,"") ->  | CZ102: =IFERROR(_xlfn.XLOOKUP(YEAR(Year9Table[[#This Row],[Date]])&MONTH(Year9Table[[#This Row],[Date]]),PenaltyTable[Year]&PenaltyTable[Month],PenaltyTable[Daily])*$CY$10,"") ->  | DJ102: =IFERROR(_xlfn.XLOOKUP(YEAR(Year10Table[[#This Row],[Date]])&MONTH(Year10Table[[#This Row],[Date]]),PenaltyTable[Year]&PenaltyTable[Month],PenaltyTable[Daily])*$DI$10,"") -> 
U103: =IFERROR(IF((ROW()-ROW(Year1Table[#Headers]))=1,IF(OR(Table1[[#This Row],[Tax Assessed]]="",Table1[[#This Row],[Tax Assessed]]=0),"",Table1[[#This Row],[Tax Due Dt]]),IF((ROW()-ROW(Year1Table[#Headers]))>1,IF(OFFSET(AB103,-1,)<1,"",EDATE(U102,1)))),"") ->  | X103: =IFERROR(_xlfn.XLOOKUP(YEAR(Year1Table[[#This Row],[Date]])&MONTH(Year1Table[[#This Row],[Date]]),PenaltyTable[Year]&PenaltyTable[Month],PenaltyTable[Daily])*$W$10,"") ->  | AF103: =IF(ROW()-ROW(Year2Table[#Headers])=1,$AI$193,IF(AG101="","",IF(AND($B$7<>"",AE103>=$B$7),$C$7,IF(AND($B$6<>"",AE103>=$B$6),$C$6,IF(AE103>=$B$5,$C$5,IF(AE103<$B$5,0)))))) ->  | AH103: =IFERROR(_xlfn.XLOOKUP(YEAR(Year2Table[[#This Row],[Date]])&MONTH(Year2Table[[#This Row],[Date]]),PenaltyTable[Year]&PenaltyTable[Month],PenaltyTable[Daily])*$AG$10,"") ->  | AR103: =IFERROR(_xlfn.XLOOKUP(YEAR(Year3Table[[#This Row],[Date]])&MONTH(Year3Table[[#This Row],[Date]]),PenaltyTable[Year]&PenaltyTable[Month],PenaltyTable[Daily])*$AQ$10,"") ->  | BB103: =IFERROR(_xlfn.XLOOKUP(YEAR(Year4Table[[#This Row],[Date]])&MONTH(Year4Table[[#This Row],[Date]]),PenaltyTable[Year]&PenaltyTable[Month],PenaltyTable[Daily])*$BA$10,"") ->  | BL103: =IFERROR(_xlfn.XLOOKUP(YEAR(Year5Table[[#This Row],[Date]])&MONTH(Year5Table[[#This Row],[Date]]),PenaltyTable[Year]&PenaltyTable[Month],PenaltyTable[Daily])*$BK$10,"") ->  | BV103: =IFERROR(_xlfn.XLOOKUP(YEAR(Year6Table[[#This Row],[Date]])&MONTH(Year6Table[[#This Row],[Date]]),PenaltyTable[Year]&PenaltyTable[Month],PenaltyTable[Daily])*$BU$10,"") ->  | CF103: =IFERROR(_xlfn.XLOOKUP(YEAR(Year7Table[[#This Row],[Date]])&MONTH(Year7Table[[#This Row],[Date]]),PenaltyTable[Year]&PenaltyTable[Month],PenaltyTable[Daily])*CE$10,"") ->  | CP103: =IFERROR(_xlfn.XLOOKUP(YEAR(Year8Table[[#This Row],[Date]])&MONTH(Year8Table[[#This Row],[Date]]),PenaltyTable[Year]&PenaltyTable[Month],PenaltyTable[Daily])*$CO$10,"") ->  | CZ103: =IFERROR(_xlfn.XLOOKUP(YEAR(Year9Table[[#This Row],[Date]])&MONTH(Year9Table[[#This Row],[Date]]),PenaltyTable[Year]&PenaltyTable[Month],PenaltyTable[Daily])*$CY$10,"") ->  | DJ103: =IFERROR(_xlfn.XLOOKUP(YEAR(Year10Table[[#This Row],[Date]])&MONTH(Year10Table[[#This Row],[Date]]),PenaltyTable[Year]&PenaltyTable[Month],PenaltyTable[Daily])*$DI$10,"") -> 
U104: =IFERROR(IF((ROW()-ROW(Year1Table[#Headers]))=1,IF(OR(Table1[[#This Row],[Tax Assessed]]="",Table1[[#This Row],[Tax Assessed]]=0),"",Table1[[#This Row],[Tax Due Dt]]),IF((ROW()-ROW(Year1Table[#Headers]))>1,IF(OFFSET(AB104,-1,)<1,"",EDATE(U103,1)))),"") ->  | X104: =IFERROR(_xlfn.XLOOKUP(YEAR(Year1Table[[#This Row],[Date]])&MONTH(Year1Table[[#This Row],[Date]]),PenaltyTable[Year]&PenaltyTable[Month],PenaltyTable[Daily])*$W$10,"") ->  | AF104: =IF(ROW()-ROW(Year2Table[#Headers])=1,$AI$193,IF(AG102="","",IF(AND($B$7<>"",AE104>=$B$7),$C$7,IF(AND($B$6<>"",AE104>=$B$6),$C$6,IF(AE104>=$B$5,$C$5,IF(AE104<$B$5,0)))))) ->  | AH104: =IFERROR(_xlfn.XLOOKUP(YEAR(Year2Table[[#This Row],[Date]])&MONTH(Year2Table[[#This Row],[Date]]),PenaltyTable[Year]&PenaltyTable[Month],PenaltyTable[Daily])*$AG$10,"") ->  | AR104: =IFERROR(_xlfn.XLOOKUP(YEAR(Year3Table[[#This Row],[Date]])&MONTH(Year3Table[[#This Row],[Date]]),PenaltyTable[Year]&PenaltyTable[Month],PenaltyTable[Daily])*$AQ$10,"") ->  | BB104: =IFERROR(_xlfn.XLOOKUP(YEAR(Year4Table[[#This Row],[Date]])&MONTH(Year4Table[[#This Row],[Date]]),PenaltyTable[Year]&PenaltyTable[Month],PenaltyTable[Daily])*$BA$10,"") ->  | BL104: =IFERROR(_xlfn.XLOOKUP(YEAR(Year5Table[[#This Row],[Date]])&MONTH(Year5Table[[#This Row],[Date]]),PenaltyTable[Year]&PenaltyTable[Month],PenaltyTable[Daily])*$BK$10,"") ->  | BV104: =IFERROR(_xlfn.XLOOKUP(YEAR(Year6Table[[#This Row],[Date]])&MONTH(Year6Table[[#This Row],[Date]]),PenaltyTable[Year]&PenaltyTable[Month],PenaltyTable[Daily])*$BU$10,"") ->  | CF104: =IFERROR(_xlfn.XLOOKUP(YEAR(Year7Table[[#This Row],[Date]])&MONTH(Year7Table[[#This Row],[Date]]),PenaltyTable[Year]&PenaltyTable[Month],PenaltyTable[Daily])*CE$10,"") ->  | CP104: =IFERROR(_xlfn.XLOOKUP(YEAR(Year8Table[[#This Row],[Date]])&MONTH(Year8Table[[#This Row],[Date]]),PenaltyTable[Year]&PenaltyTable[Month],PenaltyTable[Daily])*$CO$10,"") ->  | CZ104: =IFERROR(_xlfn.XLOOKUP(YEAR(Year9Table[[#This Row],[Date]])&MONTH(Year9Table[[#This Row],[Date]]),PenaltyTable[Year]&PenaltyTable[Month],PenaltyTable[Daily])*$CY$10,"") ->  | DJ104: =IFERROR(_xlfn.XLOOKUP(YEAR(Year10Table[[#This Row],[Date]])&MONTH(Year10Table[[#This Row],[Date]]),PenaltyTable[Year]&PenaltyTable[Month],PenaltyTable[Daily])*$DI$10,"") -> 
U105: =IFERROR(IF((ROW()-ROW(Year1Table[#Headers]))=1,IF(OR(Table1[[#This Row],[Tax Assessed]]="",Table1[[#This Row],[Tax Assessed]]=0),"",Table1[[#This Row],[Tax Due Dt]]),IF((ROW()-ROW(Year1Table[#Headers]))>1,IF(OFFSET(AB105,-1,)<1,"",EDATE(U104,1)))),"") ->  | X105: =IFERROR(_xlfn.XLOOKUP(YEAR(Year1Table[[#This Row],[Date]])&MONTH(Year1Table[[#This Row],[Date]]),PenaltyTable[Year]&PenaltyTable[Month],PenaltyTable[Daily])*$W$10,"") ->  | AF105: =IF(ROW()-ROW(Year2Table[#Headers])=1,$AI$193,IF(AG103="","",IF(AND($B$7<>"",AE105>=$B$7),$C$7,IF(AND($B$6<>"",AE105>=$B$6),$C$6,IF(AE105>=$B$5,$C$5,IF(AE105<$B$5,0)))))) ->  | AH105: =IFERROR(_xlfn.XLOOKUP(YEAR(Year2Table[[#This Row],[Date]])&MONTH(Year2Table[[#This Row],[Date]]),PenaltyTable[Year]&PenaltyTable[Month],PenaltyTable[Daily])*$AG$10,"") ->  | AR105: =IFERROR(_xlfn.XLOOKUP(YEAR(Year3Table[[#This Row],[Date]])&MONTH(Year3Table[[#This Row],[Date]]),PenaltyTable[Year]&PenaltyTable[Month],PenaltyTable[Daily])*$AQ$10,"") ->  | BB105: =IFERROR(_xlfn.XLOOKUP(YEAR(Year4Table[[#This Row],[Date]])&MONTH(Year4Table[[#This Row],[Date]]),PenaltyTable[Year]&PenaltyTable[Month],PenaltyTable[Daily])*$BA$10,"") ->  | BL105: =IFERROR(_xlfn.XLOOKUP(YEAR(Year5Table[[#This Row],[Date]])&MONTH(Year5Table[[#This Row],[Date]]),PenaltyTable[Year]&PenaltyTable[Month],PenaltyTable[Daily])*$BK$10,"") ->  | BV105: =IFERROR(_xlfn.XLOOKUP(YEAR(Year6Table[[#This Row],[Date]])&MONTH(Year6Table[[#This Row],[Date]]),PenaltyTable[Year]&PenaltyTable[Month],PenaltyTable[Daily])*$BU$10,"") ->  | CF105: =IFERROR(_xlfn.XLOOKUP(YEAR(Year7Table[[#This Row],[Date]])&MONTH(Year7Table[[#This Row],[Date]]),PenaltyTable[Year]&PenaltyTable[Month],PenaltyTable[Daily])*CE$10,"") ->  | CP105: =IFERROR(_xlfn.XLOOKUP(YEAR(Year8Table[[#This Row],[Date]])&MONTH(Year8Table[[#This Row],[Date]]),PenaltyTable[Year]&PenaltyTable[Month],PenaltyTable[Daily])*$CO$10,"") ->  | CZ105: =IFERROR(_xlfn.XLOOKUP(YEAR(Year9Table[[#This Row],[Date]])&MONTH(Year9Table[[#This Row],[Date]]),PenaltyTable[Year]&PenaltyTable[Month],PenaltyTable[Daily])*$CY$10,"") ->  | DJ105: =IFERROR(_xlfn.XLOOKUP(YEAR(Year10Table[[#This Row],[Date]])&MONTH(Year10Table[[#This Row],[Date]]),PenaltyTable[Year]&PenaltyTable[Month],PenaltyTable[Daily])*$DI$10,"") -> 
U106: =IFERROR(IF((ROW()-ROW(Year1Table[#Headers]))=1,IF(OR(Table1[[#This Row],[Tax Assessed]]="",Table1[[#This Row],[Tax Assessed]]=0),"",Table1[[#This Row],[Tax Due Dt]]),IF((ROW()-ROW(Year1Table[#Headers]))>1,IF(OFFSET(AB106,-1,)<1,"",EDATE(U105,1)))),"") ->  | X106: =IFERROR(_xlfn.XLOOKUP(YEAR(Year1Table[[#This Row],[Date]])&MONTH(Year1Table[[#This Row],[Date]]),PenaltyTable[Year]&PenaltyTable[Month],PenaltyTable[Daily])*$W$10,"") ->  | AF106: =IF(ROW()-ROW(Year2Table[#Headers])=1,$AI$193,IF(AG104="","",IF(AND($B$7<>"",AE106>=$B$7),$C$7,IF(AND($B$6<>"",AE106>=$B$6),$C$6,IF(AE106>=$B$5,$C$5,IF(AE106<$B$5,0)))))) ->  | AH106: =IFERROR(_xlfn.XLOOKUP(YEAR(Year2Table[[#This Row],[Date]])&MONTH(Year2Table[[#This Row],[Date]]),PenaltyTable[Year]&PenaltyTable[Month],PenaltyTable[Daily])*$AG$10,"") ->  | AR106: =IFERROR(_xlfn.XLOOKUP(YEAR(Year3Table[[#This Row],[Date]])&MONTH(Year3Table[[#This Row],[Date]]),PenaltyTable[Year]&PenaltyTable[Month],PenaltyTable[Daily])*$AQ$10,"") ->  | BB106: =IFERROR(_xlfn.XLOOKUP(YEAR(Year4Table[[#This Row],[Date]])&MONTH(Year4Table[[#This Row],[Date]]),PenaltyTable[Year]&PenaltyTable[Month],PenaltyTable[Daily])*$BA$10,"") ->  | BL106: =IFERROR(_xlfn.XLOOKUP(YEAR(Year5Table[[#This Row],[Date]])&MONTH(Year5Table[[#This Row],[Date]]),PenaltyTable[Year]&PenaltyTable[Month],PenaltyTable[Daily])*$BK$10,"") ->  | BV106: =IFERROR(_xlfn.XLOOKUP(YEAR(Year6Table[[#This Row],[Date]])&MONTH(Year6Table[[#This Row],[Date]]),PenaltyTable[Year]&PenaltyTable[Month],PenaltyTable[Daily])*$BU$10,"") ->  | CF106: =IFERROR(_xlfn.XLOOKUP(YEAR(Year7Table[[#This Row],[Date]])&MONTH(Year7Table[[#This Row],[Date]]),PenaltyTable[Year]&PenaltyTable[Month],PenaltyTable[Daily])*CE$10,"") ->  | CP106: =IFERROR(_xlfn.XLOOKUP(YEAR(Year8Table[[#This Row],[Date]])&MONTH(Year8Table[[#This Row],[Date]]),PenaltyTable[Year]&PenaltyTable[Month],PenaltyTable[Daily])*$CO$10,"") ->  | CZ106: =IFERROR(_xlfn.XLOOKUP(YEAR(Year9Table[[#This Row],[Date]])&MONTH(Year9Table[[#This Row],[Date]]),PenaltyTable[Year]&PenaltyTable[Month],PenaltyTable[Daily])*$CY$10,"") ->  | DJ106: =IFERROR(_xlfn.XLOOKUP(YEAR(Year10Table[[#This Row],[Date]])&MONTH(Year10Table[[#This Row],[Date]]),PenaltyTable[Year]&PenaltyTable[Month],PenaltyTable[Daily])*$DI$10,"") -> 
U107: =IFERROR(IF((ROW()-ROW(Year1Table[#Headers]))=1,IF(OR(Table1[[#This Row],[Tax Assessed]]="",Table1[[#This Row],[Tax Assessed]]=0),"",Table1[[#This Row],[Tax Due Dt]]),IF((ROW()-ROW(Year1Table[#Headers]))>1,IF(OFFSET(AB107,-1,)<1,"",EDATE(U106,1)))),"") ->  | X107: =IFERROR(_xlfn.XLOOKUP(YEAR(Year1Table[[#This Row],[Date]])&MONTH(Year1Table[[#This Row],[Date]]),PenaltyTable[Year]&PenaltyTable[Month],PenaltyTable[Daily])*$W$10,"") ->  | AF107: =IF(ROW()-ROW(Year2Table[#Headers])=1,$AI$193,IF(AG105="","",IF(AND($B$7<>"",AE107>=$B$7),$C$7,IF(AND($B$6<>"",AE107>=$B$6),$C$6,IF(AE107>=$B$5,$C$5,IF(AE107<$B$5,0)))))) ->  | AH107: =IFERROR(_xlfn.XLOOKUP(YEAR(Year2Table[[#This Row],[Date]])&MONTH(Year2Table[[#This Row],[Date]]),PenaltyTable[Year]&PenaltyTable[Month],PenaltyTable[Daily])*$AG$10,"") ->  | AR107: =IFERROR(_xlfn.XLOOKUP(YEAR(Year3Table[[#This Row],[Date]])&MONTH(Year3Table[[#This Row],[Date]]),PenaltyTable[Year]&PenaltyTable[Month],PenaltyTable[Daily])*$AQ$10,"") ->  | BB107: =IFERROR(_xlfn.XLOOKUP(YEAR(Year4Table[[#This Row],[Date]])&MONTH(Year4Table[[#This Row],[Date]]),PenaltyTable[Year]&PenaltyTable[Month],PenaltyTable[Daily])*$BA$10,"") ->  | BL107: =IFERROR(_xlfn.XLOOKUP(YEAR(Year5Table[[#This Row],[Date]])&MONTH(Year5Table[[#This Row],[Date]]),PenaltyTable[Year]&PenaltyTable[Month],PenaltyTable[Daily])*$BK$10,"") ->  | BV107: =IFERROR(_xlfn.XLOOKUP(YEAR(Year6Table[[#This Row],[Date]])&MONTH(Year6Table[[#This Row],[Date]]),PenaltyTable[Year]&PenaltyTable[Month],PenaltyTable[Daily])*$BU$10,"") ->  | CF107: =IFERROR(_xlfn.XLOOKUP(YEAR(Year7Table[[#This Row],[Date]])&MONTH(Year7Table[[#This Row],[Date]]),PenaltyTable[Year]&PenaltyTable[Month],PenaltyTable[Daily])*CE$10,"") ->  | CP107: =IFERROR(_xlfn.XLOOKUP(YEAR(Year8Table[[#This Row],[Date]])&MONTH(Year8Table[[#This Row],[Date]]),PenaltyTable[Year]&PenaltyTable[Month],PenaltyTable[Daily])*$CO$10,"") ->  | CZ107: =IFERROR(_xlfn.XLOOKUP(YEAR(Year9Table[[#This Row],[Date]])&MONTH(Year9Table[[#This Row],[Date]]),PenaltyTable[Year]&PenaltyTable[Month],PenaltyTable[Daily])*$CY$10,"") ->  | DJ107: =IFERROR(_xlfn.XLOOKUP(YEAR(Year10Table[[#This Row],[Date]])&MONTH(Year10Table[[#This Row],[Date]]),PenaltyTable[Year]&PenaltyTable[Month],PenaltyTable[Daily])*$DI$10,"") -> 
U108: =IFERROR(IF((ROW()-ROW(Year1Table[#Headers]))=1,IF(OR(Table1[[#This Row],[Tax Assessed]]="",Table1[[#This Row],[Tax Assessed]]=0),"",Table1[[#This Row],[Tax Due Dt]]),IF((ROW()-ROW(Year1Table[#Headers]))>1,IF(OFFSET(AB108,-1,)<1,"",EDATE(U107,1)))),"") ->  | V108: =IF(OR(AB107<0,AB107=""),"",IF(AND($B$7<>"",U108>=$B$7),$C$7,IF(AND($B$6<>"",U108>=$B$6),$C$6,IF(U108>=$B$5,$C$5,IF(U108<$B$5,0))))) ->  | X108: =IFERROR(_xlfn.XLOOKUP(YEAR(Year1Table[[#This Row],[Date]])&MONTH(Year1Table[[#This Row],[Date]]),PenaltyTable[Year]&PenaltyTable[Month],PenaltyTable[Daily])*$W$10,"") ->  | AF108: =IF(ROW()-ROW(Year2Table[#Headers])=1,$AI$193,IF(AG106="","",IF(AND($B$7<>"",AE108>=$B$7),$C$7,IF(AND($B$6<>"",AE108>=$B$6),$C$6,IF(AE108>=$B$5,$C$5,IF(AE108<$B$5,0)))))) ->  | AH108: =IFERROR(_xlfn.XLOOKUP(YEAR(Year2Table[[#This Row],[Date]])&MONTH(Year2Table[[#This Row],[Date]]),PenaltyTable[Year]&PenaltyTable[Month],PenaltyTable[Daily])*$AG$10,"") ->  | AM108: =IF(AL108>0,"",IF(VALUE(AE108)>=VALUE($W$8),"",AE108)) ->  | AR108: =IFERROR(_xlfn.XLOOKUP(YEAR(Year3Table[[#This Row],[Date]])&MONTH(Year3Table[[#This Row],[Date]]),PenaltyTable[Year]&PenaltyTable[Month],PenaltyTable[Daily])*$AQ$10,"") ->  | AW108: =IF(AV108>0,"",IF(VALUE(AO108)>=VALUE($W$8),"",AO108)) ->  | BB108: =IFERROR(_xlfn.XLOOKUP(YEAR(Year4Table[[#This Row],[Date]])&MONTH(Year4Table[[#This Row],[Date]]),PenaltyTable[Year]&PenaltyTable[Month],PenaltyTable[Daily])*$BA$10,"") ->  | BL108: =IFERROR(_xlfn.XLOOKUP(YEAR(Year5Table[[#This Row],[Date]])&MONTH(Year5Table[[#This Row],[Date]]),PenaltyTable[Year]&PenaltyTable[Month],PenaltyTable[Daily])*$BK$10,"") ->  | BV108: =IFERROR(_xlfn.XLOOKUP(YEAR(Year6Table[[#This Row],[Date]])&MONTH(Year6Table[[#This Row],[Date]]),PenaltyTable[Year]&PenaltyTable[Month],PenaltyTable[Daily])*$BU$10,"") ->  | CF108: =IFERROR(_xlfn.XLOOKUP(YEAR(Year7Table[[#This Row],[Date]])&MONTH(Year7Table[[#This Row],[Date]]),PenaltyTable[Year]&PenaltyTable[Month],PenaltyTable[Daily])*CE$10,"") ->  | CP108: =IFERROR(_xlfn.XLOOKUP(YEAR(Year8Table[[#This Row],[Date]])&MONTH(Year8Table[[#This Row],[Date]]),PenaltyTable[Year]&PenaltyTable[Month],PenaltyTable[Daily])*$CO$10,"") ->  | CZ108: =IFERROR(_xlfn.XLOOKUP(YEAR(Year9Table[[#This Row],[Date]])&MONTH(Year9Table[[#This Row],[Date]]),PenaltyTable[Year]&PenaltyTable[Month],PenaltyTable[Daily])*$CY$10,"") ->  | DJ108: =IFERROR(_xlfn.XLOOKUP(YEAR(Year10Table[[#This Row],[Date]])&MONTH(Year10Table[[#This Row],[Date]]),PenaltyTable[Year]&PenaltyTable[Month],PenaltyTable[Daily])*$DI$10,"") -> 
U109: =IFERROR(IF((ROW()-ROW(Year1Table[#Headers]))=1,IF(OR(Table1[[#This Row],[Tax Assessed]]="",Table1[[#This Row],[Tax Assessed]]=0),"",Table1[[#This Row],[Tax Due Dt]]),IF((ROW()-ROW(Year1Table[#Headers]))>1,IF(OFFSET(AB109,-1,)<1,"",EDATE(U108,1)))),"") ->  | X109: =IFERROR(_xlfn.XLOOKUP(YEAR(Year1Table[[#This Row],[Date]])&MONTH(Year1Table[[#This Row],[Date]]),PenaltyTable[Year]&PenaltyTable[Month],PenaltyTable[Daily])*$W$10,"") ->  | AB109: =IF(OR(AB108<0,AB108=""),"",(W109+X109)-V109) ->  | AF109: =IF(ROW()-ROW(Year2Table[#Headers])=1,$AI$193,IF(AG107="","",IF(AND($B$7<>"",AE109>=$B$7),$C$7,IF(AND($B$6<>"",AE109>=$B$6),$C$6,IF(AE109>=$B$5,$C$5,IF(AE109<$B$5,0)))))) ->  | AH109: =IFERROR(_xlfn.XLOOKUP(YEAR(Year2Table[[#This Row],[Date]])&MONTH(Year2Table[[#This Row],[Date]]),PenaltyTable[Year]&PenaltyTable[Month],PenaltyTable[Daily])*$AG$10,"") ->  | AR109: =IFERROR(_xlfn.XLOOKUP(YEAR(Year3Table[[#This Row],[Date]])&MONTH(Year3Table[[#This Row],[Date]]),PenaltyTable[Year]&PenaltyTable[Month],PenaltyTable[Daily])*$AQ$10,"") ->  | BB109: =IFERROR(_xlfn.XLOOKUP(YEAR(Year4Table[[#This Row],[Date]])&MONTH(Year4Table[[#This Row],[Date]]),PenaltyTable[Year]&PenaltyTable[Month],PenaltyTable[Daily])*$BA$10,"") ->  | BL109: =IFERROR(_xlfn.XLOOKUP(YEAR(Year5Table[[#This Row],[Date]])&MONTH(Year5Table[[#This Row],[Date]]),PenaltyTable[Year]&PenaltyTable[Month],PenaltyTable[Daily])*$BK$10,"") ->  | BV109: =IFERROR(_xlfn.XLOOKUP(YEAR(Year6Table[[#This Row],[Date]])&MONTH(Year6Table[[#This Row],[Date]]),PenaltyTable[Year]&PenaltyTable[Month],PenaltyTable[Daily])*$BU$10,"") ->  | CF109: =IFERROR(_xlfn.XLOOKUP(YEAR(Year7Table[[#This Row],[Date]])&MONTH(Year7Table[[#This Row],[Date]]),PenaltyTable[Year]&PenaltyTable[Month],PenaltyTable[Daily])*CE$10,"") ->  | CP109: =IFERROR(_xlfn.XLOOKUP(YEAR(Year8Table[[#This Row],[Date]])&MONTH(Year8Table[[#This Row],[Date]]),PenaltyTable[Year]&PenaltyTable[Month],PenaltyTable[Daily])*$CO$10,"") ->  | CZ109: =IFERROR(_xlfn.XLOOKUP(YEAR(Year9Table[[#This Row],[Date]])&MONTH(Year9Table[[#This Row],[Date]]),PenaltyTable[Year]&PenaltyTable[Month],PenaltyTable[Daily])*$CY$10,"") ->  | DJ109: =IFERROR(_xlfn.XLOOKUP(YEAR(Year10Table[[#This Row],[Date]])&MONTH(Year10Table[[#This Row],[Date]]),PenaltyTable[Year]&PenaltyTable[Month],PenaltyTable[Daily])*$DI$10,"") -> 
U110: =IFERROR(IF((ROW()-ROW(Year1Table[#Headers]))=1,IF(OR(Table1[[#This Row],[Tax Assessed]]="",Table1[[#This Row],[Tax Assessed]]=0),"",Table1[[#This Row],[Tax Due Dt]]),IF((ROW()-ROW(Year1Table[#Headers]))>1,IF(OFFSET(AB110,-1,)<1,"",EDATE(U109,1)))),"") ->  | X110: =IFERROR(_xlfn.XLOOKUP(YEAR(Year1Table[[#This Row],[Date]])&MONTH(Year1Table[[#This Row],[Date]]),PenaltyTable[Year]&PenaltyTable[Month],PenaltyTable[Daily])*$W$10,"") ->  | AF110: =IF(ROW()-ROW(Year2Table[#Headers])=1,$AI$193,IF(AG108="","",IF(AND($B$7<>"",AE110>=$B$7),$C$7,IF(AND($B$6<>"",AE110>=$B$6),$C$6,IF(AE110>=$B$5,$C$5,IF(AE110<$B$5,0)))))) ->  | AH110: =IFERROR(_xlfn.XLOOKUP(YEAR(Year2Table[[#This Row],[Date]])&MONTH(Year2Table[[#This Row],[Date]]),PenaltyTable[Year]&PenaltyTable[Month],PenaltyTable[Daily])*$AG$10,"") ->  | AR110: =IFERROR(_xlfn.XLOOKUP(YEAR(Year3Table[[#This Row],[Date]])&MONTH(Year3Table[[#This Row],[Date]]),PenaltyTable[Year]&PenaltyTable[Month],PenaltyTable[Daily])*$AQ$10,"") ->  | BB110: =IFERROR(_xlfn.XLOOKUP(YEAR(Year4Table[[#This Row],[Date]])&MONTH(Year4Table[[#This Row],[Date]]),PenaltyTable[Year]&PenaltyTable[Month],PenaltyTable[Daily])*$BA$10,"") ->  | BL110: =IFERROR(_xlfn.XLOOKUP(YEAR(Year5Table[[#This Row],[Date]])&MONTH(Year5Table[[#This Row],[Date]]),PenaltyTable[Year]&PenaltyTable[Month],PenaltyTable[Daily])*$BK$10,"") ->  | BV110: =IFERROR(_xlfn.XLOOKUP(YEAR(Year6Table[[#This Row],[Date]])&MONTH(Year6Table[[#This Row],[Date]]),PenaltyTable[Year]&PenaltyTable[Month],PenaltyTable[Daily])*$BU$10,"") ->  | CF110: =IFERROR(_xlfn.XLOOKUP(YEAR(Year7Table[[#This Row],[Date]])&MONTH(Year7Table[[#This Row],[Date]]),PenaltyTable[Year]&PenaltyTable[Month],PenaltyTable[Daily])*CE$10,"") ->  | CP110: =IFERROR(_xlfn.XLOOKUP(YEAR(Year8Table[[#This Row],[Date]])&MONTH(Year8Table[[#This Row],[Date]]),PenaltyTable[Year]&PenaltyTable[Month],PenaltyTable[Daily])*$CO$10,"") ->  | CZ110: =IFERROR(_xlfn.XLOOKUP(YEAR(Year9Table[[#This Row],[Date]])&MONTH(Year9Table[[#This Row],[Date]]),PenaltyTable[Year]&PenaltyTable[Month],PenaltyTable[Daily])*$CY$10,"") ->  | DJ110: =IFERROR(_xlfn.XLOOKUP(YEAR(Year10Table[[#This Row],[Date]])&MONTH(Year10Table[[#This Row],[Date]]),PenaltyTable[Year]&PenaltyTable[Month],PenaltyTable[Daily])*$DI$10,"") -> 
U111: =IFERROR(IF((ROW()-ROW(Year1Table[#Headers]))=1,IF(OR(Table1[[#This Row],[Tax Assessed]]="",Table1[[#This Row],[Tax Assessed]]=0),"",Table1[[#This Row],[Tax Due Dt]]),IF((ROW()-ROW(Year1Table[#Headers]))>1,IF(OFFSET(AB111,-1,)<1,"",EDATE(U110,1)))),"") ->  | X111: =IFERROR(_xlfn.XLOOKUP(YEAR(Year1Table[[#This Row],[Date]])&MONTH(Year1Table[[#This Row],[Date]]),PenaltyTable[Year]&PenaltyTable[Month],PenaltyTable[Daily])*$W$10,"") ->  | AF111: =IF(ROW()-ROW(Year2Table[#Headers])=1,$AI$193,IF(AG109="","",IF(AND($B$7<>"",AE111>=$B$7),$C$7,IF(AND($B$6<>"",AE111>=$B$6),$C$6,IF(AE111>=$B$5,$C$5,IF(AE111<$B$5,0)))))) ->  | AH111: =IFERROR(_xlfn.XLOOKUP(YEAR(Year2Table[[#This Row],[Date]])&MONTH(Year2Table[[#This Row],[Date]]),PenaltyTable[Year]&PenaltyTable[Month],PenaltyTable[Daily])*$AG$10,"") ->  | AR111: =IFERROR(_xlfn.XLOOKUP(YEAR(Year3Table[[#This Row],[Date]])&MONTH(Year3Table[[#This Row],[Date]]),PenaltyTable[Year]&PenaltyTable[Month],PenaltyTable[Daily])*$AQ$10,"") ->  | BB111: =IFERROR(_xlfn.XLOOKUP(YEAR(Year4Table[[#This Row],[Date]])&MONTH(Year4Table[[#This Row],[Date]]),PenaltyTable[Year]&PenaltyTable[Month],PenaltyTable[Daily])*$BA$10,"") ->  | BL111: =IFERROR(_xlfn.XLOOKUP(YEAR(Year5Table[[#This Row],[Date]])&MONTH(Year5Table[[#This Row],[Date]]),PenaltyTable[Year]&PenaltyTable[Month],PenaltyTable[Daily])*$BK$10,"") ->  | BV111: =IFERROR(_xlfn.XLOOKUP(YEAR(Year6Table[[#This Row],[Date]])&MONTH(Year6Table[[#This Row],[Date]]),PenaltyTable[Year]&PenaltyTable[Month],PenaltyTable[Daily])*$BU$10,"") ->  | CF111: =IFERROR(_xlfn.XLOOKUP(YEAR(Year7Table[[#This Row],[Date]])&MONTH(Year7Table[[#This Row],[Date]]),PenaltyTable[Year]&PenaltyTable[Month],PenaltyTable[Daily])*CE$10,"") ->  | CP111: =IFERROR(_xlfn.XLOOKUP(YEAR(Year8Table[[#This Row],[Date]])&MONTH(Year8Table[[#This Row],[Date]]),PenaltyTable[Year]&PenaltyTable[Month],PenaltyTable[Daily])*$CO$10,"") ->  | CZ111: =IFERROR(_xlfn.XLOOKUP(YEAR(Year9Table[[#This Row],[Date]])&MONTH(Year9Table[[#This Row],[Date]]),PenaltyTable[Year]&PenaltyTable[Month],PenaltyTable[Daily])*$CY$10,"") ->  | DJ111: =IFERROR(_xlfn.XLOOKUP(YEAR(Year10Table[[#This Row],[Date]])&MONTH(Year10Table[[#This Row],[Date]]),PenaltyTable[Year]&PenaltyTable[Month],PenaltyTable[Daily])*$DI$10,"") -> 
U112: =IFERROR(IF((ROW()-ROW(Year1Table[#Headers]))=1,IF(OR(Table1[[#This Row],[Tax Assessed]]="",Table1[[#This Row],[Tax Assessed]]=0),"",Table1[[#This Row],[Tax Due Dt]]),IF((ROW()-ROW(Year1Table[#Headers]))>1,IF(OFFSET(AB112,-1,)<1,"",EDATE(U111,1)))),"") ->  | X112: =IFERROR(_xlfn.XLOOKUP(YEAR(Year1Table[[#This Row],[Date]])&MONTH(Year1Table[[#This Row],[Date]]),PenaltyTable[Year]&PenaltyTable[Month],PenaltyTable[Daily])*$W$10,"") ->  | AF112: =IF(ROW()-ROW(Year2Table[#Headers])=1,$AI$193,IF(AG110="","",IF(AND($B$7<>"",AE112>=$B$7),$C$7,IF(AND($B$6<>"",AE112>=$B$6),$C$6,IF(AE112>=$B$5,$C$5,IF(AE112<$B$5,0)))))) ->  | AH112: =IFERROR(_xlfn.XLOOKUP(YEAR(Year2Table[[#This Row],[Date]])&MONTH(Year2Table[[#This Row],[Date]]),PenaltyTable[Year]&PenaltyTable[Month],PenaltyTable[Daily])*$AG$10,"") ->  | AR112: =IFERROR(_xlfn.XLOOKUP(YEAR(Year3Table[[#This Row],[Date]])&MONTH(Year3Table[[#This Row],[Date]]),PenaltyTable[Year]&PenaltyTable[Month],PenaltyTable[Daily])*$AQ$10,"") ->  | BB112: =IFERROR(_xlfn.XLOOKUP(YEAR(Year4Table[[#This Row],[Date]])&MONTH(Year4Table[[#This Row],[Date]]),PenaltyTable[Year]&PenaltyTable[Month],PenaltyTable[Daily])*$BA$10,"") ->  | BL112: =IFERROR(_xlfn.XLOOKUP(YEAR(Year5Table[[#This Row],[Date]])&MONTH(Year5Table[[#This Row],[Date]]),PenaltyTable[Year]&PenaltyTable[Month],PenaltyTable[Daily])*$BK$10,"") ->  | BV112: =IFERROR(_xlfn.XLOOKUP(YEAR(Year6Table[[#This Row],[Date]])&MONTH(Year6Table[[#This Row],[Date]]),PenaltyTable[Year]&PenaltyTable[Month],PenaltyTable[Daily])*$BU$10,"") ->  | CF112: =IFERROR(_xlfn.XLOOKUP(YEAR(Year7Table[[#This Row],[Date]])&MONTH(Year7Table[[#This Row],[Date]]),PenaltyTable[Year]&PenaltyTable[Month],PenaltyTable[Daily])*CE$10,"") ->  | CP112: =IFERROR(_xlfn.XLOOKUP(YEAR(Year8Table[[#This Row],[Date]])&MONTH(Year8Table[[#This Row],[Date]]),PenaltyTable[Year]&PenaltyTable[Month],PenaltyTable[Daily])*$CO$10,"") ->  | CZ112: =IFERROR(_xlfn.XLOOKUP(YEAR(Year9Table[[#This Row],[Date]])&MONTH(Year9Table[[#This Row],[Date]]),PenaltyTable[Year]&PenaltyTable[Month],PenaltyTable[Daily])*$CY$10,"") ->  | DJ112: =IFERROR(_xlfn.XLOOKUP(YEAR(Year10Table[[#This Row],[Date]])&MONTH(Year10Table[[#This Row],[Date]]),PenaltyTable[Year]&PenaltyTable[Month],PenaltyTable[Daily])*$DI$10,"") -> 
U113: =IFERROR(IF((ROW()-ROW(Year1Table[#Headers]))=1,IF(OR(Table1[[#This Row],[Tax Assessed]]="",Table1[[#This Row],[Tax Assessed]]=0),"",Table1[[#This Row],[Tax Due Dt]]),IF((ROW()-ROW(Year1Table[#Headers]))>1,IF(OFFSET(AB113,-1,)<1,"",EDATE(U112,1)))),"") ->  | X113: =IFERROR(_xlfn.XLOOKUP(YEAR(Year1Table[[#This Row],[Date]])&MONTH(Year1Table[[#This Row],[Date]]),PenaltyTable[Year]&PenaltyTable[Month],PenaltyTable[Daily])*$W$10,"") ->  | AF113: =IF(ROW()-ROW(Year2Table[#Headers])=1,$AI$193,IF(AG111="","",IF(AND($B$7<>"",AE113>=$B$7),$C$7,IF(AND($B$6<>"",AE113>=$B$6),$C$6,IF(AE113>=$B$5,$C$5,IF(AE113<$B$5,0)))))) ->  | AH113: =IFERROR(_xlfn.XLOOKUP(YEAR(Year2Table[[#This Row],[Date]])&MONTH(Year2Table[[#This Row],[Date]]),PenaltyTable[Year]&PenaltyTable[Month],PenaltyTable[Daily])*$AG$10,"") ->  | AR113: =IFERROR(_xlfn.XLOOKUP(YEAR(Year3Table[[#This Row],[Date]])&MONTH(Year3Table[[#This Row],[Date]]),PenaltyTable[Year]&PenaltyTable[Month],PenaltyTable[Daily])*$AQ$10,"") ->  | BB113: =IFERROR(_xlfn.XLOOKUP(YEAR(Year4Table[[#This Row],[Date]])&MONTH(Year4Table[[#This Row],[Date]]),PenaltyTable[Year]&PenaltyTable[Month],PenaltyTable[Daily])*$BA$10,"") ->  | BL113: =IFERROR(_xlfn.XLOOKUP(YEAR(Year5Table[[#This Row],[Date]])&MONTH(Year5Table[[#This Row],[Date]]),PenaltyTable[Year]&PenaltyTable[Month],PenaltyTable[Daily])*$BK$10,"") ->  | BV113: =IFERROR(_xlfn.XLOOKUP(YEAR(Year6Table[[#This Row],[Date]])&MONTH(Year6Table[[#This Row],[Date]]),PenaltyTable[Year]&PenaltyTable[Month],PenaltyTable[Daily])*$BU$10,"") ->  | CF113: =IFERROR(_xlfn.XLOOKUP(YEAR(Year7Table[[#This Row],[Date]])&MONTH(Year7Table[[#This Row],[Date]]),PenaltyTable[Year]&PenaltyTable[Month],PenaltyTable[Daily])*CE$10,"") ->  | CP113: =IFERROR(_xlfn.XLOOKUP(YEAR(Year8Table[[#This Row],[Date]])&MONTH(Year8Table[[#This Row],[Date]]),PenaltyTable[Year]&PenaltyTable[Month],PenaltyTable[Daily])*$CO$10,"") ->  | CZ113: =IFERROR(_xlfn.XLOOKUP(YEAR(Year9Table[[#This Row],[Date]])&MONTH(Year9Table[[#This Row],[Date]]),PenaltyTable[Year]&PenaltyTable[Month],PenaltyTable[Daily])*$CY$10,"") ->  | DJ113: =IFERROR(_xlfn.XLOOKUP(YEAR(Year10Table[[#This Row],[Date]])&MONTH(Year10Table[[#This Row],[Date]]),PenaltyTable[Year]&PenaltyTable[Month],PenaltyTable[Daily])*$DI$10,"") -> 
U114: =IFERROR(IF((ROW()-ROW(Year1Table[#Headers]))=1,IF(OR(Table1[[#This Row],[Tax Assessed]]="",Table1[[#This Row],[Tax Assessed]]=0),"",Table1[[#This Row],[Tax Due Dt]]),IF((ROW()-ROW(Year1Table[#Headers]))>1,IF(OFFSET(AB114,-1,)<1,"",EDATE(U113,1)))),"") ->  | X114: =IFERROR(_xlfn.XLOOKUP(YEAR(Year1Table[[#This Row],[Date]])&MONTH(Year1Table[[#This Row],[Date]]),PenaltyTable[Year]&PenaltyTable[Month],PenaltyTable[Daily])*$W$10,"") ->  | AF114: =IF(ROW()-ROW(Year2Table[#Headers])=1,$AI$193,IF(AG112="","",IF(AND($B$7<>"",AE114>=$B$7),$C$7,IF(AND($B$6<>"",AE114>=$B$6),$C$6,IF(AE114>=$B$5,$C$5,IF(AE114<$B$5,0)))))) ->  | AH114: =IFERROR(_xlfn.XLOOKUP(YEAR(Year2Table[[#This Row],[Date]])&MONTH(Year2Table[[#This Row],[Date]]),PenaltyTable[Year]&PenaltyTable[Month],PenaltyTable[Daily])*$AG$10,"") ->  | AR114: =IFERROR(_xlfn.XLOOKUP(YEAR(Year3Table[[#This Row],[Date]])&MONTH(Year3Table[[#This Row],[Date]]),PenaltyTable[Year]&PenaltyTable[Month],PenaltyTable[Daily])*$AQ$10,"") ->  | BB114: =IFERROR(_xlfn.XLOOKUP(YEAR(Year4Table[[#This Row],[Date]])&MONTH(Year4Table[[#This Row],[Date]]),PenaltyTable[Year]&PenaltyTable[Month],PenaltyTable[Daily])*$BA$10,"") ->  | BL114: =IFERROR(_xlfn.XLOOKUP(YEAR(Year5Table[[#This Row],[Date]])&MONTH(Year5Table[[#This Row],[Date]]),PenaltyTable[Year]&PenaltyTable[Month],PenaltyTable[Daily])*$BK$10,"") ->  | BV114: =IFERROR(_xlfn.XLOOKUP(YEAR(Year6Table[[#This Row],[Date]])&MONTH(Year6Table[[#This Row],[Date]]),PenaltyTable[Year]&PenaltyTable[Month],PenaltyTable[Daily])*$BU$10,"") ->  | CF114: =IFERROR(_xlfn.XLOOKUP(YEAR(Year7Table[[#This Row],[Date]])&MONTH(Year7Table[[#This Row],[Date]]),PenaltyTable[Year]&PenaltyTable[Month],PenaltyTable[Daily])*CE$10,"") ->  | CP114: =IFERROR(_xlfn.XLOOKUP(YEAR(Year8Table[[#This Row],[Date]])&MONTH(Year8Table[[#This Row],[Date]]),PenaltyTable[Year]&PenaltyTable[Month],PenaltyTable[Daily])*$CO$10,"") ->  | CZ114: =IFERROR(_xlfn.XLOOKUP(YEAR(Year9Table[[#This Row],[Date]])&MONTH(Year9Table[[#This Row],[Date]]),PenaltyTable[Year]&PenaltyTable[Month],PenaltyTable[Daily])*$CY$10,"") ->  | DJ114: =IFERROR(_xlfn.XLOOKUP(YEAR(Year10Table[[#This Row],[Date]])&MONTH(Year10Table[[#This Row],[Date]]),PenaltyTable[Year]&PenaltyTable[Month],PenaltyTable[Daily])*$DI$10,"") -> 
U115: =IFERROR(IF((ROW()-ROW(Year1Table[#Headers]))=1,IF(OR(Table1[[#This Row],[Tax Assessed]]="",Table1[[#This Row],[Tax Assessed]]=0),"",Table1[[#This Row],[Tax Due Dt]]),IF((ROW()-ROW(Year1Table[#Headers]))>1,IF(OFFSET(AB115,-1,)<1,"",EDATE(U114,1)))),"") ->  | X115: =IFERROR(_xlfn.XLOOKUP(YEAR(Year1Table[[#This Row],[Date]])&MONTH(Year1Table[[#This Row],[Date]]),PenaltyTable[Year]&PenaltyTable[Month],PenaltyTable[Daily])*$W$10,"") ->  | AF115: =IF(ROW()-ROW(Year2Table[#Headers])=1,$AI$193,IF(AG113="","",IF(AND($B$7<>"",AE115>=$B$7),$C$7,IF(AND($B$6<>"",AE115>=$B$6),$C$6,IF(AE115>=$B$5,$C$5,IF(AE115<$B$5,0)))))) ->  | AH115: =IFERROR(_xlfn.XLOOKUP(YEAR(Year2Table[[#This Row],[Date]])&MONTH(Year2Table[[#This Row],[Date]]),PenaltyTable[Year]&PenaltyTable[Month],PenaltyTable[Daily])*$AG$10,"") ->  | AR115: =IFERROR(_xlfn.XLOOKUP(YEAR(Year3Table[[#This Row],[Date]])&MONTH(Year3Table[[#This Row],[Date]]),PenaltyTable[Year]&PenaltyTable[Month],PenaltyTable[Daily])*$AQ$10,"") ->  | BB115: =IFERROR(_xlfn.XLOOKUP(YEAR(Year4Table[[#This Row],[Date]])&MONTH(Year4Table[[#This Row],[Date]]),PenaltyTable[Year]&PenaltyTable[Month],PenaltyTable[Daily])*$BA$10,"") ->  | BL115: =IFERROR(_xlfn.XLOOKUP(YEAR(Year5Table[[#This Row],[Date]])&MONTH(Year5Table[[#This Row],[Date]]),PenaltyTable[Year]&PenaltyTable[Month],PenaltyTable[Daily])*$BK$10,"") ->  | BV115: =IFERROR(_xlfn.XLOOKUP(YEAR(Year6Table[[#This Row],[Date]])&MONTH(Year6Table[[#This Row],[Date]]),PenaltyTable[Year]&PenaltyTable[Month],PenaltyTable[Daily])*$BU$10,"") ->  | CF115: =IFERROR(_xlfn.XLOOKUP(YEAR(Year7Table[[#This Row],[Date]])&MONTH(Year7Table[[#This Row],[Date]]),PenaltyTable[Year]&PenaltyTable[Month],PenaltyTable[Daily])*CE$10,"") ->  | CP115: =IFERROR(_xlfn.XLOOKUP(YEAR(Year8Table[[#This Row],[Date]])&MONTH(Year8Table[[#This Row],[Date]]),PenaltyTable[Year]&PenaltyTable[Month],PenaltyTable[Daily])*$CO$10,"") ->  | CZ115: =IFERROR(_xlfn.XLOOKUP(YEAR(Year9Table[[#This Row],[Date]])&MONTH(Year9Table[[#This Row],[Date]]),PenaltyTable[Year]&PenaltyTable[Month],PenaltyTable[Daily])*$CY$10,"") ->  | DJ115: =IFERROR(_xlfn.XLOOKUP(YEAR(Year10Table[[#This Row],[Date]])&MONTH(Year10Table[[#This Row],[Date]]),PenaltyTable[Year]&PenaltyTable[Month],PenaltyTable[Daily])*$DI$10,"") -> 
U116: =IFERROR(IF((ROW()-ROW(Year1Table[#Headers]))=1,IF(OR(Table1[[#This Row],[Tax Assessed]]="",Table1[[#This Row],[Tax Assessed]]=0),"",Table1[[#This Row],[Tax Due Dt]]),IF((ROW()-ROW(Year1Table[#Headers]))>1,IF(OFFSET(AB116,-1,)<1,"",EDATE(U115,1)))),"") ->  | X116: =IFERROR(_xlfn.XLOOKUP(YEAR(Year1Table[[#This Row],[Date]])&MONTH(Year1Table[[#This Row],[Date]]),PenaltyTable[Year]&PenaltyTable[Month],PenaltyTable[Daily])*$W$10,"") ->  | AF116: =IF(ROW()-ROW(Year2Table[#Headers])=1,$AI$193,IF(AG114="","",IF(AND($B$7<>"",AE116>=$B$7),$C$7,IF(AND($B$6<>"",AE116>=$B$6),$C$6,IF(AE116>=$B$5,$C$5,IF(AE116<$B$5,0)))))) ->  | AH116: =IFERROR(_xlfn.XLOOKUP(YEAR(Year2Table[[#This Row],[Date]])&MONTH(Year2Table[[#This Row],[Date]]),PenaltyTable[Year]&PenaltyTable[Month],PenaltyTable[Daily])*$AG$10,"") ->  | AR116: =IFERROR(_xlfn.XLOOKUP(YEAR(Year3Table[[#This Row],[Date]])&MONTH(Year3Table[[#This Row],[Date]]),PenaltyTable[Year]&PenaltyTable[Month],PenaltyTable[Daily])*$AQ$10,"") ->  | BB116: =IFERROR(_xlfn.XLOOKUP(YEAR(Year4Table[[#This Row],[Date]])&MONTH(Year4Table[[#This Row],[Date]]),PenaltyTable[Year]&PenaltyTable[Month],PenaltyTable[Daily])*$BA$10,"") ->  | BL116: =IFERROR(_xlfn.XLOOKUP(YEAR(Year5Table[[#This Row],[Date]])&MONTH(Year5Table[[#This Row],[Date]]),PenaltyTable[Year]&PenaltyTable[Month],PenaltyTable[Daily])*$BK$10,"") ->  | BV116: =IFERROR(_xlfn.XLOOKUP(YEAR(Year6Table[[#This Row],[Date]])&MONTH(Year6Table[[#This Row],[Date]]),PenaltyTable[Year]&PenaltyTable[Month],PenaltyTable[Daily])*$BU$10,"") ->  | CF116: =IFERROR(_xlfn.XLOOKUP(YEAR(Year7Table[[#This Row],[Date]])&MONTH(Year7Table[[#This Row],[Date]]),PenaltyTable[Year]&PenaltyTable[Month],PenaltyTable[Daily])*CE$10,"") ->  | CP116: =IFERROR(_xlfn.XLOOKUP(YEAR(Year8Table[[#This Row],[Date]])&MONTH(Year8Table[[#This Row],[Date]]),PenaltyTable[Year]&PenaltyTable[Month],PenaltyTable[Daily])*$CO$10,"") ->  | CZ116: =IFERROR(_xlfn.XLOOKUP(YEAR(Year9Table[[#This Row],[Date]])&MONTH(Year9Table[[#This Row],[Date]]),PenaltyTable[Year]&PenaltyTable[Month],PenaltyTable[Daily])*$CY$10,"") ->  | DJ116: =IFERROR(_xlfn.XLOOKUP(YEAR(Year10Table[[#This Row],[Date]])&MONTH(Year10Table[[#This Row],[Date]]),PenaltyTable[Year]&PenaltyTable[Month],PenaltyTable[Daily])*$DI$10,"") -> 
U117: =IFERROR(IF((ROW()-ROW(Year1Table[#Headers]))=1,IF(OR(Table1[[#This Row],[Tax Assessed]]="",Table1[[#This Row],[Tax Assessed]]=0),"",Table1[[#This Row],[Tax Due Dt]]),IF((ROW()-ROW(Year1Table[#Headers]))>1,IF(OFFSET(AB117,-1,)<1,"",EDATE(U116,1)))),"") ->  | X117: =IFERROR(_xlfn.XLOOKUP(YEAR(Year1Table[[#This Row],[Date]])&MONTH(Year1Table[[#This Row],[Date]]),PenaltyTable[Year]&PenaltyTable[Month],PenaltyTable[Daily])*$W$10,"") ->  | AF117: =IF(ROW()-ROW(Year2Table[#Headers])=1,$AI$193,IF(AG115="","",IF(AND($B$7<>"",AE117>=$B$7),$C$7,IF(AND($B$6<>"",AE117>=$B$6),$C$6,IF(AE117>=$B$5,$C$5,IF(AE117<$B$5,0)))))) ->  | AH117: =IFERROR(_xlfn.XLOOKUP(YEAR(Year2Table[[#This Row],[Date]])&MONTH(Year2Table[[#This Row],[Date]]),PenaltyTable[Year]&PenaltyTable[Month],PenaltyTable[Daily])*$AG$10,"") ->  | AR117: =IFERROR(_xlfn.XLOOKUP(YEAR(Year3Table[[#This Row],[Date]])&MONTH(Year3Table[[#This Row],[Date]]),PenaltyTable[Year]&PenaltyTable[Month],PenaltyTable[Daily])*$AQ$10,"") ->  | BB117: =IFERROR(_xlfn.XLOOKUP(YEAR(Year4Table[[#This Row],[Date]])&MONTH(Year4Table[[#This Row],[Date]]),PenaltyTable[Year]&PenaltyTable[Month],PenaltyTable[Daily])*$BA$10,"") ->  | BL117: =IFERROR(_xlfn.XLOOKUP(YEAR(Year5Table[[#This Row],[Date]])&MONTH(Year5Table[[#This Row],[Date]]),PenaltyTable[Year]&PenaltyTable[Month],PenaltyTable[Daily])*$BK$10,"") ->  | BV117: =IFERROR(_xlfn.XLOOKUP(YEAR(Year6Table[[#This Row],[Date]])&MONTH(Year6Table[[#This Row],[Date]]),PenaltyTable[Year]&PenaltyTable[Month],PenaltyTable[Daily])*$BU$10,"") ->  | CF117: =IFERROR(_xlfn.XLOOKUP(YEAR(Year7Table[[#This Row],[Date]])&MONTH(Year7Table[[#This Row],[Date]]),PenaltyTable[Year]&PenaltyTable[Month],PenaltyTable[Daily])*CE$10,"") ->  | CP117: =IFERROR(_xlfn.XLOOKUP(YEAR(Year8Table[[#This Row],[Date]])&MONTH(Year8Table[[#This Row],[Date]]),PenaltyTable[Year]&PenaltyTable[Month],PenaltyTable[Daily])*$CO$10,"") ->  | CZ117: =IFERROR(_xlfn.XLOOKUP(YEAR(Year9Table[[#This Row],[Date]])&MONTH(Year9Table[[#This Row],[Date]]),PenaltyTable[Year]&PenaltyTable[Month],PenaltyTable[Daily])*$CY$10,"") ->  | DJ117: =IFERROR(_xlfn.XLOOKUP(YEAR(Year10Table[[#This Row],[Date]])&MONTH(Year10Table[[#This Row],[Date]]),PenaltyTable[Year]&PenaltyTable[Month],PenaltyTable[Daily])*$DI$10,"") -> 
U118: =IFERROR(IF((ROW()-ROW(Year1Table[#Headers]))=1,IF(OR(Table1[[#This Row],[Tax Assessed]]="",Table1[[#This Row],[Tax Assessed]]=0),"",Table1[[#This Row],[Tax Due Dt]]),IF((ROW()-ROW(Year1Table[#Headers]))>1,IF(OFFSET(AB118,-1,)<1,"",EDATE(U117,1)))),"") ->  | X118: =IFERROR(_xlfn.XLOOKUP(YEAR(Year1Table[[#This Row],[Date]])&MONTH(Year1Table[[#This Row],[Date]]),PenaltyTable[Year]&PenaltyTable[Month],PenaltyTable[Daily])*$W$10,"") ->  | AF118: =IF(ROW()-ROW(Year2Table[#Headers])=1,$AI$193,IF(AG116="","",IF(AND($B$7<>"",AE118>=$B$7),$C$7,IF(AND($B$6<>"",AE118>=$B$6),$C$6,IF(AE118>=$B$5,$C$5,IF(AE118<$B$5,0)))))) ->  | AH118: =IFERROR(_xlfn.XLOOKUP(YEAR(Year2Table[[#This Row],[Date]])&MONTH(Year2Table[[#This Row],[Date]]),PenaltyTable[Year]&PenaltyTable[Month],PenaltyTable[Daily])*$AG$10,"") ->  | AR118: =IFERROR(_xlfn.XLOOKUP(YEAR(Year3Table[[#This Row],[Date]])&MONTH(Year3Table[[#This Row],[Date]]),PenaltyTable[Year]&PenaltyTable[Month],PenaltyTable[Daily])*$AQ$10,"") ->  | BB118: =IFERROR(_xlfn.XLOOKUP(YEAR(Year4Table[[#This Row],[Date]])&MONTH(Year4Table[[#This Row],[Date]]),PenaltyTable[Year]&PenaltyTable[Month],PenaltyTable[Daily])*$BA$10,"") ->  | BL118: =IFERROR(_xlfn.XLOOKUP(YEAR(Year5Table[[#This Row],[Date]])&MONTH(Year5Table[[#This Row],[Date]]),PenaltyTable[Year]&PenaltyTable[Month],PenaltyTable[Daily])*$BK$10,"") ->  | BV118: =IFERROR(_xlfn.XLOOKUP(YEAR(Year6Table[[#This Row],[Date]])&MONTH(Year6Table[[#This Row],[Date]]),PenaltyTable[Year]&PenaltyTable[Month],PenaltyTable[Daily])*$BU$10,"") ->  | CF118: =IFERROR(_xlfn.XLOOKUP(YEAR(Year7Table[[#This Row],[Date]])&MONTH(Year7Table[[#This Row],[Date]]),PenaltyTable[Year]&PenaltyTable[Month],PenaltyTable[Daily])*CE$10,"") ->  | CP118: =IFERROR(_xlfn.XLOOKUP(YEAR(Year8Table[[#This Row],[Date]])&MONTH(Year8Table[[#This Row],[Date]]),PenaltyTable[Year]&PenaltyTable[Month],PenaltyTable[Daily])*$CO$10,"") ->  | CZ118: =IFERROR(_xlfn.XLOOKUP(YEAR(Year9Table[[#This Row],[Date]])&MONTH(Year9Table[[#This Row],[Date]]),PenaltyTable[Year]&PenaltyTable[Month],PenaltyTable[Daily])*$CY$10,"") ->  | DJ118: =IFERROR(_xlfn.XLOOKUP(YEAR(Year10Table[[#This Row],[Date]])&MONTH(Year10Table[[#This Row],[Date]]),PenaltyTable[Year]&PenaltyTable[Month],PenaltyTable[Daily])*$DI$10,"") -> 
U119: =IFERROR(IF((ROW()-ROW(Year1Table[#Headers]))=1,IF(OR(Table1[[#This Row],[Tax Assessed]]="",Table1[[#This Row],[Tax Assessed]]=0),"",Table1[[#This Row],[Tax Due Dt]]),IF((ROW()-ROW(Year1Table[#Headers]))>1,IF(OFFSET(AB119,-1,)<1,"",EDATE(U118,1)))),"") ->  | X119: =IFERROR(_xlfn.XLOOKUP(YEAR(Year1Table[[#This Row],[Date]])&MONTH(Year1Table[[#This Row],[Date]]),PenaltyTable[Year]&PenaltyTable[Month],PenaltyTable[Daily])*$W$10,"") ->  | AF119: =IF(ROW()-ROW(Year2Table[#Headers])=1,$AI$193,IF(AG117="","",IF(AND($B$7<>"",AE119>=$B$7),$C$7,IF(AND($B$6<>"",AE119>=$B$6),$C$6,IF(AE119>=$B$5,$C$5,IF(AE119<$B$5,0)))))) ->  | AH119: =IFERROR(_xlfn.XLOOKUP(YEAR(Year2Table[[#This Row],[Date]])&MONTH(Year2Table[[#This Row],[Date]]),PenaltyTable[Year]&PenaltyTable[Month],PenaltyTable[Daily])*$AG$10,"") ->  | AR119: =IFERROR(_xlfn.XLOOKUP(YEAR(Year3Table[[#This Row],[Date]])&MONTH(Year3Table[[#This Row],[Date]]),PenaltyTable[Year]&PenaltyTable[Month],PenaltyTable[Daily])*$AQ$10,"") ->  | BB119: =IFERROR(_xlfn.XLOOKUP(YEAR(Year4Table[[#This Row],[Date]])&MONTH(Year4Table[[#This Row],[Date]]),PenaltyTable[Year]&PenaltyTable[Month],PenaltyTable[Daily])*$BA$10,"") ->  | BL119: =IFERROR(_xlfn.XLOOKUP(YEAR(Year5Table[[#This Row],[Date]])&MONTH(Year5Table[[#This Row],[Date]]),PenaltyTable[Year]&PenaltyTable[Month],PenaltyTable[Daily])*$BK$10,"") ->  | BV119: =IFERROR(_xlfn.XLOOKUP(YEAR(Year6Table[[#This Row],[Date]])&MONTH(Year6Table[[#This Row],[Date]]),PenaltyTable[Year]&PenaltyTable[Month],PenaltyTable[Daily])*$BU$10,"") ->  | CF119: =IFERROR(_xlfn.XLOOKUP(YEAR(Year7Table[[#This Row],[Date]])&MONTH(Year7Table[[#This Row],[Date]]),PenaltyTable[Year]&PenaltyTable[Month],PenaltyTable[Daily])*CE$10,"") ->  | CP119: =IFERROR(_xlfn.XLOOKUP(YEAR(Year8Table[[#This Row],[Date]])&MONTH(Year8Table[[#This Row],[Date]]),PenaltyTable[Year]&PenaltyTable[Month],PenaltyTable[Daily])*$CO$10,"") ->  | CZ119: =IFERROR(_xlfn.XLOOKUP(YEAR(Year9Table[[#This Row],[Date]])&MONTH(Year9Table[[#This Row],[Date]]),PenaltyTable[Year]&PenaltyTable[Month],PenaltyTable[Daily])*$CY$10,"") ->  | DJ119: =IFERROR(_xlfn.XLOOKUP(YEAR(Year10Table[[#This Row],[Date]])&MONTH(Year10Table[[#This Row],[Date]]),PenaltyTable[Year]&PenaltyTable[Month],PenaltyTable[Daily])*$DI$10,"") -> 
U120: =IFERROR(IF((ROW()-ROW(Year1Table[#Headers]))=1,IF(OR(Table1[[#This Row],[Tax Assessed]]="",Table1[[#This Row],[Tax Assessed]]=0),"",Table1[[#This Row],[Tax Due Dt]]),IF((ROW()-ROW(Year1Table[#Headers]))>1,IF(OFFSET(AB120,-1,)<1,"",EDATE(U119,1)))),"") ->  | X120: =IFERROR(_xlfn.XLOOKUP(YEAR(Year1Table[[#This Row],[Date]])&MONTH(Year1Table[[#This Row],[Date]]),PenaltyTable[Year]&PenaltyTable[Month],PenaltyTable[Daily])*$W$10,"") ->  | AF120: =IF(ROW()-ROW(Year2Table[#Headers])=1,$AI$193,IF(AG118="","",IF(AND($B$7<>"",AE120>=$B$7),$C$7,IF(AND($B$6<>"",AE120>=$B$6),$C$6,IF(AE120>=$B$5,$C$5,IF(AE120<$B$5,0)))))) ->  | AH120: =IFERROR(_xlfn.XLOOKUP(YEAR(Year2Table[[#This Row],[Date]])&MONTH(Year2Table[[#This Row],[Date]]),PenaltyTable[Year]&PenaltyTable[Month],PenaltyTable[Daily])*$AG$10,"") ->  | AR120: =IFERROR(_xlfn.XLOOKUP(YEAR(Year3Table[[#This Row],[Date]])&MONTH(Year3Table[[#This Row],[Date]]),PenaltyTable[Year]&PenaltyTable[Month],PenaltyTable[Daily])*$AQ$10,"") ->  | BB120: =IFERROR(_xlfn.XLOOKUP(YEAR(Year4Table[[#This Row],[Date]])&MONTH(Year4Table[[#This Row],[Date]]),PenaltyTable[Year]&PenaltyTable[Month],PenaltyTable[Daily])*$BA$10,"") ->  | BL120: =IFERROR(_xlfn.XLOOKUP(YEAR(Year5Table[[#This Row],[Date]])&MONTH(Year5Table[[#This Row],[Date]]),PenaltyTable[Year]&PenaltyTable[Month],PenaltyTable[Daily])*$BK$10,"") ->  | BV120: =IFERROR(_xlfn.XLOOKUP(YEAR(Year6Table[[#This Row],[Date]])&MONTH(Year6Table[[#This Row],[Date]]),PenaltyTable[Year]&PenaltyTable[Month],PenaltyTable[Daily])*$BU$10,"") ->  | CF120: =IFERROR(_xlfn.XLOOKUP(YEAR(Year7Table[[#This Row],[Date]])&MONTH(Year7Table[[#This Row],[Date]]),PenaltyTable[Year]&PenaltyTable[Month],PenaltyTable[Daily])*CE$10,"") ->  | CP120: =IFERROR(_xlfn.XLOOKUP(YEAR(Year8Table[[#This Row],[Date]])&MONTH(Year8Table[[#This Row],[Date]]),PenaltyTable[Year]&PenaltyTable[Month],PenaltyTable[Daily])*$CO$10,"") ->  | CZ120: =IFERROR(_xlfn.XLOOKUP(YEAR(Year9Table[[#This Row],[Date]])&MONTH(Year9Table[[#This Row],[Date]]),PenaltyTable[Year]&PenaltyTable[Month],PenaltyTable[Daily])*$CY$10,"") ->  | DJ120: =IFERROR(_xlfn.XLOOKUP(YEAR(Year10Table[[#This Row],[Date]])&MONTH(Year10Table[[#This Row],[Date]]),PenaltyTable[Year]&PenaltyTable[Month],PenaltyTable[Daily])*$DI$10,"") -> 
U121: =IFERROR(IF((ROW()-ROW(Year1Table[#Headers]))=1,IF(OR(Table1[[#This Row],[Tax Assessed]]="",Table1[[#This Row],[Tax Assessed]]=0),"",Table1[[#This Row],[Tax Due Dt]]),IF((ROW()-ROW(Year1Table[#Headers]))>1,IF(OFFSET(AB121,-1,)<1,"",EDATE(U120,1)))),"") ->  | X121: =IFERROR(_xlfn.XLOOKUP(YEAR(Year1Table[[#This Row],[Date]])&MONTH(Year1Table[[#This Row],[Date]]),PenaltyTable[Year]&PenaltyTable[Month],PenaltyTable[Daily])*$W$10,"") ->  | AF121: =IF(ROW()-ROW(Year2Table[#Headers])=1,$AI$193,IF(AG119="","",IF(AND($B$7<>"",AE121>=$B$7),$C$7,IF(AND($B$6<>"",AE121>=$B$6),$C$6,IF(AE121>=$B$5,$C$5,IF(AE121<$B$5,0)))))) ->  | AH121: =IFERROR(_xlfn.XLOOKUP(YEAR(Year2Table[[#This Row],[Date]])&MONTH(Year2Table[[#This Row],[Date]]),PenaltyTable[Year]&PenaltyTable[Month],PenaltyTable[Daily])*$AG$10,"") ->  | AR121: =IFERROR(_xlfn.XLOOKUP(YEAR(Year3Table[[#This Row],[Date]])&MONTH(Year3Table[[#This Row],[Date]]),PenaltyTable[Year]&PenaltyTable[Month],PenaltyTable[Daily])*$AQ$10,"") ->  | BB121: =IFERROR(_xlfn.XLOOKUP(YEAR(Year4Table[[#This Row],[Date]])&MONTH(Year4Table[[#This Row],[Date]]),PenaltyTable[Year]&PenaltyTable[Month],PenaltyTable[Daily])*$BA$10,"") ->  | BL121: =IFERROR(_xlfn.XLOOKUP(YEAR(Year5Table[[#This Row],[Date]])&MONTH(Year5Table[[#This Row],[Date]]),PenaltyTable[Year]&PenaltyTable[Month],PenaltyTable[Daily])*$BK$10,"") ->  | BV121: =IFERROR(_xlfn.XLOOKUP(YEAR(Year6Table[[#This Row],[Date]])&MONTH(Year6Table[[#This Row],[Date]]),PenaltyTable[Year]&PenaltyTable[Month],PenaltyTable[Daily])*$BU$10,"") ->  | CF121: =IFERROR(_xlfn.XLOOKUP(YEAR(Year7Table[[#This Row],[Date]])&MONTH(Year7Table[[#This Row],[Date]]),PenaltyTable[Year]&PenaltyTable[Month],PenaltyTable[Daily])*CE$10,"") ->  | CP121: =IFERROR(_xlfn.XLOOKUP(YEAR(Year8Table[[#This Row],[Date]])&MONTH(Year8Table[[#This Row],[Date]]),PenaltyTable[Year]&PenaltyTable[Month],PenaltyTable[Daily])*$CO$10,"") ->  | CZ121: =IFERROR(_xlfn.XLOOKUP(YEAR(Year9Table[[#This Row],[Date]])&MONTH(Year9Table[[#This Row],[Date]]),PenaltyTable[Year]&PenaltyTable[Month],PenaltyTable[Daily])*$CY$10,"") ->  | DJ121: =IFERROR(_xlfn.XLOOKUP(YEAR(Year10Table[[#This Row],[Date]])&MONTH(Year10Table[[#This Row],[Date]]),PenaltyTable[Year]&PenaltyTable[Month],PenaltyTable[Daily])*$DI$10,"") -> 
U122: =IFERROR(IF((ROW()-ROW(Year1Table[#Headers]))=1,IF(OR(Table1[[#This Row],[Tax Assessed]]="",Table1[[#This Row],[Tax Assessed]]=0),"",Table1[[#This Row],[Tax Due Dt]]),IF((ROW()-ROW(Year1Table[#Headers]))>1,IF(OFFSET(AB122,-1,)<1,"",EDATE(U121,1)))),"") ->  | X122: =IFERROR(_xlfn.XLOOKUP(YEAR(Year1Table[[#This Row],[Date]])&MONTH(Year1Table[[#This Row],[Date]]),PenaltyTable[Year]&PenaltyTable[Month],PenaltyTable[Daily])*$W$10,"") ->  | AF122: =IF(ROW()-ROW(Year2Table[#Headers])=1,$AI$193,IF(AG120="","",IF(AND($B$7<>"",AE122>=$B$7),$C$7,IF(AND($B$6<>"",AE122>=$B$6),$C$6,IF(AE122>=$B$5,$C$5,IF(AE122<$B$5,0)))))) ->  | AH122: =IFERROR(_xlfn.XLOOKUP(YEAR(Year2Table[[#This Row],[Date]])&MONTH(Year2Table[[#This Row],[Date]]),PenaltyTable[Year]&PenaltyTable[Month],PenaltyTable[Daily])*$AG$10,"") ->  | AR122: =IFERROR(_xlfn.XLOOKUP(YEAR(Year3Table[[#This Row],[Date]])&MONTH(Year3Table[[#This Row],[Date]]),PenaltyTable[Year]&PenaltyTable[Month],PenaltyTable[Daily])*$AQ$10,"") ->  | BB122: =IFERROR(_xlfn.XLOOKUP(YEAR(Year4Table[[#This Row],[Date]])&MONTH(Year4Table[[#This Row],[Date]]),PenaltyTable[Year]&PenaltyTable[Month],PenaltyTable[Daily])*$BA$10,"") ->  | BL122: =IFERROR(_xlfn.XLOOKUP(YEAR(Year5Table[[#This Row],[Date]])&MONTH(Year5Table[[#This Row],[Date]]),PenaltyTable[Year]&PenaltyTable[Month],PenaltyTable[Daily])*$BK$10,"") ->  | BV122: =IFERROR(_xlfn.XLOOKUP(YEAR(Year6Table[[#This Row],[Date]])&MONTH(Year6Table[[#This Row],[Date]]),PenaltyTable[Year]&PenaltyTable[Month],PenaltyTable[Daily])*$BU$10,"") ->  | CF122: =IFERROR(_xlfn.XLOOKUP(YEAR(Year7Table[[#This Row],[Date]])&MONTH(Year7Table[[#This Row],[Date]]),PenaltyTable[Year]&PenaltyTable[Month],PenaltyTable[Daily])*CE$10,"") ->  | CP122: =IFERROR(_xlfn.XLOOKUP(YEAR(Year8Table[[#This Row],[Date]])&MONTH(Year8Table[[#This Row],[Date]]),PenaltyTable[Year]&PenaltyTable[Month],PenaltyTable[Daily])*$CO$10,"") ->  | CZ122: =IFERROR(_xlfn.XLOOKUP(YEAR(Year9Table[[#This Row],[Date]])&MONTH(Year9Table[[#This Row],[Date]]),PenaltyTable[Year]&PenaltyTable[Month],PenaltyTable[Daily])*$CY$10,"") ->  | DJ122: =IFERROR(_xlfn.XLOOKUP(YEAR(Year10Table[[#This Row],[Date]])&MONTH(Year10Table[[#This Row],[Date]]),PenaltyTable[Year]&PenaltyTable[Month],PenaltyTable[Daily])*$DI$10,"") -> 
U123: =IFERROR(IF((ROW()-ROW(Year1Table[#Headers]))=1,IF(OR(Table1[[#This Row],[Tax Assessed]]="",Table1[[#This Row],[Tax Assessed]]=0),"",Table1[[#This Row],[Tax Due Dt]]),IF((ROW()-ROW(Year1Table[#Headers]))>1,IF(OFFSET(AB123,-1,)<1,"",EDATE(U122,1)))),"") ->  | X123: =IFERROR(_xlfn.XLOOKUP(YEAR(Year1Table[[#This Row],[Date]])&MONTH(Year1Table[[#This Row],[Date]]),PenaltyTable[Year]&PenaltyTable[Month],PenaltyTable[Daily])*$W$10,"") ->  | AF123: =IF(ROW()-ROW(Year2Table[#Headers])=1,$AI$193,IF(AG121="","",IF(AND($B$7<>"",AE123>=$B$7),$C$7,IF(AND($B$6<>"",AE123>=$B$6),$C$6,IF(AE123>=$B$5,$C$5,IF(AE123<$B$5,0)))))) ->  | AH123: =IFERROR(_xlfn.XLOOKUP(YEAR(Year2Table[[#This Row],[Date]])&MONTH(Year2Table[[#This Row],[Date]]),PenaltyTable[Year]&PenaltyTable[Month],PenaltyTable[Daily])*$AG$10,"") ->  | AR123: =IFERROR(_xlfn.XLOOKUP(YEAR(Year3Table[[#This Row],[Date]])&MONTH(Year3Table[[#This Row],[Date]]),PenaltyTable[Year]&PenaltyTable[Month],PenaltyTable[Daily])*$AQ$10,"") ->  | BB123: =IFERROR(_xlfn.XLOOKUP(YEAR(Year4Table[[#This Row],[Date]])&MONTH(Year4Table[[#This Row],[Date]]),PenaltyTable[Year]&PenaltyTable[Month],PenaltyTable[Daily])*$BA$10,"") ->  | BL123: =IFERROR(_xlfn.XLOOKUP(YEAR(Year5Table[[#This Row],[Date]])&MONTH(Year5Table[[#This Row],[Date]]),PenaltyTable[Year]&PenaltyTable[Month],PenaltyTable[Daily])*$BK$10,"") ->  | BV123: =IFERROR(_xlfn.XLOOKUP(YEAR(Year6Table[[#This Row],[Date]])&MONTH(Year6Table[[#This Row],[Date]]),PenaltyTable[Year]&PenaltyTable[Month],PenaltyTable[Daily])*$BU$10,"") ->  | CF123: =IFERROR(_xlfn.XLOOKUP(YEAR(Year7Table[[#This Row],[Date]])&MONTH(Year7Table[[#This Row],[Date]]),PenaltyTable[Year]&PenaltyTable[Month],PenaltyTable[Daily])*CE$10,"") ->  | CP123: =IFERROR(_xlfn.XLOOKUP(YEAR(Year8Table[[#This Row],[Date]])&MONTH(Year8Table[[#This Row],[Date]]),PenaltyTable[Year]&PenaltyTable[Month],PenaltyTable[Daily])*$CO$10,"") ->  | CZ123: =IFERROR(_xlfn.XLOOKUP(YEAR(Year9Table[[#This Row],[Date]])&MONTH(Year9Table[[#This Row],[Date]]),PenaltyTable[Year]&PenaltyTable[Month],PenaltyTable[Daily])*$CY$10,"") ->  | DJ123: =IFERROR(_xlfn.XLOOKUP(YEAR(Year10Table[[#This Row],[Date]])&MONTH(Year10Table[[#This Row],[Date]]),PenaltyTable[Year]&PenaltyTable[Month],PenaltyTable[Daily])*$DI$10,"") -> 
U124: =IFERROR(IF((ROW()-ROW(Year1Table[#Headers]))=1,IF(OR(Table1[[#This Row],[Tax Assessed]]="",Table1[[#This Row],[Tax Assessed]]=0),"",Table1[[#This Row],[Tax Due Dt]]),IF((ROW()-ROW(Year1Table[#Headers]))>1,IF(OFFSET(AB124,-1,)<1,"",EDATE(U123,1)))),"") ->  | X124: =IFERROR(_xlfn.XLOOKUP(YEAR(Year1Table[[#This Row],[Date]])&MONTH(Year1Table[[#This Row],[Date]]),PenaltyTable[Year]&PenaltyTable[Month],PenaltyTable[Daily])*$W$10,"") ->  | AF124: =IF(ROW()-ROW(Year2Table[#Headers])=1,$AI$193,IF(AG122="","",IF(AND($B$7<>"",AE124>=$B$7),$C$7,IF(AND($B$6<>"",AE124>=$B$6),$C$6,IF(AE124>=$B$5,$C$5,IF(AE124<$B$5,0)))))) ->  | AH124: =IFERROR(_xlfn.XLOOKUP(YEAR(Year2Table[[#This Row],[Date]])&MONTH(Year2Table[[#This Row],[Date]]),PenaltyTable[Year]&PenaltyTable[Month],PenaltyTable[Daily])*$AG$10,"") ->  | AR124: =IFERROR(_xlfn.XLOOKUP(YEAR(Year3Table[[#This Row],[Date]])&MONTH(Year3Table[[#This Row],[Date]]),PenaltyTable[Year]&PenaltyTable[Month],PenaltyTable[Daily])*$AQ$10,"") ->  | BB124: =IFERROR(_xlfn.XLOOKUP(YEAR(Year4Table[[#This Row],[Date]])&MONTH(Year4Table[[#This Row],[Date]]),PenaltyTable[Year]&PenaltyTable[Month],PenaltyTable[Daily])*$BA$10,"") ->  | BL124: =IFERROR(_xlfn.XLOOKUP(YEAR(Year5Table[[#This Row],[Date]])&MONTH(Year5Table[[#This Row],[Date]]),PenaltyTable[Year]&PenaltyTable[Month],PenaltyTable[Daily])*$BK$10,"") ->  | BV124: =IFERROR(_xlfn.XLOOKUP(YEAR(Year6Table[[#This Row],[Date]])&MONTH(Year6Table[[#This Row],[Date]]),PenaltyTable[Year]&PenaltyTable[Month],PenaltyTable[Daily])*$BU$10,"") ->  | CF124: =IFERROR(_xlfn.XLOOKUP(YEAR(Year7Table[[#This Row],[Date]])&MONTH(Year7Table[[#This Row],[Date]]),PenaltyTable[Year]&PenaltyTable[Month],PenaltyTable[Daily])*CE$10,"") ->  | CP124: =IFERROR(_xlfn.XLOOKUP(YEAR(Year8Table[[#This Row],[Date]])&MONTH(Year8Table[[#This Row],[Date]]),PenaltyTable[Year]&PenaltyTable[Month],PenaltyTable[Daily])*$CO$10,"") ->  | CZ124: =IFERROR(_xlfn.XLOOKUP(YEAR(Year9Table[[#This Row],[Date]])&MONTH(Year9Table[[#This Row],[Date]]),PenaltyTable[Year]&PenaltyTable[Month],PenaltyTable[Daily])*$CY$10,"") ->  | DJ124: =IFERROR(_xlfn.XLOOKUP(YEAR(Year10Table[[#This Row],[Date]])&MONTH(Year10Table[[#This Row],[Date]]),PenaltyTable[Year]&PenaltyTable[Month],PenaltyTable[Daily])*$DI$10,"") -> 
U125: =IFERROR(IF((ROW()-ROW(Year1Table[#Headers]))=1,IF(OR(Table1[[#This Row],[Tax Assessed]]="",Table1[[#This Row],[Tax Assessed]]=0),"",Table1[[#This Row],[Tax Due Dt]]),IF((ROW()-ROW(Year1Table[#Headers]))>1,IF(OFFSET(AB125,-1,)<1,"",EDATE(U124,1)))),"") ->  | X125: =IFERROR(_xlfn.XLOOKUP(YEAR(Year1Table[[#This Row],[Date]])&MONTH(Year1Table[[#This Row],[Date]]),PenaltyTable[Year]&PenaltyTable[Month],PenaltyTable[Daily])*$W$10,"") ->  | AF125: =IF(ROW()-ROW(Year2Table[#Headers])=1,$AI$193,IF(AG123="","",IF(AND($B$7<>"",AE125>=$B$7),$C$7,IF(AND($B$6<>"",AE125>=$B$6),$C$6,IF(AE125>=$B$5,$C$5,IF(AE125<$B$5,0)))))) ->  | AH125: =IFERROR(_xlfn.XLOOKUP(YEAR(Year2Table[[#This Row],[Date]])&MONTH(Year2Table[[#This Row],[Date]]),PenaltyTable[Year]&PenaltyTable[Month],PenaltyTable[Daily])*$AG$10,"") ->  | AR125: =IFERROR(_xlfn.XLOOKUP(YEAR(Year3Table[[#This Row],[Date]])&MONTH(Year3Table[[#This Row],[Date]]),PenaltyTable[Year]&PenaltyTable[Month],PenaltyTable[Daily])*$AQ$10,"") ->  | BB125: =IFERROR(_xlfn.XLOOKUP(YEAR(Year4Table[[#This Row],[Date]])&MONTH(Year4Table[[#This Row],[Date]]),PenaltyTable[Year]&PenaltyTable[Month],PenaltyTable[Daily])*$BA$10,"") ->  | BL125: =IFERROR(_xlfn.XLOOKUP(YEAR(Year5Table[[#This Row],[Date]])&MONTH(Year5Table[[#This Row],[Date]]),PenaltyTable[Year]&PenaltyTable[Month],PenaltyTable[Daily])*$BK$10,"") ->  | BV125: =IFERROR(_xlfn.XLOOKUP(YEAR(Year6Table[[#This Row],[Date]])&MONTH(Year6Table[[#This Row],[Date]]),PenaltyTable[Year]&PenaltyTable[Month],PenaltyTable[Daily])*$BU$10,"") ->  | CF125: =IFERROR(_xlfn.XLOOKUP(YEAR(Year7Table[[#This Row],[Date]])&MONTH(Year7Table[[#This Row],[Date]]),PenaltyTable[Year]&PenaltyTable[Month],PenaltyTable[Daily])*CE$10,"") ->  | CP125: =IFERROR(_xlfn.XLOOKUP(YEAR(Year8Table[[#This Row],[Date]])&MONTH(Year8Table[[#This Row],[Date]]),PenaltyTable[Year]&PenaltyTable[Month],PenaltyTable[Daily])*$CO$10,"") ->  | CZ125: =IFERROR(_xlfn.XLOOKUP(YEAR(Year9Table[[#This Row],[Date]])&MONTH(Year9Table[[#This Row],[Date]]),PenaltyTable[Year]&PenaltyTable[Month],PenaltyTable[Daily])*$CY$10,"") ->  | DJ125: =IFERROR(_xlfn.XLOOKUP(YEAR(Year10Table[[#This Row],[Date]])&MONTH(Year10Table[[#This Row],[Date]]),PenaltyTable[Year]&PenaltyTable[Month],PenaltyTable[Daily])*$DI$10,"") -> 
U126: =IFERROR(IF((ROW()-ROW(Year1Table[#Headers]))=1,IF(OR(Table1[[#This Row],[Tax Assessed]]="",Table1[[#This Row],[Tax Assessed]]=0),"",Table1[[#This Row],[Tax Due Dt]]),IF((ROW()-ROW(Year1Table[#Headers]))>1,IF(OFFSET(AB126,-1,)<1,"",EDATE(U125,1)))),"") ->  | X126: =IFERROR(_xlfn.XLOOKUP(YEAR(Year1Table[[#This Row],[Date]])&MONTH(Year1Table[[#This Row],[Date]]),PenaltyTable[Year]&PenaltyTable[Month],PenaltyTable[Daily])*$W$10,"") ->  | AF126: =IF(ROW()-ROW(Year2Table[#Headers])=1,$AI$193,IF(AG124="","",IF(AND($B$7<>"",AE126>=$B$7),$C$7,IF(AND($B$6<>"",AE126>=$B$6),$C$6,IF(AE126>=$B$5,$C$5,IF(AE126<$B$5,0)))))) ->  | AH126: =IFERROR(_xlfn.XLOOKUP(YEAR(Year2Table[[#This Row],[Date]])&MONTH(Year2Table[[#This Row],[Date]]),PenaltyTable[Year]&PenaltyTable[Month],PenaltyTable[Daily])*$AG$10,"") ->  | AR126: =IFERROR(_xlfn.XLOOKUP(YEAR(Year3Table[[#This Row],[Date]])&MONTH(Year3Table[[#This Row],[Date]]),PenaltyTable[Year]&PenaltyTable[Month],PenaltyTable[Daily])*$AQ$10,"") ->  | BB126: =IFERROR(_xlfn.XLOOKUP(YEAR(Year4Table[[#This Row],[Date]])&MONTH(Year4Table[[#This Row],[Date]]),PenaltyTable[Year]&PenaltyTable[Month],PenaltyTable[Daily])*$BA$10,"") ->  | BL126: =IFERROR(_xlfn.XLOOKUP(YEAR(Year5Table[[#This Row],[Date]])&MONTH(Year5Table[[#This Row],[Date]]),PenaltyTable[Year]&PenaltyTable[Month],PenaltyTable[Daily])*$BK$10,"") ->  | BV126: =IFERROR(_xlfn.XLOOKUP(YEAR(Year6Table[[#This Row],[Date]])&MONTH(Year6Table[[#This Row],[Date]]),PenaltyTable[Year]&PenaltyTable[Month],PenaltyTable[Daily])*$BU$10,"") ->  | CF126: =IFERROR(_xlfn.XLOOKUP(YEAR(Year7Table[[#This Row],[Date]])&MONTH(Year7Table[[#This Row],[Date]]),PenaltyTable[Year]&PenaltyTable[Month],PenaltyTable[Daily])*CE$10,"") ->  | CP126: =IFERROR(_xlfn.XLOOKUP(YEAR(Year8Table[[#This Row],[Date]])&MONTH(Year8Table[[#This Row],[Date]]),PenaltyTable[Year]&PenaltyTable[Month],PenaltyTable[Daily])*$CO$10,"") ->  | CZ126: =IFERROR(_xlfn.XLOOKUP(YEAR(Year9Table[[#This Row],[Date]])&MONTH(Year9Table[[#This Row],[Date]]),PenaltyTable[Year]&PenaltyTable[Month],PenaltyTable[Daily])*$CY$10,"") ->  | DJ126: =IFERROR(_xlfn.XLOOKUP(YEAR(Year10Table[[#This Row],[Date]])&MONTH(Year10Table[[#This Row],[Date]]),PenaltyTable[Year]&PenaltyTable[Month],PenaltyTable[Daily])*$DI$10,"") -> 
U127: =IFERROR(IF((ROW()-ROW(Year1Table[#Headers]))=1,IF(OR(Table1[[#This Row],[Tax Assessed]]="",Table1[[#This Row],[Tax Assessed]]=0),"",Table1[[#This Row],[Tax Due Dt]]),IF((ROW()-ROW(Year1Table[#Headers]))>1,IF(OFFSET(AB127,-1,)<1,"",EDATE(U126,1)))),"") ->  | X127: =IFERROR(_xlfn.XLOOKUP(YEAR(Year1Table[[#This Row],[Date]])&MONTH(Year1Table[[#This Row],[Date]]),PenaltyTable[Year]&PenaltyTable[Month],PenaltyTable[Daily])*$W$10,"") ->  | AF127: =IF(ROW()-ROW(Year2Table[#Headers])=1,$AI$193,IF(AG125="","",IF(AND($B$7<>"",AE127>=$B$7),$C$7,IF(AND($B$6<>"",AE127>=$B$6),$C$6,IF(AE127>=$B$5,$C$5,IF(AE127<$B$5,0)))))) ->  | AH127: =IFERROR(_xlfn.XLOOKUP(YEAR(Year2Table[[#This Row],[Date]])&MONTH(Year2Table[[#This Row],[Date]]),PenaltyTable[Year]&PenaltyTable[Month],PenaltyTable[Daily])*$AG$10,"") ->  | AR127: =IFERROR(_xlfn.XLOOKUP(YEAR(Year3Table[[#This Row],[Date]])&MONTH(Year3Table[[#This Row],[Date]]),PenaltyTable[Year]&PenaltyTable[Month],PenaltyTable[Daily])*$AQ$10,"") ->  | BB127: =IFERROR(_xlfn.XLOOKUP(YEAR(Year4Table[[#This Row],[Date]])&MONTH(Year4Table[[#This Row],[Date]]),PenaltyTable[Year]&PenaltyTable[Month],PenaltyTable[Daily])*$BA$10,"") ->  | BL127: =IFERROR(_xlfn.XLOOKUP(YEAR(Year5Table[[#This Row],[Date]])&MONTH(Year5Table[[#This Row],[Date]]),PenaltyTable[Year]&PenaltyTable[Month],PenaltyTable[Daily])*$BK$10,"") ->  | BV127: =IFERROR(_xlfn.XLOOKUP(YEAR(Year6Table[[#This Row],[Date]])&MONTH(Year6Table[[#This Row],[Date]]),PenaltyTable[Year]&PenaltyTable[Month],PenaltyTable[Daily])*$BU$10,"") ->  | CF127: =IFERROR(_xlfn.XLOOKUP(YEAR(Year7Table[[#This Row],[Date]])&MONTH(Year7Table[[#This Row],[Date]]),PenaltyTable[Year]&PenaltyTable[Month],PenaltyTable[Daily])*CE$10,"") ->  | CP127: =IFERROR(_xlfn.XLOOKUP(YEAR(Year8Table[[#This Row],[Date]])&MONTH(Year8Table[[#This Row],[Date]]),PenaltyTable[Year]&PenaltyTable[Month],PenaltyTable[Daily])*$CO$10,"") ->  | CZ127: =IFERROR(_xlfn.XLOOKUP(YEAR(Year9Table[[#This Row],[Date]])&MONTH(Year9Table[[#This Row],[Date]]),PenaltyTable[Year]&PenaltyTable[Month],PenaltyTable[Daily])*$CY$10,"") ->  | DJ127: =IFERROR(_xlfn.XLOOKUP(YEAR(Year10Table[[#This Row],[Date]])&MONTH(Year10Table[[#This Row],[Date]]),PenaltyTable[Year]&PenaltyTable[Month],PenaltyTable[Daily])*$DI$10,"") -> 
U128: =IFERROR(IF((ROW()-ROW(Year1Table[#Headers]))=1,IF(OR(Table1[[#This Row],[Tax Assessed]]="",Table1[[#This Row],[Tax Assessed]]=0),"",Table1[[#This Row],[Tax Due Dt]]),IF((ROW()-ROW(Year1Table[#Headers]))>1,IF(OFFSET(AB128,-1,)<1,"",EDATE(U127,1)))),"") ->  | X128: =IFERROR(_xlfn.XLOOKUP(YEAR(Year1Table[[#This Row],[Date]])&MONTH(Year1Table[[#This Row],[Date]]),PenaltyTable[Year]&PenaltyTable[Month],PenaltyTable[Daily])*$W$10,"") ->  | AF128: =IF(ROW()-ROW(Year2Table[#Headers])=1,$AI$193,IF(AG126="","",IF(AND($B$7<>"",AE128>=$B$7),$C$7,IF(AND($B$6<>"",AE128>=$B$6),$C$6,IF(AE128>=$B$5,$C$5,IF(AE128<$B$5,0)))))) ->  | AH128: =IFERROR(_xlfn.XLOOKUP(YEAR(Year2Table[[#This Row],[Date]])&MONTH(Year2Table[[#This Row],[Date]]),PenaltyTable[Year]&PenaltyTable[Month],PenaltyTable[Daily])*$AG$10,"") ->  | AR128: =IFERROR(_xlfn.XLOOKUP(YEAR(Year3Table[[#This Row],[Date]])&MONTH(Year3Table[[#This Row],[Date]]),PenaltyTable[Year]&PenaltyTable[Month],PenaltyTable[Daily])*$AQ$10,"") ->  | BB128: =IFERROR(_xlfn.XLOOKUP(YEAR(Year4Table[[#This Row],[Date]])&MONTH(Year4Table[[#This Row],[Date]]),PenaltyTable[Year]&PenaltyTable[Month],PenaltyTable[Daily])*$BA$10,"") ->  | BL128: =IFERROR(_xlfn.XLOOKUP(YEAR(Year5Table[[#This Row],[Date]])&MONTH(Year5Table[[#This Row],[Date]]),PenaltyTable[Year]&PenaltyTable[Month],PenaltyTable[Daily])*$BK$10,"") ->  | BV128: =IFERROR(_xlfn.XLOOKUP(YEAR(Year6Table[[#This Row],[Date]])&MONTH(Year6Table[[#This Row],[Date]]),PenaltyTable[Year]&PenaltyTable[Month],PenaltyTable[Daily])*$BU$10,"") ->  | CF128: =IFERROR(_xlfn.XLOOKUP(YEAR(Year7Table[[#This Row],[Date]])&MONTH(Year7Table[[#This Row],[Date]]),PenaltyTable[Year]&PenaltyTable[Month],PenaltyTable[Daily])*CE$10,"") ->  | CP128: =IFERROR(_xlfn.XLOOKUP(YEAR(Year8Table[[#This Row],[Date]])&MONTH(Year8Table[[#This Row],[Date]]),PenaltyTable[Year]&PenaltyTable[Month],PenaltyTable[Daily])*$CO$10,"") ->  | CZ128: =IFERROR(_xlfn.XLOOKUP(YEAR(Year9Table[[#This Row],[Date]])&MONTH(Year9Table[[#This Row],[Date]]),PenaltyTable[Year]&PenaltyTable[Month],PenaltyTable[Daily])*$CY$10,"") ->  | DJ128: =IFERROR(_xlfn.XLOOKUP(YEAR(Year10Table[[#This Row],[Date]])&MONTH(Year10Table[[#This Row],[Date]]),PenaltyTable[Year]&PenaltyTable[Month],PenaltyTable[Daily])*$DI$10,"") -> 
U129: =IFERROR(IF((ROW()-ROW(Year1Table[#Headers]))=1,IF(OR(Table1[[#This Row],[Tax Assessed]]="",Table1[[#This Row],[Tax Assessed]]=0),"",Table1[[#This Row],[Tax Due Dt]]),IF((ROW()-ROW(Year1Table[#Headers]))>1,IF(OFFSET(AB129,-1,)<1,"",EDATE(U128,1)))),"") ->  | X129: =IFERROR(_xlfn.XLOOKUP(YEAR(Year1Table[[#This Row],[Date]])&MONTH(Year1Table[[#This Row],[Date]]),PenaltyTable[Year]&PenaltyTable[Month],PenaltyTable[Daily])*$W$10,"") ->  | AF129: =IF(ROW()-ROW(Year2Table[#Headers])=1,$AI$193,IF(AG127="","",IF(AND($B$7<>"",AE129>=$B$7),$C$7,IF(AND($B$6<>"",AE129>=$B$6),$C$6,IF(AE129>=$B$5,$C$5,IF(AE129<$B$5,0)))))) ->  | AH129: =IFERROR(_xlfn.XLOOKUP(YEAR(Year2Table[[#This Row],[Date]])&MONTH(Year2Table[[#This Row],[Date]]),PenaltyTable[Year]&PenaltyTable[Month],PenaltyTable[Daily])*$AG$10,"") ->  | AR129: =IFERROR(_xlfn.XLOOKUP(YEAR(Year3Table[[#This Row],[Date]])&MONTH(Year3Table[[#This Row],[Date]]),PenaltyTable[Year]&PenaltyTable[Month],PenaltyTable[Daily])*$AQ$10,"") ->  | BB129: =IFERROR(_xlfn.XLOOKUP(YEAR(Year4Table[[#This Row],[Date]])&MONTH(Year4Table[[#This Row],[Date]]),PenaltyTable[Year]&PenaltyTable[Month],PenaltyTable[Daily])*$BA$10,"") ->  | BL129: =IFERROR(_xlfn.XLOOKUP(YEAR(Year5Table[[#This Row],[Date]])&MONTH(Year5Table[[#This Row],[Date]]),PenaltyTable[Year]&PenaltyTable[Month],PenaltyTable[Daily])*$BK$10,"") ->  | BV129: =IFERROR(_xlfn.XLOOKUP(YEAR(Year6Table[[#This Row],[Date]])&MONTH(Year6Table[[#This Row],[Date]]),PenaltyTable[Year]&PenaltyTable[Month],PenaltyTable[Daily])*$BU$10,"") ->  | CF129: =IFERROR(_xlfn.XLOOKUP(YEAR(Year7Table[[#This Row],[Date]])&MONTH(Year7Table[[#This Row],[Date]]),PenaltyTable[Year]&PenaltyTable[Month],PenaltyTable[Daily])*CE$10,"") ->  | CP129: =IFERROR(_xlfn.XLOOKUP(YEAR(Year8Table[[#This Row],[Date]])&MONTH(Year8Table[[#This Row],[Date]]),PenaltyTable[Year]&PenaltyTable[Month],PenaltyTable[Daily])*$CO$10,"") ->  | CZ129: =IFERROR(_xlfn.XLOOKUP(YEAR(Year9Table[[#This Row],[Date]])&MONTH(Year9Table[[#This Row],[Date]]),PenaltyTable[Year]&PenaltyTable[Month],PenaltyTable[Daily])*$CY$10,"") ->  | DJ129: =IFERROR(_xlfn.XLOOKUP(YEAR(Year10Table[[#This Row],[Date]])&MONTH(Year10Table[[#This Row],[Date]]),PenaltyTable[Year]&PenaltyTable[Month],PenaltyTable[Daily])*$DI$10,"") -> 
U130: =IFERROR(IF((ROW()-ROW(Year1Table[#Headers]))=1,IF(OR(Table1[[#This Row],[Tax Assessed]]="",Table1[[#This Row],[Tax Assessed]]=0),"",Table1[[#This Row],[Tax Due Dt]]),IF((ROW()-ROW(Year1Table[#Headers]))>1,IF(OFFSET(AB130,-1,)<1,"",EDATE(U129,1)))),"") ->  | X130: =IFERROR(_xlfn.XLOOKUP(YEAR(Year1Table[[#This Row],[Date]])&MONTH(Year1Table[[#This Row],[Date]]),PenaltyTable[Year]&PenaltyTable[Month],PenaltyTable[Daily])*$W$10,"") ->  | AF130: =IF(ROW()-ROW(Year2Table[#Headers])=1,$AI$193,IF(AG128="","",IF(AND($B$7<>"",AE130>=$B$7),$C$7,IF(AND($B$6<>"",AE130>=$B$6),$C$6,IF(AE130>=$B$5,$C$5,IF(AE130<$B$5,0)))))) ->  | AH130: =IFERROR(_xlfn.XLOOKUP(YEAR(Year2Table[[#This Row],[Date]])&MONTH(Year2Table[[#This Row],[Date]]),PenaltyTable[Year]&PenaltyTable[Month],PenaltyTable[Daily])*$AG$10,"") ->  | AR130: =IFERROR(_xlfn.XLOOKUP(YEAR(Year3Table[[#This Row],[Date]])&MONTH(Year3Table[[#This Row],[Date]]),PenaltyTable[Year]&PenaltyTable[Month],PenaltyTable[Daily])*$AQ$10,"") ->  | BB130: =IFERROR(_xlfn.XLOOKUP(YEAR(Year4Table[[#This Row],[Date]])&MONTH(Year4Table[[#This Row],[Date]]),PenaltyTable[Year]&PenaltyTable[Month],PenaltyTable[Daily])*$BA$10,"") ->  | BL130: =IFERROR(_xlfn.XLOOKUP(YEAR(Year5Table[[#This Row],[Date]])&MONTH(Year5Table[[#This Row],[Date]]),PenaltyTable[Year]&PenaltyTable[Month],PenaltyTable[Daily])*$BK$10,"") ->  | BV130: =IFERROR(_xlfn.XLOOKUP(YEAR(Year6Table[[#This Row],[Date]])&MONTH(Year6Table[[#This Row],[Date]]),PenaltyTable[Year]&PenaltyTable[Month],PenaltyTable[Daily])*$BU$10,"") ->  | CF130: =IFERROR(_xlfn.XLOOKUP(YEAR(Year7Table[[#This Row],[Date]])&MONTH(Year7Table[[#This Row],[Date]]),PenaltyTable[Year]&PenaltyTable[Month],PenaltyTable[Daily])*CE$10,"") ->  | CP130: =IFERROR(_xlfn.XLOOKUP(YEAR(Year8Table[[#This Row],[Date]])&MONTH(Year8Table[[#This Row],[Date]]),PenaltyTable[Year]&PenaltyTable[Month],PenaltyTable[Daily])*$CO$10,"") ->  | CZ130: =IFERROR(_xlfn.XLOOKUP(YEAR(Year9Table[[#This Row],[Date]])&MONTH(Year9Table[[#This Row],[Date]]),PenaltyTable[Year]&PenaltyTable[Month],PenaltyTable[Daily])*$CY$10,"") ->  | DJ130: =IFERROR(_xlfn.XLOOKUP(YEAR(Year10Table[[#This Row],[Date]])&MONTH(Year10Table[[#This Row],[Date]]),PenaltyTable[Year]&PenaltyTable[Month],PenaltyTable[Daily])*$DI$10,"") -> 
